Workbook

Sheet Parámetros de Producción
A1: Parámetros de Producción
A3: Numero dpto: | B3: 240
A4: Ritmo de obra | B4: 2
A5: Numero de frentes: | B5: 120
A6: Número de frentes en planta por edificio | B6: 2
A7: Numero mayor de frentes en OG | B7: 6
A8: Número de pisos real | B8: 5
A9: Secuencia de etapas OG | B9: 6-5-5-4-4
A10: Edificios en Altura
A11: Número de pisos modelo | B11: 5

Sheet OBS
A2: JULIO TRES
A3: 1 | B3: Se debe acelerar segundo tren, tienes trazos de excavación solo hasta el día martes 1F6, debe continuar la secuencia
A5: JULIO CUATRO
A6: 1 | B6: Entrega de niveletas debe ser el martes para excavar día miércoles
A9: JULIO CINCO
A10: 1 | B10: RELLENO
B11: Se necesitan 6 personas
B12: 1era cuadrilla | C12: Jorge Pincheira
C13: Luis Delgado
C14: Alberto Roa
B15: 2da cuadrilla | C15: Leonardo Roa
C16: Isaac Monsalve
C17: Emilio Jara
B18: 3ra cuadrilla | C18: José Álvarez

Sheet Dibujo Edificios
B9: nDibujos | C9: =COUNTA(A14:A217) -> 18
B12: Dibujo según tren y unidad de producción
B13: Tren | C13: Unidad
A14: =B14&C14 -> OG1Depto | B14: OG1 | C14: Depto
C16: F1.1 | D16: F1.2 | E16: F2.1 | F16: F2.2 | G16: F3.1 | H16: F3.2 | I16: F4.1 | J16: F4.2 | K16: F5.1 | L16: F5.2 | M16: F6.1 | N16: F6.2 | O16: F7.1 | P16: F7.2 | Q16: F8.1 | R16: F8.2 | S16: F9.1 | T16: F9.2 | U16: F10.1 | V16: F10.2 | W16: F11.1 | X16: F11.2 | Y16: F12.1 | Z16: F12.2 | AA16: F13.1 | AB16: F13.2 | AC16: F14.1 | AD16: F14.2 | AE16: F15.1 | AF16: F15.2 | AG16: F16.1 | AH16: F16.2 | AI16: F17.1 | AJ16: F17.2 | AK16: F18.1 | AL16: F18.2 | AM16: F19.1 | AN16: F19.2 | AO16: F20.1 | AP16: F20.2 | AQ16: F21.1 | AR16: F21.2 | AS16: F22.1 | AT16: F22.2 | AU16: F23.1 | AV16: F23.2 | AW16: F24.1 | AX16: F24.2 | AY16: N° Unid Prod | AZ16: N° Frentes | BA16: Pos | BB16: %
B17: 5 | C17: X | D17: X | E17: X | F17: X | G17: X | H17: X | I17: X | J17: X | K17: X | L17: X | M17: X | N17: X | O17: X | P17: X | Q17: X | R17: X | S17: X | T17: X | U17: X | V17: X | W17: X | X17: X | Y17: X | Z17: X | AA17: X | AB17: X | AC17: X | AD17: X | AE17: X | AF17: X | AG17: X | AH17: X | AI17: X | AJ17: X | AK17: X | AL17: X | AM17: X | AN17: X | AO17: X | AP17: X | AQ17: X | AR17: X | AS17: X | AT17: X | AU17: X | AV17: X | AW17: X | AX17: X | AY17: =COUNTIF(C17:AX21,"A")+COUNTIF(C17:AX21,"B") -> 0 | AZ17: =+AY17/BI15*BJ15 ->  | BA17: =+AZ17+BN15 ->  | BB17: =IF(AY17=BA18,"OK",BA17/'Control de Avance'!$BT$3) -> 
B18: 4 | C18: X | D18: X | E18: X | F18: X | G18: X | H18: X | I18: X | J18: X | K18: X | L18: X | M18: X | N18: X | O18: X | P18: X | Q18: X | R18: X | S18: X | T18: X | U18: X | V18: X | W18: X | X18: X | Y18: X | Z18: X | AA18: X | AB18: X | AC18: X | AD18: X | AE18: X | AF18: X | AG18: X | AH18: X | AI18: X | AJ18: X | AK18: X | AL18: X | AM18: X | AN18: X | AO18: X | AP18: X | AQ18: X | AR18: X | AS18: X | AT18: X | AU18: X | AV18: X | AW18: X | AX18: X | AY18: N° Total Und Prod: | BA18: =VLOOKUP('Dibujo Edificios'!$A$14,'Otras Tablas'!$G$2:$H$31,2,FALSE) -> 48
B19: 3 | C19: X | D19: X | E19: X | F19: X | G19: X | H19: X | I19: X | J19: X | K19: X | L19: X | M19: X | N19: X | O19: X | P19: X | Q19: X | R19: X | S19: X | T19: X | U19: X | V19: X | W19: X | X19: X | Y19: X | Z19: X | AA19: X | AB19: X | AC19: X | AD19: X | AE19: X | AF19: X | AG19: X | AH19: X | AI19: X | AJ19: X | AK19: X | AL19: X | AM19: X | AN19: X | AO19: X | AP19: X | AQ19: X | AR19: X | AS19: X | AT19: X | AU19: X | AV19: X | AW19: X | AX19: X | AY19: Proyección avance actual | BB19: =IF(AY17=BA18,"OK",IF(BB21=0,"NA",(BA18/BI15*BJ15+BP15)/('Control de Avance'!$BT$3+BB22*5))) -> 
B20: 2 | C20: X | D20: X | E20: X | F20: X | G20: X | H20: X | I20: X | J20: X | K20: X | L20: X | M20: X | N20: X | O20: X | P20: X | Q20: X | R20: X | S20: X | T20: X | U20: X | V20: X | W20: X | X20: X | Y20: X | Z20: X | AA20: X | AB20: X | AC20: X | AD20: X | AE20: X | AF20: X | AG20: X | AH20: X | AI20: X | AJ20: X | AK20: X | AL20: X | AM20: X | AN20: X | AO20: X | AP20: X | AQ20: X | AR20: X | AS20: X | AT20: X | AU20: X | AV20: X | AW20: X | AX20: X | AY20: Frentes anteriores | BB20: =COUNTIF(C17:AB21,"A")/BI15*BJ15 -> 
B21: 1 | AY21: Frentes semana actual | BB21: =COUNTIF(C17:AB21,"B")/BI15*BJ15 -> 
AY22: Saldo | AZ22: =+BA18/BI15*BJ15-BB20-BB21 ->  | BA22: Sem | BB22: =IF(AY17=BA18,"OK",IF(BB21=0,"NA",AZ22/BB21)) -> 
A24: =B24&C24 -> OG1Frente | B24: OG1 | C24: Frente
C26: F1 | D26: F2 | E26: F3 | F26: F4 | G26: F5 | H26: F6 | I26: F7 | J26: F8 | K26: F9 | L26: F10 | M26: F11 | N26: F12 | O26: F13 | P26: F14 | Q26: F15 | R26: F16 | S26: F17 | T26: F18 | U26: F19 | V26: F20 | W26: F21 | X26: F22 | Y26: F23 | Z26: F24 | AY26: N° Unid Prod | AZ26: N° Frentes | BA26: Pos | BB26: %
B27: 5 | C27: X | D27: X | E27: X | F27: X | G27: X | H27: X | I27: X | J27: X | K27: X | L27: X | M27: X | N27: X | O27: X | P27: X | Q27: X | R27: X | S27: X | T27: X | U27: X | V27: X | W27: X | X27: X | Y27: X | Z27: X | AY27: =COUNTIF(C27:Z31,"A")+COUNTIF(C27:Z31,"B") -> 0 | AZ27: =+AY27/BI25*BJ25 ->  | BA27: =+AZ27+BN25 ->  | BB27: =IF(AY27=BA28,"OK",BA27/'Control de Avance'!$BT$3) -> 
B28: 4 | C28: X | D28: X | E28: X | F28: X | G28: X | H28: X | I28: X | J28: X | K28: X | L28: X | M28: X | N28: X | O28: X | P28: X | Q28: X | R28: X | S28: X | T28: X | U28: X | V28: X | W28: X | X28: X | Y28: X | Z28: X | AY28: N° Total Und Prod: | BA28: =VLOOKUP('Dibujo Edificios'!$A$24,'Otras Tablas'!$G$2:$H$31,2,FALSE) -> 24
B29: 3 | C29: X | D29: X | E29: X | F29: X | G29: X | H29: X | I29: X | J29: X | K29: X | L29: X | M29: X | N29: X | O29: X | P29: X | Q29: X | R29: X | S29: X | T29: X | U29: X | V29: X | W29: X | X29: X | Y29: X | Z29: X | AY29: Proyección avance actual | BB29: =IF(AY27=BA28,"OK",IF(BB31=0,"NA",(BA28/BI25*BJ25+BP25)/('Control de Avance'!$BT$3+BB32*5))) -> 
B30: 2 | C30: X | D30: X | E30: X | F30: X | G30: X | H30: X | I30: X | J30: X | K30: X | L30: X | M30: X | N30: X | O30: X | P30: X | Q30: X | R30: X | S30: X | T30: X | U30: X | V30: X | W30: X | X30: X | Y30: X | Z30: X | AY30: Frentes anteriores | BB30: =COUNTIF(C27:AB31,"A")/BI25*BJ25 -> 
B31: 1 | AY31: Frentes semana actual | BB31: =COUNTIF(C27:AB31,"B")/BI25*BJ25 -> 
AY32: Saldo | AZ32: =+BA28/BI25*BJ25-BB30-BB31 ->  | BA32: Sem | BB32: =IF(AY27=BA28,"OK",IF(BB31=0,"NA",AZ32/BB31)) -> 
A34: =B34&C34 -> OG1Edif | B34: OG1 | C34: Edif
C36: F1-2 | D36: F3-4 | E36: F5-6 | F36: F7-8 | G36: F9-10 | H36: F11 | I36: F12-13 | J36: F14-15 | K36: F16 | L36: F17-18 | M36: F19-20 | N36: F21-22 | O36: F23-24 | AY36: N° Unid Prod | AZ36: N° Frentes | BA36: Pos | BB36: %
B37: 5 | C37: X | D37: X | E37: X | F37: X | G37: X | H37: X | I37: X | J37: X | K37: X | L37: X | M37: X | N37: X | O37: X | AY37: =COUNTIF(C37:O41,"A")+COUNTIF(C37:O41,"B") -> 0 | AZ37: =+AY37/BI35*BJ35 ->  | BA37: =+AZ37+BN35 ->  | BB37: =IF(AY37=BA38,"OK",BA37/'Control de Avance'!$BT$3) -> 
B38: 4 | C38: X | D38: X | E38: X | F38: X | G38: X | H38: X | I38: X | J38: X | K38: X | L38: X | M38: X | N38: X | O38: X | AY38: N° Total Und Prod: | BA38: =VLOOKUP('Dibujo Edificios'!$A$34,'Otras Tablas'!$G$2:$H$31,2,FALSE) -> 12
B39: 3 | C39: X | D39: X | E39: X | F39: X | G39: X | H39: X | I39: X | J39: X | K39: X | L39: X | M39: X | N39: X | O39: X | AY39: Proyección avance actual | BB39: =IF(AY37=BA38,"OK",IF(BB41=0,"NA",(BA38/BI35*BJ35+BP35)/('Control de Avance'!$BT$3+BB42*5))) -> 
B40: 2 | C40: X | D40: X | E40: X | F40: X | G40: X | H40: X | I40: X | J40: X | K40: X | L40: X | M40: X | N40: X | O40: X | AY40: Frentes anteriores | BB40: =COUNTIF(C37:AB41,"A")/BI35*BJ35 -> 
B41: 1 | AY41: Frentes semana actual | BB41: =COUNTIF(C37:AB41,"B")/BI35*BJ35 -> 
AY42: Saldo | AZ42: =+BA38/BI35*BJ35-BB40-BB41 ->  | BA42: Sem | BB42: =IF(AY37=BA38,"OK",IF(BB41=0,"NA",AZ42/BB41)) -> 
A44: =B44&C44 -> OGTFrente | B44: OGT | C44: Frente
C46: F1 | D46: F2 | E46: F3 | F46: F4 | G46: F5 | H46: F6 | I46: F7 | J46: F8 | K46: F9 | L46: F10 | M46: F11 | N46: F12 | O46: F13 | P46: F14 | Q46: F15 | R46: F16 | S46: F17 | T46: F18 | U46: F19 | V46: F20 | W46: F21 | X46: F22 | Y46: F23 | Z46: F24 | AY46: N° Unid Prod | AZ46: N° Frentes | BA46: Pos | BB46: %
B47: 5 | AY47: =COUNTIF(C47:Z51,"A")+COUNTIF(C47:Z51,"B") -> 0 | AZ47: =+AY47/BI45*BJ45 ->  | BA47: =+AZ47+BN45 ->  | BB47: =IF(AY47=BA48,"OK",BA47/'Control de Avance'!$BT$3) -> 
B48: 4 | AY48: N° Total Und Prod: | BA48: =VLOOKUP('Dibujo Edificios'!$A$44,'Otras Tablas'!$G$2:$H$31,2,FALSE) -> 120
B49: 3 | AY49: Proyección avance actual | BB49: =IF(AY47=BA48,"OK",IF(BB51=0,"NA",(BA48/BI45*BJ45+BP45)/('Control de Avance'!$BT$3+BB52*5))) -> 
B50: 2 | AY50: Frentes anteriores | BB50: =COUNTIF(C47:AB51,"A")/BI45*BJ45 -> 
B51: 1 | AY51: Frentes semana actual | BB51: =COUNTIF(C47:AB51,"B")/BI45*BJ45 -> 
AY52: Saldo | AZ52: =+BA48/BI45*BJ45-BB50-BB51 ->  | BA52: Sem | BB52: =IF(AY47=BA48,"OK",IF(BB51=0,"NA",AZ52/BB51)) -> 
A54: =B54&C54 -> OGT-1Frente | B54: OGT-1 | C54: Frente
C56: F1 | D56: F2 | E56: F3 | F56: F4 | G56: F5 | H56: F6 | I56: F7 | J56: F8 | K56: F9 | L56: F10 | M56: F11 | N56: F12 | O56: F13 | P56: F14 | Q56: F15 | R56: F16 | S56: F17 | T56: F18 | U56: F19 | V56: F20 | W56: F21 | X56: F22 | Y56: F23 | Z56: F24 | AY56: N° Unid Prod | AZ56: N° Frentes | BA56: Pos | BB56: %
B57: 5 | AY57: =COUNTIF(C57:Z61,"A")+COUNTIF(C57:Z61,"B") -> 0 | AZ57: =+AY57/BI55*BJ55 ->  | BA57: =+AZ57+BN55 ->  | BB57: =IF(AY57=BA58,"OK",BA57/'Control de Avance'!$BT$3) -> 
B58: 4 | AY58: N° Total Und Prod: | BA58: =VLOOKUP('Dibujo Edificios'!$A$54,'Otras Tablas'!$G$2:$H$31,2,FALSE) -> 96
B59: 3 | AY59: Proyección avance actual | BB59: =IF(AY57=BA58,"OK",IF(BB61=0,"NA",(BA58/BI55*BJ55+BP55)/('Control de Avance'!$BT$3+BB62*5))) -> 
B60: 2 | AY60: Frentes anteriores | BB60: =COUNTIF(C57:AB61,"A")/BI55*BJ55 -> 
B61: 1 | C61: X | D61: X | E61: X | F61: X | G61: X | H61: X | I61: X | J61: X | K61: X | L61: X | M61: X | N61: X | O61: X | P61: X | Q61: X | R61: X | S61: X | T61: X | U61: X | V61: X | W61: X | X61: X | Y61: X | Z61: X | AY61: Frentes semana actual | BB61: =COUNTIF(C57:AB61,"B")/BI55*BJ55 -> 
AY62: Saldo | AZ62: =+BA58/BI55*BJ55-BB60-BB61 ->  | BA62: Sem | BB62: =IF(AY57=BA58,"OK",IF(BB61=0,"NA",AZ62/BB61)) -> 
A64: =B64&C64 -> OGTPiso | B64: OGT | C64: Piso
C66: F1-2 | D66: F3-4 | E66: F5-6 | F66: F7-8 | G66: F9-10 | H66: F11 | I66: F12-13 | J66: F14-15 | K66: F16 | L66: F17-18 | M66: F19-20 | N66: F21-22 | O66: F23-24 | AY66: N° Unid Prod | AZ66: N° Frentes | BA66: Pos | BB66: %
B67: 5 | C67: X | D67: X | E67: X | F67: X | G67: X | H67: X | I67: X | J67: X | K67: X | L67: X | M67: X | N67: X | O67: X | AY67: =COUNTIF(C67:O71,"A")+COUNTIF(C67:O71,"B") -> 0 | AZ67: =+AY67/BI65*BJ65 ->  | BA67: =+AZ67+BN65 ->  | BB67: =IF(AY67=BA68,"OK",BA67/'Control de Avance'!$BT$3) -> 
B68: 4 | AY68: N° Total Und Prod: | BA68: =VLOOKUP('Dibujo Edificios'!$A$64,'Otras Tablas'!$G$2:$H$31,2,FALSE) -> 48
B69: 3 | AY69: Proyección avance actual | BB69: =IF(AY67=BA68,"OK",IF(BB71=0,"NA",(BA68/BI65*BJ65+BP65)/('Control de Avance'!$BT$3+BB72*5))) -> 
B70: 2 | AY70: Frentes anteriores | BB70: =COUNTIF(C67:AB71,"A")/BI65*BJ65 -> 
B71: 1 | AY71: Frentes semana actual | BB71: =COUNTIF(C67:AB71,"B")/BI65*BJ65 -> 
AY72: Saldo | AZ72: =+BA68/BI65*BJ65-BB70-BB71 ->  | BA72: Sem | BB72: =IF(AY67=BA68,"OK",IF(BB71=0,"NA",AZ72/BB71)) -> 
A74: =B74&C74 -> OGT-1Piso | B74: OGT-1 | C74: Piso
C76: F1-2 | D76: F3-4 | E76: F5-6 | F76: F7-8 | G76: F9-10 | H76: F11 | I76: F12-13 | J76: F14-15 | K76: F16 | L76: F17-18 | M76: F19-20 | N76: F21-22 | O76: F23-24 | AY76: N° Unid Prod | AZ76: N° Frentes | BA76: Pos | BB76: %
B77: 5 | C77: X | D77: X | E77: X | F77: X | G77: X | H77: X | I77: X | J77: X | K77: X | L77: X | M77: X | N77: X | O77: X | AY77: =COUNTIF(C77:O81,"A")+COUNTIF(C77:O81,"B") -> 0 | AZ77: =+AY77/BI75*BJ75 ->  | BA77: =+AZ77+BN75 ->  | BB77: =IF(AY77=BA78,"OK",BA77/'Control de Avance'!$BT$3) -> 
B78: 4 | AY78: N° Total Und Prod: | BA78: =VLOOKUP('Dibujo Edificios'!$A$74,'Otras Tablas'!$G$2:$H$31,2,FALSE) -> 36
B79: 3 | AY79: Proyección avance actual | BB79: =IF(AY77=BA78,"OK",IF(BB81=0,"NA",(BA78/BI75*BJ75+BP75)/('Control de Avance'!$BT$3+BB82*5))) -> 
B80: 2 | AY80: Frentes anteriores | BB80: =COUNTIF(C77:AB81,"A")/BI75*BJ75 -> 
B81: 1 | C81: X | D81: X | E81: X | F81: X | G81: X | H81: X | I81: X | J81: X | K81: X | L81: X | M81: X | N81: X | O81: X | AY81: Frentes semana actual | BB81: =COUNTIF(C77:AB81,"B")/BI75*BJ75 -> 
AY82: Saldo | AZ82: =+BA78/BI75*BJ75-BB80-BB81 ->  | BA82: Sem | BB82: =IF(AY77=BA78,"OK",IF(BB81=0,"NA",AZ82/BB81)) -> 
A84: =B84&C84 -> TECHEdif | B84: TECH | C84: Edif
C86: F1-2 | D86: F3-4 | E86: F5-6 | F86: F7-8 | G86: F9-10 | H86: F11 | I86: F12-13 | J86: F14-15 | K86: F16 | L86: F17-18 | M86: F19-20 | N86: F21-22 | O86: F23-24 | AY86: N° Unid Prod | AZ86: N° Frentes | BA86: Pos | BB86: %
B87: 5 | AY87: =COUNTIF(C87:O91,"A")+COUNTIF(C87:O91,"B") -> 0 | AZ87: =+AY87/BI85*BJ85 ->  | BA87: =+AZ87+BN85 ->  | BB87: =IF(AY87=BA88,"OK",BA87/'Control de Avance'!$BT$3) -> 
B88: 4 | C88: X | D88: X | E88: X | F88: X | G88: X | H88: X | I88: X | J88: X | K88: X | L88: X | M88: X | N88: X | O88: X | AY88: N° Total Und Prod: | BA88: =VLOOKUP('Dibujo Edificios'!$A$84,'Otras Tablas'!$G$2:$H$31,2,FALSE) -> 12
B89: 3 | C89: X | D89: X | E89: X | F89: X | G89: X | H89: X | I89: X | J89: X | K89: X | L89: X | M89: X | N89: X | O89: X | AY89: Proyección avance actual | BB89: =IF(AY87=BA88,"OK",IF(BB91=0,"NA",(BA88/BI85*BJ85+BP85)/('Control de Avance'!$BT$3+BB92*5))) -> 
B90: 2 | C90: X | D90: X | E90: X | F90: X | G90: X | H90: X | I90: X | J90: X | K90: X | L90: X | M90: X | N90: X | O90: X | AY90: Frentes anteriores | BB90: =COUNTIF(C87:AB91,"A")/BI85*BJ85 -> 
B91: 1 | C91: X | D91: X | E91: X | F91: X | G91: X | H91: X | I91: X | J91: X | K91: X | L91: X | M91: X | N91: X | O91: X | AY91: Frentes semana actual | BB91: =COUNTIF(C87:AB91,"B")/BI85*BJ85 -> 
AY92: Saldo | AZ92: =+BA88/BI85*BJ85-BB90-BB91 ->  | BA92: Sem | BB92: =IF(AY87=BA88,"OK",IF(BB91=0,"NA",AZ92/BB91)) -> 
A94: =B94&C94 -> TECHFrente | B94: TECH | C94: Frente
C96: F1 | D96: F2 | E96: F3 | F96: F4 | G96: F5 | H96: F6 | I96: F7 | J96: F8 | K96: F9 | L96: F10 | M96: F11 | N96: F12 | O96: F13 | P96: F14 | Q96: F15 | R96: F16 | S96: F17 | T96: F18 | U96: F19 | V96: F20 | W96: F21 | X96: F22 | Y96: F23 | Z96: F24 | AY96: N° Unid Prod | AZ96: N° Frentes | BA96: Pos | BB96: %
B97: 5 | AY97: =COUNTIF(C97:Z101,"A")+COUNTIF(C97:Z101,"B") -> 0 | AZ97: =+AY97/BI95*BJ95 ->  | BA97: =+AZ97+BN95 ->  | BB97: =IF(AY97=BA98,"OK",BA97/'Control de Avance'!$BT$3) -> 
B98: 4 | C98: X | D98: X | E98: X | F98: X | G98: X | H98: X | I98: X | J98: X | K98: X | L98: X | M98: X | N98: X | O98: X | P98: X | Q98: X | R98: X | S98: X | T98: X | U98: X | V98: X | W98: X | X98: X | Y98: X | Z98: X | AY98: N° Total Und Prod: | BA98: =VLOOKUP('Dibujo Edificios'!$A$94,'Otras Tablas'!$G$2:$H$31,2,FALSE) -> 24
B99: 3 | C99: X | D99: X | E99: X | F99: X | G99: X | H99: X | I99: X | J99: X | K99: X | L99: X | M99: X | N99: X | O99: X | P99: X | Q99: X | R99: X | S99: X | T99: X | U99: X | V99: X | W99: X | X99: X | Y99: X | Z99: X | AY99: Proyección avance actual | BB99: =IF(AY97=BA98,"OK",IF(BB101=0,"NA",(BA98/BI95*BJ95+BP95)/('Control de Avance'!$BT$3+BB102*5))) -> 
B100: 2 | C100: X | D100: X | E100: X | F100: X | G100: X | H100: X | I100: X | J100: X | K100: X | L100: X | M100: X | N100: X | O100: X | P100: X | Q100: X | R100: X | S100: X | T100: X | U100: X | V100: X | W100: X | X100: X | Y100: X | Z100: X | AY100: Frentes anteriores | BB100: =COUNTIF(C97:AB101,"A")/BI95*BJ95 -> 
B101: 1 | C101: X | D101: X | E101: X | F101: X | G101: X | H101: X | I101: X | J101: X | K101: X | L101: X | M101: X | N101: X | O101: X | P101: X | Q101: X | R101: X | S101: X | T101: X | U101: X | V101: X | W101: X | X101: X | Y101: X | Z101: X | AY101: Frentes semana actual | BB101: =COUNTIF(C97:AB101,"B")/BI95*BJ95 -> 
AY102: Saldo | AZ102: =+BA98/BI95*BJ95-BB100-BB101 ->  | BA102: Sem | BB102: =IF(AY97=BA98,"OK",IF(BB101=0,"NA",AZ102/BB101)) -> 
A104: =B104&C104 -> RYTDepto | B104: RYT | C104: Depto
C106: F1.1 | D106: F1.2 | E106: F2.1 | F106: F2.2 | G106: F3.1 | H106: F3.2 | I106: F4.1 | J106: F4.2 | K106: F5.1 | L106: F5.2 | M106: F6.1 | N106: F6.2 | O106: F7.1 | P106: F7.2 | Q106: F8.1 | R106: F8.2 | S106: F9.1 | T106: F9.2 | U106: F10.1 | V106: F10.2 | W106: F11.1 | X106: F11.2 | Y106: F12.1 | Z106: F12.2 | AA106: F13.1 | AB106: F13.2 | AC106: F14.1 | AD106: F14.2 | AE106: F15.1 | AF106: F15.2 | AG106: F16.1 | AH106: F16.2 | AI106: F17.1 | AJ106: F17.2 | AK106: F18.1 | AL106: F18.2 | AM106: F19.1 | AN106: F19.2 | AO106: F20.1 | AP106: F20.2 | AQ106: F21.1 | AR106: F21.2 | AS106: F22.1 | AT106: F22.2 | AU106: F23.1 | AV106: F23.2 | AW106: F24.1 | AX106: F24.2 | AY106: N° Unid Prod | AZ106: N° Frentes | BA106: Pos | BB106: %
B107: 5 | AY107: =COUNTIF(C107:AX111,"A")+COUNTIF(C107:AX111,"B") -> 0 | AZ107: =+AY107/BI105*BJ105 ->  | BA107: =+AZ107+BN105 ->  | BB107: =IF(AY107=BA108,"OK",BA107/'Control de Avance'!$BT$3) -> 
B108: 4 | AY108: N° Total Und Prod: | BA108: =VLOOKUP('Dibujo Edificios'!$A$104,'Otras Tablas'!$G$2:$H$31,2,FALSE) -> 240
B109: 3 | AY109: Proyección avance actual | BB109: =IF(AY107=BA108,"OK",IF(BB111=0,"NA",(BA108/BI105*BJ105+BP105)/('Control de Avance'!$BT$3+BB112*5))) -> 
B110: 2 | AY110: Frentes anteriores | BB110: =COUNTIF(C107:AB111,"A")/BI105*BJ105 -> 
B111: 1 | AY111: Frentes semana actual | BB111: =COUNTIF(C107:AB111,"B")/BI105*BJ105 -> 
AY112: Saldo | AZ112: =+BA108/BI105*BJ105-BB110-BB111 ->  | BA112: Sem | BB112: =IF(AY107=BA108,"OK",IF(BB111=0,"NA",AZ112/BB111)) -> 
A114: =B114&C114 -> TERMPiso | B114: TERM | C114: Piso
C116: F1-2 | D116: F3-4 | E116: F5-6 | F116: F7-8 | G116: F9-10 | H116: F11 | I116: F12-13 | J116: F14-15 | K116: F16 | L116: F17-18 | M116: F19-20 | N116: F21-22 | O116: F23-24 | AY116: N° Unid Prod | AZ116: N° Frentes | BA116: Pos | BB116: %
B117: 5 | AY117: =COUNTIF(C117:O121,"A")+COUNTIF(C117:O121,"B") -> 0 | AZ117: =+AY117/BI115*BJ115 ->  | BA117: =+AZ117+BN115 ->  | BB117: =IF(AY117=BA118,"OK",BA117/'Control de Avance'!$BT$3) -> 
B118: 4 | AY118: N° Total Und Prod: | BA118: =VLOOKUP('Dibujo Edificios'!$A$114,'Otras Tablas'!$G$2:$H$31,2,FALSE) -> 48
B119: 3 | AY119: Proyección avance actual | BB119: =IF(AY117=BA118,"OK",IF(BB121=0,"NA",(BA118/BI115*BJ115+BP115)/('Control de Avance'!$BT$3+BB122*5))) -> 
B120: 2 | AY120: Frentes anteriores | BB120: =COUNTIF(C117:AB121,"A")/BI115*BJ115 -> 
B121: 1 | AY121: Frentes semana actual | BB121: =COUNTIF(C117:AB121,"B")/BI115*BJ115 -> 
AY122: Saldo | AZ122: =+BA118/BI115*BJ115-BB120-BB121 ->  | BA122: Sem | BB122: =IF(AY117=BA118,"OK",IF(BB121=0,"NA",AZ122/BB121)) -> 
A124: =B124&C124 -> TERMDepto | B124: TERM | C124: Depto
C126: F1.1 | D126: F1.2 | E126: F2.1 | F126: F2.2 | G126: F3.1 | H126: F3.2 | I126: F4.1 | J126: F4.2 | K126: F5.1 | L126: F5.2 | M126: F6.1 | N126: F6.2 | O126: F7.1 | P126: F7.2 | Q126: F8.1 | R126: F8.2 | S126: F9.1 | T126: F9.2 | U126: F10.1 | V126: F10.2 | W126: F11.1 | X126: F11.2 | Y126: F12.1 | Z126: F12.2 | AA126: F13.1 | AB126: F13.2 | AC126: F14.1 | AD126: F14.2 | AE126: F15.1 | AF126: F15.2 | AG126: F16.1 | AH126: F16.2 | AI126: F17.1 | AJ126: F17.2 | AK126: F18.1 | AL126: F18.2 | AM126: F19.1 | AN126: F19.2 | AO126: F20.1 | AP126: F20.2 | AQ126: F21.1 | AR126: F21.2 | AS126: F22.1 | AT126: F22.2 | AU126: F23.1 | AV126: F23.2 | AW126: F24.1 | AX126: F24.2 | AY126: N° Unid Prod | AZ126: N° Frentes | BA126: Pos | BB126: %
B127: 5 | AY127: =COUNTIF(C127:AX131,"A")+COUNTIF(C127:AX131,"B") -> 0 | AZ127: =+AY127/BI125*BJ125 ->  | BA127: =+AZ127+BN125 ->  | BB127: =IF(AY127=BA128,"OK",BA127/'Control de Avance'!$BT$3) -> 
B128: 4 | AY128: N° Total Und Prod: | BA128: =VLOOKUP('Dibujo Edificios'!$A$124,'Otras Tablas'!$G$2:$H$31,2,FALSE) -> 240
B129: 3 | AY129: Proyección avance actual | BB129: =IF(AY127=BA128,"OK",IF(BB131=0,"NA",(BA128/BI125*BJ125+BP125)/('Control de Avance'!$BT$3+BB132*5))) -> 
B130: 2 | AY130: Frentes anteriores | BB130: =COUNTIF(C127:AB131,"A")/BI125*BJ125 -> 
B131: 1 | AY131: Frentes semana actual | BB131: =COUNTIF(C127:AB131,"B")/BI125*BJ125 -> 
AY132: Saldo | AZ132: =+BA128/BI125*BJ125-BB130-BB131 ->  | BA132: Sem | BB132: =IF(AY127=BA128,"OK",IF(BB131=0,"NA",AZ132/BB131)) -> 
A134: =B134&C134 -> TERM-UDepto | B134: TERM-U | C134: Depto
C136: F1.1 | D136: F1.2 | E136: F2.1 | F136: F2.2 | G136: F3.1 | H136: F3.2 | I136: F4.1 | J136: F4.2 | K136: F5.1 | L136: F5.2 | M136: F6.1 | N136: F6.2 | O136: F7.1 | P136: F7.2 | Q136: F8.1 | R136: F8.2 | S136: F9.1 | T136: F9.2 | U136: F10.1 | V136: F10.2 | W136: F11.1 | X136: F11.2 | Y136: F12.1 | Z136: F12.2 | AA136: F13.1 | AB136: F13.2 | AC136: F14.1 | AD136: F14.2 | AE136: F15.1 | AF136: F15.2 | AG136: F16.1 | AH136: F16.2 | AI136: F17.1 | AJ136: F17.2 | AK136: F18.1 | AL136: F18.2 | AM136: F19.1 | AN136: F19.2 | AO136: F20.1 | AP136: F20.2 | AQ136: F21.1 | AR136: F21.2 | AS136: F22.1 | AT136: F22.2 | AU136: F23.1 | AV136: F23.2 | AW136: F24.1 | AX136: F24.2 | AY136: N° Unid Prod | AZ136: N° Frentes | BA136: Pos | BB136: %
B137: 5 | C137: X | D137: X | E137: X | F137: X | G137: X | H137: X | I137: X | J137: X | K137: X | L137: X | M137: X | N137: X | O137: X | P137: X | Q137: X | R137: X | S137: X | T137: X | U137: X | V137: X | W137: X | X137: X | Y137: X | Z137: X | AA137: X | AB137: X | AC137: X | AD137: X | AE137: X | AF137: X | AG137: X | AH137: X | AI137: X | AJ137: X | AK137: X | AL137: X | AM137: X | AN137: X | AO137: X | AP137: X | AQ137: X | AR137: X | AS137: X | AT137: X | AU137: X | AV137: X | AW137: X | AX137: X | AY137: =COUNTIF(C137:AX141,"A")+COUNTIF(C137:AX141,"B") -> 0 | AZ137: =+AY137/BI135*BJ135 ->  | BA137: =+AZ137+BN135 ->  | BB137: =IF(AY137=BA138,"OK",BA137/'Control de Avance'!$BT$3) -> 
B138: 4 | AY138: N° Total Und Prod: | BA138: =VLOOKUP('Dibujo Edificios'!$A$134,'Otras Tablas'!$G$2:$H$31,2,FALSE) -> 192
B139: 3 | AY139: Proyección avance actual | BB139: =IF(AY137=BA138,"OK",IF(BB141=0,"NA",(BA138/BI135*BJ135+BP135)/('Control de Avance'!$BT$3+BB142*5))) -> 
B140: 2 | AY140: Frentes anteriores | BB140: =COUNTIF(C137:AB141,"A")/BI135*BJ135 -> 
B141: 1 | AY141: Frentes semana actual | BB141: =COUNTIF(C137:AB141,"B")/BI135*BJ135 -> 
AY142: Saldo | AZ142: =+BA138/BI135*BJ135-BB140-BB141 ->  | BA142: Sem | BB142: =IF(AY137=BA138,"OK",IF(BB141=0,"NA",AZ142/BB141)) -> 
A144: =B144&C144 -> ZC1Edif | B144: ZC1 | C144: Edif
C146: F1-2 | D146: F3-4 | E146: F5-6 | F146: F7-8 | G146: F9-10 | H146: F11 | I146: F12-13 | J146: F14-15 | K146: F16 | L146: F17-18 | M146: F19-20 | N146: F21-22 | O146: F23-24 | AY146: N° Unid Prod | AZ146: N° Frentes | BA146: Pos | BB146: %
B147: 5 | C147: X | D147: X | E147: X | F147: X | G147: X | H147: X | I147: X | J147: X | K147: X | L147: X | M147: X | N147: X | O147: X | AY147: =COUNTIF(C147:O151,"A")+COUNTIF(C147:O151,"B") -> 0 | AZ147: =+AY147/BI145*BJ145 ->  | BA147: =+AZ147+BN145 ->  | BB147: =IF(AY147=BA148,"OK",BA147/'Control de Avance'!$BT$3) -> 
B148: 4 | C148: X | D148: X | E148: X | F148: X | G148: X | H148: X | I148: X | J148: X | K148: X | L148: X | M148: X | N148: X | O148: X | AY148: N° Total Und Prod: | BA148: =VLOOKUP('Dibujo Edificios'!$A$144,'Otras Tablas'!$G$2:$H$31,2,FALSE) -> 12
B149: 3 | C149: X | D149: X | E149: X | F149: X | G149: X | H149: X | I149: X | J149: X | K149: X | L149: X | M149: X | N149: X | O149: X | AY149: Proyección avance actual | BB149: =IF(AY147=BA148,"OK",IF(BB151=0,"NA",(BA148/BI145*BJ145+BP145)/('Control de Avance'!$BT$3+BB152*5))) -> 
B150: 2 | C150: X | D150: X | E150: X | F150: X | G150: X | H150: X | I150: X | J150: X | K150: X | L150: X | M150: X | N150: X | O150: X | AY150: Frentes anteriores | BB150: =COUNTIF(C147:AB151,"A")/BI145*BJ145 -> 
B151: 1 | AY151: Frentes semana actual | BB151: =COUNTIF(C147:AB151,"B")/BI145*BJ145 -> 
AY152: Saldo | AZ152: =+BA148/BI145*BJ145-BB150-BB151 ->  | BA152: Sem | BB152: =IF(AY147=BA148,"OK",IF(BB151=0,"NA",AZ152/BB151)) -> 
A154: =B154&C154 -> ZCTEdif | B154: ZCT | C154: Edif
C156: F1-2 | D156: F3-4 | E156: F5-6 | F156: F7-8 | G156: F9-10 | H156: F11 | I156: F12-13 | J156: F14-15 | K156: F16 | L156: F17-18 | M156: F19-20 | N156: F21-22 | O156: F23-24 | AY156: N° Unid Prod | AZ156: N° Frentes | BA156: Pos | BB156: %
B157: 5 | C157: X | D157: X | E157: X | F157: X | G157: X | H157: X | I157: X | J157: X | K157: X | L157: X | M157: X | N157: X | O157: X | AY157: =COUNTIF(C157:O161,"A")+COUNTIF(C157:O161,"B") -> 0 | AZ157: =+AY157/BI155*BJ155 ->  | BA157: =+AZ157+BN155 ->  | BB157: =IF(AY157=BA158,"OK",BA157/'Control de Avance'!$BT$3) -> 
B158: 4 | C158: X | D158: X | E158: X | F158: X | G158: X | H158: X | I158: X | J158: X | K158: X | L158: X | M158: X | N158: X | O158: X | AY158: N° Total Und Prod: | BA158: =VLOOKUP('Dibujo Edificios'!$A$154,'Otras Tablas'!$G$2:$H$31,2,FALSE) -> 12
B159: 3 | C159: X | D159: X | E159: X | F159: X | G159: X | H159: X | I159: X | J159: X | K159: X | L159: X | M159: X | N159: X | O159: X | AY159: Proyección avance actual | BB159: =IF(AY157=BA158,"OK",IF(BB161=0,"NA",(BA158/BI155*BJ155+BP155)/('Control de Avance'!$BT$3+BB162*5))) -> 
B160: 2 | C160: X | D160: X | E160: X | F160: X | G160: X | H160: X | I160: X | J160: X | K160: X | L160: X | M160: X | N160: X | O160: X | AY160: Frentes anteriores | BB160: =COUNTIF(C157:AB161,"A")/BI155*BJ155 -> 
B161: 1 | AY161: Frentes semana actual | BB161: =COUNTIF(C157:AB161,"B")/BI155*BJ155 -> 
AY162: Saldo | AZ162: =+BA158/BI155*BJ155-BB160-BB161 ->  | BA162: Sem | BB162: =IF(AY157=BA158,"OK",IF(BB161=0,"NA",AZ162/BB161)) -> 
A164: =B164&C164 -> ZCTPiso | B164: ZCT | C164: Piso
C166: F1-2 | D166: F3-4 | E166: F5-6 | F166: F7-8 | G166: F9-10 | H166: F11 | I166: F12-13 | J166: F14-15 | K166: F16 | L166: F17-18 | M166: F19-20 | N166: F21-22 | O166: F23-24 | AY166: N° Unid Prod | AZ166: N° Frentes | BA166: Pos | BB166: %
B167: 5 | AY167: =COUNTIF(C167:O171,"A")+COUNTIF(C167:O171,"B") -> 0 | AZ167: =+AY167/BI165*BJ165 ->  | BA167: =+AZ167+BN165 ->  | BB167: =IF(AY167=BA168,"OK",BA167/'Control de Avance'!$BT$3) -> 
B168: 4 | AY168: N° Total Und Prod: | BA168: =VLOOKUP('Dibujo Edificios'!$A$164,'Otras Tablas'!$G$2:$H$31,2,FALSE) -> 48
B169: 3 | AY169: Proyección avance actual | BB169: =IF(AY167=BA168,"OK",IF(BB171=0,"NA",(BA168/BI165*BJ165+BP165)/('Control de Avance'!$BT$3+BB172*5))) -> 
B170: 2 | AY170: Frentes anteriores | BB170: =COUNTIF(C167:AB171,"A")/BI165*BJ165 -> 
B171: 1 | AY171: Frentes semana actual | BB171: =COUNTIF(C167:AB171,"B")/BI165*BJ165 -> 
AY172: Saldo | AZ172: =+BA168/BI165*BJ165-BB170-BB171 ->  | BA172: Sem | BB172: =IF(AY167=BA168,"OK",IF(BB171=0,"NA",AZ172/BB171)) -> 
A174: =B174&C174 -> TASCEdif | B174: TASC | C174: Edif
C176: F1 | E176: F2 | G176: F3 | I176: F4 | K176: F5 | M176: F6 | O176: F7 | Q176: F8 | S176: F9 | U176: F10 | W176: F11 | Y176: F12 | AY176: N° Unid Prod | AZ176: N° Frentes | BA176: Pos | BB176: %
AY177: =COUNTIF(C177:AB181,"A")+COUNTIF(C177:AB181,"B") -> 0 | AZ177: =+AY177/BI175*BJ175 ->  | BA177: =+AZ177+BN175 ->  | BB177: =IF(AY177=BA178,"OK",BA177/'Control de Avance'!$BT$3) -> 
B178: 4 | C178: X | F178: X | G178: X | J178: X | K178: X | N178: X | O178: X | R178: X | S178: X | V178: X | W178: X | Z178: X | AY178: N° Total Und Prod: | BA178: =VLOOKUP('Dibujo Edificios'!A174,'Otras Tablas'!$G$2:$H$31,2,FALSE) -> 12
B179: 3 | C179: X | F179: X | G179: X | J179: X | K179: X | N179: X | O179: X | R179: X | S179: X | V179: X | W179: X | Z179: X | AY179: Proyección avance actual | BB179: =IF(AY177=BA178,"OK",IF(BB181=0,"NA",(BA178/BI175*BJ175+BP175)/('Control de Avance'!$BT$3+BB182*5))) -> 
B180: 2 | C180: X | F180: X | G180: X | J180: X | K180: X | N180: X | O180: X | R180: X | S180: X | V180: X | W180: X | Z180: X | AY180: Frentes anteriores | BB180: =COUNTIF(C177:AB181,"A")/BI175*BJ175 -> 
B181: 1 | C181: X | F181: X | G181: X | J181: X | K181: X | N181: X | O181: X | R181: X | S181: X | V181: X | W181: X | Z181: X | AY181: Frentes semana actual | BB181: =COUNTIF(C177:AB181,"B")/BI175*BJ175 -> 
AY182: Saldo | AZ182: =+BA178/BI175*BJ175-BB180-BB181 ->  | BA182: Sem | BB182: =IF(AY177=BA178,"OK",IF(BB181=0,"NA",AZ182/BB181)) -> 
A184: =B184&C184 -> TASCPiso | B184: TASC | C184: Piso
C186: F1 | E186: F2 | G186: F3 | I186: F4 | K186: F5 | M186: F6 | O186: F7 | Q186: F8 | S186: F9 | U186: F10 | W186: F11 | Y186: F12 | AY186: N° Unid Prod | AZ186: N° Frentes | BA186: Pos | BB186: %
AY187: =COUNTIF(C187:AB191,"A")+COUNTIF(C187:AB191,"B") -> 0 | AZ187: =+AY187/BI185*BJ185 ->  | BA187: =+AZ187+BN185 ->  | BB187: =IF(AY187=BA188,"OK",BA187/'Control de Avance'!$BT$3) -> 
B188: 4 | C188: X | F188: X | G188: X | J188: X | K188: X | N188: X | O188: X | R188: X | S188: X | V188: X | W188: X | Z188: X | AY188: N° Total Und Prod: | BA188: =VLOOKUP('Dibujo Edificios'!A184,'Otras Tablas'!$G$2:$H$31,2,FALSE) -> 48
B189: 3 | C189: X | F189: X | G189: X | J189: X | K189: X | N189: X | O189: X | R189: X | S189: X | V189: X | W189: X | Z189: X | AY189: Proyección avance actual | BB189: =IF(AY187=BA188,"OK",IF(BB191=0,"NA",(BA188/BI185*BJ185+BP185)/('Control de Avance'!$BT$3+BB192*5))) -> 
B190: 2 | C190: X | F190: X | G190: X | J190: X | K190: X | N190: X | O190: X | R190: X | S190: X | V190: X | W190: X | Z190: X | AY190: Frentes anteriores | BB190: =COUNTIF(C187:AB191,"A")/BI185*BJ185 -> 
B191: 1 | C191: X | F191: X | G191: X | J191: X | K191: X | N191: X | O191: X | R191: X | S191: X | V191: X | W191: X | Z191: X | AY191: Frentes semana actual | BB191: =COUNTIF(C187:AB191,"B")/BI185*BJ185 -> 
AY192: Saldo | AZ192: =+BA188/BI185*BJ185-BB190-BB191 ->  | BA192: Sem | BB192: =IF(AY187=BA188,"OK",IF(BB191=0,"NA",AZ192/BB191)) -> 
B194: FACH | C194: Edif | D194: (Estos son dibujos especiales por proyecto)
B195: FACH | C195: Pos
B196: FACH | C196: Frente
B197: TEST | C197: Proy
B198: TPORT | C198: Proy
B199: TEXT | C199: Proy
B200: TEXT | C200: Frente

Sheet Trenes
A1: Condominios en extensión
B2: Parámetros: | E2: E(y) | F2: Etapas
B3: n | C3: número de pisos | E3: E(1) | F3: x1 frentes
B4: y | C4: número de etapas | E4: E(2) | F4: x2-x1 frentes
E5: …
E6: E(y) | F6: xy-x(y-1) frentes
A7: Lógica para generar edificios en extensión (n° pisos < 7)
B8: Tren | C8: Un. Producción | E8: 1era etapa (F1 al Fx1), x1 = 4, 5 o 6 | P8: 2da etapa (F(x1+1) al Fx2), x2 = x1 + 4, 5 o 6 | W8: … | X8: Y-ava etapa (Fx(y-1) al Fxy)
B9: OG1 | C9: Frente | D9: =B9&C9 -> OG1Frente | E9: 1F1, 1F2, …, 1Fx1 | P9: 1F(x1+1), 1F(x1+2), …,1Fx2 | X9: 1Fx(y-1), 1F(x(y-1)+1),…,1Fxy
B10: OG1 | C10: Edif | D10: =B10&C10 -> OG1Edif | E10: F1-2 | J10: F(x1-1)-x1 | P10: Fx1-(x1+1) | R10: … | S10: F(x2-1)-x2 | W10: … | X10: Fx(y-1)-(x(y-1)+1) | AB10: F(xy-1)-xy
B11: OGT | C11: Frente | D11: OGTFrente | E11: 1F1,1F2, …, 1Fx1, 2F1,2F2, …, nF1, nF2, …, nFx1 | P11: 1F(x1+1), 1F(x1+2), …,nFx2 | W11: … | X11: 1Fx(y-1), 1F(x(y-1)+1),…,nFxy
B12: OGT-1 | C12: Frente | D12: OGT-1Frente | E12: 2F1,2F2,…,2Fx1,…, nFx1 | P12: 2F(x1+1), 2F(x1+2), …,nFx2
B13: OGT | C13: Piso | D13: OGTPiso | E13: 1F1-2 | F13: … | G13: 1F(x1-1)-x1 | I13: 2F1-2 | L13: (n-1)F(x1-1)-x1 | P13: 1F(x1+1)-(x1+2) | S13: … | T13: (n-1)F(x2-1)-x2 | W13: … | X13: 1Fx(y-1)-(x(y-1)+1) | AA13: … | AB13: (n-1)F(xy-1)-xy
B14: OGT-1 | C14: Piso | D14: OGT-1Piso | E14: 2F1,2F2,…,2Fx1,…, (n-1)Fx1 | P14: 2F(x1+1)-(x1+2) | S14: … | T14: (n-1)F(x2-1)-x2 | X14: 2Fx(y-1)-(x(y-1)+1) | AA14: … | AB14: (n-1)F(xy-1)-xy
B15: TECH | C15: Edif | D15: TECHEdif | E15: F1-2 | J15: F(x1-1)-x1 | P15: Fx1-(x1+1) | R15: … | S15: F(x2-1)-x2 | W15: … | X15: Fx(y-1)-(x(y-1)+1) | AB15: F(xy-1)-xy
B16: TECH | C16: Frente | D16: TECHFrente | E16: nF1-2 | J16: nF(x1-1)-x1 | P16: nFx1-(x1+1) | R16: … | S16: nF(x2-1)-x2 | W16: … | X16: nFx(y-1)-(x(y-1)+1) | AB16: nF(xy-1)-xy
B17: RYT | C17: Frente | D17: RYTFrente | E17: 1F1 | F17: 1F2 | G17: 2F1 | H17: 2F2 | I17: …. | J17: nF1 | K17: nF2 | L17: … | M17: nF(x1-1) | N17: nFx1 | P17: 1F(x1+1) | Q17: 1F(x1+2) | S17: … | T17: nF(x2-1) | U17: nF(x2) | W17: … | X17: 1Fx(y-1) | Y17: 1F(x(y-1)+1) | Z17: 2Fx(y-1) | AA17: 2F(x(y-1)+1) | AB17: … | AC17: nF(xy-1) | AD17: nFxy
B18: RYT | C18: Depto | D18: RYTDepto | E18: 1F1 | F18: 1F2 | G18: 2F1 | H18: 2F2 | I18: …. | J18: nF1 | K18: nF2 | L18: … | M18: nF(x1-1) | N18: nFx1 | P18: 1F(x1+1) | Q18: 1F(x1+2) | S18: … | T18: nF(x2-1) | U18: nF(x2) | W18: … | X18: 1Fx(y-1) | Y18: 1F(x(y-1)+1) | Z18: 2Fx(y-1) | AA18: 2F(x(y-1)+1) | AB18: … | AC18: nF(xy-1) | AD18: nFxy
B19: TERM | C19: Piso | D19: TERMPiso | E19: nF1-2 | G19: (n-1)F1-2 | H19: … | J19: 1F1-2 | K19: … | M19: 1F(x1-1)-x1 | P19: nF(x1+1)-(x1+2) | R19: (n-1)F(x1+1)-(x1+2) | S19: … | T19: 1F(x2-1)-x2 | W19: … | X19: nFx(y-1)-(x(y-1)+1) | Z19: (n-1)Fx(y-1)-(x(y-1)+1) | AC19: … | AD19: 1F(xy-1)-xy
B20: TERM | C20: Frente | D20: TERMFrente | E20: nF1 | F20: nF2 | G20: (n-1)F1 | H20: (n-1)F2 | I20: … | J20: 1F1 | K20: 1F2 | L20: … | M20: 1F(x1-1) | N20: 1Fx1 | P20: nF(x1+1) | Q20: nF(x1+2) | R20: (n-1)F(x1+1) | S20: (n-1)F(x1+2)… | T20: 1F(x2-1) | U20: 1Fx2 | W20: … | X20: nFx(y-1) | Y20: nF(x(y-1)+1) | AA20: … | AD20: 1F(xy-1) | AE20: 1Fxy
B21: TERM | C21: Depto | D21: TERMDepto | E21: nF1 | F21: nF2 | G21: (n-1)F1 | H21: (n-1)F2 | I21: … | J21: 1F1 | K21: 1F2 | L21: … | M21: 1F(x1-1) | N21: 1Fx1 | P21: nF(x1+1) | Q21: nF(x1+2) | R21: (n-1)F(x1+1) | S21: (n-1)F(x1+2)… | T21: 1F(x2-1) | U21: 1Fx2 | W21: … | X21: nFx(y-1) | Y21: nF(x(y-1)+1) | AA21: … | AD21: 1F(xy-1) | AE21: 1Fxy
B22: TERM-U | C22: Depto | D22: TERM-UDepto | E22: (n-1)F1 | F22: (n-1)F2 | G22: (n-2)F1 | H22: (n-2)F2 | I22: … | J22: 1F1 | K22: 1F2 | L22: … | M22: 1F(x1-1) | N22: 1Fx1 | P22: (n-1)F(x1+1) | Q22: (n-1)F(x1+2) | R22: (n-2)F(x1+1) | S22: (n-2)F(x1+2)… | T22: 1F(x2-1) | U22: 1Fx2 | W22: … | X22: (n-1)Fx(y-1) | Y22: (n-1)F(x(y-1)+1) | AA22: … | AD22: 1F(xy-1)
B23: ZC1 | C23: Edif | D23: ZC1Edif | E23: F1-2 | G23: +npisos*2-1 | J23: F(x1-1)-x1 | P23: Fx1-(x1+1) | R23: … | S23: F(x2-1)-x2 | W23: … | X23: Fx(y-1)-(x(y-1)+1) | AB23: F(xy-1)-xy
B24: ZC1 | C24: Piso | D24: ZC1Piso | E24: 1F1-2 | G24: +npisos*2-1 | I24: 1F3-4 | K24: … | M24: 1F(x1-1)-x1 | P24: 1Fx1-(x1+1) | R24: … | T24: 1F(x2-1)-x2 | X24: 1Fx(y-1)-(x(y-1)+1) | Z24: … | AD24: 1F(xy-1)-xy
B25: ZCT | C25: Edif | D25: ZCTEdif | E25: F1-2 | J25: F(x1-1)-x1 | P25: Fx1-(x1+1) | R25: … | S25: F(x2-1)-x2 | W25: … | X25: Fx(y-1)-(x(y-1)+1) | AB25: F(xy-1)-xy
B26: ZCT | C26: Piso | D26: ZCTPiso | E26: nF1-2 | G26: (n-1)F1-2 | H26: … | J26: 1F1-2 | K26: … | M26: 1F(x1-1)-x1 | P26: nF(x1+1)-(x1+2) | R26: (n-1)F(x1+1)-(x1+2) | S26: … | T26: 1F(x2-1)-x2 | W26: … | X26: nFx(y-1)-(x(y-1)+1) | Z26: (n-1)Fx(y-1)-(x(y-1)+1) | AC26: … | AD26: 1F(xy-1)-xy
A28: Lógica para generar Edificios en altura (n° pisos >= 7)
B29: Parámetros
B30: n | C30: número de pisos real
B31: N | C31: número de pisos modelo
B32: fp | C32: Frentes por planta
B33: Pn | C33: Piso n
B34: e | C34: número de edificios (etapas)
B35: Ex | C35: Edificio x
B37: Tren | C37: Un. Producción
B38: OG1 | C38: Frente | D38: =B38&C38 -> OG1Frente | E38: 1F1 | F38: 1F2 | G38: … | H38: 1Ffp | R38: 1F(fp+1) | S38: 1F(fp+2) | T38: … | U38: 1F(2fp) | W38: 1F((e-1)fp+1) | X38: 1F((e-1)fp+2) | Y38: …
B39: OG1 | C39: Edif | D39: OG1Edif | E39: 1F1-2-3-…-fp | R39: 1F(fp+1)-(fp+2)-…-2fp
B40: OGT | C40: Frente | D40: OGTFrente | E40: 1F1 | F40: 1F2 | G40: … | H40: 1Ffp | I40: 2F1 | J40: 2F2 | K40: … | L40: 2Ffp | M40: … | N40: nF1 | O40: nF2 | P40: … | Q40: nFfp | R40: 1F(fp+1) | S40: 1F(fp+2) | T40: … | U40: nF(2fp) | V40: … | W40: 1F((e-1)fp+1) | X40: 1F((e-1)fp+2) | Y40: … | Z40: 1F(e*fp) | AA40: … | AB40: nF(e*fp)
B41: OGT | C41: Piso | D41: OGTPiso | E41: P1a | I41: P2a | N41: Pna | R41: P1b | S41: …
B42: TECH | C42: Edif | D42: TECHEdif | E42: nF1-2-…-fp | R42: nF(fp+1)-(fp+2)-…-(2fp) | T42: …
B43: TECH | C43: Frente | D43: TECHFrente | E43: nF1 | F43: nF2 | G43: … | H43: nFfp | R43: nF(fp+1) | S43: nF(fp+2) | T43: … | U43: nF(2fp) | V43: … | W43: nF((e-1)fp+1) | X43: … | Y43: nF(e*fp)
B44: RYT | C44: Frente | D44: RYTFrente | E44: 1F1 | F44: 1F2 | G44: … | H44: 1Ffp | I44: 2F1 | J44: 2F2 | K44: … | L44: 2Ffp | M44: … | N44: nF1 | O44: nF2 | P44: … | Q44: nFfp | R44: 1F(fp+1) | S44: 1F(fp+2) | T44: … | U44: nF(2fp) | V44: … | W44: 1F((e-1)fp+1) | X44: 1F((e-1)fp+2) | Y44: … | Z44: 1F(e*fp) | AA44: … | AB44: nF(e*fp)
B45: RYT | C45: Depto | D45: RYTDepto | E45: 1F1 | F45: 1F2 | G45: … | H45: 1Ffp | I45: 2F1 | J45: 2F2 | K45: … | L45: 2Ffp | M45: … | N45: nF1 | O45: nF2 | P45: … | Q45: nFfp | R45: 1F(fp+1) | S45: 1F(fp+2) | T45: … | U45: nF(2fp) | V45: … | W45: 1F((e-1)fp+1) | X45: 1F((e-1)fp+2) | Y45: … | Z45: 1F(e*fp) | AA45: … | AB45: nF(e*fp)
B46: TERM | C46: Piso | D46: TERMPiso | E46: P1a | I46: P2a | N46: Pna | R46: P1b | S46: …
B47: TERM | C47: Frente | D47: TERMFrente | E47: 1F1 | F47: 1F2 | G47: … | H47: 1Ffp | I47: 2F1 | J47: 2F2 | K47: … | L47: 2Ffp | M47: … | N47: nF1 | O47: nF2 | P47: … | Q47: nFfp | R47: 1F(fp+1) | S47: 1F(fp+2) | T47: … | U47: nF(2fp) | V47: … | W47: 1F((e-1)fp+1) | X47: 1F((e-1)fp+2) | Y47: … | Z47: 1F(e*fp) | AA47: … | AB47: nF(e*fp)
B48: TERM | C48: Depto | D48: TERMDepto | E48: 1F1 | F48: 1F2 | G48: … | H48: 1Ffp | I48: 2F1 | J48: 2F2 | K48: … | L48: 2Ffp | M48: … | N48: nF1 | O48: nF2 | P48: … | Q48: nFfp | R48: 1F(fp+1) | S48: 1F(fp+2) | T48: … | U48: nF(2fp) | V48: … | W48: 1F((e-1)fp+1) | X48: 1F((e-1)fp+2) | Y48: … | Z48: 1F(e*fp) | AA48: … | AB48: nF(e*fp)
B49: ZC1 | C49: Edif | D49: ZC1Edif | E49: Ea | R49: Eb | S49: …
B50: ZC1 | C50: Piso | D50: ZC1Piso | E50: P1a | R50: P1b | S50: …
B51: ZCT | C51: Edif | D51: ZCTEdif | E51: Ea | R51: Eb | S51: …
B52: ZCT | C52: Piso | D52: ZCTPiso | E52: P1a | I52: P2a | N52: Pna | R52: P1b | S52: …
B53: TASC | C53: Edif | D53: TASCEdif | E53: Ea | R53: Eb | S53: …
B54: TASC | C54: Piso | D54: TASCPiso | E54: P1a | I54: P2a | N54: Pna | R54: P1b | S54: …
A60: GENERACIÓN DE SECUENCIAS
A63: =VLOOKUP(D63,'Otras Tablas'!$G$3:$H$24,2,FALSE) -> 24 | B63: OG1 | C63: Frente | D63: =B63&C63 -> OG1Frente | E63: 1F1 | F63: 1F2 | G63: 1F3 | H63: 1F4 | I63: 1F5 | J63: 1F6 | AI63: 1F7 | AJ63: 1F8 | AK63: 1F9 | AL63: 1F10 | AM63: 1F11 | BH63: 1F12 | BI63: 1F13 | BJ63: 1F14 | BK63: 1F15 | BL63: 1F16 | CG63: 1F17 | CH63: 1F18 | CI63: 1F19 | CJ63: 1F20 | DA63: 1F21 | DB63: 1F22 | DC63: 1F23 | DD63: 1F24
A64: =VLOOKUP(D64,'Otras Tablas'!$G$3:$H$24,2,FALSE) -> 12 | B64: OG1 | C64: Edif | D64: OG1Edif | E64: F1-2 | G64: F3-4 | I64: F5-6 | AI64: F7-8 | AK64: F9-10 | AM64: F11 | BH64: F12-13 | BJ64: F14-15 | BL64: F16 | CG64: F17-18 | CI64: F19-20 | DA64: F21-22 | DC64: F23-24
A65: =VLOOKUP(D65,'Otras Tablas'!$G$3:$H$24,2,FALSE) -> 48 | B65: OG1 | C65: Depto | D65: OG1Depto | E65: 1F1 | F65: 1F2 | G65: 1F3 | H65: 1F4 | I65: 1F5 | J65: 1F6 | AI65: 1F7 | AJ65: 1F8 | AK65: 1F9 | AL65: 1F10 | AM65: 1F11 | BH65: 1F12 | BI65: 1F13 | BJ65: 1F14 | BK65: 1F15 | BL65: 1F16 | CG65: 1F17 | CH65: 1F18 | CI65: 1F19 | CJ65: 1F20 | DA65: 1F21 | DB65: 1F22 | DC65: 1F23 | DD65: 1F24
A66: =VLOOKUP(D66,'Otras Tablas'!$G$3:$H$24,2,FALSE) -> 120 | B66: OGT | C66: Frente | D66: OGTFrente | E66: 1F1 | F66: 1F2 | G66: 1F3 | H66: 1F4 | I66: 1F5 | J66: 1F6 | K66: 2F1 | L66: 2F2 | M66: 2F3 | N66: 2F4 | O66: 2F5 | P66: 2F6 | Q66: 3F1 | R66: 3F2 | S66: 3F3 | T66: 3F4 | U66: 3F5 | V66: 3F6 | W66: 4F1 | X66: 4F2 | Y66: 4F3 | Z66: 4F4 | AA66: 4F5 | AB66: 4F6 | AC66: 5F1 | AD66: 5F2 | AE66: 5F3 | AF66: 5F4 | AG66: 5F5 | AH66: 5F6 | AI66: 1F7 | AJ66: 1F8 | AK66: 1F9 | AL66: 1F10 | AM66: 1F11 | AN66: 2F7 | AO66: 2F8 | AP66: 2F9 | AQ66: 2F10 | AR66: 2F11 | AS66: 3F7 | AT66: 3F8 | AU66: 3F9 | AV66: 3F10 | AW66: 3F11 | AX66: 4F7 | AY66: 4F8 | AZ66: 4F9 | BA66: 4F10 | BB66: 4F11 | BC66: 5F7 | BD66: 5F8 | BE66: 5F9 | BF66: 5F10 | BG66: 5F11 | BH66: 1F12 | BI66: 1F13 | BJ66: 1F14 | BK66: 1F15 | BL66: 1F16 | BM66: 2F12 | BN66: 2F13 | BO66: 2F14 | BP66: 2F15 | BQ66: 2F16 | BR66: 3F12 | BS66: 3F13 | BT66: 3F14 | BU66: 3F15 | BV66: 3F16 | BW66: 4F12 | BX66: 4F13 | BY66: 4F14 | BZ66: 4F15 | CA66: 4F16 | CB66: 5F12 | CC66: 5F13 | CD66: 5F14 | CE66: 5F15 | CF66: 5F16 | CG66: 1F17 | CH66: 1F18 | CI66: 1F19 | CJ66: 1F20 | CK66: 2F17 | CL66: 2F18 | CM66: 2F19 | CN66: 2F20 | CO66: 3F17 | CP66: 3F18 | CQ66: 3F19 | CR66: 3F20 | CS66: 4F17 | CT66: 4F18 | CU66: 4F19 | CV66: 4F20 | CW66: 5F17 | CX66: 5F18 | CY66: 5F19 | CZ66: 5F20 | DA66: 1F21 | DB66: 1F22 | DC66: 1F23 | DD66: 1F24 | DE66: 2F21 | DF66: 2F22 | DG66: 2F23 | DH66: 2F24 | DI66: 3F21 | DJ66: 3F22 | DK66: 3F23 | DL66: 3F24 | DM66: 4F21 | DN66: 4F22 | DO66: 4F23 | DP66: 4F24 | DQ66: 5F21 | DR66: 5F22 | DS66: 5F23 | DT66: 5F24
A67: =VLOOKUP(D67,'Otras Tablas'!$G$3:$H$24,2,FALSE) -> 96 | B67: OGT-1 | C67: Frente | D67: OGT-1Frente | E67: 2F1 | F67: 2F2 | G67: 2F3 | H67: 2F4 | I67: 2F5 | J67: 2F6 | K67: 3F1 | L67: 3F2 | M67: 3F3 | N67: 3F4 | O67: 3F5 | P67: 3F6 | Q67: 4F1 | R67: 4F2 | S67: 4F3 | T67: 4F4 | U67: 4F5 | V67: 4F6 | W67: 5F1 | X67: 5F2 | Y67: 5F3 | Z67: 5F4 | AA67: 5F5 | AB67: 5F6 | AI67: 2F7 | AJ67: 2F8 | AK67: 2F9 | AL67: 2F10 | AM67: 2F11 | AN67: 3F7 | AO67: 3F8 | AP67: 3F9 | AQ67: 3F10 | AR67: 3F11 | AS67: 4F7 | AT67: 4F8 | AU67: 4F9 | AV67: 4F10 | AW67: 4F11 | AX67: 5F7 | AY67: 5F8 | AZ67: 5F9 | BA67: 5F10 | BB67: 5F11 | BH67: 2F12 | BI67: 2F13 | BJ67: 2F14 | BK67: 2F15 | BL67: 2F16 | BM67: 3F12 | BN67: 3F13 | BO67: 3F14 | BP67: 3F15 | BQ67: 3F16 | BR67: 4F12 | BS67: 4F13 | BT67: 4F14 | BU67: 4F15 | BV67: 4F16 | BW67: 5F12 | BX67: 5F13 | BY67: 5F14 | BZ67: 5F15 | CA67: 5F16 | CG67: 2F17 | CH67: 2F18 | CI67: 2F19 | CJ67: 2F20 | CK67: 3F17 | CL67: 3F18 | CM67: 3F19 | CN67: 3F20 | CO67: 4F17 | CP67: 4F18 | CQ67: 4F19 | CR67: 4F20 | CS67: 5F17 | CT67: 5F18 | CU67: 5F19 | CV67: 5F20 | DA67: 2F21 | DB67: 2F22 | DC67: 2F23 | DD67: 2F24 | DE67: 3F21 | DF67: 3F22 | DG67: 3F23 | DH67: 3F24 | DI67: 4F21 | DJ67: 4F22 | DK67: 4F23 | DL67: 4F24 | DM67: 5F21 | DN67: 5F22 | DO67: 5F23 | DP67: 5F24
A68: =VLOOKUP(D68,'Otras Tablas'!$G$3:$H$24,2,FALSE) -> 48 | B68: OGT | C68: Piso | D68: OGTPiso | E68: 1F1-2 | G68: 1F3-4 | I68: 1F5-6 | K68: 2F1-2 | M68: 2F3-4 | O68: 2F5-6 | Q68: 3F1-2 | S68: 3F3-4 | U68: 3F5-6 | W68: 4F1-2 | Y68: 4F3-4 | AA68: 4F5-6 | AI68: 1F7-8 | AK68: 1F9-10 | AM68: 1F11 | AN68: 2F7-8 | AP68: 2F9-10 | AR68: 2F11 | AS68: 3F7-8 | AU68: 3F9-10 | AW68: 3F11 | AX68: 4F7-8 | AZ68: 4F9-10 | BB68: 4F11 | BH68: 1F12-13 | BJ68: 1F14-15 | BL68: 1F16 | BM68: 2F12-13 | BO68: 2F14-15 | BQ68: 2F16 | BR68: 3F12-13 | BT68: 3F14-15 | BV68: 3F16 | BW68: 4F12-13 | BY68: 4F14-15 | CA68: 4F16 | CG68: 1F17-18 | CI68: 1F19-20 | CK68: 2F17-18 | CM68: 2F19-20 | CO68: 3F17-18 | CQ68: 3F19-20 | CS68: 4F17-18 | CU68: 4F19-20 | DA68: 1F21-22 | DC68: 1F23-24 | DE68: 2F21-22 | DG68: 2F23-24 | DI68: 3F21-22 | DK68: 3F23-24 | DM68: 4F21-22 | DO68: 4F23-24
A69: =VLOOKUP(D69,'Otras Tablas'!$G$3:$H$24,2,FALSE) -> 36 | B69: OGT-1 | C69: Piso | D69: OGT-1Piso | K69: 2F1-2 | M69: 2F3-4 | O69: 2F5-6 | Q69: 3F1-2 | S69: 3F3-4 | U69: 3F5-6 | W69: 4F1-2 | Y69: 4F3-4 | AA69: 4F5-6 | AN69: 2F7-8 | AP69: 2F9-10 | AR69: 2F11 | AS69: 3F7-8 | AU69: 3F9-10 | AW69: 3F11 | AX69: 4F7-8 | AZ69: 4F9-10 | BB69: 4F11 | BM69: 2F12-13 | BO69: 2F14-15 | BQ69: 2F16 | BR69: 3F12-13 | BT69: 3F14-15 | BV69: 3F16 | BW69: 4F12-13 | BY69: 4F14-15 | CA69: 4F16 | CK69: 2F17-18 | CM69: 2F19-20 | CO69: 3F17-18 | CQ69: 3F19-20 | CS69: 4F17-18 | CU69: 4F19-20 | DE69: 2F21-22 | DG69: 2F23-24 | DI69: 3F21-22 | DK69: 3F23-24 | DM69: 4F21-22 | DO69: 4F23-24
A70: =VLOOKUP(D70,'Otras Tablas'!$G$3:$H$24,2,FALSE) -> 12 | B70: TECH | C70: Edif | D70: TECHEdif | E70: F1-2 | G70: F3-4 | I70: F5-6 | AI70: F7-8 | AK70: F9-10 | AM70: F11 | BH70: F12-13 | BJ70: F14-15 | BL70: F16 | CG70: F17-18 | CI70: F19-20 | DA70: F21-22 | DC70: F23-24
A71: =VLOOKUP(D71,'Otras Tablas'!$G$3:$H$24,2,FALSE) -> 24 | B71: TECH | C71: Frente | D71: TECHFrente | E71: 5F1 | F71: 5F2 | G71: 5F3 | H71: 5F4 | I71: 5F5 | J71: 5F6 | AI71: 5F7 | AJ71: 5F8 | AK71: 5F9 | AL71: 5F10 | AM71: 5F11 | BH71: 5F12 | BI71: 5F13 | BJ71: 5F14 | BK71: 5F15 | BL71: 5F16 | CG71: 5F17 | CH71: 5F18 | CI71: 5F19 | CJ71: 5F20 | DA71: 5F21 | DB71: 5F22 | DC71: 5F23 | DD71: 5F24
A72: =VLOOKUP(D72,'Otras Tablas'!$G$3:$H$24,2,FALSE) -> 240 | B72: RYT | C72: Depto | D72: RYTDepto | E72: 1F1 | F72: 1F2 | G72: 2F1 | H72: 2F2 | I72: 3F1 | J72: 3F2 | K72: 4F1 | L72: 4F2 | M72: 5F1 | N72: 5F2 | O72: 1F3 | P72: 1F4 | Q72: 2F3 | R72: 2F4 | S72: 3F3 | T72: 3F4 | U72: 4F3 | V72: 4F4 | W72: 5F3 | X72: 5F4 | Y72: 1F5 | Z72: 1F6 | AA72: 2F5 | AB72: 2F6 | AC72: 3F5 | AD72: 3F6 | AE72: 4F5 | AF72: 4F6 | AG72: 5F5 | AH72: 5F6 | AI72: 1F7 | AJ72: 1F8 | AK72: 2F7 | AL72: 2F8 | AM72: 3F7 | AN72: 3F8 | AO72: 4F7 | AP72: 4F8 | AQ72: 5F7 | AR72: 5F8 | AS72: 1F9 | AT72: 1F10 | AU72: 2F9 | AV72: 2F10 | AW72: 3F9 | AX72: 3F10 | AY72: 4F9 | AZ72: 4F10 | BA72: 5F9 | BB72: 5F10 | BC72: 1F11 | BD72: 2F11 | BE72: 3F11 | BF72: 4F11 | BG72: 5F11 | BH72: 1F12 | BI72: 1F13 | BJ72: 2F12 | BK72: 2F13 | BL72: 3F12 | BM72: 3F13 | BN72: 4F12 | BO72: 4F13 | BP72: 5F12 | BQ72: 5F13 | BR72: 1F14 | BS72: 1F15 | BT72: 2F14 | BU72: 2F15 | BV72: 3F14 | BW72: 3F15 | BX72: 4F14 | BY72: 4F15 | BZ72: 5F14 | CA72: 5F15 | CB72: 1F16 | CC72: 2F16 | CD72: 3F16 | CE72: 4F16 | CF72: 5F16 | CG72: 1F17 | CH72: 1F18 | CI72: 2F17 | CJ72: 2F18 | CK72: 3F17 | CL72: 3F18 | CM72: 4F17 | CN72: 4F18 | CO72: 5F17 | CP72: 5F18 | CQ72: 1F19 | CR72: 1F20 | CS72: 2F19 | CT72: 2F20 | CU72: 3F19 | CV72: 3F20 | CW72: 4F19 | CX72: 4F20 | CY72: 5F19 | CZ72: 5F20 | DA72: 1F21 | DB72: 1F22 | DC72: 2F21 | DD72: 2F22 | DE72: 3F21 | DF72: 3F22 | DG72: 4F21 | DH72: 4F22 | DI72: 5F21 | DJ72: 5F22 | DK72: 1F23 | DL72: 1F24 | DM72: 2F23 | DN72: 2F24 | DO72: 3F23 | DP72: 3F24 | DQ72: 4F23 | DR72: 4F24 | DS72: 5F23 | DT72: 5F24 | KD72: 12F46 | KE72: 12F47 | KF72: 12F48 | KG72: 12F49 | KH72: 12F50 | KI72: 13F45 | KJ72: 13F46 | KK72: 13F47 | KL72: 13F48 | KM72: 13F49 | KN72: 13F50 | KO72: 13F51 | KP72: 14F46 | KQ72: 14F47 | KR72: 14F48 | KS72: 14F49 | KT72: 14F50 | KU72: 14F51 | KV72: 14F52 | KW72: 11F49 | KX72: 12F49 | KY72: 13F49 | KZ72: 14F49
A73: =VLOOKUP(D73,'Otras Tablas'!$G$3:$H$24,2,FALSE) -> 240 | B73: TERM | C73: Depto | D73: TERMDepto | E73: 5F1 | F73: 5F2 | G73: 4F1 | H73: 4F2 | I73: 3F1 | J73: 3F2 | K73: 2F1 | L73: 2F2 | M73: 1F1 | N73: 1F2 | O73: 5F3 | P73: 5F4 | Q73: 4F3 | R73: 4F4 | S73: 3F3 | T73: 3F4 | U73: 2F3 | V73: 2F4 | W73: 1F3 | X73: 1F4 | Y73: 5F5 | Z73: 5F6 | AA73: 4F5 | AB73: 4F6 | AC73: 3F5 | AD73: 3F6 | AE73: 2F5 | AF73: 2F6 | AG73: 1F5 | AH73: 1F6 | AI73: 5F7 | AJ73: 5F8 | AK73: 4F7 | AL73: 4F8 | AM73: 3F7 | AN73: 3F8 | AO73: 2F7 | AP73: 2F8 | AQ73: 1F7 | AR73: 1F8 | AS73: 5F9 | AT73: 5F10 | AU73: 4F9 | AV73: 4F10 | AW73: 3F9 | AX73: 3F10 | AY73: 2F9 | AZ73: 2F10 | BA73: 1F9 | BB73: 1F10 | BC73: 5F11 | BD73: 4F11 | BE73: 3F11 | BF73: 2F11 | BG73: 1F11 | BH73: 5F12 | BI73: 5F13 | BJ73: 4F12 | BK73: 4F13 | BL73: 3F12 | BM73: 3F13 | BN73: 2F12 | BO73: 2F13 | BP73: 1F12 | BQ73: 1F13 | BR73: 5F14 | BS73: 5F15 | BT73: 4F14 | BU73: 4F15 | BV73: 3F14 | BW73: 3F15 | BX73: 2F14 | BY73: 2F15 | BZ73: 1F14 | CA73: 1F15 | CB73: 5F16 | CC73: 4F16 | CD73: 3F16 | CE73: 2F16 | CF73: 1F16 | CG73: 5F17 | CH73: 5F18 | CI73: 4F17 | CJ73: 4F18 | CK73: 3F17 | CL73: 3F18 | CM73: 2F17 | CN73: 2F18 | CO73: 1F17 | CP73: 1F18 | CQ73: 5F19 | CR73: 5F20 | CS73: 4F19 | CT73: 4F20 | CU73: 3F19 | CV73: 3F20 | CW73: 2F19 | CX73: 2F20 | CY73: 1F19 | CZ73: 1F20 | DA73: 5F21 | DB73: 5F22 | DC73: 4F21 | DD73: 4F22 | DE73: 3F21 | DF73: 3F22 | DG73: 2F21 | DH73: 2F22 | DI73: 1F21 | DJ73: 1F22 | DK73: 5F23 | DL73: 5F24 | DM73: 4F23 | DN73: 4F24 | DO73: 3F23 | DP73: 3F24 | DQ73: 2F23 | DR73: 2F24 | DS73: 1F23 | DT73: 1F24
A74: =VLOOKUP(D74,'Otras Tablas'!$G$3:$H$24,2,FALSE) -> 192 | B74: TERM-U | C74: Depto | D74: TERM-UDepto | G74: 4F1 | H74: 4F2 | I74: 3F1 | J74: 3F2 | K74: 2F1 | L74: 2F2 | M74: 1F1 | N74: 1F2 | Q74: 4F3 | R74: 4F4 | S74: 3F3 | T74: 3F4 | U74: 2F3 | V74: 2F4 | W74: 1F3 | X74: 1F4 | AA74: 4F5 | AB74: 4F6 | AC74: 3F5 | AD74: 3F6 | AE74: 2F5 | AF74: 2F6 | AG74: 1F5 | AH74: 1F6 | AK74: 4F7 | AL74: 4F8 | AM74: 3F7 | AN74: 3F8 | AO74: 2F7 | AP74: 2F8 | AQ74: 1F7 | AR74: 1F8 | AU74: 4F9 | AV74: 4F10 | AW74: 3F9 | AX74: 3F10 | AY74: 2F9 | AZ74: 2F10 | BA74: 1F9 | BB74: 1F10 | BD74: 4F11 | BE74: 3F11 | BF74: 2F11 | BG74: 1F11 | BJ74: 4F12 | BK74: 4F13 | BL74: 3F12 | BM74: 3F13 | BN74: 2F12 | BO74: 2F13 | BP74: 1F12 | BQ74: 1F13 | BT74: 4F14 | BU74: 4F15 | BV74: 3F14 | BW74: 3F15 | BX74: 2F14 | BY74: 2F15 | BZ74: 1F14 | CA74: 1F15 | CC74: 4F16 | CD74: 3F16 | CE74: 2F16 | CF74: 1F16 | CI74: 4F17 | CJ74: 4F18 | CK74: 3F17 | CL74: 3F18 | CM74: 2F17 | CN74: 2F18 | CO74: 1F17 | CP74: 1F18 | CS74: 4F19 | CT74: 4F20 | CU74: 3F19 | CV74: 3F20 | CW74: 2F19 | CX74: 2F20 | CY74: 1F19 | CZ74: 1F20 | DC74: 4F21 | DD74: 4F22 | DE74: 3F21 | DF74: 3F22 | DG74: 2F21 | DH74: 2F22 | DI74: 1F21 | DJ74: 1F22 | DM74: 4F23 | DN74: 4F24 | DO74: 3F23 | DP74: 3F24 | DQ74: 2F23 | DR74: 2F24 | DS74: 1F23 | DT74: 1F24
A75: =VLOOKUP(D75,'Otras Tablas'!$G$3:$H$24,2,FALSE) -> 48 | B75: TERM | C75: Piso | D75: =B75&C75 -> TERMPiso | E75: 5F1-2 | G75: 4F1-2 | I75: 3F1-2 | K75: 2F1-2 | M75: 1F1-2 | O75: 5F3-4 | Q75: 4F3-4 | S75: 3F3-4 | U75: 2F3-4 | W75: 1F3-4 | Y75: 5F5-6 | AA75: 4F5-6 | AC75: 3F5-6 | AE75: 2F5-6 | AG75: 1F5-6 | AI75: 5F7-8 | AK75: 4F7-8 | AM75: 3F7-8 | AO75: 2F7-8 | AQ75: 1F7-8 | AS75: 5F9-10 | AU75: 4F9-10 | AW75: 3F9-10 | AY75: 2F9-10 | BA75: 1F9-10 | BC75: 5F11 | BD75: 4F11 | BE75: 3F11 | BF75: 2F11 | BG75: 1F11 | BH75: 5F12-13 | BJ75: 4F12-13 | BL75: 3F12-13 | BN75: 2F12-13 | BP75: 1F12-13 | BR75: 5F14-15 | BT75: 4F14-15 | BV75: 3F14-15 | BX75: 2F14-15 | BZ75: 1F14-15 | CB75: 5F16 | CC75: 4F16 | CD75: 3F16 | CE75: 2F16 | CF75: 1F16 | CG75: 5F17-18 | CI75: 4F17-18 | CK75: 3F17-18 | CM75: 2F17-18 | CO75: 1F17-18 | CQ75: 5F19-20 | CS75: 4F19-20 | CU75: 3F19-20 | CW75: 2F19-20 | CY75: 1F19-20 | DA75: 5F21-22 | DC75: 4F21-22 | DE75: 3F21-22 | DG75: 2F21-22 | DI75: 1F21-22 | DK75: 5F23-24 | DM75: 4F23-24 | DO75: 3F23-24 | DQ75: 2F23-24 | DS75: 1F23-24
A76: =VLOOKUP(D76,'Otras Tablas'!$G$3:$H$24,2,FALSE) -> 12 | B76: ZC1 | C76: Edif | D76: ZC1Edif | E76: F1-2 | O76: F3-4 | Y76: F5-6 | AI76: F7-8 | AS76: F7-8 | BC76: F7 | BH76: F8-9 | BR76: F8-9 | CB76: F8 | CG76: F9-10 | CQ76: F11-12 | DA76: F13-14 | DK76: F15-16
A77: =VLOOKUP(D77,'Otras Tablas'!$G$3:$H$24,2,FALSE) -> 12 | B77: ZCT | C77: Edif | D77: ZCTEdif | E77: F1-2 | O77: F3-4 | Y77: F5-6 | AI77: F7-8 | AS77: F7-8 | BC77: F7-8 | BH77: F8-9 | BR77: F8-9 | CB77: F8-9 | CG77: F9-10 | CQ77: F11-12 | DA77: F13-14 | DK77: F15-16
A78: =VLOOKUP(D78,'Otras Tablas'!$G$3:$H$24,2,FALSE) -> 48 | B78: ZCT | C78: Piso | D78: ZCTPiso | E78: 5F1-2 | G78: 4F1-2 | I78: 3F1-2 | K78: 2F1-2 | M78: 1F1-2 | O78: 5F3-4 | Q78: 4F3-4 | S78: 3F3-4 | U78: 2F3-4 | W78: 1F3-4 | Y78: 5F5-6 | AA78: 4F5-6 | AC78: 3F5-6 | AE78: 2F5-6 | AG78: 1F5-6 | AI78: 5F7-8 | AK78: 4F7-8 | AM78: 3F7-8 | AO78: 2F7-8 | AQ78: 1F7-8 | AS78: 5F9-10 | AU78: 4F9-10 | AW78: 3F9-10 | AY78: 2F9-10 | BA78: 1F9-10 | BC78: 5F11 | BD78: 4F11 | BE78: 3F11 | BF78: 2F11 | BG78: 1F11 | BH78: 5F12-13 | BJ78: 4F12-13 | BL78: 3F12-13 | BN78: 2F12-13 | BP78: 1F12-13 | BR78: 5F14-15 | BT78: 4F14-15 | BV78: 3F14-15 | BX78: 2F14-15 | BZ78: 1F14-15 | CB78: 5F16 | CC78: 4F16 | CD78: 3F16 | CE78: 2F16 | CF78: 1F16 | CG78: 5F17-18 | CI78: 4F17-18 | CK78: 3F17-18 | CM78: 2F17-18 | CO78: 1F17-18 | CQ78: 5F19-20 | CS78: 4F19-20 | CU78: 3F19-20 | CW78: 2F19-20 | CY78: 1F19-20 | DA78: 5F21-22 | DC78: 4F21-22 | DE78: 3F21-22 | DG78: 2F21-22 | DI78: 1F21-22 | DK78: 5F23-24 | DM78: 4F23-24 | DO78: 3F23-24 | DQ78: 2F23-24 | DS78: 1F23-24
A79: =VLOOKUP(D79,'Otras Tablas'!$G$3:$H$24,2,FALSE) -> 48 | B79: TPAS | C79: Piso | D79: TPASPiso
A80: =VLOOKUP(D80,'Otras Tablas'!$G$3:$H$24,2,FALSE) -> 48 | B80: TASC | C80: Piso | D80: TASCPiso
A81: =VLOOKUP(D81,'Otras Tablas'!$G$3:$H$24,2,FALSE) -> 12 | B81: TASC | C81: Edif | D81: TASCEdif

Sheet Resumen Frentes Semanal
Q1: OG | S1: N° Días Semana Actual | T1: 5 | AD1: N° Días semana siguiente | AE1: 5
G2: =+C9-1319770 -> -1319770 | Q2: TERM | S2: N° Días Semana Actual | T2: 5 | U2: Correc Frente Optimo | AD2: N° Días semana siguiente | AE2: 5
D3: =TODAY() -> 2021-06-06 | K3: Resumen planificacion Obra gruesa Rucalhue | N3: T | O3: R | S3: N° Frentes | T3: N° Frentes | U3: I.Avance | V3: I.Product | X3: (próx. semana) | AE3: N° Frentes
B4: Programado | C4: Logrado | D4: Programado próx. semana | E4: Tipo | F4: Índice Orden: 1ero OG, luego T/EXT, luego SC | G4: Indice OG | H4: Indice SCOG | I4: Indice T | J4: Indice SCT | K4: Cuadrilla | L4: Valor frente manual | M4: Valor frente actividades en curso | N4: N° | O4: N° | P4: R/T | Q4: Estatus | R4: % Cump | S4: Programados | T4: Logrados | U4: % Cump | V4: % Prod | W4: Observaciones semana anterior | X4: T | Y4: R | Z4: R/T | AA4: Valor frente próx. Semana (manual) | AB4: Valor frente prox. semana | AC4: % Prog | AD4: Estatus prox. Semana (Manual) | AE4: Programados proxima semana | AF4: Observaciones semana programada
B5: =IF(OR(F5=1,F5=2),SUMIF('Prog. Semanal OG'!$N$9:$N$834,$K5,'Prog. Semanal OG'!D$9:D$834),SUMIF('Prog. Semanal TER'!$N$9:$N$708,$K5,'Prog. Semanal TER'!D$9:D$708)) -> 0 | C5: =IF(OR(F5=1,F5=2),SUMIF('Prog. Semanal OG'!$N$9:$N$834,$K5,'Prog. Semanal OG'!E$9:E$834),SUMIF('Prog. Semanal TER'!$N$9:$N$708,$K5,'Prog. Semanal TER'!E$9:E$708)) -> 0 | D5: =IF(OR(F5=1,F5=2),SUMIF('Prog. Semanal OG'!$N$9:$N$834,$K5,'Prog. Semanal OG'!F$9:F$834),SUMIF('Prog. Semanal TER'!$N$9:$N$708,$K5,'Prog. Semanal TER'!F$9:F$708)) -> 0 | E5: =+VLOOKUP(K5,Cuadrillas!C:D,2,FALSE) -> OG | F5: =IF(E5="OG",1,IF(E5="SCOG",2,IF(E5="T",3,4))) -> 1 | G5: =IF(E5="OG",1,0) -> 1 | H5: =IF(E5="SCOG",1,0) -> 0 | I5: =IF(E5="T",1,0) -> 0 | J5: =IF(E5="SCT",1,0) -> 0 | K5: TRAZO | L5: 67200 | M5: =IF(L5<>0,L5,SUMIFS('Control de Avance'!$BM$15:$BM$4965,'Control de Avance'!$BD$15:$BD$4965,K5,'Control de Avance'!$B$15:$B$4965,1)) -> 67200 | N5: 2 | O5: 2 | P5: =IF(N5=0,"",O5/N5) -> 1 | Q5: 0 | R5: =IF(B5>0,C5/B5,0) -> 0 | S5: =IFERROR(B5/M5,0) -> 0 | T5: =IFERROR(C5/M5,0) -> 0 | U5: =+S5*R5/$T$1 -> 0 | V5: =IFERROR(IF(P5>1,U5/P5,U5),"") -> 0 | W5: Término de frentes | X5: 2 | Y5: 2 | Z5: =IF(X5=0,"",Y5/X5) -> 1 | AA5: 67200 | AB5: =IF(AA5="",M5,AA5) -> 67200 | AC5: =AE5/$AE$1/IF(Z5>100%,Z5,1) -> 0 | AD5: 0 | AE5: =IFERROR(D5/AB5,0) -> 0 | AF5: Término de frentes
B6: =IF(OR(F6=1,F6=2),SUMIF('Prog. Semanal OG'!$N$9:$N$834,$K6,'Prog. Semanal OG'!D$9:D$834),SUMIF('Prog. Semanal TER'!$N$9:$N$708,$K6,'Prog. Semanal TER'!D$9:D$708)) -> 0 | C6: =IF(OR(F6=1,F6=2),SUMIF('Prog. Semanal OG'!$N$9:$N$834,$K6,'Prog. Semanal OG'!E$9:E$834),SUMIF('Prog. Semanal TER'!$N$9:$N$708,$K6,'Prog. Semanal TER'!E$9:E$708)) -> 0 | E6: =+VLOOKUP(K6,Cuadrillas!C:D,2,FALSE) -> OG | F6: 1 | G6: 1 | H6: 0 | I6: 0 | J6: 0 | K6: GRÚA | L6: 36879 | M6: =IF(L6<>0,L6,SUMIFS('Control de Avance'!$BM$15:$BM$4965,'Control de Avance'!$BD$15:$BD$4965,K6,'Control de Avance'!$B$15:$B$4965,1)) -> 36879 | N6: 1 | O6: 1 | P6: 1 | Q6: 0 | R6: =IF(B6>0,C6/B6,0) -> 0 | S6: 0 | T6: 0 | U6: 0 | V6: 0 | W6: Término de frentes | X6: 1 | Y6: 1 | Z6: 1 | AA6: 36879 | AB6: 36879 | AC6: 0.4 | AD6: 0 | AE6: 2 | AF6: Término de frentes
B7: =IF(OR(F7=1,F7=2),SUMIF('Prog. Semanal OG'!$N$9:$N$834,$K7,'Prog. Semanal OG'!D$9:D$834),SUMIF('Prog. Semanal TER'!$N$9:$N$708,$K7,'Prog. Semanal TER'!D$9:D$708)) -> 0 | C7: =IF(OR(F7=1,F7=2),SUMIF('Prog. Semanal OG'!$N$9:$N$834,$K7,'Prog. Semanal OG'!E$9:E$834),SUMIF('Prog. Semanal TER'!$N$9:$N$708,$K7,'Prog. Semanal TER'!E$9:E$708)) -> 0 | D7: =IF(OR(F7=1,F7=2),SUMIF('Prog. Semanal OG'!$N$9:$N$834,$K7,'Prog. Semanal OG'!F$9:F$834),SUMIF('Prog. Semanal TER'!$N$9:$N$708,$K7,'Prog. Semanal TER'!F$9:F$708)) -> 0 | E7: =+VLOOKUP(K7,Cuadrillas!C:D,2,FALSE) -> OG | F7: 1 | G7: 1 | H7: 0 | I7: 0 | J7: 0 | K7: ENFIERRADOR | L7: 210632 | M7: =IF(L7<>0,L7,SUMIFS('Control de Avance'!$BM$15:$BM$4965,'Control de Avance'!$BD$15:$BD$4965,K7,'Control de Avance'!$B$15:$B$4965,1)) -> 210632 | N7: 6 | O7: 6 | P7: 1 | Q7: 0 | R7: 0 | S7: 0 | T7: 0 | U7: 0 | V7: 0 | W7: Término de frentes | X7: 6 | Y7: 6 | Z7: 1 | AA7: 210632 | AB7: 210632 | AC7: 0 | AD7: 0 | AE7: =IFERROR(D7/AB7,0) -> 0 | AF7: Término de frentes
B8: =IF(OR(F8=1,F8=2),SUMIF('Prog. Semanal OG'!$N$9:$N$834,$K8,'Prog. Semanal OG'!D$9:D$834),SUMIF('Prog. Semanal TER'!$N$9:$N$708,$K8,'Prog. Semanal TER'!D$9:D$708)) -> 0 | C8: =IF(OR(F8=1,F8=2),SUMIF('Prog. Semanal OG'!$N$9:$N$834,$K8,'Prog. Semanal OG'!E$9:E$834),SUMIF('Prog. Semanal TER'!$N$9:$N$708,$K8,'Prog. Semanal TER'!E$9:E$708)) -> 0 | D8: =IF(OR(F8=1,F8=2),SUMIF('Prog. Semanal OG'!$N$9:$N$834,$K8,'Prog. Semanal OG'!F$9:F$834),SUMIF('Prog. Semanal TER'!$N$9:$N$708,$K8,'Prog. Semanal TER'!F$9:F$708)) -> 0 | E8: =+VLOOKUP(K8,Cuadrillas!C:D,2,FALSE) -> OG | F8: 1 | G8: 1 | H8: 0 | I8: 0 | J8: 0 | K8: FABRICANTE DE HORMIGON | M8: =IF(L8<>0,L8,SUMIFS('Control de Avance'!$BM$15:$BM$4965,'Control de Avance'!$BD$15:$BD$4965,K8,'Control de Avance'!$B$15:$B$4965,1)) -> 0 | N8: 2 | O8: 2 | P8: 1 | Q8: =IF(SUMIF('Control de Avance'!$BX$15:$BX$10960,'Resumen Frentes Semanal'!K8,'Control de Avance'!$B$15:$B$10960)=0,0,SUMIF('Control de Avance'!$BX$15:$BX$10960,'Resumen Frentes Semanal'!K8,'Control de Avance'!$B$15:$B$10960)/SUMIF('Control de Avance'!$BX$15:$BX$10960,'Resumen Frentes Semanal'!K8,'Control de Avance'!$B$15:$B$10960)) -> 0 | R8: 0 | S8: 0 | T8: 0 | U8: 0 | V8: 0 | W8: Término de frentes | X8: 2 | Y8: 2 | Z8: 1 | AB8: 0 | AC8: 0 | AD8: 0 | AE8: 0 | AF8: Término de frentes
B9: =IF(OR(F9=1,F9=2),SUMIF('Prog. Semanal OG'!$N$9:$N$834,$K9,'Prog. Semanal OG'!D$9:D$834),SUMIF('Prog. Semanal TER'!$N$9:$N$708,$K9,'Prog. Semanal TER'!D$9:D$708)) -> 0 | C9: =IF(OR(F9=1,F9=2),SUMIF('Prog. Semanal OG'!$N$9:$N$834,$K9,'Prog. Semanal OG'!E$9:E$834),SUMIF('Prog. Semanal TER'!$N$9:$N$708,$K9,'Prog. Semanal TER'!E$9:E$708)) -> 0 | D9: =IF(OR(F9=1,F9=2),SUMIF('Prog. Semanal OG'!$N$9:$N$834,$K9,'Prog. Semanal OG'!F$9:F$834),SUMIF('Prog. Semanal TER'!$N$9:$N$708,$K9,'Prog. Semanal TER'!F$9:F$708)) -> 0 | E9: =+VLOOKUP(K9,Cuadrillas!C:D,2,FALSE) -> OG | F9: 1 | G9: 1 | H9: 0 | I9: 0 | J9: 0 | K9: HORMIGÓN | L9: 204000 | M9: =IF(L9<>0,L9,SUMIFS('Control de Avance'!$BM$15:$BM$4965,'Control de Avance'!$BD$15:$BD$4965,K9,'Control de Avance'!$B$15:$B$4965,1)) -> 204000 | N9: 7 | O9: 7 | P9: 1 | Q9: 0 | R9: 0 | S9: 0 | T9: 0 | U9: 0 | V9: 0 | W9: Término de frentes | X9: 7 | Y9: 7 | Z9: 1 | AA9: 216616 | AB9: 216616 | AC9: 0 | AD9: 0 | AE9: 0 | AF9: Término de frentes
B10: =IF(OR(F10=1,F10=2),SUMIF('Prog. Semanal OG'!$N$9:$N$834,$K10,'Prog. Semanal OG'!D$9:D$834),SUMIF('Prog. Semanal TER'!$N$9:$N$708,$K10,'Prog. Semanal TER'!D$9:D$708)) -> 0 | C10: =IF(OR(F10=1,F10=2),SUMIF('Prog. Semanal OG'!$N$9:$N$834,$K10,'Prog. Semanal OG'!E$9:E$834),SUMIF('Prog. Semanal TER'!$N$9:$N$708,$K10,'Prog. Semanal TER'!E$9:E$708)) -> 0 | D10: =IF(OR(F10=1,F10=2),SUMIF('Prog. Semanal OG'!$N$9:$N$834,$K10,'Prog. Semanal OG'!F$9:F$834),SUMIF('Prog. Semanal TER'!$N$9:$N$708,$K10,'Prog. Semanal TER'!F$9:F$708)) -> 0 | E10: =+VLOOKUP(K10,Cuadrillas!C:D,2,FALSE) -> OG | F10: 1 | G10: 1 | H10: 0 | I10: 0 | J10: 0 | K10: RELLENO | M10: =IF(L10<>0,L10,SUMIFS('Control de Avance'!$BM$15:$BM$4965,'Control de Avance'!$BD$15:$BD$4965,K10,'Control de Avance'!$B$15:$B$4965,1)) -> 0 | N10: 4 | O10: 4 | P10: 1 | Q10: 0 | R10: 0 | S10: 0 | T10: 0 | U10: 0 | V10: 0 | W10: Término de frentes | X10: 4 | Y10: 4 | Z10: 1 | AB10: 0 | AC10: 0 | AD10: 0 | AE10: 0 | AF10: Término de frentes
B11: =IF(OR(F11=1,F11=2),SUMIF('Prog. Semanal OG'!$N$9:$N$834,$K11,'Prog. Semanal OG'!D$9:D$834),SUMIF('Prog. Semanal TER'!$N$9:$N$708,$K11,'Prog. Semanal TER'!D$9:D$708)) -> 27031.82 | C11: =IF(OR(F11=1,F11=2),SUMIF('Prog. Semanal OG'!$N$9:$N$834,$K11,'Prog. Semanal OG'!E$9:E$834),SUMIF('Prog. Semanal TER'!$N$9:$N$708,$K11,'Prog. Semanal TER'!E$9:E$708)) -> 27031.82 | D11: =IF(OR(F11=1,F11=2),SUMIF('Prog. Semanal OG'!$N$9:$N$834,$K11,'Prog. Semanal OG'!F$9:F$834),SUMIF('Prog. Semanal TER'!$N$9:$N$708,$K11,'Prog. Semanal TER'!F$9:F$708)) -> 0 | E11: =+VLOOKUP(K11,Cuadrillas!C:D,2,FALSE) -> OG | F11: 1 | G11: 1 | H11: 0 | I11: 0 | J11: 0 | K11: ELÉCTRICO OG | L11: 123000 | M11: =IF(L11<>0,L11,SUMIFS('Control de Avance'!$BM$15:$BM$4965,'Control de Avance'!$BD$15:$BD$4965,K11,'Control de Avance'!$B$15:$B$4965,1)) -> 123000 | N11: 4 | O11: 3 | P11: 0.75 | Q11: 0 | R11: 1 | S11: 0.2197708943 | T11: 0.2197708943 | U11: 0.04395417886 | V11: 0.04395417886 | W11: reparaciones electricas | X11: 3 | Y11: 3 | Z11: 1 | AA11: 130000 | AB11: 130000 | AC11: 0 | AD11: 0 | AE11: 0 | AF11: Término de frentes
B12: =IF(OR(F12=1,F12=2),SUMIF('Prog. Semanal OG'!$N$9:$N$834,$K12,'Prog. Semanal OG'!D$9:D$834),SUMIF('Prog. Semanal TER'!$N$9:$N$708,$K12,'Prog. Semanal TER'!D$9:D$708)) -> 0 | C12: =IF(OR(F12=1,F12=2),SUMIF('Prog. Semanal OG'!$N$9:$N$834,$K12,'Prog. Semanal OG'!E$9:E$834),SUMIF('Prog. Semanal TER'!$N$9:$N$708,$K12,'Prog. Semanal TER'!E$9:E$708)) -> 0 | D12: =IF(OR(F12=1,F12=2),SUMIF('Prog. Semanal OG'!$N$9:$N$834,$K12,'Prog. Semanal OG'!F$9:F$834),SUMIF('Prog. Semanal TER'!$N$9:$N$708,$K12,'Prog. Semanal TER'!F$9:F$708)) -> 0 | E12: =+VLOOKUP(K12,Cuadrillas!C:D,2,FALSE) -> OG | F12: 1 | G12: 1 | H12: 0 | I12: 0 | J12: 0 | K12: MOLDAJE MURO | L12: 321000 | M12: =IF(L12<>0,L12,SUMIFS('Control de Avance'!$BM$15:$BM$4965,'Control de Avance'!$BD$15:$BD$4965,K12,'Control de Avance'!$B$15:$B$4965,1)) -> 321000 | N12: 9 | O12: 9 | P12: 1 | Q12: 0 | R12: 0 | S12: 0 | T12: 0 | U12: 0 | V12: 0 | W12: Término de frentes | X12: 9 | Y12: 8 | Z12: 0.8888888889 | AA12: 321000 | AB12: 321000 | AC12: 0 | AD12: 0 | AE12: 0 | AF12: Término de frentes
B13: =IF(OR(F13=1,F13=2),SUMIF('Prog. Semanal OG'!$N$9:$N$834,$K13,'Prog. Semanal OG'!D$9:D$834),SUMIF('Prog. Semanal TER'!$N$9:$N$708,$K13,'Prog. Semanal TER'!D$9:D$708)) -> 139355.0866 | C13: =IF(OR(F13=1,F13=2),SUMIF('Prog. Semanal OG'!$N$9:$N$834,$K13,'Prog. Semanal OG'!E$9:E$834),SUMIF('Prog. Semanal TER'!$N$9:$N$708,$K13,'Prog. Semanal TER'!E$9:E$708)) -> 0 | D13: =IF(OR(F13=1,F13=2),SUMIF('Prog. Semanal OG'!$N$9:$N$834,$K13,'Prog. Semanal OG'!F$9:F$834),SUMIF('Prog. Semanal TER'!$N$9:$N$708,$K13,'Prog. Semanal TER'!F$9:F$708)) -> 139355.0866 | E13: =+VLOOKUP(K13,Cuadrillas!C:D,2,FALSE) -> OG | F13: 1 | G13: 1 | H13: 0 | I13: 0 | J13: 0 | K13: MOLDAJE LOSA | L13: 188000 | M13: =IF(L13<>0,L13,SUMIFS('Control de Avance'!$BM$15:$BM$4965,'Control de Avance'!$BD$15:$BD$4965,K13,'Control de Avance'!$B$15:$B$4965,1)) -> 188000 | N13: 7 | O13: 5 | P13: 0.7142857143 | Q13: 0 | R13: 0 | S13: 0.7412504607 | T13: 0 | U13: 0 | V13: 0 | W13: Sin copero por contacto estecho | X13: 7 | Y13: 6 | Z13: 0.8571428571 | AB13: 188000 | AC13: 0.1482500921 | AD13: 0 | AE13: 0.7412504607 | AF13: copa
B14: =IF(OR(F14=1,F14=2),SUMIF('Prog. Semanal OG'!$N$9:$N$834,$K14,'Prog. Semanal OG'!D$9:D$834),SUMIF('Prog. Semanal TER'!$N$9:$N$708,$K14,'Prog. Semanal TER'!D$9:D$708)) -> 0 | C14: =IF(OR(F14=1,F14=2),SUMIF('Prog. Semanal OG'!$N$9:$N$834,$K14,'Prog. Semanal OG'!E$9:E$834),SUMIF('Prog. Semanal TER'!$N$9:$N$708,$K14,'Prog. Semanal TER'!E$9:E$708)) -> 0 | D14: =IF(OR(F14=1,F14=2),SUMIF('Prog. Semanal OG'!$N$9:$N$834,$K14,'Prog. Semanal OG'!F$9:F$834),SUMIF('Prog. Semanal TER'!$N$9:$N$708,$K14,'Prog. Semanal TER'!F$9:F$708)) -> 0 | E14: =+VLOOKUP(K14,Cuadrillas!C:D,2,FALSE) -> OG | F14: 1 | G14: 1 | H14: 0 | I14: 0 | J14: 0 | K14: SOBRECIMIENTO Y CORONACIÓN | L14: 95000 | M14: =IF(L14<>0,L14,SUMIFS('Control de Avance'!$BM$15:$BM$4965,'Control de Avance'!$BD$15:$BD$4965,K14,'Control de Avance'!$B$15:$B$4965,1)) -> 95000 | N14: 3 | O14: 2 | P14: 0.6666666667 | Q14: 0 | R14: 0 | S14: 0 | T14: =IFERROR(C14/M14,0) -> 0 | U14: 0 | V14: 0 | W14: Término de frentes | X14: 3 | Y14: 0 | Z14: 0 | AA14: 95000 | AB14: 95000 | AC14: 0 | AD14: 0 | AE14: 0 | AF14: Últimas coronas
B15: =IF(OR(F15=1,F15=2),SUMIF('Prog. Semanal OG'!$N$9:$N$834,$K15,'Prog. Semanal OG'!D$9:D$834),SUMIF('Prog. Semanal TER'!$N$9:$N$708,$K15,'Prog. Semanal TER'!D$9:D$708)) -> 0 | C15: =IF(OR(F15=1,F15=2),SUMIF('Prog. Semanal OG'!$N$9:$N$834,$K15,'Prog. Semanal OG'!E$9:E$834),SUMIF('Prog. Semanal TER'!$N$9:$N$708,$K15,'Prog. Semanal TER'!E$9:E$708)) -> 0 | D15: =IF(OR(F15=1,F15=2),SUMIF('Prog. Semanal OG'!$N$9:$N$834,$K15,'Prog. Semanal OG'!F$9:F$834),SUMIF('Prog. Semanal TER'!$N$9:$N$708,$K15,'Prog. Semanal TER'!F$9:F$708)) -> 0 | E15: =+VLOOKUP(K15,Cuadrillas!C:D,2,FALSE) -> OG | F15: 1 | G15: 1 | H15: 0 | I15: 0 | J15: 0 | K15: REMATE EXTERIOR | M15: =IF(L15<>0,L15,SUMIFS('Control de Avance'!$BM$15:$BM$4965,'Control de Avance'!$BD$15:$BD$4965,K15,'Control de Avance'!$B$15:$B$4965,1)) -> 0 | N15: 1 | O15: 1 | P15: 1 | Q15: =IF(SUMIF('Control de Avance'!$BX$15:$BX$10960,'Resumen Frentes Semanal'!K15,'Control de Avance'!$B$15:$B$10960)=0,0,SUMIF('Control de Avance'!$BX$15:$BX$10960,'Resumen Frentes Semanal'!K15,'Control de Avance'!$B$15:$B$10960)/SUMIF('Control de Avance'!$BX$15:$BX$10960,'Resumen Frentes Semanal'!K15,'Control de Avance'!$B$15:$B$10960)) -> 0 | R15: 0 | S15: 0 | T15: 0 | U15: 0 | V15: 0 | W15: Término de frentes | X15: 1 | Y15: 1 | Z15: 1 | AB15: 0 | AC15: 0 | AD15: 0 | AE15: 0 | AF15: Término de frentes
B16: =IF(OR(F16=1,F16=2),SUMIF('Prog. Semanal OG'!$N$9:$N$834,$K16,'Prog. Semanal OG'!D$9:D$834),SUMIF('Prog. Semanal TER'!$N$9:$N$708,$K16,'Prog. Semanal TER'!D$9:D$708)) -> 0 | C16: =IF(OR(F16=1,F16=2),SUMIF('Prog. Semanal OG'!$N$9:$N$834,$K16,'Prog. Semanal OG'!E$9:E$834),SUMIF('Prog. Semanal TER'!$N$9:$N$708,$K16,'Prog. Semanal TER'!E$9:E$708)) -> 0 | D16: =IF(OR(F16=1,F16=2),SUMIF('Prog. Semanal OG'!$N$9:$N$834,$K16,'Prog. Semanal OG'!F$9:F$834),SUMIF('Prog. Semanal TER'!$N$9:$N$708,$K16,'Prog. Semanal TER'!F$9:F$708)) -> 0 | E16: =+VLOOKUP(K16,Cuadrillas!C:D,2,FALSE) -> OG | F16: 1 | G16: 1 | H16: 0 | I16: 0 | J16: 0 | K16: COPA | M16: =IF(L16<>0,L16,SUMIFS('Control de Avance'!$BM$15:$BM$4965,'Control de Avance'!$BD$15:$BD$4965,K16,'Control de Avance'!$B$15:$B$4965,1)) -> 1862.775 | N16: 6 | O16: 6 | P16: 1 | Q16: =IF(SUMIF('Control de Avance'!$BX$15:$BX$10960,'Resumen Frentes Semanal'!K16,'Control de Avance'!$B$15:$B$10960)=0,0,SUMIF('Control de Avance'!$BX$15:$BX$10960,'Resumen Frentes Semanal'!K16,'Control de Avance'!$B$15:$B$10960)/SUMIF('Control de Avance'!$BX$15:$BX$10960,'Resumen Frentes Semanal'!K16,'Control de Avance'!$B$15:$B$10960)) -> 0 | R16: 0 | S16: 0 | T16: 0 | U16: 0 | V16: 0 | W16: Término de frentes | X16: 6 | Y16: 6 | Z16: 1 | AB16: 1862.775 | AC16: 0 | AD16: 0 | AE16: 0 | AF16: Término de frentes
B17: =IF(OR(F17=1,F17=2),SUMIF('Prog. Semanal OG'!$N$9:$N$834,$K17,'Prog. Semanal OG'!D$9:D$834),SUMIF('Prog. Semanal TER'!$N$9:$N$708,$K17,'Prog. Semanal TER'!D$9:D$708)) -> 0 | C17: =IF(OR(F17=1,F17=2),SUMIF('Prog. Semanal OG'!$N$9:$N$834,$K17,'Prog. Semanal OG'!E$9:E$834),SUMIF('Prog. Semanal TER'!$N$9:$N$708,$K17,'Prog. Semanal TER'!E$9:E$708)) -> 0 | D17: =IF(OR(F17=1,F17=2),SUMIF('Prog. Semanal OG'!$N$9:$N$834,$K17,'Prog. Semanal OG'!F$9:F$834),SUMIF('Prog. Semanal TER'!$N$9:$N$708,$K17,'Prog. Semanal TER'!F$9:F$708)) -> 0 | E17: =+VLOOKUP(K17,Cuadrillas!C:D,2,FALSE) -> OG | F17: 1 | G17: 1 | H17: 0 | I17: 0 | J17: 0 | K17: DESCIMBRE | M17: =IF(L17<>0,L17,SUMIFS('Control de Avance'!$BM$15:$BM$4965,'Control de Avance'!$BD$15:$BD$4965,K17,'Control de Avance'!$B$15:$B$4965,1)) -> 0 | N17: 4 | O17: 4 | P17: 1 | Q17: =IF(SUMIF('Control de Avance'!$BX$15:$BX$10960,'Resumen Frentes Semanal'!K17,'Control de Avance'!$B$15:$B$10960)=0,0,SUMIF('Control de Avance'!$BX$15:$BX$10960,'Resumen Frentes Semanal'!K17,'Control de Avance'!$B$15:$B$10960)/SUMIF('Control de Avance'!$BX$15:$BX$10960,'Resumen Frentes Semanal'!K17,'Control de Avance'!$B$15:$B$10960)) -> 0 | R17: 0 | S17: 0 | T17: 0 | U17: 0 | V17: 0 | W17: Término de frentes | X17: 4 | Y17: 4 | Z17: 1 | AB17: 0 | AC17: 0 | AD17: 0 | AE17: 0 | AF17: Término de frentes
B18: =IF(OR(F18=1,F18=2),SUMIF('Prog. Semanal OG'!$N$9:$N$834,$K18,'Prog. Semanal OG'!D$9:D$834),SUMIF('Prog. Semanal TER'!$N$9:$N$708,$K18,'Prog. Semanal TER'!D$9:D$708)) -> 0 | C18: =IF(OR(F18=1,F18=2),SUMIF('Prog. Semanal OG'!$N$9:$N$834,$K18,'Prog. Semanal OG'!E$9:E$834),SUMIF('Prog. Semanal TER'!$N$9:$N$708,$K18,'Prog. Semanal TER'!E$9:E$708)) -> 0 | D18: =IF(OR(F18=1,F18=2),SUMIF('Prog. Semanal OG'!$N$9:$N$834,$K18,'Prog. Semanal OG'!F$9:F$834),SUMIF('Prog. Semanal TER'!$N$9:$N$708,$K18,'Prog. Semanal TER'!F$9:F$708)) -> 0 | E18: =+VLOOKUP(K18,Cuadrillas!C:D,2,FALSE) -> SCOG | F18: 2 | G18: 0 | H18: 1 | I18: 0 | J18: 0 | K18: GASFITER OG | L18: 0 | M18: =IF(L18<>0,L18,SUMIFS('Control de Avance'!$BM$15:$BM$4965,'Control de Avance'!$BD$15:$BD$4965,K18,'Control de Avance'!$B$15:$B$4965,1)) -> 0 | N18: 1 | O18: 1 | P18: 1 | Q18: 0 | R18: 0 | S18: 0 | T18: 0 | U18: 0 | V18: 0 | W18: Término de frentes | X18: 1 | Y18: 1 | Z18: 1 | AA18: 1 | AB18: 1 | AC18: 0 | AD18: 0 | AE18: =IFERROR(D18/AB18,0) -> 0 | AF18: Término de frentes
B19: =IF(OR(F19=1,F19=2),SUMIF('Prog. Semanal OG'!$N$9:$N$834,$K19,'Prog. Semanal OG'!D$9:D$834),SUMIF('Prog. Semanal TER'!$N$9:$N$708,$K19,'Prog. Semanal TER'!D$9:D$708)) -> 0 | C19: =IF(OR(F19=1,F19=2),SUMIF('Prog. Semanal OG'!$N$9:$N$834,$K19,'Prog. Semanal OG'!E$9:E$834),SUMIF('Prog. Semanal TER'!$N$9:$N$708,$K19,'Prog. Semanal TER'!E$9:E$708)) -> 0 | D19: =IF(OR(F19=1,F19=2),SUMIF('Prog. Semanal OG'!$N$9:$N$834,$K19,'Prog. Semanal OG'!F$9:F$834),SUMIF('Prog. Semanal TER'!$N$9:$N$708,$K19,'Prog. Semanal TER'!F$9:F$708)) -> 0 | E19: =+VLOOKUP(K19,Cuadrillas!C:D,2,FALSE) -> SCOG | F19: 2 | G19: 0 | H19: 1 | I19: 0 | J19: 0 | K19: GAS OG | L19: 0.44 | M19: =IF(L19<>0,L19,SUMIFS('Control de Avance'!$BM$15:$BM$4965,'Control de Avance'!$BD$15:$BD$4965,K19,'Control de Avance'!$B$15:$B$4965,1)) -> 0.44 | N19: 1 | O19: 1 | P19: 1 | Q19: 0 | R19: 0 | S19: 0 | T19: 0 | U19: 0 | V19: 0 | W19: Término de frentes | X19: 1 | Y19: 1 | Z19: 1 | AA19: 0.44 | AB19: 0.44 | AC19: 0 | AD19: 0 | AE19: 0 | AF19: Término de frentes
B20: =IF(OR(F20=1,F20=2),SUMIF('Prog. Semanal OG'!$N$9:$N$834,$K20,'Prog. Semanal OG'!D$9:D$834),SUMIF('Prog. Semanal TER'!$N$9:$N$708,$K20,'Prog. Semanal TER'!D$9:D$708)) -> 338440.82 | C20: =IF(OR(F20=1,F20=2),SUMIF('Prog. Semanal OG'!$N$9:$N$834,$K20,'Prog. Semanal OG'!E$9:E$834),SUMIF('Prog. Semanal TER'!$N$9:$N$708,$K20,'Prog. Semanal TER'!E$9:E$708)) -> 187694.53 | D20: =IF(OR(F20=1,F20=2),SUMIF('Prog. Semanal OG'!$N$9:$N$834,$K20,'Prog. Semanal OG'!F$9:F$834),SUMIF('Prog. Semanal TER'!$N$9:$N$708,$K20,'Prog. Semanal TER'!F$9:F$708)) -> 344659.89 | E20: =+VLOOKUP(K20,Cuadrillas!C:D,2,FALSE) -> T | F20: 3 | G20: 0 | H20: 0 | I20: 1 | J20: 0 | K20: SOLDADOR | L20: 63049 | M20: =IF(L20<>0,L20,SUMIFS('Control de Avance'!$BM$15:$BM$4965,'Control de Avance'!$BD$15:$BD$4965,K20,'Control de Avance'!$B$15:$B$4965,1)) -> 63049 | N20: 2 | O20: 2 | P20: 1 | Q20: 1 | R20: 0.5545859687 | S20: 5.367901473 | T20: =IFERROR(C20/M20,0) -> 2.976962838 | U20: =+S20*R20/$T$2 -> 0.5953925677 | V20: 0.5953925677 | W20: 1 DIA AL DIA Y RENDIMIENTO NO DESEADO POR NO TENER TRONZADORA | X20: 2 | Y20: 2 | Z20: 1 | AA20: 68500 | AB20: 68500 | AC20: =AE20/$AE$2/IF(Z20>100%,Z20,1) -> 1.006306248 | AD20: 1 | AE20: =IFERROR(D20/AB20,0) -> 5.031531241
B21: =IF(OR(F21=1,F21=2),SUMIF('Prog. Semanal OG'!$N$9:$N$834,$K21,'Prog. Semanal OG'!D$9:D$834),SUMIF('Prog. Semanal TER'!$N$9:$N$708,$K21,'Prog. Semanal TER'!D$9:D$708)) -> 175980 | C21: =IF(OR(F21=1,F21=2),SUMIF('Prog. Semanal OG'!$N$9:$N$834,$K21,'Prog. Semanal OG'!E$9:E$834),SUMIF('Prog. Semanal TER'!$N$9:$N$708,$K21,'Prog. Semanal TER'!E$9:E$708)) -> 89367.312 | D21: =IF(OR(F21=1,F21=2),SUMIF('Prog. Semanal OG'!$N$9:$N$834,$K21,'Prog. Semanal OG'!F$9:F$834),SUMIF('Prog. Semanal TER'!$N$9:$N$708,$K21,'Prog. Semanal TER'!F$9:F$708)) -> 176065 | E21: =+VLOOKUP(K21,Cuadrillas!C:D,2,FALSE) -> T | F21: 3 | G21: 0 | H21: 0 | I21: 1 | J21: 0 | K21: LIMPIEZA Y TRASLADO | L21: 43500 | M21: =IF(L21<>0,L21,SUMIFS('Control de Avance'!$BM$15:$BM$4965,'Control de Avance'!$BD$15:$BD$4965,K21,'Control de Avance'!$B$15:$B$4965,1)) -> 43500 | N21: 3 | O21: 0.6 | P21: 0.2 | Q21: 1 | R21: 0.5078265257 | S21: 4.045517241 | T21: =IFERROR((C21)/(M21),0) -> 2.054420966 | U21: =+S21*R21/$T$2 -> 0.4108841931 | V21: 0.4108841931 | W21: 1 TRASLADO CON COVID Y EL OTRO CONTACTO ESTRECHO - SE DEBE BUSCAR URGENTE UNO | X21: 3 | Y21: 2 | Z21: 0.6666666667 | AA21: =44582 -> 44582 | AB21: 44582 | AC21: 0.7898479207 | AD21: 1 | AE21: 3.949239603 | AF21: ACTIVIDADES SE ESTAN DESACTIVANDO
B22: =IF(OR(F22=1,F22=2),SUMIF('Prog. Semanal OG'!$N$9:$N$834,$K22,'Prog. Semanal OG'!D$9:D$834),SUMIF('Prog. Semanal TER'!$N$9:$N$708,$K22,'Prog. Semanal TER'!D$9:D$708)) -> 300714.1042 | C22: =IF(OR(F22=1,F22=2),SUMIF('Prog. Semanal OG'!$N$9:$N$834,$K22,'Prog. Semanal OG'!E$9:E$834),SUMIF('Prog. Semanal TER'!$N$9:$N$708,$K22,'Prog. Semanal TER'!E$9:E$708)) -> 240571.2833 | D22: =IF(OR(F22=1,F22=2),SUMIF('Prog. Semanal OG'!$N$9:$N$834,$K22,'Prog. Semanal OG'!F$9:F$834),SUMIF('Prog. Semanal TER'!$N$9:$N$708,$K22,'Prog. Semanal TER'!F$9:F$708)) -> 91305.82083 | E22: =+VLOOKUP(K22,Cuadrillas!C:D,2,FALSE) -> T | F22: 3 | G22: 0 | H22: 0 | I22: 1 | J22: 0 | K22: RASGOS | L22: 63249 | M22: =IF(L22<>0,L22,SUMIFS('Control de Avance'!$BM$15:$BM$4965,'Control de Avance'!$BD$15:$BD$4965,K22,'Control de Avance'!$B$15:$B$4965,1)) -> 63249 | N22: 1 | O22: 1 | P22: 1 | Q22: 1 | R22: 0.8 | S22: 4.754448358 | T22: 3.803558686 | U22: =+S22*R22/$T$2 -> 0.7607117372 | V22: 0.7607117372 | W22: SE DEDICA A SACAR PEGAS PENDIENTES EN CAJAS ESCALA Y VENTANAS DE BAÑO | X22: 1 | Y22: 1 | Z22: 1 | AA22: 63249 | AB22: 63249 | AC22: 0.2887186227 | AD22: 1 | AE22: 1.443593113 | AF22: SE PROGRAMAN 1,4 FRENTES PORQUE TRATO SE ESTA TERMINANDO Y FALTA DESOCUPAR BODEGAS
B23: =IF(OR(F23=1,F23=2),SUMIF('Prog. Semanal OG'!$N$9:$N$834,$K23,'Prog. Semanal OG'!D$9:D$834),SUMIF('Prog. Semanal TER'!$N$9:$N$708,$K23,'Prog. Semanal TER'!D$9:D$708)) -> 318772.83 | C23: =IF(OR(F23=1,F23=2),SUMIF('Prog. Semanal OG'!$N$9:$N$834,$K23,'Prog. Semanal OG'!E$9:E$834),SUMIF('Prog. Semanal TER'!$N$9:$N$708,$K23,'Prog. Semanal TER'!E$9:E$708)) -> 161093.5 | D23: =IF(OR(F23=1,F23=2),SUMIF('Prog. Semanal OG'!$N$9:$N$834,$K23,'Prog. Semanal OG'!F$9:F$834),SUMIF('Prog. Semanal TER'!$N$9:$N$708,$K23,'Prog. Semanal TER'!F$9:F$708)) -> 286744 | E23: =+VLOOKUP(K23,Cuadrillas!C:D,2,FALSE) -> T | F23: 3 | G23: 0 | H23: 0 | I23: 1 | J23: 0 | K23: ALBAÑIL TERMINACIONES | L23: 52341 | M23: =IF(L23<>0,L23,SUMIFS('Control de Avance'!$BM$15:$BM$4965,'Control de Avance'!$BD$15:$BD$4965,K23,'Control de Avance'!$B$15:$B$4965,1)) -> 52341 | N23: 2 | O23: 2 | P23: 1 | Q23: 1 | R23: 0.5053551772 | S23: 6.090308362 | T23: 3.077768862 | U23: =+S23*R23/$T$2 -> 0.6155537724 | V23: 0.6155537724 | W23: 1 ALBAÑIL TODA LA SEMANA SACANDO DETALLES DE PICADOS DE GASFITER | X23: 2 | Y23: 2 | Z23: 1 | AA23: 59000 | AB23: 59000 | AC23: 0.9720135593 | AD23: 1 | AE23: 4.860067797
B24: =IF(OR(F24=1,F24=2),SUMIF('Prog. Semanal OG'!$N$9:$N$834,$K24,'Prog. Semanal OG'!D$9:D$834),SUMIF('Prog. Semanal TER'!$N$9:$N$708,$K24,'Prog. Semanal TER'!D$9:D$708)) -> 307582.4923 | C24: =IF(OR(F24=1,F24=2),SUMIF('Prog. Semanal OG'!$N$9:$N$834,$K24,'Prog. Semanal OG'!E$9:E$834),SUMIF('Prog. Semanal TER'!$N$9:$N$708,$K24,'Prog. Semanal TER'!E$9:E$708)) -> 307582.4923 | D24: =IF(OR(F24=1,F24=2),SUMIF('Prog. Semanal OG'!$N$9:$N$834,$K24,'Prog. Semanal OG'!F$9:F$834),SUMIF('Prog. Semanal TER'!$N$9:$N$708,$K24,'Prog. Semanal TER'!F$9:F$708)) -> 340481.5923 | E24: =+VLOOKUP(K24,Cuadrillas!C:D,2,FALSE) -> T | F24: 3 | G24: 0 | H24: 0 | I24: 1 | J24: 0 | K24: TECHUMBRE Y MEMBRANA | L24: 69656 | M24: =IF(L24<>0,L24,SUMIFS('Control de Avance'!$BM$15:$BM$4965,'Control de Avance'!$BD$15:$BD$4965,K24,'Control de Avance'!$B$15:$B$4965,1)) -> 69656 | N24: 2 | O24: 2 | P24: 1 | Q24: 1 | R24: 1 | S24: 4.415735792 | T24: 4.415735792 | U24: 0.8831471583 | V24: 0.8831471583 | X24: 2 | Y24: 2 | Z24: 1 | AA24: 68603 | AB24: 68603 | AC24: 0.9926142947 | AD24: 1 | AE24: =IFERROR(D24/AB24,0) -> 4.963071474
B25: =IF(OR(F25=1,F25=2),SUMIF('Prog. Semanal OG'!$N$9:$N$834,$K25,'Prog. Semanal OG'!D$9:D$834),SUMIF('Prog. Semanal TER'!$N$9:$N$708,$K25,'Prog. Semanal TER'!D$9:D$708)) -> 473193.451 | C25: =IF(OR(F25=1,F25=2),SUMIF('Prog. Semanal OG'!$N$9:$N$834,$K25,'Prog. Semanal OG'!E$9:E$834),SUMIF('Prog. Semanal TER'!$N$9:$N$708,$K25,'Prog. Semanal TER'!E$9:E$708)) -> 333734.8275 | D25: =IF(OR(F25=1,F25=2),SUMIF('Prog. Semanal OG'!$N$9:$N$834,$K25,'Prog. Semanal OG'!F$9:F$834),SUMIF('Prog. Semanal TER'!$N$9:$N$708,$K25,'Prog. Semanal TER'!F$9:F$708)) -> 298571.3797 | E25: =+VLOOKUP(K25,Cuadrillas!C:D,2,FALSE) -> T | F25: 3 | G25: 0 | H25: 0 | I25: 1 | J25: 0 | K25: YESERO | L25: 118000 | M25: =IF(L25<>0,L25,SUMIFS('Control de Avance'!$BM$15:$BM$4965,'Control de Avance'!$BD$15:$BD$4965,K25,'Control de Avance'!$B$15:$B$4965,1)) -> 118000 | N25: 3 | O25: 3 | P25: 1 | Q25: 1 | R25: =IF(B25>0,C25/B25,0) -> 0.7052820083 | S25: 4.010113992 | T25: 2.82826125 | U25: 0.5656522499 | V25: 0.5656522499 | W25: NO SE LOGRA POR SECUENCIA CON VOLCAPOL Y POR FAJAS | X25: 3 | Y25: 3 | Z25: 1 | AA25: 121000 | AB25: =IF(AA25="",M25,AA25) -> 121000 | AC25: =AE25/$AE$2/IF(Z25>100%,Z25,1) -> 0.4935064127 | AD25: 1 | AE25: =IFERROR(D25/AB25,0) -> 2.467532063 | AF25: 1 YESERO PRESTARA APOYO A BAÑOY COCINA
B26: =IF(OR(F26=1,F26=2),SUMIF('Prog. Semanal OG'!$N$9:$N$834,$K26,'Prog. Semanal OG'!D$9:D$834),SUMIF('Prog. Semanal TER'!$N$9:$N$708,$K26,'Prog. Semanal TER'!D$9:D$708)) -> 0 | C26: =IF(OR(F26=1,F26=2),SUMIF('Prog. Semanal OG'!$N$9:$N$834,$K26,'Prog. Semanal OG'!E$9:E$834),SUMIF('Prog. Semanal TER'!$N$9:$N$708,$K26,'Prog. Semanal TER'!E$9:E$708)) -> 0 | D26: =IF(OR(F26=1,F26=2),SUMIF('Prog. Semanal OG'!$N$9:$N$834,$K26,'Prog. Semanal OG'!F$9:F$834),SUMIF('Prog. Semanal TER'!$N$9:$N$708,$K26,'Prog. Semanal TER'!F$9:F$708)) -> 0 | E26: =+VLOOKUP(K26,Cuadrillas!C:D,2,FALSE) -> T | F26: 3 | G26: 0 | H26: 0 | I26: 1 | J26: 0 | K26: AYUDANTE ALBAÑIL | M26: =IF(L26<>0,L26,SUMIFS('Control de Avance'!$BM$15:$BM$4965,'Control de Avance'!$BD$15:$BD$4965,K26,'Control de Avance'!$B$15:$B$4965,1)) -> 0 | N26: 1 | O26: 1 | P26: 1 | Q26: 0 | R26: 0 | S26: 0 | T26: 0 | U26: 0 | V26: 0 | X26: 1 | Y26: 1 | Z26: 1 | AB26: 0 | AC26: 0 | AD26: 0 | AE26: =IFERROR(D26/M26,0) -> 0
B27: =IF(OR(F27=1,F27=2),SUMIF('Prog. Semanal OG'!$N$9:$N$834,$K27,'Prog. Semanal OG'!D$9:D$834),SUMIF('Prog. Semanal TER'!$N$9:$N$708,$K27,'Prog. Semanal TER'!D$9:D$708)) -> 0 | C27: =IF(OR(F27=1,F27=2),SUMIF('Prog. Semanal OG'!$N$9:$N$834,$K27,'Prog. Semanal OG'!E$9:E$834),SUMIF('Prog. Semanal TER'!$N$9:$N$708,$K27,'Prog. Semanal TER'!E$9:E$708)) -> 0 | D27: =IF(OR(F27=1,F27=2),SUMIF('Prog. Semanal OG'!$N$9:$N$834,$K27,'Prog. Semanal OG'!F$9:F$834),SUMIF('Prog. Semanal TER'!$N$9:$N$708,$K27,'Prog. Semanal TER'!F$9:F$708)) -> 0 | E27: =+VLOOKUP(K27,Cuadrillas!C:D,2,FALSE) -> T | F27: 3 | G27: 0 | H27: 0 | I27: 1 | J27: 0 | K27: MEMBRANA | M27: =IF(L27<>0,L27,SUMIFS('Control de Avance'!$BM$15:$BM$4965,'Control de Avance'!$BD$15:$BD$4965,K27,'Control de Avance'!$B$15:$B$4965,1)) -> 0 | N27: 3 | O27: 3 | P27: 1 | Q27: =IF(SUMIF('Control de Avance'!$BX$15:$BX$10960,'Resumen Frentes Semanal'!K27,'Control de Avance'!$B$15:$B$10960)=0,0,SUMIF('Control de Avance'!$BX$15:$BX$10960,'Resumen Frentes Semanal'!K27,'Control de Avance'!$B$15:$B$10960)/SUMIF('Control de Avance'!$BX$15:$BX$10960,'Resumen Frentes Semanal'!K27,'Control de Avance'!$B$15:$B$10960)) -> 0 | R27: 0 | S27: 0 | T27: 0 | U27: 0 | V27: 0 | X27: 3 | Y27: 3 | Z27: 1 | AB27: 0 | AC27: 0 | AD27: 0 | AE27: =IFERROR(D27/AB27,0) -> 0
B28: =IF(OR(F28=1,F28=2),SUMIF('Prog. Semanal OG'!$N$9:$N$834,$K28,'Prog. Semanal OG'!D$9:D$834),SUMIF('Prog. Semanal TER'!$N$9:$N$708,$K28,'Prog. Semanal TER'!D$9:D$708)) -> 0 | C28: =IF(OR(F28=1,F28=2),SUMIF('Prog. Semanal OG'!$N$9:$N$834,$K28,'Prog. Semanal OG'!E$9:E$834),SUMIF('Prog. Semanal TER'!$N$9:$N$708,$K28,'Prog. Semanal TER'!E$9:E$708)) -> 0 | D28: =IF(OR(F28=1,F28=2),SUMIF('Prog. Semanal OG'!$N$9:$N$834,$K28,'Prog. Semanal OG'!F$9:F$834),SUMIF('Prog. Semanal TER'!$N$9:$N$708,$K28,'Prog. Semanal TER'!F$9:F$708)) -> 0 | E28: =+VLOOKUP(K28,Cuadrillas!C:D,2,FALSE) -> T | F28: 3 | G28: 0 | H28: 0 | I28: 1 | J28: 0 | K28: VENTILACION CONVECTIVA | M28: =IF(L28<>0,L28,SUMIFS('Control de Avance'!$BM$15:$BM$4965,'Control de Avance'!$BD$15:$BD$4965,K28,'Control de Avance'!$B$15:$B$4965,1)) -> 0 | N28: 3 | O28: 3 | P28: 1 | Q28: =IF(SUMIF('Control de Avance'!$BX$15:$BX$10960,'Resumen Frentes Semanal'!K28,'Control de Avance'!$B$15:$B$10960)=0,0,SUMIF('Control de Avance'!$BX$15:$BX$10960,'Resumen Frentes Semanal'!K28,'Control de Avance'!$B$15:$B$10960)/SUMIF('Control de Avance'!$BX$15:$BX$10960,'Resumen Frentes Semanal'!K28,'Control de Avance'!$B$15:$B$10960)) -> 0 | R28: 0 | S28: 0 | T28: 0 | U28: 0 | V28: 0 | X28: 3 | Y28: 3 | Z28: 1 | AB28: 0 | AC28: 0 | AD28: 0 | AE28: 0
B29: =IF(OR(F29=1,F29=2),SUMIF('Prog. Semanal OG'!$N$9:$N$834,$K29,'Prog. Semanal OG'!D$9:D$834),SUMIF('Prog. Semanal TER'!$N$9:$N$708,$K29,'Prog. Semanal TER'!D$9:D$708)) -> 693306.0763 | C29: =IF(OR(F29=1,F29=2),SUMIF('Prog. Semanal OG'!$N$9:$N$834,$K29,'Prog. Semanal OG'!E$9:E$834),SUMIF('Prog. Semanal TER'!$N$9:$N$708,$K29,'Prog. Semanal TER'!E$9:E$708)) -> 164295.7286 | D29: =IF(OR(F29=1,F29=2),SUMIF('Prog. Semanal OG'!$N$9:$N$834,$K29,'Prog. Semanal OG'!F$9:F$834),SUMIF('Prog. Semanal TER'!$N$9:$N$708,$K29,'Prog. Semanal TER'!F$9:F$708)) -> 715387.5449 | E29: =+VLOOKUP(K29,Cuadrillas!C:D,2,FALSE) -> T | F29: 3 | G29: 0 | H29: 0 | I29: 1 | J29: 0 | K29: CARP. TABIQUE y VOLCAPOL | L29: 167800 | M29: =IF(L29<>0,L29,SUMIFS('Control de Avance'!$BM$15:$BM$4965,'Control de Avance'!$BD$15:$BD$4965,K29,'Control de Avance'!$B$15:$B$4965,1)) -> 167800 | N29: 5 | O29: 4 | P29: 0.8 | Q29: 1 | R29: 0.2369743093 | S29: 4.131740622 | T29: 0.9791163802 | U29: 0.195823276 | V29: 0.195823276 | W29: SE DEDICAN A REMATAR ACTIVIDADES PENDIENTES DE TABIQUEROS NO PRESENTES HOY EN OBRA | X29: 5 | Y29: 5 | Z29: 1 | AA29: 176300 | AB29: =IF(AA29="",AA29,AA29) -> 176300 | AC29: 0.8115570561 | AD29: 1 | AE29: 4.05778528 | AF29: 1 TABIQUERO ESTA COVID Y SE PROGRAMAN TRABAJOS PENDIENTES EN ZONAS COMUNES
B30: =IF(OR(F30=1,F30=2),SUMIF('Prog. Semanal OG'!$N$9:$N$834,$K30,'Prog. Semanal OG'!D$9:D$834),SUMIF('Prog. Semanal TER'!$N$9:$N$708,$K30,'Prog. Semanal TER'!D$9:D$708)) -> 414904.1505 | C30: =IF(OR(F30=1,F30=2),SUMIF('Prog. Semanal OG'!$N$9:$N$834,$K30,'Prog. Semanal OG'!E$9:E$834),SUMIF('Prog. Semanal TER'!$N$9:$N$708,$K30,'Prog. Semanal TER'!E$9:E$708)) -> 358041.2297 | D30: =IF(OR(F30=1,F30=2),SUMIF('Prog. Semanal OG'!$N$9:$N$834,$K30,'Prog. Semanal OG'!F$9:F$834),SUMIF('Prog. Semanal TER'!$N$9:$N$708,$K30,'Prog. Semanal TER'!F$9:F$708)) -> 437855.831 | E30: T | F30: 3 | G30: 0 | H30: 0 | I30: 1 | J30: 0 | K30: ELÉCTRICO T | L30: 82000 | M30: =IF(L30<>0,L30,SUMIFS('Control de Avance'!$BM$15:$BM$4965,'Control de Avance'!$BD$15:$BD$4965,K30,'Control de Avance'!$B$15:$B$4965,1)) -> 82000 | N30: 3 | O30: 2 | P30: 0.6666666667 | Q30: 1 | R30: 0.8629492602 | S30: =IFERROR(B30/M30,0) -> 5.059806713 | T30: =IFERROR(C30/M30,0) -> 4.36635646 | U30: 0.8732712919 | V30: 0.8732712919 | X30: 3 | Y30: 3 | Z30: 1 | AA30: 88381 | AB30: =IF(AA30="",M30,AA30) -> 88381 | AC30: 0.9908370147 | AD30: 1 | AE30: 4.954185073
B31: =IF(OR(F31=1,F31=2),SUMIF('Prog. Semanal OG'!$N$9:$N$834,$K31,'Prog. Semanal OG'!D$9:D$834),SUMIF('Prog. Semanal TER'!$N$9:$N$708,$K31,'Prog. Semanal TER'!D$9:D$708)) -> 147201.2917 | C31: =IF(OR(F31=1,F31=2),SUMIF('Prog. Semanal OG'!$N$9:$N$834,$K31,'Prog. Semanal OG'!E$9:E$834),SUMIF('Prog. Semanal TER'!$N$9:$N$708,$K31,'Prog. Semanal TER'!E$9:E$708)) -> 21611.875 | D31: =IF(OR(F31=1,F31=2),SUMIF('Prog. Semanal OG'!$N$9:$N$834,$K31,'Prog. Semanal OG'!F$9:F$834),SUMIF('Prog. Semanal TER'!$N$9:$N$708,$K31,'Prog. Semanal TER'!F$9:F$708)) -> 157413.2583 | E31: =+VLOOKUP(K31,Cuadrillas!C:D,2,FALSE) -> T | F31: 3 | G31: 0 | H31: 0 | I31: 1 | J31: 0 | K31: ALUMINIO | L31: 29624 | M31: =IF(L31<>0,L31,SUMIFS('Control de Avance'!$BM$15:$BM$4965,'Control de Avance'!$BD$15:$BD$4965,K31,'Control de Avance'!$B$15:$B$4965,1)) -> 29624 | N31: 1 | O31: 1 | P31: 1 | Q31: 1 | R31: 0.1468185147 | S31: 4.968987701 | T31: 0.7295393937 | U31: 0.1459078787 | V31: 0.1459078787 | W31: NO SE PUEDE INSTALAR VENTANAS EN CONDICIÓN DE LLUVIA | X31: 1 | Y31: 0.8 | Z31: 0.8 | AA31: 33500 | AB31: =IF(AA31="",AA31,AA31) -> 33500 | AC31: 0.9397806468 | AD31: 1 | AE31: 4.698903234
B32: =IF(OR(F32=1,F32=2),SUMIF('Prog. Semanal OG'!$N$9:$N$834,$K32,'Prog. Semanal OG'!D$9:D$834),SUMIF('Prog. Semanal TER'!$N$9:$N$708,$K32,'Prog. Semanal TER'!D$9:D$708)) -> 492592.0967 | C32: =IF(OR(F32=1,F32=2),SUMIF('Prog. Semanal OG'!$N$9:$N$834,$K32,'Prog. Semanal OG'!E$9:E$834),SUMIF('Prog. Semanal TER'!$N$9:$N$708,$K32,'Prog. Semanal TER'!E$9:E$708)) -> 110562.9333 | D32: =IF(OR(F32=1,F32=2),SUMIF('Prog. Semanal OG'!$N$9:$N$834,$K32,'Prog. Semanal OG'!F$9:F$834),SUMIF('Prog. Semanal TER'!$N$9:$N$708,$K32,'Prog. Semanal TER'!F$9:F$708)) -> 431436.1633 | E32: =+VLOOKUP(K32,Cuadrillas!C:D,2,FALSE) -> T | F32: 3 | G32: 0 | H32: 0 | I32: 1 | J32: 0 | K32: CARP. TERMINACIONES | L32: 108390 | M32: =IF(L32<>0,L32,SUMIFS('Control de Avance'!$BM$15:$BM$4965,'Control de Avance'!$BD$15:$BD$4965,K32,'Control de Avance'!$B$15:$B$4965,1)) -> 108390 | N32: 3 | O32: 1 | P32: 0.3333333333 | Q32: 1 | R32: 0.2244512936 | S32: =IFERROR(B32/M32,0) -> 4.54462678 | T32: 1.02004736 | U32: 0.204009472 | V32: 0.204009472 | W32: 1 CARPINTERO CON COVID Y EL OTRO POSIBLE CONTACTO ESTRECHO, CORNISAS CON LICENCIA | X32: 3 | Y32: 3 | Z32: 1 | AA32: 107800 | AB32: =IF(AA32="",M32,AA32) -> 107800 | AC32: =AE32/$AE$2/IF(Z32>100%,Z32,1) -> 0.8004381509 | AD32: 1 | AE32: =IFERROR(D32/AB32,0) -> 4.002190754 | AF32: 1 CARPINTERO FUERA POR COVID Y PRESTARAN APOYO A CARPINTERO DE ACCESORIOS
B33: =IF(OR(F33=1,F33=2),SUMIF('Prog. Semanal OG'!$N$9:$N$834,$K33,'Prog. Semanal OG'!D$9:D$834),SUMIF('Prog. Semanal TER'!$N$9:$N$708,$K33,'Prog. Semanal TER'!D$9:D$708)) -> 646684.7708 | C33: =IF(OR(F33=1,F33=2),SUMIF('Prog. Semanal OG'!$N$9:$N$834,$K33,'Prog. Semanal OG'!E$9:E$834),SUMIF('Prog. Semanal TER'!$N$9:$N$708,$K33,'Prog. Semanal TER'!E$9:E$708)) -> 338468.4352 | D33: =IF(OR(F33=1,F33=2),SUMIF('Prog. Semanal OG'!$N$9:$N$834,$K33,'Prog. Semanal OG'!F$9:F$834),SUMIF('Prog. Semanal TER'!$N$9:$N$708,$K33,'Prog. Semanal TER'!F$9:F$708)) -> 695037.6433 | E33: =+VLOOKUP(K33,Cuadrillas!C:D,2,FALSE) -> T | F33: 3 | G33: 0 | H33: 0 | I33: 1 | J33: 0 | K33: CERÁMICA | L33: 121500 | M33: =IF(L33<>0,L33,SUMIFS('Control de Avance'!$BM$15:$BM$4965,'Control de Avance'!$BD$15:$BD$4965,K33,'Control de Avance'!$B$15:$B$4965,1)) -> 121500 | N33: 3 | O33: 2 | P33: 0.6666666667 | Q33: 1 | R33: 0.5233901439 | S33: =IFERROR(B33/M33,0) -> 5.322508402 | T33: 2.785748438 | U33: 0.5571496876 | V33: 0.5571496876 | W33: SE DEDICAN A SACAR PEGAS PENDIENTES EN CAJA ESCALA DURANTE LA SEMANA + FRAGUADOR FUERA POR CONTACTO ESTRECHO | X33: 3 | Y33: 3 | Z33: 1 | AA33: 124778 | AB33: 124778 | AC33: =AE33/$AE$2/IF(Z33>100%,Z33,1) -> 1.114038762 | AD33: 1 | AE33: 5.570193811
B34: =IF(OR(F34=1,F34=2),SUMIF('Prog. Semanal OG'!$N$9:$N$834,$K34,'Prog. Semanal OG'!D$9:D$834),SUMIF('Prog. Semanal TER'!$N$9:$N$708,$K34,'Prog. Semanal TER'!D$9:D$708)) -> 0 | C34: =IF(OR(F34=1,F34=2),SUMIF('Prog. Semanal OG'!$N$9:$N$834,$K34,'Prog. Semanal OG'!E$9:E$834),SUMIF('Prog. Semanal TER'!$N$9:$N$708,$K34,'Prog. Semanal TER'!E$9:E$708)) -> 0 | D34: =IF(OR(F34=1,F34=2),SUMIF('Prog. Semanal OG'!$N$9:$N$834,$K34,'Prog. Semanal OG'!F$9:F$834),SUMIF('Prog. Semanal TER'!$N$9:$N$708,$K34,'Prog. Semanal TER'!F$9:F$708)) -> 0 | E34: =+VLOOKUP(K34,Cuadrillas!C:D,2,FALSE) -> T | F34: 3 | G34: 0 | H34: 0 | I34: 1 | J34: 0 | K34: FRAGÜE LIJADO Y ENCOLADO | M34: =IF(L34<>0,L34,SUMIFS('Control de Avance'!$BM$15:$BM$4965,'Control de Avance'!$BD$15:$BD$4965,K34,'Control de Avance'!$B$15:$B$4965,1)) -> 0 | N34: 4 | O34: 4 | P34: 1 | Q34: =IF(SUMIF('Control de Avance'!$BX$15:$BX$10960,'Resumen Frentes Semanal'!K34,'Control de Avance'!$B$15:$B$10960)=0,0,SUMIF('Control de Avance'!$BX$15:$BX$10960,'Resumen Frentes Semanal'!K34,'Control de Avance'!$B$15:$B$10960)/SUMIF('Control de Avance'!$BX$15:$BX$10960,'Resumen Frentes Semanal'!K34,'Control de Avance'!$B$15:$B$10960)) -> 0 | R34: 0 | S34: 0 | T34: 0 | U34: 0 | V34: 0 | X34: 4 | Y34: 4 | Z34: 1 | AB34: 0 | AC34: =AE34/$AE$1/IF(Z34>100%,Z34,1) -> 0 | AD34: 0 | AE34: =IFERROR(D34/M34,0) -> 0
B35: =IF(OR(F35=1,F35=2),SUMIF('Prog. Semanal OG'!$N$9:$N$834,$K35,'Prog. Semanal OG'!D$9:D$834),SUMIF('Prog. Semanal TER'!$N$9:$N$708,$K35,'Prog. Semanal TER'!D$9:D$708)) -> 0 | C35: =IF(OR(F35=1,F35=2),SUMIF('Prog. Semanal OG'!$N$9:$N$834,$K35,'Prog. Semanal OG'!E$9:E$834),SUMIF('Prog. Semanal TER'!$N$9:$N$708,$K35,'Prog. Semanal TER'!E$9:E$708)) -> 0 | D35: =IF(OR(F35=1,F35=2),SUMIF('Prog. Semanal OG'!$N$9:$N$834,$K35,'Prog. Semanal OG'!F$9:F$834),SUMIF('Prog. Semanal TER'!$N$9:$N$708,$K35,'Prog. Semanal TER'!F$9:F$708)) -> 0 | E35: =+VLOOKUP(K35,Cuadrillas!C:D,2,FALSE) -> T | F35: 3 | G35: 0 | H35: 0 | I35: 1 | J35: 0 | K35: PASTA Y FRAGÜE | M35: =IF(L35<>0,L35,SUMIFS('Control de Avance'!$BM$15:$BM$4965,'Control de Avance'!$BD$15:$BD$4965,K35,'Control de Avance'!$B$15:$B$4965,1)) -> 0 | N35: 3 | O35: 3 | P35: 1 | Q35: =IF(SUMIF('Control de Avance'!$BX$15:$BX$10960,'Resumen Frentes Semanal'!K35,'Control de Avance'!$B$15:$B$10960)=0,0,SUMIF('Control de Avance'!$BX$15:$BX$10960,'Resumen Frentes Semanal'!K35,'Control de Avance'!$B$15:$B$10960)/SUMIF('Control de Avance'!$BX$15:$BX$10960,'Resumen Frentes Semanal'!K35,'Control de Avance'!$B$15:$B$10960)) -> 0 | R35: 0 | S35: 0 | T35: 0 | U35: 0 | V35: 0 | X35: 3 | Y35: 3 | Z35: 1 | AB35: 0 | AC35: 0 | AD35: 0 | AE35: 0
B36: =IF(OR(F36=1,F36=2),SUMIF('Prog. Semanal OG'!$N$9:$N$834,$K36,'Prog. Semanal OG'!D$9:D$834),SUMIF('Prog. Semanal TER'!$N$9:$N$708,$K36,'Prog. Semanal TER'!D$9:D$708)) -> 299764.47 | C36: =IF(OR(F36=1,F36=2),SUMIF('Prog. Semanal OG'!$N$9:$N$834,$K36,'Prog. Semanal OG'!E$9:E$834),SUMIF('Prog. Semanal TER'!$N$9:$N$708,$K36,'Prog. Semanal TER'!E$9:E$708)) -> 299764.47 | D36: =IF(OR(F36=1,F36=2),SUMIF('Prog. Semanal OG'!$N$9:$N$834,$K36,'Prog. Semanal OG'!F$9:F$834),SUMIF('Prog. Semanal TER'!$N$9:$N$708,$K36,'Prog. Semanal TER'!F$9:F$708)) -> 300717.24 | E36: =+VLOOKUP(K36,Cuadrillas!C:D,2,FALSE) -> T | F36: 3 | G36: 0 | H36: 0 | I36: 1 | J36: 0 | K36: PASTA Y LOSALÍN | L36: 66564 | M36: =IF(L36<>0,L36,SUMIFS('Control de Avance'!$BM$15:$BM$4965,'Control de Avance'!$BD$15:$BD$4965,K36,'Control de Avance'!$B$15:$B$4965,1)) -> 66564 | N36: 2 | O36: 2 | P36: 1 | Q36: 1 | R36: =IF(B36>0,C36/B36,0) -> 1 | S36: 4.50340229 | T36: 4.50340229 | U36: 0.9006804579 | V36: 0.9006804579 | X36: 2 | Y36: 2 | Z36: 1 | AA36: 66664 | AB36: 66664 | AC36: =AE36/$AE$2/IF(Z36>100%,Z36,1) -> 0.9021878075 | AD36: 1 | AE36: =IFERROR(D36/AB36,0) -> 4.510939038
B37: =IF(OR(F37=1,F37=2),SUMIF('Prog. Semanal OG'!$N$9:$N$834,$K37,'Prog. Semanal OG'!D$9:D$834),SUMIF('Prog. Semanal TER'!$N$9:$N$708,$K37,'Prog. Semanal TER'!D$9:D$708)) -> 0 | C37: =IF(OR(F37=1,F37=2),SUMIF('Prog. Semanal OG'!$N$9:$N$834,$K37,'Prog. Semanal OG'!E$9:E$834),SUMIF('Prog. Semanal TER'!$N$9:$N$708,$K37,'Prog. Semanal TER'!E$9:E$708)) -> 0 | D37: =IF(OR(F37=1,F37=2),SUMIF('Prog. Semanal OG'!$N$9:$N$834,$K37,'Prog. Semanal OG'!F$9:F$834),SUMIF('Prog. Semanal TER'!$N$9:$N$708,$K37,'Prog. Semanal TER'!F$9:F$708)) -> 0 | E37: =+VLOOKUP(K37,Cuadrillas!C:D,2,FALSE) -> T | F37: 3 | G37: 0 | H37: 0 | I37: 1 | J37: 0 | K37: LOSALÍN | M37: =IF(L37<>0,L37,SUMIFS('Control de Avance'!$BM$15:$BM$4965,'Control de Avance'!$BD$15:$BD$4965,K37,'Control de Avance'!$B$15:$B$4965,1)) -> 0 | N37: 2 | O37: 2 | P37: 1 | Q37: =IF(SUMIF('Control de Avance'!$BX$15:$BX$10960,'Resumen Frentes Semanal'!K37,'Control de Avance'!$B$15:$B$10960)=0,0,SUMIF('Control de Avance'!$BX$15:$BX$10960,'Resumen Frentes Semanal'!K37,'Control de Avance'!$B$15:$B$10960)/SUMIF('Control de Avance'!$BX$15:$BX$10960,'Resumen Frentes Semanal'!K37,'Control de Avance'!$B$15:$B$10960)) -> 0 | R37: 0 | S37: 0 | T37: 0 | U37: 0 | V37: 0 | X37: 2 | Y37: 2 | Z37: 1 | AB37: 0 | AC37: 0 | AD37: 0 | AE37: 0
B38: =IF(OR(F38=1,F38=2),SUMIF('Prog. Semanal OG'!$N$9:$N$834,$K38,'Prog. Semanal OG'!D$9:D$834),SUMIF('Prog. Semanal TER'!$N$9:$N$708,$K38,'Prog. Semanal TER'!D$9:D$708)) -> 471664.9113 | C38: =IF(OR(F38=1,F38=2),SUMIF('Prog. Semanal OG'!$N$9:$N$834,$K38,'Prog. Semanal OG'!E$9:E$834),SUMIF('Prog. Semanal TER'!$N$9:$N$708,$K38,'Prog. Semanal TER'!E$9:E$708)) -> 246146.4645 | D38: =IF(OR(F38=1,F38=2),SUMIF('Prog. Semanal OG'!$N$9:$N$834,$K38,'Prog. Semanal OG'!F$9:F$834),SUMIF('Prog. Semanal TER'!$N$9:$N$708,$K38,'Prog. Semanal TER'!F$9:F$708)) -> 500405.1613 | E38: =+VLOOKUP(K38,Cuadrillas!C:D,2,FALSE) -> T | F38: 3 | G38: 0 | H38: 0 | I38: 1 | J38: 0 | K38: PINTURA BAÑO Y COCINA | L38: 95192 | M38: =IF(L38<>0,L38,SUMIFS('Control de Avance'!$BM$15:$BM$4965,'Control de Avance'!$BD$15:$BD$4965,K38,'Control de Avance'!$B$15:$B$4965,1)) -> 95192 | N38: 3 | O38: 2 | P38: 0.6666666667 | Q38: 1 | R38: 0.521867238 | S38: =IFERROR(B38/M38,0) -> 4.95487973 | T38: 2.585789399 | U38: 0.5171578799 | V38: 0.5171578799 | W38: FALTA 1 PINTOR DE PRIMERA MANO, ESTA CON LICENCIA | X38: 3 | Y38: 3 | Z38: 1 | AA38: 95192 | AB38: 95192 | AC38: =AE38/$AE$2/IF(Z38>100%,Z38,1) -> 1.051359697 | AD38: 1 | AE38: =IFERROR(D38/AB38,0) -> 5.256798484
B39: =IF(OR(F39=1,F39=2),SUMIF('Prog. Semanal OG'!$N$9:$N$834,$K39,'Prog. Semanal OG'!D$9:D$834),SUMIF('Prog. Semanal TER'!$N$9:$N$708,$K39,'Prog. Semanal TER'!D$9:D$708)) -> 356724.5177 | C39: =IF(OR(F39=1,F39=2),SUMIF('Prog. Semanal OG'!$N$9:$N$834,$K39,'Prog. Semanal OG'!E$9:E$834),SUMIF('Prog. Semanal TER'!$N$9:$N$708,$K39,'Prog. Semanal TER'!E$9:E$708)) -> 299221.3018 | D39: =IF(OR(F39=1,F39=2),SUMIF('Prog. Semanal OG'!$N$9:$N$834,$K39,'Prog. Semanal OG'!F$9:F$834),SUMIF('Prog. Semanal TER'!$N$9:$N$708,$K39,'Prog. Semanal TER'!F$9:F$708)) -> 343719.4269 | E39: =+VLOOKUP(K39,Cuadrillas!C:D,2,FALSE) -> T | F39: 3 | G39: 0 | H39: 0 | I39: 1 | J39: 0 | K39: PINTOR MADERA | L39: 82000 | M39: =IF(L39<>0,L39,SUMIFS('Control de Avance'!$BM$15:$BM$4965,'Control de Avance'!$BD$15:$BD$4965,K39,'Control de Avance'!$B$15:$B$4965,1)) -> 82000 | N39: 2 | O39: 2 | P39: 1 | Q39: 1 | R39: 0.8388021763 | S39: 4.350298996 | T39: 3.649040266 | U39: 0.7298080532 | V39: 0.7298080532 | W39: SECUENCIA CON BAÑO Y COCINA | X39: 2 | Y39: 2 | Z39: 1 | AA39: 82000 | AB39: 82000 | AC39: =AE39/$AE$2/IF(Z39>100%,Z39,1) -> 0.8383400657 | AD39: 1 | AE39: =IFERROR(D39/AB39,0) -> 4.191700328
B40: =IF(OR(F40=1,F40=2),SUMIF('Prog. Semanal OG'!$N$9:$N$834,$K40,'Prog. Semanal OG'!D$9:D$834),SUMIF('Prog. Semanal TER'!$N$9:$N$708,$K40,'Prog. Semanal TER'!D$9:D$708)) -> 0 | C40: =IF(OR(F40=1,F40=2),SUMIF('Prog. Semanal OG'!$N$9:$N$834,$K40,'Prog. Semanal OG'!E$9:E$834),SUMIF('Prog. Semanal TER'!$N$9:$N$708,$K40,'Prog. Semanal TER'!E$9:E$708)) -> 0 | D40: =IF(OR(F40=1,F40=2),SUMIF('Prog. Semanal OG'!$N$9:$N$834,$K40,'Prog. Semanal OG'!F$9:F$834),SUMIF('Prog. Semanal TER'!$N$9:$N$708,$K40,'Prog. Semanal TER'!F$9:F$708)) -> 0 | E40: =+VLOOKUP(K40,Cuadrillas!C:D,2,FALSE) -> T | F40: 3 | G40: 0 | H40: 0 | I40: 1 | J40: 0 | K40: LIJADO Y ENCOLADO Y PINTURA MADERA | M40: =IF(L40<>0,L40,SUMIFS('Control de Avance'!$BM$15:$BM$4965,'Control de Avance'!$BD$15:$BD$4965,K40,'Control de Avance'!$B$15:$B$4965,1)) -> 0 | N40: 2 | O40: 2 | P40: 1 | Q40: =IF(SUMIF('Control de Avance'!$BX$15:$BX$10960,'Resumen Frentes Semanal'!K40,'Control de Avance'!$B$15:$B$10960)=0,0,SUMIF('Control de Avance'!$BX$15:$BX$10960,'Resumen Frentes Semanal'!K40,'Control de Avance'!$B$15:$B$10960)/SUMIF('Control de Avance'!$BX$15:$BX$10960,'Resumen Frentes Semanal'!K40,'Control de Avance'!$B$15:$B$10960)) -> 0 | R40: 0 | S40: 0 | T40: 0 | U40: 0 | V40: 0 | X40: 2 | Y40: 2 | Z40: 1 | AB40: 0 | AC40: 0 | AD40: 0 | AE40: 0
B41: =IF(OR(F41=1,F41=2),SUMIF('Prog. Semanal OG'!$N$9:$N$834,$K41,'Prog. Semanal OG'!D$9:D$834),SUMIF('Prog. Semanal TER'!$N$9:$N$708,$K41,'Prog. Semanal TER'!D$9:D$708)) -> 144362.5 | C41: =IF(OR(F41=1,F41=2),SUMIF('Prog. Semanal OG'!$N$9:$N$834,$K41,'Prog. Semanal OG'!E$9:E$834),SUMIF('Prog. Semanal TER'!$N$9:$N$708,$K41,'Prog. Semanal TER'!E$9:E$708)) -> 95176.77875 | D41: =IF(OR(F41=1,F41=2),SUMIF('Prog. Semanal OG'!$N$9:$N$834,$K41,'Prog. Semanal OG'!F$9:F$834),SUMIF('Prog. Semanal TER'!$N$9:$N$708,$K41,'Prog. Semanal TER'!F$9:F$708)) -> 135937.5 | E41: =+VLOOKUP(K41,Cuadrillas!C:D,2,FALSE) -> T | F41: 3 | G41: 0 | H41: 0 | I41: 1 | J41: 0 | K41: ASEO | L41: 27000 | M41: =IF(L41<>0,L41,SUMIFS('Control de Avance'!$BM$15:$BM$4965,'Control de Avance'!$BD$15:$BD$4965,K41,'Control de Avance'!$B$15:$B$4965,1)) -> 27000 | N41: 2 | O41: 2 | P41: 1 | Q41: 1 | R41: 0.659290181 | S41: 5.346759259 | T41: =IFERROR(C41/M41,0) -> 3.52506588 | U41: 0.7050131759 | V41: 0.7050131759 | W41: SECUENCIA CON FACHADA | X41: 1 | Y41: 1 | Z41: 1 | AA41: 27000 | AB41: 27000 | AC41: =AE41/$AE$2/IF(Z41>100%,Z41,1) -> 1.006944444 | AD41: 1 | AE41: =IFERROR(D41/AB41,0) -> 5.034722222
B42: =IF(OR(F42=1,F42=2),SUMIF('Prog. Semanal OG'!$N$9:$N$834,$K42,'Prog. Semanal OG'!D$9:D$834),SUMIF('Prog. Semanal TER'!$N$9:$N$708,$K42,'Prog. Semanal TER'!D$9:D$708)) -> 272020.1933 | C42: =IF(OR(F42=1,F42=2),SUMIF('Prog. Semanal OG'!$N$9:$N$834,$K42,'Prog. Semanal OG'!E$9:E$834),SUMIF('Prog. Semanal TER'!$N$9:$N$708,$K42,'Prog. Semanal TER'!E$9:E$708)) -> 272020.1933 | D42: =IF(OR(F42=1,F42=2),SUMIF('Prog. Semanal OG'!$N$9:$N$834,$K42,'Prog. Semanal OG'!F$9:F$834),SUMIF('Prog. Semanal TER'!$N$9:$N$708,$K42,'Prog. Semanal TER'!F$9:F$708)) -> 340025.2417 | E42: =+VLOOKUP(K42,Cuadrillas!C:D,2,FALSE) -> T | F42: 3 | G42: 0 | H42: 0 | I42: 1 | J42: 0 | K42: EMPAPELADOR | L42: 68005 | M42: =IF(L42<>0,L42,SUMIFS('Control de Avance'!$BM$15:$BM$4965,'Control de Avance'!$BD$15:$BD$4965,K42,'Control de Avance'!$B$15:$B$4965,1)) -> 68005 | N42: 2 | O42: 2 | P42: 1 | Q42: 1 | R42: 1 | S42: 4.000002843 | T42: 4.000002843 | U42: 0.8000005686 | V42: 0.8000005686 | X42: 2 | Y42: 2 | Z42: 1 | AA42: 68005 | AB42: 68005 | AC42: =AE42/$AE$2/IF(Z42>100%,Z42,1) -> 1.000000711 | AD42: 1 | AE42: =IFERROR(D42/AB42,0) -> 5.000003554
B43: =IF(OR(F43=1,F43=2),SUMIF('Prog. Semanal OG'!$N$9:$N$834,$K43,'Prog. Semanal OG'!D$9:D$834),SUMIF('Prog. Semanal TER'!$N$9:$N$708,$K43,'Prog. Semanal TER'!D$9:D$708)) -> 318870.1692 | C43: =IF(OR(F43=1,F43=2),SUMIF('Prog. Semanal OG'!$N$9:$N$834,$K43,'Prog. Semanal OG'!E$9:E$834),SUMIF('Prog. Semanal TER'!$N$9:$N$708,$K43,'Prog. Semanal TER'!E$9:E$708)) -> 42298.2025 | D43: =IF(OR(F43=1,F43=2),SUMIF('Prog. Semanal OG'!$N$9:$N$834,$K43,'Prog. Semanal OG'!F$9:F$834),SUMIF('Prog. Semanal TER'!$N$9:$N$708,$K43,'Prog. Semanal TER'!F$9:F$708)) -> 433736.1642 | E43: =+VLOOKUP(K43,Cuadrillas!C:D,2,FALSE) -> T | F43: =IF(E43="OG",1,IF(E43="SCOG",2,IF(E43="T",3,4))) -> 3 | G43: =IF(E43="OG",1,0) -> 0 | H43: =IF(E43="SCOG",1,0) -> 0 | I43: =IF(E43="T",1,0) -> 1 | J43: =IF(E43="SCT",1,0) -> 0 | K43: CARP. ACCESORIOS | L43: 78800 | M43: =IF(L43<>0,L43,SUMIFS('Control de Avance'!$BM$15:$BM$4965,'Control de Avance'!$BD$15:$BD$4965,K43,'Control de Avance'!$B$15:$B$4965,1)) -> 78800 | N43: 2 | O43: 0 | P43: =IF(N43=0,"",O43/N43) -> 0 | Q43: 1 | R43: =IF(B43>0,C43/B43,0) -> 0.1326502338 | S43: =IFERROR(B43/M43,0) -> 4.046575751 | T43: =IFERROR(C43/M43,0) -> 0.5367792195 | U43: =+S43*R43/$T$2 -> 0.1073558439 | V43: =IFERROR(IF(P43>1,U43/P43,U43),"") -> 0.1073558439 | W43: 1 MAESTRO CON LICENCIA Y EL OTRO PARADO POR SECUENCIA DE PAPEL/PREFIERE ESTAR AUSENTE DURANTE LA SEMANA POR DOLENCIAS EN MUÑECAS | X43: 2 | Y43: 2 | Z43: =IF(X43=0,"",Y43/X43) -> 1 | AA43: 81531 | AB43: =IF(AA43="",M43,AA43) -> 81531 | AC43: =AE43/$AE$2/IF(Z43>100%,Z43,1) -> 1.063978521 | AD43: 1 | AE43: =IFERROR(D43/AB43,0) -> 5.319892607 | AF43: SE REALIZARAN ACTIVIDADES CON CARPINTEROS TERMINACIONES
B44: =172464*5 -> 862320 | C44: 119167 | D44: =172464*5 -> 862320 | E44: =+VLOOKUP(K44,Cuadrillas!C:D,2,FALSE) -> T | F44: =IF(E44="OG",1,IF(E44="SCOG",2,IF(E44="T",3,4))) -> 3 | G44: =IF(E44="OG",1,0) -> 0 | H44: =IF(E44="SCOG",1,0) -> 0 | I44: =IF(E44="T",1,0) -> 1 | J44: =IF(E44="SCT",1,0) -> 0 | K44: FACHADA | L44: 172000 | M44: =IF(L44<>0,L44,SUMIFS('Control de Avance'!$BM$15:$BM$4965,'Control de Avance'!$BD$15:$BD$4965,K44,'Control de Avance'!$B$15:$B$4965,1)) -> 172000 | N44: 5 | O44: 4 | P44: =IF(N44=0,"",O44/N44) -> 0.8 | Q44: 1 | R44: =IF(B44>0,C44/B44,0) -> 0.1381934781 | S44: =IFERROR(B44/M44,0) -> 5.013488372 | T44: =IFERROR(C44/M44,0) -> 0.6928313953 | U44: =+S44*R44/$T$2 -> 0.1385662791 | V44: =IFERROR(IF(P44>1,U44/P44,U44),"") -> 0.1385662791 | W44: NO CUMPLE POR CONDICIONES CLIMATICAS | X44: 5 | Y44: 5 | Z44: =IF(X44=0,"",Y44/X44) -> 1 | AB44: =IF(AA44="",M44,AA44) -> 172000 | AC44: =AE44/$AE$2/IF(Z44>100%,Z44,1) -> 1.002697674 | AD44: 1 | AE44: =IFERROR(D44/AB44,0) -> 5.013488372
B45: =IF(OR(F45=1,F45=2),SUMIF('Prog. Semanal OG'!$N$9:$N$834,$K45,'Prog. Semanal OG'!D$9:D$834),SUMIF('Prog. Semanal TER'!$N$9:$N$708,$K45,'Prog. Semanal TER'!D$9:D$708)) -> 185868.575 | C45: =IF(OR(F45=1,F45=2),SUMIF('Prog. Semanal OG'!$N$9:$N$834,$K45,'Prog. Semanal OG'!E$9:E$834),SUMIF('Prog. Semanal TER'!$N$9:$N$708,$K45,'Prog. Semanal TER'!E$9:E$708)) -> 133664.2222 | D45: =IF(OR(F45=1,F45=2),SUMIF('Prog. Semanal OG'!$N$9:$N$834,$K45,'Prog. Semanal OG'!F$9:F$834),SUMIF('Prog. Semanal TER'!$N$9:$N$708,$K45,'Prog. Semanal TER'!F$9:F$708)) -> 179278.75 | E45: =+VLOOKUP(K45,Cuadrillas!C:D,2,FALSE) -> T | F45: 3 | G45: 0 | H45: 0 | I45: 1 | J45: 0 | K45: PINTOR TERMINACIONES | L45: 31602 | M45: =IF(L45<>0,L45,SUMIFS('Control de Avance'!$BM$15:$BM$4965,'Control de Avance'!$BD$15:$BD$4965,K45,'Control de Avance'!$B$15:$B$4965,1)) -> 31602 | N45: 1 | O45: 1 | P45: 1 | Q45: 1 | R45: 0.7191329799 | S45: 5.881544681 | T45: 4.229612753 | U45: 0.8459225506 | V45: 0.8459225506 | X45: 2 | Y45: 2 | Z45: 1 | AA45: 31602 | AB45: 31602 | AC45: =AE45/$AE$2/IF(Z45>100%,Z45,1) -> 1.134603823 | AD45: 1 | AE45: 5.673019113
B46: =IF(OR(F46=1,F46=2),SUMIF('Prog. Semanal OG'!$N$9:$N$834,$K46,'Prog. Semanal OG'!D$9:D$834),SUMIF('Prog. Semanal TER'!$N$9:$N$708,$K46,'Prog. Semanal TER'!D$9:D$708)) -> 0 | C46: =IF(OR(F46=1,F46=2),SUMIF('Prog. Semanal OG'!$N$9:$N$834,$K46,'Prog. Semanal OG'!E$9:E$834),SUMIF('Prog. Semanal TER'!$N$9:$N$708,$K46,'Prog. Semanal TER'!E$9:E$708)) -> 0 | D46: =IF(OR(F46=1,F46=2),SUMIF('Prog. Semanal OG'!$N$9:$N$834,$K46,'Prog. Semanal OG'!F$9:F$834),SUMIF('Prog. Semanal TER'!$N$9:$N$708,$K46,'Prog. Semanal TER'!F$9:F$708)) -> 0 | E46: =+VLOOKUP(K46,Cuadrillas!C:D,2,FALSE) -> SCT | F46: 4 | G46: 0 | H46: 0 | I46: 0 | J46: 1 | K46: PISO FLOTANTE | M46: =IF(L46<>0,L46,SUMIFS('Control de Avance'!$BM$15:$BM$4965,'Control de Avance'!$BD$15:$BD$4965,K46,'Control de Avance'!$B$15:$B$4965,1)) -> 0 | N46: 1 | O46: 1 | P46: 1 | Q46: =IF(SUMIF('Control de Avance'!$BX$15:$BX$10960,'Resumen Frentes Semanal'!K46,'Control de Avance'!$B$15:$B$10960)=0,0,SUMIF('Control de Avance'!$BX$15:$BX$10960,'Resumen Frentes Semanal'!K46,'Control de Avance'!$B$15:$B$10960)/SUMIF('Control de Avance'!$BX$15:$BX$10960,'Resumen Frentes Semanal'!K46,'Control de Avance'!$B$15:$B$10960)) -> 0 | R46: 0 | S46: 0 | T46: 0 | U46: 0 | V46: 0 | X46: 1 | Y46: 1 | Z46: 1 | AB46: 0 | AC46: 0 | AD46: 0 | AE46: 0
B47: =IF(OR(F47=1,F47=2),SUMIF('Prog. Semanal OG'!$N$9:$N$834,$K47,'Prog. Semanal OG'!D$9:D$834),SUMIF('Prog. Semanal TER'!$N$9:$N$708,$K47,'Prog. Semanal TER'!D$9:D$708)) -> 39.37229167 | C47: =IF(OR(F47=1,F47=2),SUMIF('Prog. Semanal OG'!$N$9:$N$834,$K47,'Prog. Semanal OG'!E$9:E$834),SUMIF('Prog. Semanal TER'!$N$9:$N$708,$K47,'Prog. Semanal TER'!E$9:E$708)) -> 14.95868162 | D47: =IF(OR(F47=1,F47=2),SUMIF('Prog. Semanal OG'!$N$9:$N$834,$K47,'Prog. Semanal OG'!F$9:F$834),SUMIF('Prog. Semanal TER'!$N$9:$N$708,$K47,'Prog. Semanal TER'!F$9:F$708)) -> 37.57097222 | E47: =+VLOOKUP(K47,Cuadrillas!C:D,2,FALSE) -> SCT | F47: 4 | G47: 0 | H47: 0 | I47: 0 | J47: 1 | K47: GASFITER T | L47: 7 | M47: =IF(L47<>0,L47,SUMIFS('Control de Avance'!$BM$15:$BM$4965,'Control de Avance'!$BD$15:$BD$4965,K47,'Control de Avance'!$B$15:$B$4965,1)) -> 7 | N47: 6 | O47: 3 | P47: 0.5 | Q47: 1 | R47: 0.3799291579 | S47: 5.624613095 | T47: 2.136954517 | U47: 0.4273909034 | V47: 0.4273909034 | W47: NO CUMPLE POR FALTA DE PERSONAL | X47: 3 | Y47: 3 | Z47: 1 | AA47: 7.5 | AB47: 7.5 | AC47: =AE47/$AE$2/IF(Z47>100%,Z47,1) -> 1.001892593 | AD47: 1 | AE47: =IFERROR(D47/AB47,0) -> 5.009462963
B48: =IF(OR(F48=1,F48=2),SUMIF('Prog. Semanal OG'!$N$9:$N$834,$K48,'Prog. Semanal OG'!D$9:D$834),SUMIF('Prog. Semanal TER'!$N$9:$N$708,$K48,'Prog. Semanal TER'!D$9:D$708)) -> 1.92506 | C48: =IF(OR(F48=1,F48=2),SUMIF('Prog. Semanal OG'!$N$9:$N$834,$K48,'Prog. Semanal OG'!E$9:E$834),SUMIF('Prog. Semanal TER'!$N$9:$N$708,$K48,'Prog. Semanal TER'!E$9:E$708)) -> 0.112532502 | D48: =IF(OR(F48=1,F48=2),SUMIF('Prog. Semanal OG'!$N$9:$N$834,$K48,'Prog. Semanal OG'!F$9:F$834),SUMIF('Prog. Semanal TER'!$N$9:$N$708,$K48,'Prog. Semanal TER'!F$9:F$708)) -> 2.575117778 | E48: =+VLOOKUP(K48,Cuadrillas!C:D,2,FALSE) -> SCT | F48: 4 | G48: 0 | H48: 0 | I48: 0 | J48: 1 | K48: GAS T | L48: 0.385 | M48: =IF(L48<>0,L48,SUMIFS('Control de Avance'!$BM$15:$BM$4965,'Control de Avance'!$BD$15:$BD$4965,K48,'Control de Avance'!$B$15:$B$4965,1)) -> 0.385 | N48: 1 | O48: 1 | P48: 1 | Q48: 1 | R48: 0.05845662057 | S48: 5.000155844 | T48: 0.292292213 | U48: 0.0584584426 | V48: 0.0584584426 | W48: NO SE PRESENTAN DURANTE LA SEMANA | X48: 1 | Y48: 1 | Z48: 1 | AA48: 0.475 | AB48: 0.475 | AC48: =AE48/$AE$2/IF(Z48>100%,Z48,1) -> 1.084260117 | AD48: 1 | AE48: =IFERROR(D48/AB48,0) -> 5.421300585
B49: =IF(OR(F49=1,F49=2),SUMIF('Prog. Semanal OG'!$N$9:$N$834,$K49,'Prog. Semanal OG'!D$9:D$834),SUMIF('Prog. Semanal TER'!$N$9:$N$708,$K49,'Prog. Semanal TER'!D$9:D$708)) -> 3.082222222 | C49: =IF(OR(F49=1,F49=2),SUMIF('Prog. Semanal OG'!$N$9:$N$834,$K49,'Prog. Semanal OG'!E$9:E$834),SUMIF('Prog. Semanal TER'!$N$9:$N$708,$K49,'Prog. Semanal TER'!E$9:E$708)) -> 0.6933333333 | D49: =IF(OR(F49=1,F49=2),SUMIF('Prog. Semanal OG'!$N$9:$N$834,$K49,'Prog. Semanal OG'!F$9:F$834),SUMIF('Prog. Semanal TER'!$N$9:$N$708,$K49,'Prog. Semanal TER'!F$9:F$708)) -> 3.910555556 | E49: =+VLOOKUP(K49,Cuadrillas!C:D,2,FALSE) -> SCT | F49: =IF(E49="OG",1,IF(E49="SCOG",2,IF(E49="T",3,4))) -> 4 | G49: =IF(E49="OG",1,0) -> 0 | H49: =IF(E49="SCOG",1,0) -> 0 | I49: =IF(E49="T",1,0) -> 0 | J49: =IF(E49="SCT",1,0) -> 1 | K49: MUEBLISTA | L49: 0.71 | M49: =IF(L49<>0,L49,SUMIFS('Control de Avance'!$BM$15:$BM$4965,'Control de Avance'!$BD$15:$BD$4965,K49,'Control de Avance'!$B$15:$B$4965,1)) -> 0.71 | N49: 3 | O49: 3 | P49: =IF(N49=0,"",O49/N49) -> 1 | Q49: 1 | R49: =IF(B49>0,C49/B49,0) -> 0.2249459265 | S49: =IFERROR(B49/M49,0) -> 4.341158059 | T49: =IFERROR(C49/M49,0) -> 0.9765258216 | U49: =+S49*R49/$T$2 -> 0.1953051643 | V49: =IFERROR(IF(P49>1,U49/P49,U49),"") -> 0.1953051643 | W49: SECUENCIA BAÑO Y COCINA | X49: 3 | Y49: 3 | Z49: =IF(X49=0,"",Y49/X49) -> 1 | AA49: 0.78 | AB49: =IF(AA49="",M49,AA49) -> 0.78 | AC49: =AE49/$AE$2/IF(Z49>100%,Z49,1) -> 1.002706553 | AD49: 1 | AE49: =IFERROR(D49/AB49,0) -> 5.013532764
E50: =+VLOOKUP(K50,Cuadrillas!C:D,2,FALSE) ->  | K50: ANDAMIOS
E51: =+VLOOKUP(K51,Cuadrillas!C:D,2,FALSE) -> T | K51: ALBAÑIL FACHADA
E52: =+VLOOKUP(K52,Cuadrillas!C:D,2,FALSE) -> T | K52: GRANO
E53: =+VLOOKUP(K53,Cuadrillas!C:D,2,FALSE) -> EXT | K53: EXTERIORES
M55: OG | P55: OG | R55: =IF(SUMPRODUCT($M$6:$M$48,$Q$6:$Q$48,$G$6:$G$48)=0,"",SUMPRODUCT($M$6:$M$48,$Q$6:$Q$48,R6:R48,$G$6:$G$48)/SUMPRODUCT($M$6:$M$48,$Q$6:$Q$48,$G$6:$G$48)) ->  | S55: =IF(SUMPRODUCT(M6:M48,Q6:Q48,G6:G48)=0,"",SUMPRODUCT(M6:M48,Q6:Q48,S6:S48,G6:G48)/SUMPRODUCT(M6:M48,Q6:Q48,G6:G48)) ->  | T55: =IF(SUMPRODUCT(M6:M48,Q6:Q48,G6:G48)=0,"",SUMPRODUCT(M6:M48,Q6:Q48,T6:T48,G6:G48)/SUMPRODUCT(M6:M48,Q6:Q48,G6:G48)) ->  | U55: =IF(SUMPRODUCT($M$6:$M$48,$Q$6:$Q$48,G6:G48)=0,"",SUMPRODUCT($M$6:$M$48,$Q$6:$Q$48,U6:U48,G6:G48)/SUMPRODUCT($M$6:$M$48,$Q$6:$Q$48,G6:G48)) ->  | V55: =IF(SUMPRODUCT($M$5:$M$48,$Q$5:$Q$48,$G$5:$G$48)=0,"",SUMPRODUCT($M$5:$M$48,$Q$5:$Q$48,V5:V48,$G$5:$G$48)/SUMPRODUCT($M$5:$M$48,$Q$5:$Q$48,$G$5:$G$48)) ->  | AE55: =IF(SUMPRODUCT($M$6:$M$48,$AD$6:$AD$48,G6:G48)=0,"",SUMPRODUCT($M$6:$M$48,$AD$6:$AD$48,$AE$6:$AE$48,G6:G48)/SUMPRODUCT($M$6:$M$48,$AD$6:$AD$48,G6:G48)) -> 
M56: SC OG | P56: SC OG | R56: =IF(SUMPRODUCT($M$6:$M$48,$Q$6:$Q$48,$H$6:$H$48)=0,"",SUMPRODUCT($M$6:$M$48,$Q$6:$Q$48,R6:R48,$H$6:$H$48)/SUMPRODUCT($M$6:$M$48,$Q$6:$Q$48,$H$6:$H$48)) ->  | S56: =IF(SUMPRODUCT(M6:M48,Q6:Q48,H6:H48)=0,"",SUMPRODUCT(M6:M48,Q6:Q48,S6:S48,H6:H48)/SUMPRODUCT(M6:M48,Q6:Q48,H6:H48)) ->  | T56: =IF(SUMPRODUCT(M6:M48,Q6:Q48,H6:H48)=0,"",SUMPRODUCT(M6:M48,Q6:Q48,T6:T48,H6:H48)/SUMPRODUCT(M6:M48,Q6:Q48,H6:H48)) ->  | U56: =IF(SUMPRODUCT($M$6:$M$48,$Q$6:$Q$48,H6:H48)=0,"",SUMPRODUCT($M$6:$M$48,$Q$6:$Q$48,U6:U48,H6:H48)/SUMPRODUCT($M$6:$M$48,$Q$6:$Q$48,H6:H48)) ->  | V56: =IF(SUMPRODUCT($M$5:$M$48,$Q$5:$Q$48,$H$5:$H$48)=0,"",SUMPRODUCT($M$5:$M$48,$Q$5:$Q$48,V5:V48,$H$5:$H$48)/SUMPRODUCT($M$5:$M$48,$Q$5:$Q$48,$H$5:$H$48)) ->  | AE56: =IF(SUMPRODUCT($M$6:$M$48,$AD$6:$AD$48,H6:H48)=0,"",SUMPRODUCT($M$6:$M$48,$AD$6:$AD$48,$AE$6:$AE$48,H6:H48)/SUMPRODUCT($M$6:$M$48,$AD$6:$AD$48,H6:H48)) -> 
M57: T | P57: T | R57: =IF(SUMPRODUCT($M$6:$M$48,$Q$6:$Q$48,$I$6:$I$48)=0,"",SUMPRODUCT($M$6:$M$48,$Q$6:$Q$48,R6:R48,$I$6:$I$48)/SUMPRODUCT($M$6:$M$48,$Q$6:$Q$48,$I$6:$I$48)) -> 0.5307886086 | S57: =IF(SUMPRODUCT(M6:M48,Q6:Q48,I6:I48)=0,"",SUMPRODUCT(M6:M48,Q6:Q48,S6:S48,I6:I48)/SUMPRODUCT(M6:M48,Q6:Q48,I6:I48)) -> 4.688111853 | T57: =IF(SUMPRODUCT(M6:M48,Q6:Q48,I6:I48)=0,"",SUMPRODUCT(M6:M48,Q6:Q48,T6:T48,I6:I48)/SUMPRODUCT(M6:M48,Q6:Q48,I6:I48)) -> 2.480394878 | U57: =IF(SUMPRODUCT($M$6:$M$52,$Q$6:$Q$52,I6:I52)=0,"",SUMPRODUCT($M$6:$M$52,$Q$6:$Q$52,U6:U52,I6:I52)/SUMPRODUCT($M$6:$M$52,$Q$6:$Q$52,I6:I52)) -> 0.4960789757 | V57: =IF(SUMPRODUCT($M$6:$M$52,$Q$6:$Q$52,$I$6:$I$52)=0,"",SUMPRODUCT($M$6:$M$52,$Q$6:$Q$52,V6:V52,$I$6:$I$52)/SUMPRODUCT($M$6:$M$52,$Q$6:$Q$52,$I$6:$I$52)) -> 0.4960789757 | AE57: =IF(SUMPRODUCT($M$6:$M$52,$AD$6:$AD$52,I6:I52)=0,"",SUMPRODUCT($M$6:$M$52,$AD$6:$AD$52,$AE$6:$AE$52,I6:I52)/SUMPRODUCT($M$6:$M$52,$AD$6:$AD$52,I6:I52)) -> 4.473017544
M58: SC T | P58: SC T | R58: =IF(SUMPRODUCT($M$6:$M$48,$Q$6:$Q$48,$J$6:$J$48)=0,"",SUMPRODUCT($M$6:$M$48,$Q$6:$Q$48,R6:R48,$J$6:$J$48)/SUMPRODUCT($M$6:$M$48,$Q$6:$Q$48,$J$6:$J$48)) -> 0.3631699261 | S58: =IF(SUMPRODUCT(M6:M48,Q6:Q48,J6:J48)=0,"",SUMPRODUCT(M6:M48,Q6:Q48,S6:S48,J6:J48)/SUMPRODUCT(M6:M48,Q6:Q48,J6:J48)) -> 5.592058452 | T58: =IF(SUMPRODUCT(M6:M48,Q6:Q48,J6:J48)=0,"",SUMPRODUCT(M6:M48,Q6:Q48,T6:T48,J6:J48)/SUMPRODUCT(M6:M48,Q6:Q48,J6:J48)) -> 2.040787288 | U58: =IF(SUMPRODUCT($M$6:$M$52,$Q$6:$Q$52,J6:J52)=0,"",SUMPRODUCT($M$6:$M$52,$Q$6:$Q$52,U6:U52,J6:J52)/SUMPRODUCT($M$6:$M$52,$Q$6:$Q$52,J6:J52)) -> 0.3894885103 | V58: =IF(SUMPRODUCT($M$6:$M$52,$Q$6:$Q$52,$J$6:$J$52)=0,"",SUMPRODUCT($M$6:$M$52,$Q$6:$Q$52,V6:V52,$J$6:$J$52)/SUMPRODUCT($M$6:$M$52,$Q$6:$Q$52,$J$6:$J$52)) -> 0.3894885103 | AE58: =IF(SUMPRODUCT($M$6:$M$52,$AD$6:$AD$52,J6:J52)=0,"",SUMPRODUCT($M$6:$M$52,$AD$6:$AD$52,$AE$6:$AE$52,J6:J52)/SUMPRODUCT($M$6:$M$52,$AD$6:$AD$52,J6:J52)) -> 5.029407008
F64: Cámaras Telecom | G64: 53.1 | H64: 103 | I64: =H64*G64 -> 5469.3
F65: Cámaras Eléc | G65: 55.8 | H65: 103 | I65: =H65*G65 -> 5747.4
AB102: b | AC102: b
Z112: a | AA112: a | AB112: b | AC112: b
D142: a

Sheet Act. Proyecto
A1: Actividades | B1: =SUBTOTAL(3,B3:B643) -> 36
A2: --> Se traspasa la información al Prog. Gral, al Control de Avance y Programa Semanal
B3: Nivel de actividad | C3: Orden | D3: Indice Cuadrilla | E3: Condición tarea | F3: Tren | G3: Dia de inicio (formula externa) | H3: Día de término | I3: Listado de actividades | J3: Cuadrilla de Proyecto | K3: Unidad base | L3: Cubicación ponderada unidad de producción | M3: Trato Unidad base | N3: Trato Unidad de producción | O3: Unidad de producción | P3: CANT X EDIFICIO | Q3: DIAS X EDIFICIO | R3: CANT X FRENTE | S3: VALOR FRENTE | T3: Mostrar en Impr programa general | U3: Suma Frente
B4: ACTIVIDAD | C4: 1 | E4: T | F4: IO | G4: -20 | H4: 100 | I4: TREN "INICIO DE OBRA" | J4: . | K4: . | L4: 0 | M4: 0 | N4: . | O4: . | P4: . | Q4: . | R4: . | S4: . | T4: No | U4: No
B5: ACTIVIDAD | C5: 2 | D5: 1 | E5: 1 | F5: IO | G5: -20 | H5: 100 | I5: Instalación de fierro silo | J5: ENFIERRADOR | K5: kg | L5: 1 | M5: 0 | N5: 0 | O5: Proy | P5: 1 | Q5: 10 | R5: 0.1 | S5: 0 | T5: No | U5: No
B6: ACTIVIDAD | C6: i | D6: 6 | E6: 1 | F6: IO | G6: -20 | H6: 100 | I6: Hormigón fundación de silo | J6: HORMIGÓN | K6: kg | L6: 1 | M6: 0 | N6: 0 | O6: Proy | P6: 1 | Q6: 10 | R6: 0.1 | S6: 0 | T6: No | U6: No
B7: ACTIVIDAD | C7: 2 | D7: 6 | E7: 1 | F7: IO | G7: -20 | H7: 100 | I7: Hormigón fundación planta de hormigón | J7: HORMIGÓN | K7: kg | L7: 1 | M7: 0 | N7: 0 | O7: Proy | P7: 1 | Q7: 10 | R7: 0.1 | S7: 0 | T7: No | U7: No
B8: ACTIVIDAD | C8: 2 | D8: 54 | E8: 1 | F8: IO | G8: -20 | H8: 100 | I8: Instalación de faena | J8: ADMINISTRACIÓN | K8: kg | L8: 1 | M8: 0 | N8: 0 | O8: Proy | P8: 1 | Q8: 10 | R8: 0.1 | S8: 0 | T8: No | U8: No
B9: ACTIVIDAD | C9: 2 | D9: 54 | E9: 1 | F9: IO | G9: -20 | H9: 100 | I9: Traslado de equipos | J9: ADMINISTRACIÓN | K9: kg | L9: 1 | M9: 0 | N9: 0 | O9: Proy | P9: 1 | Q9: 10 | R9: 0.1 | S9: 0 | T9: No | U9: No
B10: ACTIVIDAD | C10: 2 | D10: 54 | E10: 1 | F10: IO | G10: -20 | H10: 100 | I10: Instalación de control biométrico | J10: ADMINISTRACIÓN | K10: kg | L10: 1 | M10: 0 | N10: 0 | O10: Proy | P10: 1 | Q10: 10 | R10: 0.1 | S10: 0 | T10: No | U10: No
B11: ACTIVIDAD | C11: 1 | E11: T | F11: OG1 | G11: 1 | H11: 121 | I11: TREN OBRA GRUESA 1ER PISO | J11: . | K11: . | L11: 0 | M11: . | N11: . | O11: . | P11: . | Q11: . | R11: . | S11: . | T11: No | U11: No
B12: ACTIVIDAD | C12: 2 | D12: 1 | E12: 1 | F12: OG1 | G12: 1 | H12: 121 | I12: Descarga y conteo fierro 1eros pisos (incluye viga 0) | J12: ENFIERRADOR | K12: kg | L12: 2229.940393 | M12: 3 | N12: 6689.821179 | O12: Frente | P12: 2 | Q12: 10 | R12: 0.2 | S12: 1337.964236 | T12: No | U12: Si
B13: ACTIVIDAD | C13: 4 | D13: 1 | E13: 1 | F13: OG1 | G13: 1 | H13: 121 | I13: Separar Fierro muro 1ER PISO | J13: ENFIERRADOR | K13: kg | L13: 2229.940393 | M13: 10 | N13: 22299.40393 | O13: Frente | P13: 2 | Q13: 10 | R13: 0.2 | S13: 4459.880786 | T13: No | U13: Si
B14: ACTIVIDAD | C14: 5 | D14: 1 | E14: 1 | F14: OG1 | G14: 1 | H14: 121 | I14: Fabricación fierro primer piso(nivel cero y primer piso) | J14: ENFIERRADOR | K14: kg | L14: 1941.677217 | M14: 70 | N14: 135917.4052 | O14: Frente | P14: 2 | Q14: 10 | R14: 0.2 | S14: 27183.48104 | T14: Si | U14: Si
B15: ACTIVIDAD | C15: 6 | D15: 2 | E15: 1 | F15: OG1 | G15: 1 | H15: 121 | I15: Trazo excavación | J15: TRAZO | K15: un | L15: 2 | M15: 0 | N15: 0 | O15: Frente | P15: 2 | Q15: 10 | R15: 0.2 | S15: 0 | T15: No | U15: No
B16: ACTIVIDAD | C16: 7 | D16: 3 | E16: 1 | F16: OG1 | G16: 2 | H16: 122 | I16: Excavación fundaciones | J16: OP. RETRO | K16: m3 | L16: 1 | M16: 1 | N16: 1 | O16: Depto | P16: 4 | Q16: 10 | R16: 0.4 | S16: 0.4 | T16: Si | U16: No
B17: ACTIVIDAD | C17: 8 | D17: 4 | E17: 1 | F17: OG1 | G17: 3 | H17: 123 | I17: Perfilado de excavación | J17: HORMIGÓN | K17: depto | L17: 2 | M17: 12400 | N17: 24800 | O17: Frente | P17: 2 | Q17: 10 | R17: 0.2 | S17: 4960 | T17: No | U17: Si
B18: ACTIVIDAD | C18: 8 | D18: 10 | E18: 1 | F18: OG1 | G18: 3 | H18: 123 | I18: Instalación de malla tierra | J18: ELÉCTRICO OG | K18: puntos | L18: 4 | M18: 4025 | N18: =M18*L18 -> 16100 | O18: Edif | P18: 1 | Q18: 10 | R18: =P18/Q18 -> 0.1 | S18: =R18*N18 -> 1610 | T18: No | U18: Si
B19: ACTIVIDAD | C19: 9 | D19: 6 | E19: 1 | F19: OG1 | G19: 4 | H19: 124 | I19: Fabricar calugas de hormigón | J19: HORMIGÓN | K19: depto | L19: 2 | M19: 2580 | N19: 5160 | O19: Frente | P19: 2 | Q19: 10 | R19: 0.2 | S19: 1032 | T19: No | U19: No
B20: ACTIVIDAD | C20: 10 | D20: 6 | E20: 1 | F20: OG1 | G20: 4 | H20: 124 | I20: Emplantillado | J20: HORMIGÓN | K20: m3 | L20: 1.288359375 | M20: 2800 | N20: 3607.40625 | O20: Depto | P20: 4 | Q20: 10 | R20: 0.4 | S20: 1442.9625 | T20: Si | U20: Si
B21: ACTIVIDAD | C21: 10 | D21: 5 | E21: 1 | F21: OG1 | G21: 4 | H21: 124 | I21: Grua emplantillado 1eros Frentes | J21: SOBRECIMIENTO Y CORONACIÓN | K21: m3 | L21: 1.288359375 | M21: 764 | N21: =M21*L21 -> 984.3065625 | O21: Depto | P21: 4 | Q21: 10 | R21: 0.4 | S21: 393.722625 | T21: Si | U21: Si
B22: ACTIVIDAD | C22: 12 | D22: 4 | E22: 1 | F22: OG1 | G22: 5 | H22: 125 | I22: Encintado | J22: TRAZO | K22: depto | L22: 2 | N22: 24800 | O22: Frente | P22: 2 | Q22: 10 | R22: 0.2 | S22: 4960 | T22: No | U22: Si
B23: ACTIVIDAD | C23: 13 | D23: 1 | E23: 1 | F23: OG1 | G23: 5 | H23: 125 | I23: Instalar fierro primer piso | J23: ENFIERRADOR | K23: kg | L23: 1941.677217 | M23: 23 | N23: 44658.576 | O23: Frente | P23: 2 | Q23: 10 | R23: 0.2 | S23: 8931.7152 | T23: Si | U23: Si
B24: ACTIVIDAD | C24: 13 | D24: 5 | E24: 1 | F24: OG1 | G24: 5 | H24: 125 | I24: Grua Fierro 1er piso 1eros Frentes | J24: SOBRECIMIENTO Y CORONACIÓN | K24: kg | L24: 1941.677217 | M24: 5 | N24: =M24*L24 -> 9708.386087 | O24: Frente | P24: 2 | Q24: 10 | R24: 0.2 | S24: 1941.677217 | T24: Si | U24: Si
B25: ACTIVIDAD | C25: 13 | D25: 10 | E25: 1 | F25: OG1 | G25: 5 | H25: 125 | I25: Instalación de tuberías generales en fundación | J25: ELÉCTRICO OG | K25: ml | L25: 124 | M25: 153 | N25: =M25*L25 -> 18972 | O25: Edif | P25: 1 | Q25: 10 | R25: =P25/Q25 -> 0.1 | S25: =R25*N25 -> 1897.2 | T25: Si | U25: Si
B26: ACTIVIDAD | C26: 13 | D26: 10 | E26: 1 | F26: OG1 | G26: 5 | H26: 125 | I26: Prefabricación elementos eléctricos | J26: ELÉCTRICO OG | K26: uni | L26: 128.65 | M26: 112.8 | N26: =M26*L26 -> 14511.72 | O26: Frente | P26: 2 | Q26: 10 | R26: =P26/Q26 -> 0.2 | S26: =R26*N26 -> 2902.344 | T26: Si | U26: Si
B27: ACTIVIDAD | C27: 14 | D27: 6 | E27: 1 | F27: OG1 | G27: 6 | H27: 126 | I27: Hormigón fundación | J27: HORMIGÓN | K27: m3 | L27: 15.4603125 | M27: 2850 | N27: 44061.89062 | O27: Depto | P27: 4 | Q27: 10 | R27: 0.4 | S27: 17624.75625 | T27: Si | U27: Si
B28: ACTIVIDAD | C28: 14 | D28: 5 | E28: 1 | F28: OG1 | G28: 6 | H28: 126 | I28: Grua Fundación 1eros Frentes | J28: SOBRECIMIENTO Y CORONACIÓN | K28: m3 | L28: 15.4603125 | M28: 780 | N28: =M28*L28 -> 12059.04375 | O28: Depto | P28: 4 | Q28: 10 | R28: 0.4 | S28: 4823.6175 | T28: Si | U28: Si
B29: ACTIVIDAD | C29: 15 | D29: 6 | E29: 1 | F29: OG1 | G29: 6 | H29: 126 | I29: Emplantillado para viga escala | J29: HORMIGÓN | K29: edif | L29: 0 | M29: 540 | N29: 0 | O29: Edif | P29: 1 | Q29: 10 | R29: 0.1 | S29: 0 | T29: No | U29: No
B30: ACTIVIDAD | C30: 16 | D30: 1 | E30: 1 | F30: OG1 | G30: 7 | H30: 127 | I30: Vigas primer piso | J30: ENFIERRADOR | K30: kg | L30: 288.2631757 | M30: 93 | N30: 26808.47534 | O30: Frente | P30: 2 | Q30: 10 | R30: 0.2 | S30: 5361.695067 | T30: No | U30: Si
B31: ACTIVIDAD | C31: 14 | D31: 10 | E31: 1 | F31: OG1 | G31: 7 | H31: 127 | I31: Instalación canalización iluminación exterior | J31: ELÉCTRICO OG | K31: centro | L31: 2.5 | M31: 522 | N31: =M31*L31 -> 1305 | O31: Frente | P31: 2 | Q31: 10 | R31: =P31/Q31 -> 0.2 | S31: =R31*N31 -> 261 | T31: Si | U31: Si
B32: ACTIVIDAD | C32: 17 | D32: 2 | E32: 1 | F32: OG1 | G32: 7 | H32: 127 | I32: Trazo Sobrecimiento | J32: TRAZO | K32: un | L32: 2 | M32: 0 | N32: 0 | O32: Frente | P32: 2 | Q32: 10 | R32: 0.2 | S32: 0 | T32: No | U32: No
B33: ACTIVIDAD | C33: 18 | D33: 7 | E33: 1 | F33: OG1 | G33: 8 | H33: 128 | I33: Moldaje sobrecimiento muro | J33: SOBRECIMIENTO Y CORONACIÓN | K33: m2 | L33: 35.099375 | M33: 1070 | N33: =M33*L33 -> 37556.33125 | O33: Depto | P33: 4 | Q33: 10 | R33: 0.4 | S33: 15022.5325 | T33: Si | U33: Si
B34: ACTIVIDAD | C34: 21 | D34: 6 | E34: 1 | F34: OG1 | G34: 8 | H34: 128 | I34: Hormigón sobrecimiento muro | J34: HORMIGÓN | K34: m3 | L34: 2.430833333 | M34: 5380 | N34: 13077.88333 | O34: Depto | P34: 4 | Q34: 10 | R34: 0.4 | S34: 5231.153333 | T34: Si | U34: Si
B35: ACTIVIDAD | C35: 21 | D35: 5 | E35: 1 | F35: OG1 | G35: 8 | H35: 128 | I35: Grua Sobrecimiento 1eros Frentes | J35: SOBRECIMIENTO Y CORONACIÓN | K35: m3 | L35: 2.430833333 | M35: 1155 | N35: =M35*L35 -> 2807.6125 | O35: Depto | P35: 4 | Q35: 10 | R35: 0.4 | S35: 1123.045 | T35: Si | U35: Si
B36: ACTIVIDAD | C36: 24 | D36: 7 | E36: 1 | F36: OG1 | G36: 9 | H36: 129 | I36: Descimbre sobrecimiento muro | J36: SOBRECIMIENTO Y CORONACIÓN | K36: m2 | L36: 35.099375 | M36: 375 | N36: =M36*L36 -> 13162.26563 | O36: Depto | P36: 4 | Q36: 10 | R36: 0.4 | S36: 5264.90625 | T36: No | U36: Si
B37: ACTIVIDAD | C37: 25 | D37: 7 | E37: 1 | F37: OG1 | G37: 9 | H37: 129 | I37: Impermeabilización sobrecimiento | J37: SOBRECIMIENTO Y CORONACIÓN | K37: depto | L37: 2 | M37: 3740 | N37: =M37*L37 -> 7480 | O37: Frente | P37: 2 | Q37: 10 | R37: 0.2 | S37: 1496 | T37: No | U37: Si
B38: ACTIVIDAD | C38: 26 | D38: 9 | E38: 1 | F38: OG1 | G38: 9 | H38: 129 | I38: Alcantarillado primer piso | J38: GASFITER OG | K38: dh | L38: 0.900234375 | M38: 1 | N38: 0.900234375 | O38: Depto | P38: 4 | Q38: 10 | R38: 0.4 | S38: 0.36009375 | T38: Si | U38: SC
B39: ACTIVIDAD | C39: 27 | D39: 4 | E39: 1 | F39: OG1 | G39: 10 | H39: 130 | I39: 1era capa de relleno (incluye moldaje y relleno terraza) | J39: SOBRECIMIENTO Y CORONACIÓN | K39: depto | L39: 1 | M39: 20500 | N39: =M39*L39 -> 20500 | O39: Depto | P39: 4 | Q39: 10 | R39: 0.4 | S39: 8200 | T39: No | U39: Si
B40: ACTIVIDAD | C40: 28 | D40: 4 | E40: 1 | F40: OG1 | G40: 10 | H40: 130 | I40: 2da capa de relleno (incluye moldaje y relleno terraza) | J40: SOBRECIMIENTO Y CORONACIÓN | K40: depto | L40: 1 | M40: 20500 | N40: =M40*L40 -> 20500 | O40: Depto | P40: 4 | Q40: 10 | R40: 0.4 | S40: 8200 | T40: No | U40: Si
B41: ACTIVIDAD | C41: 29 | D41: 4 | E41: 1 | F41: OG1 | G41: 10 | H41: 130 | I41: Capa final relleno (incluye moldaje y relleno terraza) | J41: SOBRECIMIENTO Y CORONACIÓN | K41: depto | L41: 1 | M41: 20500 | N41: =M41*L41 -> 20500 | O41: Depto | P41: 4 | Q41: 10 | R41: 0.4 | S41: 8200 | T41: Si | U41: Si
B42: ACTIVIDAD | C42: 30 | D42: 9 | E42: 1 | F42: OG1 | G42: 9 | H42: 129 | I42: Alcantarillado sala de basura | J42: GASFITER OG | K42: cu | L42: 0 | M42: 1 | N42: 0 | O42: Edif | P42: 1 | Q42: 10 | R42: 0.1 | S42: 0 | T42: No | U42: Si
B43: ACTIVIDAD | C43: 31 | D43: 4 | E43: 1 | F43: OG1 | G43: 10 | H43: 130 | I43: Relleno pasillo Nivel 0 | J43: SOBRECIMIENTO Y CORONACIÓN | K43: zc | L43: 1 | M43: 38300 | N43: =M43*L43 -> 38300 | O43: Edif | P43: 1 | Q43: 10 | R43: 0.1 | S43: 3830 | T43: No | U43: Si
B44: ACTIVIDAD | C44: 32 | D44: 4 | E44: 1 | F44: OG1 | G44: 10 | H44: 130 | I44: Relleno costado edificios | J44: SOBRECIMIENTO Y CORONACIÓN | K44: depto | L44: 2 | M44: 840 | N44: =M44*L44 -> 1680 | O44: Frente | P44: 2 | Q44: 10 | R44: 0.2 | S44: 336 | T44: No | U44: Si
B45: ACTIVIDAD | C45: 33 | D45: 9 | E45: 1 | F45: OG1 | G45: 11 | H45: 131 | I45: Instalaciones agua radier | J45: GASFITER OG | K45: dh | L45: 0.8581944444 | M45: 1 | N45: 0.8581944444 | O45: Frente | P45: 2 | Q45: 10 | R45: 0.2 | S45: 0.1716388889 | T45: No | U45: SC
B46: ACTIVIDAD | C46: 34 | D46: 10 | E46: 1 | F46: OG1 | G46: 11 | H46: 131 | I46: Canalizaciones eléctricas en radier | J46: ELÉCTRICO OG | K46: centro | L46: 7.916666667 | M46: 668 | N46: =M46*L46 -> 5288.333333 | O46: Frente | P46: 2 | Q46: 10 | R46: =P46/Q46 -> 0.2 | S46: =R46*N46 -> 1057.666667 | T46: No | U46: SC
B47: ACTIVIDAD | C47: 35 | D47: 11 | E47: 1 | F47: OG1 | G47: 11 | H47: 131 | I47: Instalaciones gas radier | J47: GAS OG | K47: dh | L47: 0.44 | M47: 1 | N47: 0.44 | O47: Frente | P47: 2 | Q47: 10 | R47: 0.2 | S47: 0.088 | T47: No | U47: SC
B48: ACTIVIDAD | C48: 36 | D48: 9 | E48: 1 | F48: OG1 | G48: 11 | H48: 131 | I48: Red Seca horizontal | J48: GASFITER OG | K48: dh | L48: 0 | M48: 1 | N48: 0 | O48: Edif | P48: 1 | Q48: 10 | R48: 0.1 | S48: 0 | T48: No | U48: SC
B49: ACTIVIDAD | C49: 37 | D49: 9 | E49: 1 | F49: OG1 | G49: 11 | H49: 131 | I49: Tuberías de agua radier zona comun | J49: GASFITER OG | K49: dh | L49: 0.4175 | M49: 1 | N49: 0.4175 | O49: Edif | P49: 1 | Q49: 10 | R49: 0.1 | S49: 0.04175 | T49: No | U49: SC
B50: ACTIVIDAD | C50: 38 | D50: 10 | E50: 1 | F50: OG1 | G50: 11 | H50: 131 | I50: Tuberías eléctricas radier zona comun | J50: ELÉCTRICO OG | K50: centro | L50: 9 | M50: 702.6 | N50: =M50*L50 -> 6323.4 | O50: Edif | P50: 1 | Q50: 10 | R50: =P50/Q50 -> 0.1 | S50: =R50*N50 -> 632.34 | T50: No | U50: SC
B51: ACTIVIDAD | C51: 39 | D51: 11 | E51: 1 | F51: OG1 | G51: 11 | H51: 131 | I51: Tuberías Gas radier zona comun | J51: GAS OG | K51: dh | L51: 0.11 | M51: 1117 | N51: 122.87 | O51: Edif | P51: 1 | Q51: 10 | R51: 0.1 | S51: 12.287 | T51: No | U51: SC
B52: ACTIVIDAD | C52: 40 | D52: 6 | E52: 1 | F52: OG1 | G52: 12 | H52: 132 | I52: Hormigón radier Depto | J52: HORMIGÓN | K52: m3 | L52: 7.615833333 | M52: 4860 | N52: 37012.95 | O52: Frente | P52: 2 | Q52: 10 | R52: 0.2 | S52: 7402.59 | T52: Si | U52: Si
B53: ACTIVIDAD | C53: 40 | D53: 5 | E53: 1 | F53: OG1 | G53: 12 | H53: 132 | I53: Grua Radier | J53: SOBRECIMIENTO Y CORONACIÓN | K53: m3 | L53: 7.615833333 | M53: 1043 | N53: =M53*L53 -> 7943.314167 | O53: Frente | P53: 2 | Q53: 10 | R53: 0.2 | S53: 1588.662833 | T53: Si | U53: Si
B54: ACTIVIDAD | C54: 40 | D54: 6 | E54: 1 | F54: OG1 | G54: 12 | H54: 132 | I54: Hormigón radier F25 | J54: HORMIGÓN | K54: m3 | L54: 9 | M54: 4860 | N54: =M54*L54 -> 43740 | O54: Frente | P54: 2 | Q54: 10 | R54: 0.2 | S54: 7402.59 | T54: Si | U54: Si
B55: ACTIVIDAD | C55: 43 | D55: 6 | E55: 1 | F55: OG1 | G55: 12 | H55: 132 | I55: Alisado radier | J55: HORMIGÓN | K55: un | L55: 2 | M55: 10050 | N55: 20100 | O55: Frente | P55: 2 | Q55: 10 | R55: 0.2 | S55: 4020 | T55: No | U55: Si
B56: ACTIVIDAD | C56: 43 | D56: 6 | E56: 1 | F56: OG1 | G56: 12 | H56: 132 | I56: Alisado radier F25 | J56: HORMIGÓN | K56: un | L56: 2.3 | M56: 10050 | N56: =M56*L56 -> 23115 | O56: Frente | P56: 2 | Q56: 10 | R56: 0.2 | S56: 4020 | T56: No | U56: Si
B57: ACTIVIDAD | C57: 44 | D57: 6 | E57: 1 | F57: OG1 | G57: 12 | H57: 132 | I57: Alisado radier pasillo 1er piso | J57: HORMIGÓN | K57: Edif | L57: 1 | M57: 2150 | N57: 2150 | O57: Edif | P57: 1 | Q57: 10 | R57: 0.1 | S57: 215 | T57: No | U57: Si
B58: ACTIVIDAD | C58: 45 | D58: 6 | E58: 1 | F58: OG1 | G58: 13 | H58: 133 | I58: Hormigón radier Sala Basura (ZC1= -30) | J58: HORMIGÓN | K58: m3 | L58: 0.4228 | M58: 4860 | N58: 2054.808 | O58: Edif | P58: 1 | Q58: 10 | R58: 0.1 | S58: 205.4808 | T58: No | U58: Si
B59: ACTIVIDAD | C59: 47 | D59: 6 | E59: 1 | F59: OG1 | G59: 13 | H59: 133 | I59: Hormigón radier ZC + Pasillo + cuarto Técnico | J59: HORMIGÓN | K59: m3 | L59: 1.1718 | M59: 4860 | N59: 5694.948 | O59: Edif | P59: 1 | Q59: 10 | R59: 0.1 | S59: 569.4948 | T59: No | U59: Si
B60: ACTIVIDAD | C60: 48 | D60: 6 | E60: 1 | F60: OG1 | G60: 13 | H60: 133 | I60: Hormigón radier Nicho eléctrico (ZC1= -60) | J60: HORMIGÓN | K60: m3 | L60: 0.0826 | M60: 4860 | N60: 401.436 | O60: Edif | P60: 1 | Q60: 10 | R60: 0.1 | S60: 40.1436 | T60: No | U60: Si
B61: ACTIVIDAD | C61: 49 | D61: 6 | E61: 1 | F61: OG1 | G61: 13 | H61: 133 | I61: Grada Nicho eléctrico | J61: HORMIGÓN | K61: m3 | L61: 0.0364 | M61: 4860 | N61: 176.904 | O61: Edif | P61: 1 | Q61: 10 | R61: 0.1 | S61: 17.6904 | T61: No | U61: Si
B62: ACTIVIDAD | C62: 52 | E62: T | F62: OGT | G62: 15 | H62: 135 | I62: TREN OBRA GRUESA TIPO | J62: . | K62: . | L62: 0 | M62: . | N62: . | O62: . | P62: . | Q62: . | R62: . | S62: . | T62: Si | U62: No
... 65 more rows

Sheet Hoja1 (hidden)
A1: =+#REF!*#REF! -> 
C5: 284686.2
C6: 109068.768
C7: 120393
C8: 64949.85
B9: frente estanque | C9: =SUM(C5:C8) -> 579097.818
B10: frente edif | C10: 451448 | E10: =+C9/C10 -> 1.282756415

Sheet Control de Avance
B1: CONTROL DE AVANCE | BR1: FECHA INICIO: | BT1: 2020-06-19
B2: A | C2: Completado semana Anterior | BR2: FECHA HOY: | BT2: 2021-06-04
B3: B | C3: Completado semana actual | BT3: =206+5+4+5+5 -> 225
B4: C | C4: Programado semana actual y no cumplido | BT4: ='Gráfico Pos. Cuadrillas'!C2 -> 131
B5: D | C5: Programado próx. semana | BT5: 128
B6: Numero dptos: | C6: =+'Parámetros de Producción'!$B$3 -> 240
B7: Ritmo de obra | C7: =+'Parámetros de Producción'!$B$4 -> 2
B8: Numero de frentes: | C8: =+'Parámetros de Producción'!$B$5 -> 120
B9: Número de frentes en planta por edificio | C9: =+'Parámetros de Producción'!$B$6 -> 2
B10: Numero mayor de frentes en OG | C10: =+'Parámetros de Producción'!$B$7 -> 6
B11: Número de pisos real | C11: =+'Parámetros de Producción'!$B$8 -> 5
B12: Edificios en Altura
B13: Número de pisos modelo | C13: =+'Parámetros de Producción'!B$11 -> 5 | BD13: Nact | BE13: =COUNTA(BG:BG)-1 -> 508
B14: CONDICION | C14: Actividad | BD14: Cuadrilla | BE14: Unidad base | BF14: Cubicación ponderada | BG14: P.U. | BH14: P. Unidad de producción | BI14: Unidad de producción | BJ14: CANT X EDIFICIO | BK14: DIAS X EDIFICIO | BL14: CANT X FRENTE | BM14: VALOR FRENTE | BN14: VALOR EJEC TOTAL | BO14: FRENTES EJEC TOTAL ACTIVAS | BP14: DIA INICIO | BQ14: POSICIÓN ACTIVIDAD | BR14: AUX VALOR FRENTE | BS14: PARA POSICIÓN PONDERADA
A15: OG1 | B15: =IF((OR($BT$5<$BP$15-5,AND($BC$17="OK",COUNTIF($D$17:$AY$21,"B")=0))),0,1) -> 0 | C15: Descarga y conteo fierro 1eros pisos (incluye viga 0) | BD15: ENFIERRADOR | BE15: kg | BF15: =VLOOKUP(C15,'Act. Proyecto'!$I$3:$Q$881,4,FALSE) -> 2229.940393 | BG15: =VLOOKUP(C15,'Act. Proyecto'!$I$3:$Q$881,5,FALSE) -> 3 | BH15: =IFERROR(BF15*BG15,0) -> 6689.821179 | BI15: =VLOOKUP(C15,'Act. Proyecto'!$I$3:$Q$881,7,FALSE) -> Frente | BJ15: =VLOOKUP(C15,'Act. Proyecto'!$I$3:$Q$881,8,FALSE) -> 2 | BK15: =VLOOKUP(C15,'Act. Proyecto'!$I$3:$Q$881,9,FALSE) -> 10 | BL15: =IFERROR(BJ15/BK15,0) -> 0.2 | BM15: =IFERROR(BL15*BH15,0) -> 1337.964236 | BN15: =$AZ$17*$BH$15 -> 160555.7083 | BO15: =IF($BM$15=0,0,$BN$15/$BM$15) -> 120 | BP15: 1 | BQ15: =$BP$15+$BO$15-1 -> 120 | BR15: =BM15*B15 -> 0 | BS15: =BR15*BQ15 -> 0
B16: =$B$15 -> 0 | D16: F1 | E16: F2 | F16: F3 | G16: F4 | H16: F5 | I16: F6 | J16: F7 | K16: F8 | L16: F9 | M16: F10 | N16: F11 | O16: F12 | P16: F13 | Q16: F14 | R16: F15 | S16: F16 | T16: F17 | U16: F18 | V16: F19 | W16: F20 | X16: F21 | Y16: F22 | Z16: F23 | AA16: F24 | AZ16: N° Unid Prod | BA16: N° Frentes | BB16: Pos | BC16: %
B17: 0 | C17: 5 | D17: X | E17: X | F17: X | G17: X | H17: X | I17: X | J17: X | K17: X | L17: X | M17: X | N17: X | O17: X | P17: X | Q17: X | R17: X | S17: X | T17: X | U17: X | V17: X | W17: X | X17: X | Y17: X | Z17: X | AA17: X | AZ17: =COUNTIF(D17:AA21,"A")+COUNTIF(D17:AA21,"B") -> 24 | BA17: =+AZ17/BJ15*BK15 -> 120 | BB17: =+BA17+BO15 -> 240 | BC17: =IF(AZ17=BB18,"OK",BB17/'Control de Avance'!$BT$3) -> OK
B18: 0 | C18: 4 | D18: X | E18: X | F18: X | G18: X | H18: X | I18: X | J18: X | K18: X | L18: X | M18: X | N18: X | O18: X | P18: X | Q18: X | R18: X | S18: X | T18: X | U18: X | V18: X | W18: X | X18: X | Y18: X | Z18: X | AA18: X | AZ18: N° Total Und Prod: | BB18: =VLOOKUP('Dibujo Edificios'!$A$24,'Otras Tablas'!$G$2:$H$31,2,FALSE) -> 24
B19: 0 | C19: 3 | D19: X | E19: X | F19: X | G19: X | H19: X | I19: X | J19: X | K19: X | L19: X | M19: X | N19: X | O19: X | P19: X | Q19: X | R19: X | S19: X | T19: X | U19: X | V19: X | W19: X | X19: X | Y19: X | Z19: X | AA19: X | AZ19: Proyección avance actual | BC19: =IF(AZ17=BB18,"OK",IF(BC21=0,"NA",(BB18/BJ15*BK15+BQ15)/('Control de Avance'!$BT$3+BC22*5))) -> OK
B20: 0 | C20: 2 | D20: X | E20: X | F20: X | G20: X | H20: X | I20: X | J20: X | K20: X | L20: X | M20: X | N20: X | O20: X | P20: X | Q20: X | R20: X | S20: X | T20: X | U20: X | V20: X | W20: X | X20: X | Y20: X | Z20: X | AA20: X | AZ20: Frentes anteriores | BC20: =COUNTIF(D17:AC21,"A")/BJ15*BK15 -> 120
B21: 0 | C21: 1 | D21: a | E21: a | F21: A | G21: a | H21: a | I21: a | J21: a | K21: a | L21: a | M21: a | N21: a | O21: a | P21: a | Q21: a | R21: a | S21: a | T21: a | U21: a | V21: a | W21: a | X21: a | Y21: a | Z21: a | AA21: a | AZ21: Frentes semana actual | BC21: =COUNTIF(D17:AC21,"B")/BJ15*BK15 -> 0
B22: 0 | AZ22: Saldo | BA22: =+BB18/BJ15*BK15-BC20-BC21 -> 0 | BB22: Sem | BC22: =IF(AZ17=BB18,"OK",IF(BC21=0,"NA",BA22/BC21)) -> OK
B23: 0
A25: OG1 | B25: =IF((OR($BT$5<$BP$25-5,AND($BC$27="OK",COUNTIF($D$27:$AY$31,"B")=0))),0,1) -> 0 | C25: Separar Fierro muro 1ER PISO | BD25: ENFIERRADOR | BE25: kg | BF25: =VLOOKUP(C25,'Act. Proyecto'!$I$3:$Q$881,4,FALSE) -> 2229.940393 | BG25: =VLOOKUP(C25,'Act. Proyecto'!$I$3:$Q$881,5,FALSE) -> 10 | BH25: =IFERROR(BF25*BG25,0) -> 22299.40393 | BI25: =VLOOKUP(C25,'Act. Proyecto'!$I$3:$Q$881,7,FALSE) -> Frente | BJ25: =VLOOKUP(C25,'Act. Proyecto'!$I$3:$Q$881,8,FALSE) -> 2 | BK25: =VLOOKUP(C25,'Act. Proyecto'!$I$3:$Q$881,9,FALSE) -> 10 | BL25: =IFERROR(BJ25/BK25,0) -> 0.2 | BM25: =IFERROR(BL25*BH25,0) -> 4459.880786 | BN25: =$AZ$27*$BH$25 -> 535185.6943 | BO25: =IF($BM$25=0,0,$BN$25/$BM$25) -> 120 | BP25: 1 | BQ25: =$BP$25+$BO$25-1 -> 120 | BR25: =BM25*B25 -> 0 | BS25: =BR25*BQ25 -> 0
B26: =$B$25 -> 0 | D26: F1 | E26: F2 | F26: F3 | G26: F4 | H26: F5 | I26: F6 | J26: F7 | K26: F8 | L26: F9 | M26: F10 | N26: F11 | O26: F12 | P26: F13 | Q26: F14 | R26: F15 | S26: F16 | T26: F17 | U26: F18 | V26: F19 | W26: F20 | X26: F21 | Y26: F22 | Z26: F23 | AA26: F24 | AZ26: N° Unid Prod | BA26: N° Frentes | BB26: Pos | BC26: %
B27: 0 | C27: 5 | D27: X | E27: X | F27: X | G27: X | H27: X | I27: X | J27: X | K27: X | L27: X | M27: X | N27: X | O27: X | P27: X | Q27: X | R27: X | S27: X | T27: X | U27: X | V27: X | W27: X | X27: X | Y27: X | Z27: X | AA27: X | AZ27: =COUNTIF(D27:AA31,"A")+COUNTIF(D27:AA31,"B") -> 24 | BA27: =+AZ27/BJ25*BK25 -> 120 | BB27: =+BA27+BO25 -> 240 | BC27: =IF(AZ27=BB28,"OK",BB27/'Control de Avance'!$BT$3) -> OK
B28: 0 | C28: 4 | D28: X | E28: X | F28: X | G28: X | H28: X | I28: X | J28: X | K28: X | L28: X | M28: X | N28: X | O28: X | P28: X | Q28: X | R28: X | S28: X | T28: X | U28: X | V28: X | W28: X | X28: X | Y28: X | Z28: X | AA28: X | AZ28: N° Total Und Prod: | BB28: =VLOOKUP('Dibujo Edificios'!$A$24,'Otras Tablas'!$G$2:$H$31,2,FALSE) -> 24
B29: 0 | C29: 3 | D29: X | E29: X | F29: X | G29: X | H29: X | I29: X | J29: X | K29: X | L29: X | M29: X | N29: X | O29: X | P29: X | Q29: X | R29: X | S29: X | T29: X | U29: X | V29: X | W29: X | X29: X | Y29: X | Z29: X | AA29: X | AZ29: Proyección avance actual | BC29: =IF(AZ27=BB28,"OK",IF(BC31=0,"NA",(BB28/BJ25*BK25+BQ25)/('Control de Avance'!$BT$3+BC32*5))) -> OK
B30: 0 | C30: 2 | D30: X | E30: X | F30: X | G30: X | H30: X | I30: X | J30: X | K30: X | L30: X | M30: X | N30: X | O30: X | P30: X | Q30: X | R30: X | S30: X | T30: X | U30: X | V30: X | W30: X | X30: X | Y30: X | Z30: X | AA30: X | AZ30: Frentes anteriores | BC30: =COUNTIF(D27:AC31,"A")/BJ25*BK25 -> 120
B31: 0 | C31: 1 | D31: a | E31: a | F31: a | G31: a | H31: a | I31: a | J31: a | K31: a | L31: a | M31: a | N31: a | O31: a | P31: a | Q31: a | R31: a | S31: a | T31: a | U31: a | V31: a | W31: a | X31: a | Y31: a | Z31: a | AA31: a | AZ31: Frentes semana actual | BC31: =COUNTIF(D27:AC31,"B")/BJ25*BK25 -> 0
B32: 0 | AZ32: Saldo | BA32: =+BB28/BJ25*BK25-BC30-BC31 -> 0 | BB32: Sem | BC32: =IF(AZ27=BB28,"OK",IF(BC31=0,"NA",BA32/BC31)) -> OK
B33: 0
A35: OG1 | B35: =IF((OR($BT$5<$BP$35-5,AND($BC$37="OK",COUNTIF($D$37:$AY$41,"B")=0))),0,1) -> 0 | C35: Fabricación fierro primer piso(nivel cero y primer piso) | BD35: ENFIERRADOR | BE35: kg | BF35: =VLOOKUP(C35,'Act. Proyecto'!$I$3:$Q$881,4,FALSE) -> 1941.677217 | BG35: =VLOOKUP(C35,'Act. Proyecto'!$I$3:$Q$881,5,FALSE) -> 70 | BH35: =IFERROR(BF35*BG35,0) -> 135917.4052 | BI35: =VLOOKUP(C35,'Act. Proyecto'!$I$3:$Q$881,7,FALSE) -> Frente | BJ35: =VLOOKUP(C35,'Act. Proyecto'!$I$3:$Q$881,8,FALSE) -> 2 | BK35: =VLOOKUP(C35,'Act. Proyecto'!$I$3:$Q$881,9,FALSE) -> 10 | BL35: =IFERROR(BJ35/BK35,0) -> 0.2 | BM35: =IFERROR(BL35*BH35,0) -> 27183.48104 | BN35: =$AZ$37*$BH$35 -> 3262017.725 | BO35: =IF($BM$35=0,0,$BN$35/$BM$35) -> 120 | BP35: 1 | BQ35: =$BP$35+$BO$35-1 -> 120 | BR35: =BM35*B35 -> 0 | BS35: =BR35*BQ35 -> 0
B36: =$B$35 -> 0 | D36: F1 | E36: F2 | F36: F3 | G36: F4 | H36: F5 | I36: F6 | J36: F7 | K36: F8 | L36: F9 | M36: F10 | N36: F11 | O36: F12 | P36: F13 | Q36: F14 | R36: F15 | S36: F16 | T36: F17 | U36: F18 | V36: F19 | W36: F20 | X36: F21 | Y36: F22 | Z36: F23 | AA36: F24 | AZ36: N° Unid Prod | BA36: N° Frentes | BB36: Pos | BC36: %
B37: 0 | C37: 5 | D37: X | E37: X | F37: X | G37: X | H37: X | I37: X | J37: X | K37: X | L37: X | M37: X | N37: X | O37: X | P37: X | Q37: X | R37: X | S37: X | T37: X | U37: X | V37: X | W37: X | X37: X | Y37: X | Z37: X | AA37: X | AZ37: =COUNTIF(D37:AA41,"A")+COUNTIF(D37:AA41,"B") -> 24 | BA37: =+AZ37/BJ35*BK35 -> 120 | BB37: =+BA37+BO35 -> 240 | BC37: =IF(AZ37=BB38,"OK",BB37/'Control de Avance'!$BT$3) -> OK
B38: 0 | C38: 4 | D38: X | E38: X | F38: X | G38: X | H38: X | I38: X | J38: X | K38: X | L38: X | M38: X | N38: X | O38: X | P38: X | Q38: X | R38: X | S38: X | T38: X | U38: X | V38: X | W38: X | X38: X | Y38: X | Z38: X | AA38: X | AZ38: N° Total Und Prod: | BB38: =VLOOKUP('Dibujo Edificios'!$A$24,'Otras Tablas'!$G$2:$H$31,2,FALSE) -> 24
B39: 0 | C39: 3 | D39: X | E39: X | F39: X | G39: X | H39: X | I39: X | J39: X | K39: X | L39: X | M39: X | N39: X | O39: X | P39: X | Q39: X | R39: X | S39: X | T39: X | U39: X | V39: X | W39: X | X39: X | Y39: X | Z39: X | AA39: X | AZ39: Proyección avance actual | BC39: =IF(AZ37=BB38,"OK",IF(BC41=0,"NA",(BB38/BJ35*BK35+BQ35)/('Control de Avance'!$BT$3+BC42*5))) -> OK
B40: 0 | C40: 2 | D40: X | E40: X | F40: X | G40: X | H40: X | I40: X | J40: X | K40: X | L40: X | M40: X | N40: X | O40: X | P40: X | Q40: X | R40: X | S40: X | T40: X | U40: X | V40: X | W40: X | X40: X | Y40: X | Z40: X | AA40: X | AZ40: Frentes anteriores | BC40: =COUNTIF(D37:AC41,"A")/BJ35*BK35 -> 120
B41: 0 | C41: 1 | D41: a | E41: a | F41: a | G41: a | H41: a | I41: a | J41: A | K41: a | L41: a | M41: a | N41: a | O41: a | P41: a | Q41: a | R41: a | S41: A | T41: a | U41: a | V41: a | W41: a | X41: a | Y41: A | Z41: A | AA41: a | AZ41: Frentes semana actual | BC41: =COUNTIF(D37:AC41,"B")/BJ35*BK35 -> 0
B42: 0 | AZ42: Saldo | BA42: =+BB38/BJ35*BK35-BC40-BC41 -> 0 | BB42: Sem | BC42: =IF(AZ37=BB38,"OK",IF(BC41=0,"NA",BA42/BC41)) -> OK
B43: 0
A45: OG1 | B45: =IF((OR($BT$5<$BP$45-5,AND($BC$47="OK",COUNTIF($D$47:$AY$51,"B")=0))),0,1) -> 0 | C45: Trazo excavación | BD45: TRAZO | BE45: un | BF45: =VLOOKUP(C45,'Act. Proyecto'!$I$3:$Q$881,4,FALSE) -> 2 | BG45: =VLOOKUP(C45,'Act. Proyecto'!$I$3:$Q$881,5,FALSE) -> 0 | BH45: =IFERROR(BF45*BG45,0) -> 0 | BI45: =VLOOKUP(C45,'Act. Proyecto'!$I$3:$Q$881,7,FALSE) -> Frente | BJ45: =VLOOKUP(C45,'Act. Proyecto'!$I$3:$Q$881,8,FALSE) -> 2 | BK45: =VLOOKUP(C45,'Act. Proyecto'!$I$3:$Q$881,9,FALSE) -> 10 | BL45: =IFERROR(BJ45/BK45,0) -> 0.2 | BM45: =IFERROR(BL45*BH45,0) -> 0 | BN45: =$AZ$47*$BH$45 -> 0 | BO45: =IF($BM$45=0,0,$BN$45/$BM$45) -> 0 | BP45: 1 | BQ45: =$BP$45+$BO$45-1 -> 0 | BR45: =BM45*B45 -> 0 | BS45: =BR45*BQ45 -> 0
B46: =$B$45 -> 0 | D46: F1 | E46: F2 | F46: F3 | G46: F4 | H46: F5 | I46: F6 | J46: F7 | K46: F8 | L46: F9 | M46: F10 | N46: F11 | O46: F12 | P46: F13 | Q46: F14 | R46: F15 | S46: F16 | T46: F17 | U46: F18 | V46: F19 | W46: F20 | X46: F21 | Y46: F22 | Z46: F23 | AA46: F24 | AZ46: N° Unid Prod | BA46: N° Frentes | BB46: Pos | BC46: %
B47: 0 | C47: 5 | D47: X | E47: X | F47: X | G47: X | H47: X | I47: X | J47: X | K47: X | L47: X | M47: X | N47: X | O47: X | P47: X | Q47: X | R47: X | S47: X | T47: X | U47: X | V47: X | W47: X | X47: X | Y47: X | Z47: X | AA47: X | AZ47: =COUNTIF(D47:AA51,"A")+COUNTIF(D47:AA51,"B") -> 24 | BA47: =+AZ47/BJ45*BK45 -> 120 | BB47: =+BA47+BO45 -> 120 | BC47: =IF(AZ47=BB48,"OK",BB47/'Control de Avance'!$BT$3) -> OK
B48: 0 | C48: 4 | D48: X | E48: X | F48: X | G48: X | H48: X | I48: X | J48: X | K48: X | L48: X | M48: X | N48: X | O48: X | P48: X | Q48: X | R48: X | S48: X | T48: X | U48: X | V48: X | W48: X | X48: X | Y48: X | Z48: X | AA48: X | AZ48: N° Total Und Prod: | BB48: =VLOOKUP('Dibujo Edificios'!$A$24,'Otras Tablas'!$G$2:$H$31,2,FALSE) -> 24
B49: 0 | C49: 3 | D49: X | E49: X | F49: X | G49: X | H49: X | I49: X | J49: X | K49: X | L49: X | M49: X | N49: X | O49: X | P49: X | Q49: X | R49: X | S49: X | T49: X | U49: X | V49: X | W49: X | X49: X | Y49: X | Z49: X | AA49: X | AZ49: Proyección avance actual | BC49: =IF(AZ47=BB48,"OK",IF(BC51=0,"NA",(BB48/BJ45*BK45+BQ45)/('Control de Avance'!$BT$3+BC52*5))) -> OK
B50: 0 | C50: 2 | D50: X | E50: X | F50: X | G50: X | H50: X | I50: X | J50: X | K50: X | L50: X | M50: X | N50: X | O50: X | P50: X | Q50: X | R50: X | S50: X | T50: X | U50: X | V50: X | W50: X | X50: X | Y50: X | Z50: X | AA50: X | AZ50: Frentes anteriores | BC50: =COUNTIF(D47:AC51,"A")/BJ45*BK45 -> 120
B51: 0 | C51: 1 | D51: a | E51: a | F51: a | G51: a | H51: a | I51: a | J51: a | K51: a | L51: a | M51: a | N51: a | O51: a | P51: a | Q51: a | R51: a | S51: a | T51: a | U51: a | V51: a | W51: a | X51: A | Y51: A | Z51: a | AA51: A | AZ51: Frentes semana actual | BC51: =COUNTIF(D47:AC51,"B")/BJ45*BK45 -> 0
B52: 0 | AZ52: Saldo | BA52: =+BB48/BJ45*BK45-BC50-BC51 -> 0 | BB52: Sem | BC52: =IF(AZ47=BB48,"OK",IF(BC51=0,"NA",BA52/BC51)) -> OK
B53: 0
A55: OG1 | B55: =IF((OR($BT$5<$BP$55-5,AND($BC$57="OK",COUNTIF($D$57:$AY$61,"B")=0))),0,1) -> 0 | C55: Excavación fundaciones | BD55: OP. RETRO | BE55: m3 | BF55: =VLOOKUP(C55,'Act. Proyecto'!$I$3:$Q$881,4,FALSE) -> 1 | BG55: =VLOOKUP(C55,'Act. Proyecto'!$I$3:$Q$881,5,FALSE) -> 1 | BH55: =IFERROR(BF55*BG55,0) -> 1 | BI55: =VLOOKUP(C55,'Act. Proyecto'!$I$3:$Q$881,7,FALSE) -> Depto | BJ55: =VLOOKUP(C55,'Act. Proyecto'!$I$3:$Q$881,8,FALSE) -> 4 | BK55: =VLOOKUP(C55,'Act. Proyecto'!$I$3:$Q$881,9,FALSE) -> 10 | BL55: =IFERROR(BJ55/BK55,0) -> 0.4 | BM55: =IFERROR(BL55*BH55,0) -> 0.4 | BN55: =$AZ$57*$BH$55 -> 48 | BO55: =IF($BM$55=0,0,$BN$55/$BM$55) -> 120 | BP55: 2 | BQ55: =$BP$55+$BO$55-1 -> 121 | BR55: =BM55*B55 -> 0 | BS55: =BR55*BQ55 -> 0
B56: =$B$55 -> 0 | D56: F1.1 | E56: F1.2 | F56: F2.1 | G56: F2.2 | H56: F3.1 | I56: F3.2 | J56: F4.1 | K56: F4.2 | L56: F5.1 | M56: F5.2 | N56: F6.1 | O56: F6.2 | P56: F7.1 | Q56: F7.2 | R56: F8.1 | S56: F8.2 | T56: F9.1 | U56: F9.2 | V56: F10.1 | W56: F10.2 | X56: F11.1 | Y56: F11.2 | Z56: F12.1 | AA56: F12.2 | AB56: F13.1 | AC56: F13.2 | AD56: F14.1 | AE56: F14.2 | AF56: F15.1 | AG56: F15.2 | AH56: F16.1 | AI56: F16.2 | AJ56: F17.1 | AK56: F17.2 | AL56: F18.1 | AM56: F18.2 | AN56: F19.1 | AO56: F19.2 | AP56: F20.1 | AQ56: F20.2 | AR56: F21.1 | AS56: F21.2 | AT56: F22.1 | AU56: F22.2 | AV56: F23.1 | AW56: F23.2 | AX56: F24.1 | AY56: F24.2 | AZ56: N° Unid Prod | BA56: N° Frentes | BB56: Pos | BC56: %
B57: 0 | C57: 5 | D57: X | E57: X | F57: X | G57: X | H57: X | I57: X | J57: X | K57: X | L57: X | M57: X | N57: X | O57: X | P57: X | Q57: X | R57: X | S57: X | T57: X | U57: X | V57: X | W57: X | X57: X | Y57: X | Z57: X | AA57: X | AB57: X | AC57: X | AD57: X | AE57: X | AF57: X | AG57: X | AH57: X | AI57: X | AJ57: X | AK57: X | AL57: X | AM57: X | AN57: X | AO57: X | AP57: X | AQ57: X | AR57: X | AS57: X | AT57: X | AU57: X | AV57: X | AW57: X | AX57: X | AY57: X | AZ57: =COUNTIF(D57:AY61,"A")+COUNTIF(D57:AY61,"B") -> 48 | BA57: =+AZ57/BJ55*BK55 -> 120 | BB57: =+BA57+BO55 -> 240 | BC57: =IF(AZ57=BB58,"OK",BB57/'Control de Avance'!$BT$3) -> OK
B58: 0 | C58: 4 | D58: X | E58: X | F58: X | G58: X | H58: X | I58: X | J58: X | K58: X | L58: X | M58: X | N58: X | O58: X | P58: X | Q58: X | R58: X | S58: X | T58: X | U58: X | V58: X | W58: X | X58: X | Y58: X | Z58: X | AA58: X | AB58: X | AC58: X | AD58: X | AE58: X | AF58: X | AG58: X | AH58: X | AI58: X | AJ58: X | AK58: X | AL58: X | AM58: X | AN58: X | AO58: X | AP58: X | AQ58: X | AR58: X | AS58: X | AT58: X | AU58: X | AV58: X | AW58: X | AX58: X | AY58: X | AZ58: N° Total Und Prod: | BB58: =VLOOKUP('Dibujo Edificios'!$A$14,'Otras Tablas'!$G$2:$H$31,2,FALSE) -> 48
B59: 0 | C59: 3 | D59: X | E59: X | F59: X | G59: X | H59: X | I59: X | J59: X | K59: X | L59: X | M59: X | N59: X | O59: X | P59: X | Q59: X | R59: X | S59: X | T59: X | U59: X | V59: X | W59: X | X59: X | Y59: X | Z59: X | AA59: X | AB59: X | AC59: X | AD59: X | AE59: X | AF59: X | AG59: X | AH59: X | AI59: X | AJ59: X | AK59: X | AL59: X | AM59: X | AN59: X | AO59: X | AP59: X | AQ59: X | AR59: X | AS59: X | AT59: X | AU59: X | AV59: X | AW59: X | AX59: X | AY59: X | AZ59: Proyección avance actual | BC59: =IF(AZ57=BB58,"OK",IF(BC61=0,"NA",(BB58/BJ55*BK55+BQ55)/('Control de Avance'!$BT$3+BC62*5))) -> OK
B60: 0 | C60: 2 | D60: X | E60: X | F60: X | G60: X | H60: X | I60: X | J60: X | K60: X | L60: X | M60: X | N60: X | O60: X | P60: X | Q60: X | R60: X | S60: X | T60: X | U60: X | V60: X | W60: X | X60: X | Y60: X | Z60: X | AA60: X | AB60: X | AC60: X | AD60: X | AE60: X | AF60: X | AG60: X | AH60: X | AI60: X | AJ60: X | AK60: X | AL60: X | AM60: X | AN60: X | AO60: X | AP60: X | AQ60: X | AR60: X | AS60: X | AT60: X | AU60: X | AV60: X | AW60: X | AX60: X | AY60: X | AZ60: Frentes anteriores | BC60: =COUNTIF(D57:AC61,"A")/BJ55*BK55 -> 65
B61: 0 | C61: 1 | D61: a | E61: a | F61: a | G61: a | H61: a | I61: a | J61: a | K61: a | L61: a | M61: a | N61: a | O61: a | P61: a | Q61: a | R61: a | S61: a | T61: a | U61: a | V61: a | W61: a | X61: a | Y61: a | Z61: a | AA61: a | AB61: a | AC61: a | AD61: a | AE61: a | AF61: a | AG61: A | AH61: a | AI61: a | AJ61: a | AK61: a | AL61: a | AM61: a | AN61: A | AO61: A | AP61: a | AQ61: a | AR61: a | AS61: a | AT61: a | AU61: a | AV61: a | AW61: a | AX61: A | AY61: A | AZ61: Frentes semana actual | BC61: =COUNTIF(D57:AC61,"B")/BJ55*BK55 -> 0
B62: 0 | AZ62: Saldo | BA62: =+BB58/BJ55*BK55-BC60-BC61 -> 55 | BB62: Sem | BC62: =IF(AZ57=BB58,"OK",IF(BC61=0,"NA",BA62/BC61)) -> OK
B63: 0
A65: OG1 | B65: =IF((OR($BT$5<$BP$65-5,AND($BC$67="OK",COUNTIF($D$67:$AY$71,"B")=0))),0,1) -> 0 | C65: Perfilado de excavación | BD65: SOBRECIMIENTO Y CORONACIÓN | BE65: depto | BF65: =VLOOKUP(C65,'Act. Proyecto'!$I$3:$Q$881,4,FALSE) -> 2 | BG65: =VLOOKUP(C65,'Act. Proyecto'!$I$3:$Q$881,5,FALSE) -> 12400 | BH65: =IFERROR(BF65*BG65,0) -> 24800 | BI65: =VLOOKUP(C65,'Act. Proyecto'!$I$3:$Q$881,7,FALSE) -> Frente | BJ65: =VLOOKUP(C65,'Act. Proyecto'!$I$3:$Q$881,8,FALSE) -> 2 | BK65: =VLOOKUP(C65,'Act. Proyecto'!$I$3:$Q$881,9,FALSE) -> 10 | BL65: =IFERROR(BJ65/BK65,0) -> 0.2 | BM65: =IFERROR(BL65*BH65,0) -> 4960 | BN65: =$AZ$67*$BH$65 -> 595200 | BO65: =IF($BM$65=0,0,$BN$65/$BM$65) -> 120 | BP65: 3 | BQ65: =$BP$65+$BO$65-1 -> 122 | BR65: =BM65*B65 -> 0 | BS65: =BR65*BQ65 -> 0
B66: =$B$65 -> 0 | D66: F1 | E66: F2 | F66: F3 | G66: F4 | H66: F5 | I66: F6 | J66: F7 | K66: F8 | L66: F9 | M66: F10 | N66: F11 | O66: F12 | P66: F13 | Q66: F14 | R66: F15 | S66: F16 | T66: F17 | U66: F18 | V66: F19 | W66: F20 | X66: F21 | Y66: F22 | Z66: F23 | AA66: F24 | AZ66: N° Unid Prod | BA66: N° Frentes | BB66: Pos | BC66: %
B67: 0 | C67: 5 | D67: X | E67: X | F67: X | G67: X | H67: X | I67: X | J67: X | K67: X | L67: X | M67: X | N67: X | O67: X | P67: X | Q67: X | R67: X | S67: X | T67: X | U67: X | V67: X | W67: X | X67: X | Y67: X | Z67: X | AA67: X | AZ67: =COUNTIF(D67:AA71,"A")+COUNTIF(D67:AA71,"B") -> 24 | BA67: =+AZ67/BJ65*BK65 -> 120 | BB67: =+BA67+BO65 -> 240 | BC67: =IF(AZ67=BB68,"OK",BB67/'Control de Avance'!$BT$3) -> OK
B68: 0 | C68: 4 | D68: X | E68: X | F68: X | G68: X | H68: X | I68: X | J68: X | K68: X | L68: X | M68: X | N68: X | O68: X | P68: X | Q68: X | R68: X | S68: X | T68: X | U68: X | V68: X | W68: X | X68: X | Y68: X | Z68: X | AA68: X | AZ68: N° Total Und Prod: | BB68: =VLOOKUP('Dibujo Edificios'!$A$24,'Otras Tablas'!$G$2:$H$31,2,FALSE) -> 24
B69: 0 | C69: 3 | D69: X | E69: X | F69: X | G69: X | H69: X | I69: X | J69: X | K69: X | L69: X | M69: X | N69: X | O69: X | P69: X | Q69: X | R69: X | S69: X | T69: X | U69: X | V69: X | W69: X | X69: X | Y69: X | Z69: X | AA69: X | AZ69: Proyección avance actual | BC69: =IF(AZ67=BB68,"OK",IF(BC71=0,"NA",(BB68/BJ65*BK65+BQ65)/('Control de Avance'!$BT$3+BC72*5))) -> OK
B70: 0 | C70: 2 | D70: X | E70: X | F70: X | G70: X | H70: X | I70: X | J70: X | K70: X | L70: X | M70: X | N70: X | O70: X | P70: X | Q70: X | R70: X | S70: X | T70: X | U70: X | V70: X | W70: X | X70: X | Y70: X | Z70: X | AA70: X | AZ70: Frentes anteriores | BC70: =COUNTIF(D67:AC71,"A")/BJ65*BK65 -> 120
B71: 0 | C71: 1 | D71: a | E71: a | F71: a | G71: a | H71: a | I71: a | J71: a | K71: A | L71: a | M71: A | N71: a | O71: a | P71: a | Q71: a | R71: a | S71: a | T71: a | U71: a | V71: A | W71: A | X71: A | Y71: A | Z71: a | AA71: a | AZ71: Frentes semana actual | BC71: =COUNTIF(D67:AC71,"B")/BJ65*BK65 -> 0
B72: 0 | AZ72: Saldo | BA72: =+BB68/BJ65*BK65-BC70-BC71 -> 0 | BB72: Sem | BC72: =IF(AZ67=BB68,"OK",IF(BC71=0,"NA",BA72/BC71)) -> OK
B73: 0
A75: OG1 | B75: 0 | C75: Instalación de malla tierra | BD75: ELÉCTRICO OG | BE75: puntos | BF75: =VLOOKUP(C75,'Act. Proyecto'!$I$3:$Q$881,4,FALSE) -> 4 | BG75: =VLOOKUP(C75,'Act. Proyecto'!$I$3:$Q$881,5,FALSE) -> 4025 | BH75: =IFERROR(BF75*BG75,0) -> 16100 | BI75: =VLOOKUP(C75,'Act. Proyecto'!$I$3:$Q$881,7,FALSE) -> Edif | BJ75: =VLOOKUP(C75,'Act. Proyecto'!$I$3:$Q$881,8,FALSE) -> 1 | BK75: =VLOOKUP(C75,'Act. Proyecto'!$I$3:$Q$881,9,FALSE) -> 10 | BL75: =IFERROR(BJ75/BK75,0) -> 0.1 | BM75: =IFERROR(BL75*BH75,0) -> 1610 | BN75: =$AZ$77*$BH$75 -> 209300 | BO75: =IF($BM$75=0,0,$BN$75/$BM$75) -> 130 | BP75: 3 | BQ75: =$BP$75+$BO$75-1 -> 132 | BR75: =BM75*B75 -> 0 | BS75: =BR75*BQ75 -> 0
B76: =$B$75 -> 0 | D76: F1-2 | E76: F3-4 | F76: F5-6 | G76: F7-8 | H76: F9-10 | I76: F11 | J76: F12-13 | K76: F14-15 | L76: F16 | M76: F17-18 | N76: F19-20 | O76: F21-22 | P76: F23-24 | AZ76: N° Unid Prod | BA76: N° Frentes | BB76: Pos | BC76: %
B77: 0 | C77: 5 | D77: X | E77: X | F77: X | G77: X | H77: X | I77: X | J77: X | K77: X | L77: X | M77: X | N77: X | O77: X | P77: X | AZ77: =COUNTIF(D77:P81,"A")+COUNTIF(D77:P81,"B") -> 13 | BA77: =+AZ77/BJ75*BK75 -> 130 | BB77: =+BA77+BO75 -> 260 | BC77: =IF(AZ77=BB78,"OK",BB77/'Control de Avance'!$BT$3) -> 1.155555556
B78: 0 | C78: 4 | D78: X | E78: X | F78: X | G78: X | H78: X | I78: X | J78: X | K78: X | L78: X | M78: X | N78: X | O78: X | P78: X | AZ78: N° Total Und Prod: | BB78: =VLOOKUP('Dibujo Edificios'!$A$34,'Otras Tablas'!$G$2:$H$31,2,FALSE) -> 12
B79: 0 | C79: 3 | D79: X | E79: X | F79: X | G79: X | H79: X | I79: X | J79: X | K79: X | L79: X | M79: X | N79: X | O79: X | P79: X | AZ79: Proyección avance actual | BC79: =IF(AZ77=BB78,"OK",IF(BC81=0,"NA",(BB78/BJ75*BK75+BQ75)/('Control de Avance'!$BT$3+BC82*5))) -> NA
B80: 0 | C80: 2 | D80: X | E80: X | F80: X | G80: X | H80: X | I80: X | J80: X | K80: X | L80: X | M80: X | N80: X | O80: X | P80: X | AZ80: Frentes anteriores | BC80: =COUNTIF(D77:AC81,"A")/BJ75*BK75 -> 130
B81: 0 | C81: 1 | D81: a | E81: a | F81: a | G81: a | H81: a | I81: A | J81: a | K81: A | L81: a | M81: a | N81: a | O81: a | P81: A | AZ81: Frentes semana actual
B82: 0 | AZ82: Saldo | BA82: =+BB78/BJ75*BK75-BC80-BC81 -> -10 | BB82: Sem | BC82: =IF(AZ77=BB78,"OK",IF(BC81=0,"NA",BA82/BC81)) -> NA
B83: 0
A85: OG1 | B85: =IF((OR($BT$5<$BP$85-5,AND($BC$87="OK",COUNTIF($D$87:$AY$91,"B")=0))),0,1) -> 0 | C85: Fabricar calugas de hormigón | BD85: HORMIGÓN | BE85: depto | BF85: =VLOOKUP(C85,'Act. Proyecto'!$I$3:$Q$881,4,FALSE) -> 2 | BG85: =VLOOKUP(C85,'Act. Proyecto'!$I$3:$Q$881,5,FALSE) -> 2580 | BH85: =IFERROR(BF85*BG85,0) -> 5160 | BI85: =VLOOKUP(C85,'Act. Proyecto'!$I$3:$Q$881,7,FALSE) -> Frente | BJ85: =VLOOKUP(C85,'Act. Proyecto'!$I$3:$Q$881,8,FALSE) -> 2 | BK85: =VLOOKUP(C85,'Act. Proyecto'!$I$3:$Q$881,9,FALSE) -> 10 | BL85: =IFERROR(BJ85/BK85,0) -> 0.2 | BM85: =IFERROR(BL85*BH85,0) -> 1032 | BN85: =$AZ$87*$BH$85 -> 123840 | BO85: =IF($BM$85=0,0,$BN$85/$BM$85) -> 120 | BP85: 4 | BQ85: =$BP$85+$BO$85-1 -> 123 | BR85: =BM85*B85 -> 0 | BS85: =BR85*BQ85 -> 0
B86: =$B$85 -> 0 | D86: F1 | E86: F2 | F86: F3 | G86: F4 | H86: F5 | I86: F6 | J86: F7 | K86: F8 | L86: F9 | M86: F10 | N86: F11 | O86: F12 | P86: F13 | Q86: F14 | R86: F15 | S86: F16 | T86: F17 | U86: F18 | V86: F19 | W86: F20 | X86: F21 | Y86: F22 | Z86: F23 | AA86: F24 | AZ86: N° Unid Prod | BA86: N° Frentes | BB86: Pos | BC86: %
B87: 0 | C87: 5 | D87: X | E87: X | F87: X | G87: X | H87: X | I87: X | J87: X | K87: X | L87: X | M87: X | N87: X | O87: X | P87: X | Q87: X | R87: X | S87: X | T87: X | U87: X | V87: X | W87: X | X87: X | Y87: X | Z87: X | AA87: X | AZ87: =COUNTIF(D87:AA91,"A")+COUNTIF(D87:AA91,"B") -> 24 | BA87: =+AZ87/BJ85*BK85 -> 120 | BB87: =+BA87+BO85 -> 240 | BC87: =IF(AZ87=BB88,"OK",BB87/'Control de Avance'!$BT$3) -> OK
B88: 0 | C88: 4 | D88: X | E88: X | F88: X | G88: X | H88: X | I88: X | J88: X | K88: X | L88: X | M88: X | N88: X | O88: X | P88: X | Q88: X | R88: X | S88: X | T88: X | U88: X | V88: X | W88: X | X88: X | Y88: X | Z88: X | AA88: X | AZ88: N° Total Und Prod: | BB88: =VLOOKUP('Dibujo Edificios'!$A$24,'Otras Tablas'!$G$2:$H$31,2,FALSE) -> 24
B89: 0 | C89: 3 | D89: X | E89: X | F89: X | G89: X | H89: X | I89: X | J89: X | K89: X | L89: X | M89: X | N89: X | O89: X | P89: X | Q89: X | R89: X | S89: X | T89: X | U89: X | V89: X | W89: X | X89: X | Y89: X | Z89: X | AA89: X | AZ89: Proyección avance actual | BC89: =IF(AZ87=BB88,"OK",IF(BC91=0,"NA",(BB88/BJ85*BK85+BQ85)/('Control de Avance'!$BT$3+BC92*5))) -> OK
B90: 0 | C90: 2 | D90: X | E90: X | F90: X | G90: X | H90: X | I90: X | J90: X | K90: X | L90: X | M90: X | N90: X | O90: X | P90: X | Q90: X | R90: X | S90: X | T90: X | U90: X | V90: X | W90: X | X90: X | Y90: X | Z90: X | AA90: X | AZ90: Frentes anteriores | BC90: =COUNTIF(D87:AC91,"A")/BJ85*BK85 -> 120
B91: 0 | C91: 1 | D91: a | E91: a | F91: a | G91: a | H91: a | I91: a | J91: a | K91: a | L91: a | M91: a | N91: a | O91: a | P91: a | Q91: a | R91: a | S91: a | T91: a | U91: a | V91: a | W91: a | X91: a | Y91: a | Z91: a | AA91: a | AZ91: Frentes semana actual | BC91: =COUNTIF(D87:AC91,"B")/BJ85*BK85 -> 0
B92: 0 | AZ92: Saldo | BA92: =+BB88/BJ85*BK85-BC90-BC91 -> 0 | BB92: Sem | BC92: =IF(AZ87=BB88,"OK",IF(BC91=0,"NA",BA92/BC91)) -> OK
B93: 0
A95: OG1 | B95: =IF((OR($BT$5<$BP$95-5,AND($BC$97="OK",COUNTIF($D$97:$AY$101,"B")=0))),0,1) -> 0 | C95: Emplantillado | BD95: HORMIGÓN | BE95: m3 | BF95: =VLOOKUP(C95,'Act. Proyecto'!$I$3:$Q$881,4,FALSE) -> 1.288359375 | BG95: =VLOOKUP(C95,'Act. Proyecto'!$I$3:$Q$881,5,FALSE) -> 2800 | BH95: =IFERROR(BF95*BG95,0) -> 3607.40625 | BI95: =VLOOKUP(C95,'Act. Proyecto'!$I$3:$Q$881,7,FALSE) -> Depto | BJ95: =VLOOKUP(C95,'Act. Proyecto'!$I$3:$Q$881,8,FALSE) -> 4 | BK95: =VLOOKUP(C95,'Act. Proyecto'!$I$3:$Q$881,9,FALSE) -> 10 | BL95: =IFERROR(BJ95/BK95,0) -> 0.4 | BM95: =IFERROR(BL95*BH95,0) -> 1442.9625 | BN95: =$AZ$97*$BH$95 -> 173155.5 | BO95: =IF($BM$95=0,0,$BN$95/$BM$95) -> 120 | BP95: 4 | BQ95: =$BP$95+$BO$95-1 -> 123 | BR95: =BM95*B95 -> 0 | BS95: =BR95*BQ95 -> 0
B96: =$B$95 -> 0 | D96: F1.1 | E96: F1.2 | F96: F2.1 | G96: F2.2 | H96: F3.1 | I96: F3.2 | J96: F4.1 | K96: F4.2 | L96: F5.1 | M96: F5.2 | N96: F6.1 | O96: F6.2 | P96: F7.1 | Q96: F7.2 | R96: F8.1 | S96: F8.2 | T96: F9.1 | U96: F9.2 | V96: F10.1 | W96: F10.2 | X96: F11.1 | Y96: F11.2 | Z96: F12.1 | AA96: F12.2 | AB96: F13.1 | AC96: F13.2 | AD96: F14.1 | AE96: F14.2 | AF96: F15.1 | AG96: F15.2 | AH96: F16.1 | AI96: F16.2 | AJ96: F17.1 | AK96: F17.2 | AL96: F18.1 | AM96: F18.2 | AN96: F19.1 | AO96: F19.2 | AP96: F20.1 | AQ96: F20.2 | AR96: F21.1 | AS96: F21.2 | AT96: F22.1 | AU96: F22.2 | AV96: F23.1 | AW96: F23.2 | AX96: F24.1 | AY96: F24.2 | AZ96: N° Unid Prod | BA96: N° Frentes | BB96: Pos | BC96: %
B97: 0 | C97: 5 | D97: X | E97: X | F97: X | G97: X | H97: X | I97: X | J97: X | K97: X | L97: X | M97: X | N97: X | O97: X | P97: X | Q97: X | R97: X | S97: X | T97: X | U97: X | V97: X | W97: X | X97: X | Y97: X | Z97: X | AA97: X | AB97: X | AC97: X | AD97: X | AE97: X | AF97: X | AG97: X | AH97: X | AI97: X | AJ97: X | AK97: X | AL97: X | AM97: X | AN97: X | AO97: X | AP97: X | AQ97: X | AR97: X | AS97: X | AT97: X | AU97: X | AV97: X | AW97: X | AX97: X | AY97: X | AZ97: =COUNTIF(D97:AY101,"A")+COUNTIF(D97:AY101,"B") -> 48 | BA97: =+AZ97/BJ95*BK95 -> 120 | BB97: =+BA97+BO95 -> 240 | BC97: =IF(AZ97=BB98,"OK",BB97/'Control de Avance'!$BT$3) -> OK
B98: 0 | C98: 4 | D98: X | E98: X | F98: X | G98: X | H98: X | I98: X | J98: X | K98: X | L98: X | M98: X | N98: X | O98: X | P98: X | Q98: X | R98: X | S98: X | T98: X | U98: X | V98: X | W98: X | X98: X | Y98: X | Z98: X | AA98: X | AB98: X | AC98: X | AD98: X | AE98: X | AF98: X | AG98: X | AH98: X | AI98: X | AJ98: X | AK98: X | AL98: X | AM98: X | AN98: X | AO98: X | AP98: X | AQ98: X | AR98: X | AS98: X | AT98: X | AU98: X | AV98: X | AW98: X | AX98: X | AY98: X | AZ98: N° Total Und Prod: | BB98: =VLOOKUP('Dibujo Edificios'!$A$14,'Otras Tablas'!$G$2:$H$31,2,FALSE) -> 48
B99: 0 | C99: 3 | D99: X | E99: X | F99: X | G99: X | H99: X | I99: X | J99: X | K99: X | L99: X | M99: X | N99: X | O99: X | P99: X | Q99: X | R99: X | S99: X | T99: X | U99: X | V99: X | W99: X | X99: X | Y99: X | Z99: X | AA99: X | AB99: X | AC99: X | AD99: X | AE99: X | AF99: X | AG99: X | AH99: X | AI99: X | AJ99: X | AK99: X | AL99: X | AM99: X | AN99: X | AO99: X | AP99: X | AQ99: X | AR99: X | AS99: X | AT99: X | AU99: X | AV99: X | AW99: X | AX99: X | AY99: X | AZ99: Proyección avance actual | BC99: =IF(AZ97=BB98,"OK",IF(BC101=0,"NA",(BB98/BJ95*BK95+BQ95)/('Control de Avance'!$BT$3+BC102*5))) -> OK
B100: 0 | C100: 2 | D100: X | E100: X | F100: X | G100: X | H100: X | I100: X | J100: X | K100: X | L100: X | M100: X | N100: X | O100: X | P100: X | Q100: X | R100: X | S100: X | T100: X | U100: X | V100: X | W100: X | X100: X | Y100: X | Z100: X | AA100: X | AB100: X | AC100: X | AD100: X | AE100: X | AF100: X | AG100: X | AH100: X | AI100: X | AJ100: X | AK100: X | AL100: X | AM100: X | AN100: X | AO100: X | AP100: X | AQ100: X | AR100: X | AS100: X | AT100: X | AU100: X | AV100: X | AW100: X | AX100: X | AY100: X | AZ100: Frentes anteriores | BC100: =COUNTIF(D97:AC101,"A")/BJ95*BK95 -> 65
B101: 0 | C101: 1 | D101: A | E101: A | F101: a | G101: a | H101: a | I101: a | J101: a | K101: a | L101: a | M101: a | N101: a | O101: a | P101: a | Q101: a | R101: a | S101: a | T101: a | U101: a | V101: A | W101: A | X101: a | Y101: a | Z101: a | AA101: a | AB101: a | AC101: a | AD101: a | AE101: a | AF101: a | AG101: a | AH101: a | AI101: a | AJ101: a | AK101: a | AL101: a | AM101: a | AN101: a | AO101: a | AP101: a | AQ101: a | AR101: a | AS101: a | AT101: a | AU101: a | AV101: a | AW101: a | AX101: a | AY101: a | AZ101: Frentes semana actual | BC101: =COUNTIF(D97:AC101,"B")/BJ95*BK95 -> 0
B102: 0 | AZ102: Saldo | BA102: =+BB98/BJ95*BK95-BC100-BC101 -> 55 | BB102: Sem | BC102: =IF(AZ97=BB98,"OK",IF(BC101=0,"NA",BA102/BC101)) -> OK
B103: 0
A105: OG1 | B105: =IF((OR($BT$5<$BP$105-5,AND($BC$107="OK",COUNTIF($D$107:$AY$111,"B")=0))),0,1) -> 0 | C105: Grua emplantillado 1eros Frentes | BD105: GRÚA | BE105: m3 | BF105: =VLOOKUP(C105,'Act. Proyecto'!$I$3:$Q$881,4,FALSE) -> 1.288359375 | BG105: =VLOOKUP(C105,'Act. Proyecto'!$I$3:$Q$881,5,FALSE) -> 764 | BH105: =IFERROR(BF105*BG105,0) -> 984.3065625 | BI105: =VLOOKUP(C105,'Act. Proyecto'!$I$3:$Q$881,7,FALSE) -> Depto | BJ105: =VLOOKUP(C105,'Act. Proyecto'!$I$3:$Q$881,8,FALSE) -> 4 | BK105: =VLOOKUP(C105,'Act. Proyecto'!$I$3:$Q$881,9,FALSE) -> 10 | BL105: =IFERROR(BJ105/BK105,0) -> 0.4 | BM105: =IFERROR(BL105*BH105,0) -> 393.722625 | BN105: =$AZ$107*$BH$105 -> 47246.715 | BO105: =IF($BM$105=0,0,$BN$105/$BM$105) -> 120 | BP105: 4 | BQ105: =$BP$105+$BO$105-1 -> 123 | BR105: =BM105*B105 -> 0 | BS105: =BR105*BQ105 -> 0
B106: =$B$105 -> 0 | D106: F1.1 | E106: F1.2 | F106: F2.1 | G106: F2.2 | H106: F3.1 | I106: F3.2 | J106: F4.1 | K106: F4.2 | L106: F5.1 | M106: F5.2 | N106: F6.1 | O106: F6.2 | P106: F7.1 | Q106: F7.2 | R106: F8.1 | S106: F8.2 | T106: F9.1 | U106: F9.2 | V106: F10.1 | W106: F10.2 | X106: F11.1 | Y106: F11.2 | Z106: F12.1 | AA106: F12.2 | AB106: F13.1 | AC106: F13.2 | AD106: F14.1 | AE106: F14.2 | AF106: F15.1 | AG106: F15.2 | AH106: F16.1 | AI106: F16.2 | AJ106: F17.1 | AK106: F17.2 | AL106: F18.1 | AM106: F18.2 | AN106: F19.1 | AO106: F19.2 | AP106: F20.1 | AQ106: F20.2 | AR106: F21.1 | AS106: F21.2 | AT106: F22.1 | AU106: F22.2 | AV106: F23.1 | AW106: F23.2 | AX106: F24.1 | AY106: F24.2 | AZ106: N° Unid Prod | BA106: N° Frentes | BB106: Pos | BC106: %
B107: 0 | C107: 5 | D107: X | E107: X | F107: X | G107: X | H107: X | I107: X | J107: X | K107: X | L107: X | M107: X | N107: X | O107: X | P107: X | Q107: X | R107: X | S107: X | T107: X | U107: X | V107: X | W107: X | X107: X | Y107: X | Z107: X | AA107: X | AB107: X | AC107: X | AD107: X | AE107: X | AF107: X | AG107: X | AH107: X | AI107: X | AJ107: X | AK107: X | AL107: X | AM107: X | AN107: X | AO107: X | AP107: X | AQ107: X | AR107: X | AS107: X | AT107: X | AU107: X | AV107: X | AW107: X | AX107: X | AY107: X | AZ107: =COUNTIF(D107:AY111,"A")+COUNTIF(D107:AY111,"B") -> 48 | BA107: =+AZ107/BJ105*BK105 -> 120 | BB107: =+BA107+BO105 -> 240 | BC107: =IF(AZ107=BB108,"OK",BB107/'Control de Avance'!$BT$3) -> OK
B108: 0 | C108: 4 | D108: X | E108: X | F108: X | G108: X | H108: X | I108: X | J108: X | K108: X | L108: X | M108: X | N108: X | O108: X | P108: X | Q108: X | R108: X | S108: X | T108: X | U108: X | V108: X | W108: X | X108: X | Y108: X | Z108: X | AA108: X | AB108: X | AC108: X | AD108: X | AE108: X | AF108: X | AG108: X | AH108: X | AI108: X | AJ108: X | AK108: X | AL108: X | AM108: X | AN108: X | AO108: X | AP108: X | AQ108: X | AR108: X | AS108: X | AT108: X | AU108: X | AV108: X | AW108: X | AX108: X | AY108: X | AZ108: N° Total Und Prod: | BB108: =VLOOKUP('Dibujo Edificios'!$A$14,'Otras Tablas'!$G$2:$H$31,2,FALSE) -> 48
B109: 0 | C109: 3 | D109: X | E109: X | F109: X | G109: X | H109: X | I109: X | J109: X | K109: X | L109: X | M109: X | N109: X | O109: X | P109: X | Q109: X | R109: X | S109: X | T109: X | U109: X | V109: X | W109: X | X109: X | Y109: X | Z109: X | AA109: X | AB109: X | AC109: X | AD109: X | AE109: X | AF109: X | AG109: X | AH109: X | AI109: X | AJ109: X | AK109: X | AL109: X | AM109: X | AN109: X | AO109: X | AP109: X | AQ109: X | AR109: X | AS109: X | AT109: X | AU109: X | AV109: X | AW109: X | AX109: X | AY109: X | AZ109: Proyección avance actual | BC109: =IF(AZ107=BB108,"OK",IF(BC111=0,"NA",(BB108/BJ105*BK105+BQ105)/('Control de Avance'!$BT$3+BC112*5))) -> OK
B110: 0 | C110: 2 | D110: X | E110: X | F110: X | G110: X | H110: X | I110: X | J110: X | K110: X | L110: X | M110: X | N110: X | O110: X | P110: X | Q110: X | R110: X | S110: X | T110: X | U110: X | V110: X | W110: X | X110: X | Y110: X | Z110: X | AA110: X | AB110: X | AC110: X | AD110: X | AE110: X | AF110: X | AG110: X | AH110: X | AI110: X | AJ110: X | AK110: X | AL110: X | AM110: X | AN110: X | AO110: X | AP110: X | AQ110: X | AR110: X | AS110: X | AT110: X | AU110: X | AV110: X | AW110: X | AX110: X | AY110: X | AZ110: Frentes anteriores | BC110: =COUNTIF(D107:AC111,"A")/BJ105*BK105 -> 65
B111: 0 | C111: 1 | D111: a | E111: a | F111: A | G111: A | H111: a | I111: A | J111: a | K111: a | L111: A | M111: A | N111: a | O111: a | P111: a | Q111: a | R111: a | S111: a | T111: a | U111: a | V111: a | W111: a | X111: a | Y111: a | Z111: a | AA111: a | AB111: a | AC111: a | AD111: a | AE111: a | AF111: A | AG111: A | AH111: a | AI111: a | AJ111: a | AK111: a | AL111: a | AM111: a | AN111: a | AO111: a | AP111: a | AQ111: a | AR111: a | AS111: a | AT111: a | AU111: a | AV111: a | AW111: a | AX111: a | AY111: a | AZ111: Frentes semana actual | BC111: =COUNTIF(D107:AC111,"B")/BJ105*BK105 -> 0
B112: 0 | AZ112: Saldo | BA112: =+BB108/BJ105*BK105-BC110-BC111 -> 55 | BB112: Sem | BC112: =IF(AZ107=BB108,"OK",IF(BC111=0,"NA",BA112/BC111)) -> OK
B113: 0
A115: OG1 | B115: =IF((OR($BT$5<$BP$115-5,AND($BC$117="OK",COUNTIF($D$117:$AY$121,"B")=0))),0,1) -> 0 | C115: Encintado | BD115: SOBRECIMIENTO Y CORONACIÓN | BE115: depto | BF115: =VLOOKUP(C115,'Act. Proyecto'!$I$3:$Q$881,4,FALSE) -> 2 | BG115: =VLOOKUP(C115,'Act. Proyecto'!$I$3:$Q$881,5,FALSE) -> 0 | BH115: =IFERROR(BF115*BG115,0) -> 0 | BI115: =VLOOKUP(C115,'Act. Proyecto'!$I$3:$Q$881,7,FALSE) -> Frente | BJ115: =VLOOKUP(C115,'Act. Proyecto'!$I$3:$Q$881,8,FALSE) -> 2 | BK115: =VLOOKUP(C115,'Act. Proyecto'!$I$3:$Q$881,9,FALSE) -> 10 | BL115: =IFERROR(BJ115/BK115,0) -> 0.2 | BM115: =IFERROR(BL115*BH115,0) -> 0 | BN115: =$AZ$117*$BH$115 -> 0 | BO115: =IF($BM$115=0,0,$BN$115/$BM$115) -> 0 | BP115: 5 | BQ115: =$BP$115+$BO$115-1 -> 4 | BR115: =BM115*B115 -> 0 | BS115: =BR115*BQ115 -> 0
B116: =$B$115 -> 0 | D116: F1 | E116: F2 | F116: F3 | G116: F4 | H116: F5 | I116: F6 | J116: F7 | K116: F8 | L116: F9 | M116: F10 | N116: F11 | O116: F12 | P116: F13 | Q116: F14 | R116: F15 | S116: F16 | T116: F17 | U116: F18 | V116: F19 | W116: F20 | X116: F21 | Y116: F22 | Z116: F23 | AA116: F24 | AZ116: N° Unid Prod | BA116: N° Frentes | BB116: Pos | BC116: %
B117: 0 | C117: 5 | D117: X | E117: X | F117: X | G117: X | H117: X | I117: X | J117: X | K117: X | L117: X | M117: X | N117: X | O117: X | P117: X | Q117: X | R117: X | S117: X | T117: X | U117: X | V117: X | W117: X | X117: X | Y117: X | Z117: X | AA117: X | AZ117: =COUNTIF(D117:AA121,"A")+COUNTIF(D117:AA121,"B") -> 24 | BA117: =+AZ117/BJ115*BK115 -> 120 | BB117: =+BA117+BO115 -> 120 | BC117: =IF(AZ117=BB118,"OK",BB117/'Control de Avance'!$BT$3) -> OK
B118: 0 | C118: 4 | D118: X | E118: X | F118: X | G118: X | H118: X | I118: X | J118: X | K118: X | L118: X | M118: X | N118: X | O118: X | P118: X | Q118: X | R118: X | S118: X | T118: X | U118: X | V118: X | W118: X | X118: X | Y118: X | Z118: X | AA118: X | AZ118: N° Total Und Prod: | BB118: =VLOOKUP('Dibujo Edificios'!$A$24,'Otras Tablas'!$G$2:$H$31,2,FALSE) -> 24
B119: 0 | C119: 3 | D119: X | E119: X | F119: X | G119: X | H119: X | I119: X | J119: X | K119: X | L119: X | M119: X | N119: X | O119: X | P119: X | Q119: X | R119: X | S119: X | T119: X | U119: X | V119: X | W119: X | X119: X | Y119: X | Z119: X | AA119: X | AZ119: Proyección avance actual | BC119: =IF(AZ117=BB118,"OK",IF(BC121=0,"NA",(BB118/BJ115*BK115+BQ115)/('Control de Avance'!$BT$3+BC122*5))) -> OK
B120: 0 | C120: 2 | D120: X | E120: X | F120: X | G120: X | H120: X | I120: X | J120: X | K120: X | L120: X | M120: X | N120: X | O120: X | P120: X | Q120: X | R120: X | S120: X | T120: X | U120: X | V120: X | W120: X | X120: X | Y120: X | Z120: X | AA120: X | AZ120: Frentes anteriores | BC120: =COUNTIF(D117:AC121,"A")/BJ115*BK115 -> 120
B121: 0 | C121: 1 | D121: a | E121: a | F121: a | G121: a | H121: a | I121: a | J121: a | K121: a | L121: a | M121: a | N121: a | O121: a | P121: a | Q121: a | R121: a | S121: A | T121: A | U121: a | V121: a | W121: a | X121: A | Y121: a | Z121: a | AA121: a | AZ121: Frentes semana actual | BC121: =COUNTIF(D117:AC121,"B")/BJ115*BK115 -> 0
B122: 0 | AZ122: Saldo | BA122: =+BB118/BJ115*BK115-BC120-BC121 -> 0 | BB122: Sem | BC122: =IF(AZ117=BB118,"OK",IF(BC121=0,"NA",BA122/BC121)) -> OK
B123: 0
A125: OG1 | B125: =IF((OR($BT$5<$BP$125-5,AND($BC$127="OK",COUNTIF($D$127:$AY$131,"B")=0))),0,1) -> 0 | C125: Instalar fierro primer piso | BD125: ENFIERRADOR | BE125: kg | BF125: =VLOOKUP(C125,'Act. Proyecto'!$I$3:$Q$881,4,FALSE) -> 1941.677217 | BG125: =VLOOKUP(C125,'Act. Proyecto'!$I$3:$Q$881,5,FALSE) -> 23 | BH125: =IFERROR(BF125*BG125,0) -> 44658.576 | BI125: =VLOOKUP(C125,'Act. Proyecto'!$I$3:$Q$881,7,FALSE) -> Frente | BJ125: =VLOOKUP(C125,'Act. Proyecto'!$I$3:$Q$881,8,FALSE) -> 2 | BK125: =VLOOKUP(C125,'Act. Proyecto'!$I$3:$Q$881,9,FALSE) -> 10 | BL125: =IFERROR(BJ125/BK125,0) -> 0.2 | BM125: =IFERROR(BL125*BH125,0) -> 8931.7152 | BN125: =$AZ$127*$BH$125 -> 1071805.824 | BO125: =IF($BM$125=0,0,$BN$125/$BM$125) -> 120 | BP125: 5 | BQ125: =$BP$125+$BO$125-1 -> 124 | BR125: =BM125*B125 -> 0 | BS125: =BR125*BQ125 -> 0
B126: =$B$125 -> 0 | D126: F1 | E126: F2 | F126: F3 | G126: F4 | H126: F5 | I126: F6 | J126: F7 | K126: F8 | L126: F9 | M126: F10 | N126: F11 | O126: F12 | P126: F13 | Q126: F14 | R126: F15 | S126: F16 | T126: F17 | U126: F18 | V126: F19 | W126: F20 | X126: F21 | Y126: F22 | Z126: F23 | AA126: F24 | AZ126: N° Unid Prod | BA126: N° Frentes | BB126: Pos | BC126: %
B127: 0 | C127: 5 | D127: X | E127: X | F127: X | G127: X | H127: X | I127: X | J127: X | K127: X | L127: X | M127: X | N127: X | O127: X | P127: X | Q127: X | R127: X | S127: X | T127: X | U127: X | V127: X | W127: X | X127: X | Y127: X | Z127: X | AA127: X | AZ127: =COUNTIF(D127:AA131,"A")+COUNTIF(D127:AA131,"B") -> 24 | BA127: =+AZ127/BJ125*BK125 -> 120 | BB127: =+BA127+BO125 -> 240 | BC127: =IF(AZ127=BB128,"OK",BB127/'Control de Avance'!$BT$3) -> OK
B128: 0 | C128: 4 | D128: X | E128: X | F128: X | G128: X | H128: X | I128: X | J128: X | K128: X | L128: X | M128: X | N128: X | O128: X | P128: X | Q128: X | R128: X | S128: X | T128: X | U128: X | V128: X | W128: X | X128: X | Y128: X | Z128: X | AA128: X | AZ128: N° Total Und Prod: | BB128: =VLOOKUP('Dibujo Edificios'!$A$24,'Otras Tablas'!$G$2:$H$31,2,FALSE) -> 24
B129: 0 | C129: 3 | D129: X | E129: X | F129: X | G129: X | H129: X | I129: X | J129: X | K129: X | L129: X | M129: X | N129: X | O129: X | P129: X | Q129: X | R129: X | S129: X | T129: X | U129: X | V129: X | W129: X | X129: X | Y129: X | Z129: X | AA129: X | AZ129: Proyección avance actual | BC129: =IF(AZ127=BB128,"OK",IF(BC131=0,"NA",(BB128/BJ125*BK125+BQ125)/('Control de Avance'!$BT$3+BC132*5))) -> OK
B130: 0 | C130: 2 | D130: X | E130: X | F130: X | G130: X | H130: X | I130: X | J130: X | K130: X | L130: X | M130: X | N130: X | O130: X | P130: X | Q130: X | R130: X | S130: X | T130: X | U130: X | V130: X | W130: X | X130: X | Y130: X | Z130: X | AA130: X | AZ130: Frentes anteriores | BC130: =COUNTIF(D127:AC131,"A")/BJ125*BK125 -> 120
B131: 0 | C131: 1 | D131: A | E131: a | F131: a | G131: a | H131: a | I131: a | J131: a | K131: a | L131: a | M131: a | N131: a | O131: a | P131: a | Q131: a | R131: a | S131: a | T131: a | U131: a | V131: a | W131: a | X131: A | Y131: a | Z131: a | AA131: a | AZ131: Frentes semana actual | BC131: =COUNTIF(D127:AC131,"B")/BJ125*BK125 -> 0
B132: 0 | AZ132: Saldo | BA132: =+BB128/BJ125*BK125-BC130-BC131 -> 0 | BB132: Sem | BC132: =IF(AZ127=BB128,"OK",IF(BC131=0,"NA",BA132/BC131)) -> OK
B133: 0
A135: OG1 | B135: =IF((OR($BT$5<$BP$135-5,AND($BC$137="OK",COUNTIF($D$137:$AY$141,"B")=0))),0,1) -> 0 | C135: Grua Fierro 1er piso 1eros Frentes | BD135: GRÚA | BE135: kg | BF135: =VLOOKUP(C135,'Act. Proyecto'!$I$3:$Q$881,4,FALSE) -> 1941.677217 | BG135: =VLOOKUP(C135,'Act. Proyecto'!$I$3:$Q$881,5,FALSE) -> 5 | BH135: =IFERROR(BF135*BG135,0) -> 9708.386087 | BI135: =VLOOKUP(C135,'Act. Proyecto'!$I$3:$Q$881,7,FALSE) -> Frente | BJ135: =VLOOKUP(C135,'Act. Proyecto'!$I$3:$Q$881,8,FALSE) -> 2 | BK135: =VLOOKUP(C135,'Act. Proyecto'!$I$3:$Q$881,9,FALSE) -> 10 | BL135: =IFERROR(BJ135/BK135,0) -> 0.2 | BM135: =IFERROR(BL135*BH135,0) -> 1941.677217 | BN135: =$AZ$137*$BH$135 -> 233001.2661 | BO135: =IF($BM$135=0,0,$BN$135/$BM$135) -> 120 | BP135: 5 | BQ135: =$BP$135+$BO$135-1 -> 124 | BR135: =BM135*B135 -> 0 | BS135: =BR135*BQ135 -> 0
B136: =$B$135 -> 0 | D136: F1 | E136: F2 | F136: F3 | G136: F4 | H136: F5 | I136: F6 | J136: F7 | K136: F8 | L136: F9 | M136: F10 | N136: F11 | O136: F12 | P136: F13 | Q136: F14 | R136: F15 | S136: F16 | T136: F17 | U136: F18 | V136: F19 | W136: F20 | X136: F21 | Y136: F22 | Z136: F23 | AA136: F24 | AZ136: N° Unid Prod | BA136: N° Frentes | BB136: Pos | BC136: %
B137: 0 | C137: 5 | E137: X | F137: X | G137: X | H137: X | I137: X | J137: X | K137: X | L137: X | M137: X | N137: X | O137: X | P137: X | Q137: X | R137: X | S137: X | T137: X | U137: X | V137: X | W137: X | X137: X | Y137: X | Z137: X | AA137: X | AZ137: =COUNTIF(D137:AA141,"A")+COUNTIF(D137:AA141,"B") -> 24 | BA137: =+AZ137/BJ135*BK135 -> 120 | BB137: =+BA137+BO135 -> 240 | BC137: =IF(AZ137=BB138,"OK",BB137/'Control de Avance'!$BT$3) -> OK
B138: 0 | C138: 4 | E138: X | F138: X | G138: X | H138: X | I138: X | J138: X | K138: X | L138: X | M138: X | N138: X | O138: X | P138: X | Q138: X | R138: X | S138: X | T138: X | U138: X | V138: X | W138: X | X138: X | Y138: X | Z138: X | AA138: X | AZ138: N° Total Und Prod: | BB138: =VLOOKUP('Dibujo Edificios'!$A$24,'Otras Tablas'!$G$2:$H$31,2,FALSE) -> 24
B139: 0 | C139: 3 | E139: X | F139: X | G139: X | H139: X | I139: X | J139: X | K139: X | L139: X | M139: X | N139: X | O139: X | P139: X | Q139: X | R139: X | S139: X | T139: X | U139: X | V139: X | W139: X | X139: X | Y139: X | Z139: X | AA139: X | AZ139: Proyección avance actual | BC139: =IF(AZ137=BB138,"OK",IF(BC141=0,"NA",(BB138/BJ135*BK135+BQ135)/('Control de Avance'!$BT$3+BC142*5))) -> OK
B140: 0 | C140: 2 | E140: X | F140: X | G140: X | H140: X | I140: X | J140: X | K140: X | L140: X | M140: X | N140: X | O140: X | P140: X | Q140: X | R140: X | S140: X | T140: X | U140: X | V140: X | W140: X | X140: X | Y140: X | Z140: X | AA140: X | AZ140: Frentes anteriores | BC140: =COUNTIF(D137:AC141,"A")/BJ135*BK135 -> 120
B141: 0 | C141: 1 | D141: a | E141: a | F141: a | G141: a | H141: a | I141: a | J141: a | K141: a | L141: a | M141: a | N141: a | O141: a | P141: a | Q141: a | R141: a | S141: a | T141: a | U141: a | V141: a | W141: a | X141: a | Y141: a | Z141: a | AA141: a | AZ141: Frentes semana actual | BC141: =COUNTIF(D137:AC141,"B")/BJ135*BK135 -> 0
B142: 0 | AZ142: Saldo | BA142: =+BB138/BJ135*BK135-BC140-BC141 -> 0 | BB142: Sem | BC142: =IF(AZ137=BB138,"OK",IF(BC141=0,"NA",BA142/BC141)) -> OK
B143: 0
A145: OG1 | B145: 0 | C145: Instalación de tuberías generales en fundación | BD145: ELÉCTRICO OG | BE145: ml | BF145: =VLOOKUP(C145,'Act. Proyecto'!$I$3:$Q$881,4,FALSE) -> 124 | BG145: =VLOOKUP(C145,'Act. Proyecto'!$I$3:$Q$881,5,FALSE) -> 153 | BH145: =IFERROR(BF145*BG145,0) -> 18972 | BI145: =VLOOKUP(C145,'Act. Proyecto'!$I$3:$Q$881,7,FALSE) -> Edif | BJ145: =VLOOKUP(C145,'Act. Proyecto'!$I$3:$Q$881,8,FALSE) -> 1 | BK145: =VLOOKUP(C145,'Act. Proyecto'!$I$3:$Q$881,9,FALSE) -> 10 | BL145: =IFERROR(BJ145/BK145,0) -> 0.1 | BM145: =IFERROR(BL145*BH145,0) -> 1897.2 | BN145: =$AZ$147*$BH$145 -> 246636 | BO145: =IF($BM$145=0,0,$BN$145/$BM$145) -> 130 | BP145: 5 | BQ145: =$BP$145+$BO$145-1 -> 134 | BR145: =BM145*B145 -> 0 | BS145: =BR145*BQ145 -> 0
B146: =$B$145 -> 0 | D146: F1-2 | E146: F3-4 | F146: F5-6 | G146: F7-8 | H146: F9-10 | I146: F11 | J146: F12-13 | K146: F14-15 | L146: F16 | M146: F17-18 | N146: F19-20 | O146: F21-22 | P146: F23-24 | AZ146: N° Unid Prod | BA146: N° Frentes | BB146: Pos | BC146: %
B147: 0 | C147: 5 | D147: X | E147: X | F147: X | G147: X | H147: X | I147: X | J147: X | K147: X | L147: X | M147: X | N147: X | O147: X | P147: X | AZ147: =COUNTIF(D147:P151,"A")+COUNTIF(D147:P151,"B") -> 13 | BA147: =+AZ147/BJ145*BK145 -> 130 | BB147: =+BA147+BO145 -> 260 | BC147: =IF(AZ147=BB148,"OK",BB147/'Control de Avance'!$BT$3) -> 1.155555556
B148: 0 | C148: 4 | D148: X | E148: X | F148: X | G148: X | H148: X | I148: X | J148: X | K148: X | L148: X | M148: X | N148: X | O148: X | P148: X | AZ148: N° Total Und Prod: | BB148: =VLOOKUP('Dibujo Edificios'!$A$34,'Otras Tablas'!$G$2:$H$31,2,FALSE) -> 12
B149: 0 | C149: 3 | D149: X | E149: X | F149: X | G149: X | H149: X | I149: X | J149: X | K149: X | L149: X | M149: X | N149: X | O149: X | P149: X | AZ149: Proyección avance actual | BC149: =IF(AZ147=BB148,"OK",IF(BC151=0,"NA",(BB148/BJ145*BK145+BQ145)/('Control de Avance'!$BT$3+BC152*5))) -> NA
B150: 0 | C150: 2 | D150: X | E150: X | F150: X | G150: X | H150: X | I150: X | J150: X | K150: X | L150: X | M150: X | N150: X | O150: X | P150: X | AZ150: Frentes anteriores | BC150: =COUNTIF(D147:AC151,"A")/BJ145*BK145 -> 130
B151: 0 | C151: 1 | D151: a | E151: a | F151: a | G151: a | H151: a | I151: a | J151: A | K151: A | L151: a | M151: a | N151: a | O151: A | P151: A | AZ151: Frentes semana actual
B152: 0 | AZ152: Saldo | BA152: =+BB148/BJ145*BK145-BC150-BC151 -> -10 | BB152: Sem | BC152: =IF(AZ147=BB148,"OK",IF(BC151=0,"NA",BA152/BC151)) -> NA
B153: 0
A155: OG1 | B155: 0 | C155: Prefabricación elementos eléctricos | BD155: ELÉCTRICO OG | BE155: uni | BF155: =VLOOKUP(C155,'Act. Proyecto'!$I$3:$Q$881,4,FALSE) -> 128.65 | BG155: =VLOOKUP(C155,'Act. Proyecto'!$I$3:$Q$881,5,FALSE) -> 112.8 | BH155: =IFERROR(BF155*BG155,0) -> 14511.72 | BI155: =VLOOKUP(C155,'Act. Proyecto'!$I$3:$Q$881,7,FALSE) -> Frente | BJ155: =VLOOKUP(C155,'Act. Proyecto'!$I$3:$Q$881,8,FALSE) -> 2 | BK155: =VLOOKUP(C155,'Act. Proyecto'!$I$3:$Q$881,9,FALSE) -> 10 | BL155: =IFERROR(BJ155/BK155,0) -> 0.2 | BM155: =IFERROR(BL155*BH155,0) -> 2902.344 | BN155: =$AZ$157*$BH$155 -> 1741406.4 | BO155: =IF($BM$155=0,0,$BN$155/$BM$155) -> 600 | BP155: 5 | BQ155: =$BP$155+$BO$155-1 -> 604 | BR155: =BM155*B155 -> 0 | BS155: =BR155*BQ155 -> 0
B156: =$B$155 -> 0 | D156: F1 | E156: F2 | F156: F3 | G156: F4 | H156: F5 | I156: F6 | J156: F7 | K156: F8 | L156: F9 | M156: F10 | N156: F11 | O156: F12 | P156: F13 | Q156: F14 | R156: F15 | S156: F16 | T156: F17 | U156: F18 | V156: F19 | W156: F20 | X156: F21 | Y156: F22 | Z156: F23 | AA156: F24 | AZ156: N° Unid Prod | BA156: N° Frentes | BB156: Pos | BC156: %
B157: 0 | C157: 5 | D157: a | E157: a | F157: A | G157: a | H157: a | I157: a | J157: a | K157: a | L157: a | M157: a | N157: a | O157: a | P157: a | Q157: a | R157: a | S157: a | T157: a | U157: a | V157: a | W157: a | X157: a | Y157: a | Z157: a | AA157: a | AZ157: =COUNTIF(D157:AA161,"A")+COUNTIF(D157:AA161,"B") -> 120 | BA157: =+AZ157/BJ155*BK155 -> 600 | BB157: =+BA157+BO155 -> 1200 | BC157: =IF(AZ157=BB158,"OK",BB157/'Control de Avance'!$BT$3) -> 5.333333333
B158: 0 | C158: 4 | D158: a | E158: a | F158: A | G158: a | H158: a | I158: a | J158: a | K158: a | L158: a | M158: a | N158: a | O158: a | P158: a | Q158: a | R158: a | S158: a | T158: a | U158: a | V158: a | W158: a | X158: a | Y158: a | Z158: a | AA158: a | AZ158: N° Total Und Prod: | BB158: =VLOOKUP('Dibujo Edificios'!$A$24,'Otras Tablas'!$G$2:$H$31,2,FALSE) -> 24
B159: 0 | C159: 3 | D159: a | E159: a | F159: A | G159: a | H159: a | I159: a | J159: A | K159: a | L159: a | M159: a | N159: a | O159: a | P159: a | Q159: a | R159: a | S159: a | T159: a | U159: a | V159: a | W159: a | X159: a | Y159: a | Z159: a | AA159: a | AZ159: Proyección avance actual | BC159: =IF(AZ157=BB158,"OK",IF(BC161=0,"NA",(BB158/BJ155*BK155+BQ155)/('Control de Avance'!$BT$3+BC162*5))) -> NA
B160: 0 | C160: 2 | D160: a | E160: a | F160: A | G160: a | H160: a | I160: a | J160: a | K160: a | L160: a | M160: a | N160: a | O160: a | P160: a | Q160: a | R160: a | S160: a | T160: a | U160: a | V160: a | W160: a | X160: a | Y160: a | Z160: a | AA160: a | AZ160: Frentes anteriores | BC160: =COUNTIF(D157:AC161,"A")/BJ155*BK155 -> 600
B161: 0 | C161: 1 | D161: a | E161: a | F161: A | G161: a | H161: A | I161: a | J161: a | K161: a | L161: a | M161: a | N161: a | O161: a | P161: A | Q161: A | R161: a | S161: a | T161: a | U161: a | V161: a | W161: a | X161: a | Y161: a | Z161: a | AA161: a | AZ161: Frentes semana actual | BC161: =COUNTIF(D157:AC161,"B")/BJ155*BK155 -> 0
B162: 0 | AZ162: Saldo | BA162: =+BB158/BJ155*BK155-BC160-BC161 -> -480 | BB162: Sem | BC162: =IF(AZ157=BB158,"OK",IF(BC161=0,"NA",BA162/BC161)) -> NA
B163: 0
A165: OG1 | B165: =IF((OR($BT$5<$BP$165-5,AND($BC$167="OK",COUNTIF($D$167:$AY$171,"B")=0))),0,1) -> 0 | C165: Hormigón fundación | BD165: HORMIGÓN | BE165: m3 | BF165: =VLOOKUP(C165,'Act. Proyecto'!$I$3:$Q$881,4,FALSE) -> 15.4603125 | BG165: =VLOOKUP(C165,'Act. Proyecto'!$I$3:$Q$881,5,FALSE) -> 2850 | BH165: =IFERROR(BF165*BG165,0) -> 44061.89062 | BI165: =VLOOKUP(C165,'Act. Proyecto'!$I$3:$Q$881,7,FALSE) -> Depto | BJ165: =VLOOKUP(C165,'Act. Proyecto'!$I$3:$Q$881,8,FALSE) -> 4 | BK165: =VLOOKUP(C165,'Act. Proyecto'!$I$3:$Q$881,9,FALSE) -> 10 | BL165: =IFERROR(BJ165/BK165,0) -> 0.4 | BM165: =IFERROR(BL165*BH165,0) -> 17624.75625 | BN165: =$AZ$167*$BH$165 -> 2114970.75 | BO165: =IF($BM$165=0,0,$BN$165/$BM$165) -> 120 | BP165: 6 | BQ165: =$BP$165+$BO$165-1 -> 125 | BR165: =BM165*B165 -> 0 | BS165: =BR165*BQ165 -> 0
B166: =$B$165 -> 0 | D166: F1.1 | E166: F1.2 | F166: F2.1 | G166: F2.2 | H166: F3.1 | I166: F3.2 | J166: F4.1 | K166: F4.2 | L166: F5.1 | M166: F5.2 | N166: F6.1 | O166: F6.2 | P166: F7.1 | Q166: F7.2 | R166: F8.1 | S166: F8.2 | T166: F9.1 | U166: F9.2 | V166: F10.1 | W166: F10.2 | X166: F11.1 | Y166: F11.2 | Z166: F12.1 | AA166: F12.2 | AB166: F13.1 | AC166: F13.2 | AD166: F14.1 | AE166: F14.2 | AF166: F15.1 | AG166: F15.2 | AH166: F16.1 | AI166: F16.2 | AJ166: F17.1 | AK166: F17.2 | AL166: F18.1 | AM166: F18.2 | AN166: F19.1 | AO166: F19.2 | AP166: F20.1 | AQ166: F20.2 | AR166: F21.1 | AS166: F21.2 | AT166: F22.1 | AU166: F22.2 | AV166: F23.1 | AW166: F23.2 | AX166: F24.1 | AY166: F24.2 | AZ166: N° Unid Prod | BA166: N° Frentes | BB166: Pos | BC166: %
B167: 0 | C167: 5 | F167: X | G167: X | H167: X | I167: X | J167: X | K167: X | L167: X | M167: X | N167: X | O167: X | P167: X | Q167: X | R167: X | S167: X | T167: X | U167: X | V167: X | W167: X | X167: X | Y167: X | Z167: X | AA167: X | AB167: X | AC167: X | AD167: X | AE167: X | AF167: X | AG167: X | AH167: X | AI167: X | AJ167: X | AK167: X | AL167: X | AM167: X | AN167: X | AO167: X | AP167: X | AQ167: X | AR167: X | AS167: X | AT167: X | AU167: X | AV167: X | AW167: X | AX167: X | AY167: X | AZ167: =COUNTIF(D167:AY171,"A")+COUNTIF(D167:AY171,"B") -> 48 | BA167: =+AZ167/BJ165*BK165 -> 120 | BB167: =+BA167+BO165 -> 240 | BC167: =IF(AZ167=BB168,"OK",BB167/'Control de Avance'!$BT$3) -> OK
B168: 0 | C168: 4 | F168: X | G168: X | H168: X | I168: X | J168: X | K168: X | L168: X | M168: X | N168: X | O168: X | P168: X | Q168: X | R168: X | S168: X | T168: X | U168: X | V168: X | W168: X | X168: X | Y168: X | Z168: X | AA168: X | AB168: X | AC168: X | AD168: X | AE168: X | AF168: X | AG168: X | AH168: X | AI168: X | AJ168: X | AK168: X | AL168: X | AM168: X | AN168: X | AO168: X | AP168: X | AQ168: X | AR168: X | AS168: X | AT168: X | AU168: X | AV168: X | AW168: X | AX168: X | AY168: X | AZ168: N° Total Und Prod: | BB168: =VLOOKUP('Dibujo Edificios'!$A$14,'Otras Tablas'!$G$2:$H$31,2,FALSE) -> 48
B169: 0 | C169: 3 | F169: X | G169: X | H169: X | I169: X | J169: X | K169: X | L169: X | M169: X | N169: X | O169: X | P169: X | Q169: X | R169: X | S169: X | T169: X | U169: X | V169: X | W169: X | X169: X | Y169: X | Z169: X | AA169: X | AB169: X | AC169: X | AD169: X | AE169: X | AF169: X | AG169: X | AH169: X | AI169: X | AJ169: X | AK169: X | AL169: X | AM169: X | AN169: X | AO169: X | AP169: X | AQ169: X | AR169: X | AS169: X | AT169: X | AU169: X | AV169: X | AW169: X | AX169: X | AY169: X | AZ169: Proyección avance actual | BC169: =IF(AZ167=BB168,"OK",IF(BC171=0,"NA",(BB168/BJ165*BK165+BQ165)/('Control de Avance'!$BT$3+BC172*5))) -> OK
B170: 0 | C170: 2 | F170: X | G170: X | H170: X | I170: X | J170: X | K170: X | L170: X | M170: X | N170: X | O170: X | P170: X | Q170: X | R170: X | S170: X | T170: X | U170: X | V170: X | W170: X | X170: X | Y170: X | Z170: X | AA170: X | AB170: X | AC170: X | AD170: X | AE170: X | AF170: X | AG170: X | AH170: X | AI170: X | AJ170: X | AK170: X | AL170: X | AM170: X | AN170: X | AO170: X | AP170: X | AQ170: X | AR170: X | AS170: X | AT170: X | AU170: X | AV170: X | AW170: X | AX170: X | AY170: X | AZ170: Frentes anteriores | BC170: =COUNTIF(D167:AC171,"A")/BJ165*BK165 -> 65
A171: M | B171: 0 | C171: 1 | D171: A | E171: A | F171: A | G171: a | H171: a | I171: A | J171: a | K171: a | L171: a | M171: a | N171: a | O171: A | P171: a | Q171: a | R171: A | S171: A | T171: a | U171: a | V171: a | W171: a | X171: a | Y171: a | Z171: a | AA171: a | AB171: a | AC171: a | AD171: A | AE171: A | AF171: A | AG171: A | AH171: A | AI171: A | AJ171: a | AK171: a | AL171: A | AM171: A | AN171: A | AO171: A | AP171: a | AQ171: a | AR171: a | AS171: a | AT171: a | AU171: A | AV171: a | AW171: a | AX171: a | AY171: a | AZ171: Frentes semana actual | BC171: =COUNTIF(D167:AC171,"B")/BJ165*BK165 -> 0
B172: 0 | AZ172: Saldo | BA172: =+BB168/BJ165*BK165-BC170-BC171 -> 55 | BB172: Sem | BC172: =IF(AZ167=BB168,"OK",IF(BC171=0,"NA",BA172/BC171)) -> OK
B173: 0
A175: OG1 | B175: =IF((OR($BT$5<$BP$175-5,AND($BC$177="OK",COUNTIF($D$177:$AY$181,"B")=0))),0,1) -> 0 | C175: Grua Fundación 1eros Frentes | BD175: GRÚA | BE175: m3 | BF175: =VLOOKUP(C175,'Act. Proyecto'!$I$3:$Q$881,4,FALSE) -> 15.4603125 | BG175: =VLOOKUP(C175,'Act. Proyecto'!$I$3:$Q$881,5,FALSE) -> 780 | BH175: =IFERROR(BF175*BG175,0) -> 12059.04375 | BI175: =VLOOKUP(C175,'Act. Proyecto'!$I$3:$Q$881,7,FALSE) -> Depto | BJ175: =VLOOKUP(C175,'Act. Proyecto'!$I$3:$Q$881,8,FALSE) -> 4 | BK175: =VLOOKUP(C175,'Act. Proyecto'!$I$3:$Q$881,9,FALSE) -> 10 | BL175: =IFERROR(BJ175/BK175,0) -> 0.4 | BM175: =IFERROR(BL175*BH175,0) -> 4823.6175 | BN175: =$AZ$177*$BH$175 -> 578834.1 | BO175: =IF($BM$175=0,0,$BN$175/$BM$175) -> 120 | BP175: 6 | BQ175: =$BP$175+$BO$175-1 -> 125 | BR175: =BM175*B175 -> 0 | BS175: =BR175*BQ175 -> 0
B176: =$B$175 -> 0 | D176: F1.1 | E176: F1.2 | F176: F2.1 | G176: F2.2 | H176: F3.1 | I176: F3.2 | J176: F4.1 | K176: F4.2 | L176: F5.1 | M176: F5.2 | N176: F6.1 | O176: F6.2 | P176: F7.1 | Q176: F7.2 | R176: F8.1 | S176: F8.2 | T176: F9.1 | U176: F9.2 | V176: F10.1 | W176: F10.2 | X176: F11.1 | Y176: F11.2 | Z176: F12.1 | AA176: F12.2 | AB176: F13.1 | AC176: F13.2 | AD176: F14.1 | AE176: F14.2 | AF176: F15.1 | AG176: F15.2 | AH176: F16.1 | AI176: F16.2 | AJ176: F17.1 | AK176: F17.2 | AL176: F18.1 | AM176: F18.2 | AN176: F19.1 | AO176: F19.2 | AP176: F20.1 | AQ176: F20.2 | AR176: F21.1 | AS176: F21.2 | AT176: F22.1 | AU176: F22.2 | AV176: F23.1 | AW176: F23.2 | AX176: F24.1 | AY176: F24.2 | AZ176: N° Unid Prod | BA176: N° Frentes | BB176: Pos | BC176: %
B177: 0 | C177: 5 | D177: X | E177: X | F177: X | G177: X | H177: X | I177: X | J177: X | K177: X | L177: X | M177: X | N177: X | O177: X | P177: X | Q177: X | R177: X | S177: X | T177: X | U177: X | V177: X | W177: X | X177: X | Y177: X | Z177: X | AA177: X | AB177: X | AC177: X | AD177: X | AE177: X | AF177: X | AG177: X | AH177: X | AI177: X | AJ177: X | AK177: X | AL177: X | AM177: X | AN177: X | AO177: X | AP177: X | AQ177: X | AR177: X | AS177: X | AT177: X | AU177: X | AV177: X | AW177: X | AX177: X | AY177: X | AZ177: =COUNTIF(D177:AY181,"A")+COUNTIF(D177:AY181,"B") -> 48 | BA177: =+AZ177/BJ175*BK175 -> 120 | BB177: =+BA177+BO175 -> 240 | BC177: =IF(AZ177=BB178,"OK",BB177/'Control de Avance'!$BT$3) -> OK
B178: 0 | C178: 4 | D178: X | E178: X | F178: X | G178: X | H178: X | I178: X | J178: X | K178: X | L178: X | M178: X | N178: X | O178: X | P178: X | Q178: X | R178: X | S178: X | T178: X | U178: X | V178: X | W178: X | X178: X | Y178: X | Z178: X | AA178: X | AB178: X | AC178: X | AD178: X | AE178: X | AF178: X | AG178: X | AH178: X | AI178: X | AJ178: X | AK178: X | AL178: X | AM178: X | AN178: X | AO178: X | AP178: X | AQ178: X | AR178: X | AS178: X | AT178: X | AU178: X | AV178: X | AW178: X | AX178: X | AY178: X | AZ178: N° Total Und Prod: | BB178: =VLOOKUP('Dibujo Edificios'!$A$14,'Otras Tablas'!$G$2:$H$31,2,FALSE) -> 48
B179: 0 | C179: 3 | D179: X | E179: X | F179: X | G179: X | H179: X | I179: X | J179: X | K179: X | L179: X | M179: X | N179: X | O179: X | P179: X | Q179: X | R179: X | S179: X | T179: X | U179: X | V179: X | W179: X | X179: X | Y179: X | Z179: X | AA179: X | AB179: X | AC179: X | AD179: X | AE179: X | AF179: X | AG179: X | AH179: X | AI179: X | AJ179: X | AK179: X | AL179: X | AM179: X | AN179: X | AO179: X | AP179: X | AQ179: X | AR179: X | AS179: X | AT179: X | AU179: X | AV179: X | AW179: X | AX179: X | AY179: X | AZ179: Proyección avance actual | BC179: =IF(AZ177=BB178,"OK",IF(BC181=0,"NA",(BB178/BJ175*BK175+BQ175)/('Control de Avance'!$BT$3+BC182*5))) -> OK
B180: 0 | C180: 2 | D180: X | E180: X | F180: X | G180: X | H180: X | I180: X | J180: X | K180: X | L180: X | M180: X | N180: X | O180: X | P180: X | Q180: X | R180: X | S180: X | T180: X | U180: X | V180: X | W180: X | X180: X | Y180: X | Z180: X | AA180: X | AB180: X | AC180: X | AD180: X | AE180: X | AF180: X | AG180: X | AH180: X | AI180: X | AJ180: X | AK180: X | AL180: X | AM180: X | AN180: X | AO180: X | AP180: X | AQ180: X | AR180: X | AS180: X | AT180: X | AU180: X | AV180: X | AW180: X | AX180: X | AY180: X | AZ180: Frentes anteriores | BC180: =COUNTIF(D177:AC181,"A")/BJ175*BK175 -> 65
B181: 0 | C181: 1 | D181: a | E181: a | F181: A | G181: a | H181: a | I181: A | J181: a | K181: a | L181: a | M181: a | N181: a | O181: A | P181: a | Q181: a | R181: A | S181: A | T181: a | U181: a | V181: A | W181: A | X181: a | Y181: a | Z181: a | AA181: a | AB181: a | AC181: a | AD181: A | AE181: A | AF181: A | AG181: A | AH181: A | AI181: A | AJ181: a | AK181: A | AL181: A | AM181: A | AN181: A | AO181: A | AP181: a | AQ181: a | AR181: a | AS181: a | AT181: a | AU181: A | AV181: a | AW181: a | AX181: a | AY181: a | AZ181: Frentes semana actual | BC181: =COUNTIF(D177:AC181,"B")/BJ175*BK175 -> 0
B182: 0 | AZ182: Saldo | BA182: =+BB178/BJ175*BK175-BC180-BC181 -> 55 | BB182: Sem | BC182: =IF(AZ177=BB178,"OK",IF(BC181=0,"NA",BA182/BC181)) -> OK
B183: 0
A185: OG1 | B185: 0 | C185: Emplantillado para viga escala | BD185: HORMIGÓN | BE185: edif | BF185: =VLOOKUP(C185,'Act. Proyecto'!$I$3:$Q$881,4,FALSE) -> 0 | BG185: =VLOOKUP(C185,'Act. Proyecto'!$I$3:$Q$881,5,FALSE) -> 540 | BH185: =IFERROR(BF185*BG185,0) -> 0 | BI185: =VLOOKUP(C185,'Act. Proyecto'!$I$3:$Q$881,7,FALSE) -> Edif | BJ185: =VLOOKUP(C185,'Act. Proyecto'!$I$3:$Q$881,8,FALSE) -> 1 | BK185: =VLOOKUP(C185,'Act. Proyecto'!$I$3:$Q$881,9,FALSE) -> 10 | BL185: =IFERROR(BJ185/BK185,0) -> 0.1 | BM185: =IFERROR(BL185*BH185,0) -> 0 | BN185: =$AZ$187*$BH$185 -> 0 | BO185: =IF($BM$185=0,0,$BN$185/$BM$185) -> 0 | BP185: 6 | BQ185: =$BP$185+$BO$185-1 -> 5 | BR185: =BM185*B185 -> 0 | BS185: =BR185*BQ185 -> 0
B186: =$B$185 -> 0 | D186: F1-2 | E186: F3-4 | F186: F5-6 | G186: F7-8 | H186: F9-10 | I186: F11 | J186: F12-13 | K186: F14-15 | L186: F16 | M186: F17-18 | N186: F19-20 | O186: F21-22 | P186: F23-24 | AZ186: N° Unid Prod | BA186: N° Frentes | BB186: Pos | BC186: %
B187: 0 | C187: 5 | D187: X | E187: X | F187: X | G187: X | H187: X | I187: X | J187: X | K187: X | L187: X | M187: X | N187: X | O187: X | P187: X | AZ187: =COUNTIF(D187:P191,"A")+COUNTIF(D187:P191,"B") -> 13 | BA187: =+AZ187/BJ185*BK185 -> 130 | BB187: =+BA187+BO185 -> 130 | BC187: =IF(AZ187=BB188,"OK",BB187/'Control de Avance'!$BT$3) -> 0.5777777778
B188: 0 | C188: 4 | D188: X | E188: X | F188: X | G188: X | H188: X | I188: X | J188: X | K188: X | L188: X | M188: X | N188: X | O188: X | P188: X | AZ188: N° Total Und Prod: | BB188: =VLOOKUP('Dibujo Edificios'!$A$34,'Otras Tablas'!$G$2:$H$31,2,FALSE) -> 12
B189: 0 | C189: 3 | D189: X | E189: X | F189: X | G189: X | H189: X | I189: X | J189: X | K189: X | L189: X | M189: X | N189: X | O189: X | P189: X | AZ189: Proyección avance actual | BC189: =IF(AZ187=BB188,"OK",IF(BC191=0,"NA",(BB188/BJ185*BK185+BQ185)/('Control de Avance'!$BT$3+BC192*5))) -> NA
B190: 0 | C190: 2 | D190: X | E190: X | F190: X | G190: X | H190: X | I190: X | J190: X | K190: X | L190: X | M190: X | N190: X | O190: X | P190: X | AZ190: Frentes anteriores | BC190: =COUNTIF(D187:AC191,"A")/BJ185*BK185 -> 130
B191: 0 | C191: 1 | D191: A | E191: A | F191: A | G191: A | H191: A | I191: A | J191: A | K191: A | L191: A | M191: A | N191: A | O191: A | P191: A | AZ191: Frentes semana actual | BC191: =COUNTIF(D187:AC191,"B")/BJ185*BK185 -> 0
B192: 0 | AZ192: Saldo | BA192: =+BB188/BJ185*BK185-BC190-BC191 -> -10 | BB192: Sem | BC192: =IF(AZ187=BB188,"OK",IF(BC191=0,"NA",BA192/BC191)) -> NA
B193: 0
A195: OG1 | B195: =IF((OR($BT$5<$BP$195-5,AND($BC$197="OK",COUNTIF($D$197:$AY$201,"B")=0))),0,1) -> 0 | C195: Vigas primer piso | BD195: ENFIERRADOR | BE195: kg | BF195: =VLOOKUP(C195,'Act. Proyecto'!$I$3:$Q$881,4,FALSE) -> 288.2631757 | BG195: =VLOOKUP(C195,'Act. Proyecto'!$I$3:$Q$881,5,FALSE) -> 93 | BH195: =IFERROR(BF195*BG195,0) -> 26808.47534 | BI195: =VLOOKUP(C195,'Act. Proyecto'!$I$3:$Q$881,7,FALSE) -> Frente | BJ195: =VLOOKUP(C195,'Act. Proyecto'!$I$3:$Q$881,8,FALSE) -> 2 | BK195: =VLOOKUP(C195,'Act. Proyecto'!$I$3:$Q$881,9,FALSE) -> 10 | BL195: =IFERROR(BJ195/BK195,0) -> 0.2 | BM195: =IFERROR(BL195*BH195,0) -> 5361.695067 | BN195: =$AZ$197*$BH$195 -> 643403.4081 | BO195: =IF($BM$195=0,0,$BN$195/$BM$195) -> 120 | BP195: 7 | BQ195: =$BP$195+$BO$195-1 -> 126 | BR195: =BM195*B195 -> 0 | BS195: =BR195*BQ195 -> 0
B196: =$B$195 -> 0 | D196: F1 | E196: F2 | F196: F3 | G196: F4 | H196: F5 | I196: F6 | J196: F7 | K196: F8 | L196: F9 | M196: F10 | N196: F11 | O196: F12 | P196: F13 | Q196: F14 | R196: F15 | S196: F16 | T196: F17 | U196: F18 | V196: F19 | W196: F20 | X196: F21 | Y196: F22 | Z196: F23 | AA196: F24 | AZ196: N° Unid Prod | BA196: N° Frentes | BB196: Pos | BC196: %
B197: 0 | C197: 5 | E197: X | F197: X | G197: X | H197: X | I197: X | J197: X | K197: X | L197: X | M197: X | N197: X | O197: X | P197: X | Q197: X | R197: X | S197: X | T197: X | U197: X | V197: X | W197: X | X197: X | Y197: X | Z197: X | AA197: X | AZ197: =COUNTIF(D197:AA201,"A")+COUNTIF(D197:AA201,"B") -> 24 | BA197: =+AZ197/BJ195*BK195 -> 120 | BB197: =+BA197+BO195 -> 240 | BC197: =IF(AZ197=BB198,"OK",BB197/'Control de Avance'!$BT$3) -> OK
B198: 0 | C198: 4 | E198: X | F198: X | G198: X | H198: X | I198: X | J198: X | K198: X | L198: X | M198: X | N198: X | O198: X | P198: X | Q198: X | R198: X | S198: X | T198: X | U198: X | V198: X | W198: X | X198: X | Y198: X | Z198: X | AA198: X | AZ198: N° Total Und Prod: | BB198: =VLOOKUP('Dibujo Edificios'!$A$24,'Otras Tablas'!$G$2:$H$31,2,FALSE) -> 24
B199: 0 | C199: 3 | E199: X | F199: X | G199: X | H199: X | I199: X | J199: X | K199: X | L199: X | M199: X | N199: X | O199: X | P199: X | Q199: X | R199: X | S199: X | T199: X | U199: X | V199: X | W199: X | X199: X | Y199: X | Z199: X | AA199: X | AZ199: Proyección avance actual | BC199: =IF(AZ197=BB198,"OK",IF(BC201=0,"NA",(BB198/BJ195*BK195+BQ195)/('Control de Avance'!$BT$3+BC202*5))) -> OK
B200: 0 | C200: 2 | E200: X | F200: X | G200: X | H200: X | I200: X | J200: X | K200: X | L200: X | M200: X | N200: X | O200: X | P200: X | Q200: X | R200: X | S200: X | T200: X | U200: X | V200: X | W200: X | X200: X | Y200: X | Z200: X | AA200: X | AZ200: Frentes anteriores | BC200: =COUNTIF(D197:AC201,"A")/BJ195*BK195 -> 120
B201: 0 | C201: 1 | D201: A | E201: a | F201: a | G201: a | H201: a | I201: a | J201: a | K201: a | L201: A | M201: A | N201: a | O201: a | P201: a | Q201: a | R201: a | S201: a | T201: a | U201: A | V201: a | W201: a | X201: A | Y201: A | Z201: a | AA201: a | AZ201: Frentes semana actual | BC201: =COUNTIF(D197:AC201,"B")/BJ195*BK195 -> 0
B202: 0 | AZ202: Saldo | BA202: =+BB198/BJ195*BK195-BC200-BC201 -> 0 | BB202: Sem | BC202: =IF(AZ197=BB198,"OK",IF(BC201=0,"NA",BA202/BC201)) -> OK
B203: 0
A205: OG1 | B205: 0 | C205: Instalación canalización iluminación exterior | BD205: ELÉCTRICO OG | BE205: centro | BF205: =VLOOKUP(C205,'Act. Proyecto'!$I$3:$Q$881,4,FALSE) -> 2.5 | BG205: =VLOOKUP(C205,'Act. Proyecto'!$I$3:$Q$881,5,FALSE) -> 522 | BH205: =IFERROR(BF205*BG205,0) -> 1305 | BI205: =VLOOKUP(C205,'Act. Proyecto'!$I$3:$Q$881,7,FALSE) -> Frente | BJ205: =VLOOKUP(C205,'Act. Proyecto'!$I$3:$Q$881,8,FALSE) -> 2 | BK205: =VLOOKUP(C205,'Act. Proyecto'!$I$3:$Q$881,9,FALSE) -> 10 | BL205: =IFERROR(BJ205/BK205,0) -> 0.2 | BM205: =IFERROR(BL205*BH205,0) -> 261 | BN205: =$AZ$207*$BH$205 -> 31320 | BO205: =IF($BM$205=0,0,$BN$205/$BM$205) -> 120 | BP205: 7 | BQ205: =$BP$205+$BO$205-1 -> 126 | BR205: =BM205*B205 -> 0 | BS205: =BR205*BQ205 -> 0
B206: =$B$205 -> 0 | D206: F1 | E206: F2 | F206: F3 | G206: F4 | H206: F5 | I206: F6 | J206: F7 | K206: F8 | L206: F9 | M206: F10 | N206: F11 | O206: F12 | P206: F13 | Q206: F14 | R206: F15 | S206: F16 | T206: F17 | U206: F18 | V206: F19 | W206: F20 | X206: F21 | Y206: F22 | Z206: F23 | AA206: F24 | AZ206: N° Unid Prod | BA206: N° Frentes | BB206: Pos | BC206: %
B207: 0 | C207: 5 | D207: X | E207: X | F207: X | G207: X | H207: X | I207: X | J207: X | K207: X | L207: X | M207: X | N207: X | O207: X | P207: X | Q207: X | R207: X | S207: X | T207: X | U207: X | V207: X | W207: X | X207: X | Y207: X | Z207: X | AA207: X | AZ207: =COUNTIF(D207:AA211,"A")+COUNTIF(D207:AA211,"B") -> 24 | BA207: =+AZ207/BJ205*BK205 -> 120 | BB207: =+BA207+BO205 -> 240 | BC207: =IF(AZ207=BB208,"OK",BB207/'Control de Avance'!$BT$3) -> OK
B208: 0 | C208: 4 | D208: X | E208: X | F208: X | G208: X | H208: X | I208: X | J208: X | K208: X | L208: X | M208: X | N208: X | O208: X | P208: X | Q208: X | R208: X | S208: X | T208: X | U208: X | V208: X | W208: X | X208: X | Y208: X | Z208: X | AA208: X | AZ208: N° Total Und Prod: | BB208: =VLOOKUP('Dibujo Edificios'!$A$24,'Otras Tablas'!$G$2:$H$31,2,FALSE) -> 24
B209: 0 | C209: 3 | D209: X | E209: X | F209: X | G209: X | H209: X | I209: X | J209: X | K209: X | L209: X | M209: X | N209: X | O209: X | P209: X | Q209: X | R209: X | S209: X | T209: X | U209: X | V209: X | W209: X | X209: X | Y209: X | Z209: X | AA209: X | AZ209: Proyección avance actual | BC209: =IF(AZ207=BB208,"OK",IF(BC211=0,"NA",(BB208/BJ205*BK205+BQ205)/('Control de Avance'!$BT$3+BC212*5))) -> OK
B210: 0 | C210: 2 | D210: X | E210: X | F210: X | G210: X | H210: X | I210: X | J210: X | K210: X | L210: X | M210: X | N210: X | O210: X | P210: X | Q210: X | R210: X | S210: X | T210: X | U210: X | V210: X | W210: X | X210: X | Y210: X | Z210: X | AA210: X | AZ210: Frentes anteriores | BC210: =COUNTIF(D207:AC211,"A")/BJ205*BK205 -> 120
B211: 0 | C211: 1 | D211: a | E211: a | F211: a | G211: a | H211: a | I211: a | J211: a | K211: a | L211: a | M211: a | N211: a | O211: a | P211: a | Q211: a | R211: a | S211: a | T211: a | U211: a | V211: a | W211: a | X211: a | Y211: a | Z211: a | AA211: a | AZ211: Frentes semana actual | BC211: =COUNTIF(D207:AC211,"B")/BJ205*BK205 -> 0
B212: 0 | AZ212: Saldo | BA212: =+BB208/BJ205*BK205-BC210-BC211 -> 0 | BB212: Sem | BC212: =IF(AZ207=BB208,"OK",IF(BC211=0,"NA",BA212/BC211)) -> OK
B213: 0
A215: OG1 | B215: =IF((OR($BT$5<$BP$215-5,AND($BC$217="OK",COUNTIF($D$217:$AY$221,"B")=0))),0,1) -> 0 | C215: Trazo Sobrecimiento | BD215: TRAZO | BE215: un | BF215: =VLOOKUP(C215,'Act. Proyecto'!$I$3:$Q$881,4,FALSE) -> 2 | BG215: =VLOOKUP(C215,'Act. Proyecto'!$I$3:$Q$881,5,FALSE) -> 0 | BH215: =IFERROR(BF215*BG215,0) -> 0 | BI215: =VLOOKUP(C215,'Act. Proyecto'!$I$3:$Q$881,7,FALSE) -> Frente | BJ215: =VLOOKUP(C215,'Act. Proyecto'!$I$3:$Q$881,8,FALSE) -> 2 | BK215: =VLOOKUP(C215,'Act. Proyecto'!$I$3:$Q$881,9,FALSE) -> 10 | BL215: =IFERROR(BJ215/BK215,0) -> 0.2 | BM215: =IFERROR(BL215*BH215,0) -> 0 | BN215: =$AZ$217*$BH$215 -> 0 | BO215: =IF($BM$215=0,0,$BN$215/$BM$215) -> 0 | BP215: 7 | BQ215: =$BP$215+$BO$215-1 -> 6 | BR215: =BM215*B215 -> 0 | BS215: =BR215*BQ215 -> 0
B216: =$B$215 -> 0 | D216: F1 | E216: F2 | F216: F3 | G216: F4 | H216: F5 | I216: F6 | J216: F7 | K216: F8 | L216: F9 | M216: F10 | N216: F11 | O216: F12 | P216: F13 | Q216: F14 | R216: F15 | S216: F16 | T216: F17 | U216: F18 | V216: F19 | W216: F20 | X216: F21 | Y216: F22 | Z216: F23 | AA216: F24 | AZ216: N° Unid Prod | BA216: N° Frentes | BB216: Pos | BC216: %
B217: 0 | C217: 5 | D217: X | E217: X | F217: X | G217: X | H217: X | I217: X | J217: X | K217: X | L217: X | M217: X | N217: X | O217: X | P217: X | Q217: X | R217: X | S217: X | T217: X | U217: X | V217: X | W217: X | X217: X | Y217: X | Z217: X | AA217: X | AZ217: =COUNTIF(D217:AA221,"A")+COUNTIF(D217:AA221,"B") -> 24 | BA217: =+AZ217/BJ215*BK215 -> 120 | BB217: =+BA217+BO215 -> 120 | BC217: =IF(AZ217=BB218,"OK",BB217/'Control de Avance'!$BT$3) -> OK
B218: 0 | C218: 4 | D218: X | E218: X | F218: X | G218: X | H218: X | I218: X | J218: X | K218: X | L218: X | M218: X | N218: X | O218: X | P218: X | Q218: X | R218: X | S218: X | T218: X | U218: X | V218: X | W218: X | X218: X | Y218: X | Z218: X | AA218: X | AZ218: N° Total Und Prod: | BB218: =VLOOKUP('Dibujo Edificios'!$A$24,'Otras Tablas'!$G$2:$H$31,2,FALSE) -> 24
B219: 0 | C219: 3 | D219: X | E219: X | F219: X | G219: X | H219: X | I219: X | J219: X | K219: X | L219: X | M219: X | N219: X | O219: X | P219: X | Q219: X | R219: X | S219: X | T219: X | U219: X | V219: X | W219: X | X219: X | Y219: X | Z219: X | AA219: X | AZ219: Proyección avance actual | BC219: =IF(AZ217=BB218,"OK",IF(BC221=0,"NA",(BB218/BJ215*BK215+BQ215)/('Control de Avance'!$BT$3+BC222*5))) -> OK
B220: 0 | C220: 2 | D220: X | E220: X | F220: X | G220: X | H220: X | I220: X | J220: X | K220: X | L220: X | M220: X | N220: X | O220: X | P220: X | Q220: X | R220: X | S220: X | T220: X | U220: X | V220: X | W220: X | X220: X | Y220: X | Z220: X | AA220: X | AZ220: Frentes anteriores | BC220: =COUNTIF(D217:AC221,"A")/BJ215*BK215 -> 120
... 1456 more rows

Sheet Prog. Semanal TER
L3: FRENTES PROGRAMADOS SEMANA ACTUAL | N3: =IFERROR($D$6/SUBTOTAL(1,$T$9:$T$501),0) -> 5.881544681 | ED3: 5 | EJ3: 5 | EP3: 5 | EV3: 5 | FB3: 5 | FH3: 5 | FN3: 5 | FT3: 5 | FZ3: 5 | GF3: 5 | GL3: 5 | GR3: 5 | GX3: 5 | HC3: 5 | HI3: 5 | HO3: 5 | HU3: 5 | IA3: 5 | IG3: 5 | IM3: 5 | IS3: 5 | JA3: DIAS SIGUIENTE | JC3: 5
L4: FRENTES LOGRADOS SEMANA ACTUAL | N4: =IFERROR($E$6/SUBTOTAL(1,$T$9:$T$501),0) -> 4.229612753 | ED4: 3 | EJ4: 3 | EP4: 3 | EV4: 3 | FB4: 3 | FH4: 3 | FN4: 3 | FT4: 3 | FZ4: 3 | GF4: 3 | GL4: 3 | GR4: 3 | GX4: 3 | HC4: 3 | HI4: 3 | HO4: 3 | HU4: 3 | IA4: 3 | IG4: 3 | IM4: 3 | IS4: 3 | JA4: DIAS ACTUAL | JC4: 5
L5: FRENTES PROGRAMADOS PRÓXIMA SEMANA | N5: =IFERROR($F$6/SUBTOTAL(1,$T$9:$T$501),0) -> 5.673019113 | JA5: SEMANA ACTUAL
D6: =SUBTOTAL(9,D8:D631) -> 185868.575 | E6: =SUBTOTAL(9,E8:E631) -> 133664.2222 | F6: =SUBTOTAL(9,F8:F631) -> 179278.75 | U6: Abril dos | AA6: L | AB6: M | AC6: W | AD6: J | AE6: V | AG6: L | AH6: M | AI6: W | AJ6: J | AK6: V | AM6: L | AN6: M | AO6: W | AP6: V | AR6: L | AS6: M | AT6: W | AU6: J | AV6: V | AX6: L | AY6: M | AZ6: W | BA6: J | BB6: V | BD6: L | BE6: M | BF6: W | BG6: V | BI6: L | BJ6: M | BK6: W | BL6: J | BM6: V | BO6: L | BP6: M | BQ6: W | BR6: J | BS6: V | BU6: L | BV6: M | BW6: W | BX6: J | BY6: V | CA6: M | CB6: W | CC6: J | CD6: V | CF6: L | CG6: M | CH6: W | CI6: J | CJ6: V | CL6: L | CM6: M | CN6: W | CO6: J | CP6: V | CR6: L | CS6: M | CT6: W | CU6: J | CV6: V | CX6: L | CY6: M | CZ6: W | DA6: J | DB6: V | DD6: L | DE6: M | DF6: W | DG6: J | DH6: V | DJ6: L | DK6: M | DL6: W | DM6: J | DN6: V | DP6: L | DQ6: M | DR6: W | DS6: J | DT6: V | DV6: M | DW6: J | DX6: V | DZ6: L | EA6: M | EB6: W | EC6: J | ED6: V | EF6: L | EG6: M | EH6: W | EI6: J | EJ6: V | EL6: L | EM6: M | EN6: W | EO6: J | EP6: V | ER6: L | ES6: M | ET6: W | EU6: J | EV6: V | EX6: L | EY6: M | EZ6: W | FA6: J | FB6: V | FD6: L | FE6: M | FF6: W | FG6: J | FH6: V | FJ6: L | FK6: M | FL6: W | FM6: J | FN6: V | FP6: L | FQ6: M | FR6: W | FS6: J | FT6: V | FV6: L | FW6: M | FX6: W | FY6: J | FZ6: V | GB6: L | GC6: M | GD6: W | GE6: J | GF6: V | GH6: L | GI6: M | GJ6: W | GK6: J | GL6: V | GN6: L | GO6: M | GP6: W | GQ6: J | GR6: V | GT6: L | GU6: M | GV6: W | GW6: J | GX6: V | GZ6: L | HA6: M | HB6: W | HC6: V | HE6: L | HF6: M | HG6: W | HH6: J | HI6: V | HK6: L | HL6: M | HM6: W | HN6: J | HO6: V | HQ6: L | HR6: M | HS6: W | HT6: J | HU6: V | HW6: L | HX6: M | HY6: W | HZ6: J | IA6: V | IC6: L | ID6: M | IE6: W | IF6: J | IG6: V | II6: L | IJ6: M | IK6: W | IL6: J | IM6: V | IO6: L | IP6: M | IQ6: W | IR6: J | IS6: V | IU6: L | IV6: M | IW6: W | IX6: J | IY6: V | JA6: L | JB6: M | JC6: W | JD6: J | JE6: V | JG6: L | JH6: M | JI6: W | JJ6: J | JK6: V
A7: Inidice actividad | B7: Actividad programada (actual y proxima) | C7: Actividad Programa Actual | D7: Monto Programado Semana Actual$ | E7: Monto logrado Semana Actual$ | F7: Monto Programado Proxima Semana $ | G7: Tren | L7: Estatus | M7: Actividad | N7: Cuadrilla | O7: Und | P7: Cantidad | Q7: P.Unit | R7: P.Unit Produccion | S7: Und Producion | T7: Valor Frente | U7: 2017-03-27 | V7: =+U7+1 -> 2017-03-28 | W7: =+V7+1 -> 2017-03-29 | X7: =+W7+1 -> 2017-03-30 | Y7: =+X7+1 -> 2017-03-31 | Z7: Obra | AA7: =+Y7+3 -> 2017-04-03 | AB7: =+AA7+1 -> 2017-04-04 | AC7: =+AB7+1 -> 2017-04-05 | AD7: =+AC7+1 -> 2017-04-06 | AE7: =+AD7+1 -> 2017-04-07 | AF7: Obra | AG7: 2020-08-17 | AH7: =AG7+1 -> 2020-08-18 | AI7: =AH7+1 -> 2020-08-19 | AJ7: =AI7+1 -> 2020-08-20 | AK7: =+AJ7+1 -> 2020-08-21 | AL7: Obra | AM7: 2020-08-24 | AN7: 2020-08-25 | AO7: 2020-08-26 | AP7: =+AO7+1 -> 2020-08-27 | AQ7: Obra | AR7: 2020-08-31 | AS7: 2020-09-01 | AT7: 2020-09-02 | AU7: 2020-09-03 | AV7: =+AU7+1 -> 2020-09-04 | AW7: Obra | AX7: 2020-09-07 | AY7: 2020-09-08 | AZ7: 2020-09-09 | BA7: 2020-09-10 | BB7: =+BA7+1 -> 2020-09-11 | BC7: Obra | BD7: 2020-09-14 | BE7: 2020-09-15 | BF7: 2020-09-16 | BG7: =+BF7+1 -> 2020-09-17 | BH7: Obra | BI7: 2020-09-20 | BJ7: 2020-09-21 | BK7: 2020-09-22 | BL7: 2020-09-23 | BM7: =+BL7+1 -> 2020-09-24 | BN7: Obra | BO7: 2020-09-27 | BP7: 2020-09-28 | BQ7: 2020-09-29 | BR7: 2020-09-30 | BS7: =+BR7+1 -> 2020-10-01 | BT7: Obra | BU7: 2020-10-05 | BV7: 2020-10-06 | BW7: 2020-10-07 | BX7: 2020-10-08 | BY7: =+BX7+1 -> 2020-10-09 | BZ7: Obra | CA7: 2020-10-13 | CB7: 2020-10-14 | CC7: 2020-10-15 | CD7: =+CC7+1 -> 2020-10-16 | CE7: Obra | CF7: 2020-10-19 | CG7: 2020-10-20 | CH7: 2020-10-21 | CI7: 2020-10-22 | CJ7: =+CI7+1 -> 2020-10-23 | CK7: Obra | CL7: 2020-10-26 | CM7: 2020-10-27 | CN7: 2020-10-28 | CO7: 2020-10-29 | CP7: =+CO7+1 -> 2020-10-30 | CQ7: Obra | CR7: 2020-11-02 | CS7: 2020-11-03 | CT7: 2020-11-04 | CU7: 2020-11-05 | CV7: =+CU7+1 -> 2020-11-06 | CW7: Obra | CX7: 2020-11-09 | CY7: 2020-11-10 | CZ7: 2020-11-11 | DA7: 2020-11-12 | DB7: =+DA7+1 -> 2020-11-13 | DC7: Obra | DD7: 2020-11-16 | DE7: 2020-11-17 | DF7: 2020-11-18 | DG7: 2020-11-19 | DH7: =+DG7+1 -> 2020-11-20 | DI7: Obra | DJ7: 2020-11-23 | DK7: 2020-11-24 | DL7: 2020-11-25 | DM7: 2020-11-26 | DN7: =+DM7+1 -> 2020-11-27 | DO7: Obra | DP7: 2020-11-30 | DQ7: 2020-12-01 | DR7: 2020-12-02 | DS7: 2020-12-03 | DT7: =+DS7+1 -> 2020-12-04 | DU7: Obra | DV7: 2020-12-09 | DW7: 2020-12-10 | DX7: =+DW7+1 -> 2020-12-11 | DY7: Obra | DZ7: 2020-12-14 | EA7: 2020-12-15 | EB7: 2020-12-16 | EC7: 2020-12-17 | ED7: =+EC7+1 -> 2020-12-18 | EE7: Obra | EF7: 2020-12-21 | EG7: 2020-12-22 | EH7: 2020-12-23 | EI7: 2020-12-24 | EJ7: =+EI7+1 -> 2020-12-25 | EK7: Obra | EL7: 2020-12-28 | EM7: 2020-12-29 | EN7: 2020-12-30 | EO7: 2020-12-31 | EP7: =+EO7+1 -> 2021-01-01 | EQ7: Obra | ER7: 2021-01-04 | ES7: 2021-01-05 | ET7: 2021-01-06 | EU7: 2021-01-07 | EV7: =+EU7+1 -> 2021-01-08 | EW7: Obra | EX7: 2021-01-11 | EY7: 2021-01-12 | EZ7: 2021-01-13 | FA7: 2021-01-14 | FB7: =+FA7+1 -> 2021-01-15 | FC7: Obra | FD7: 2021-02-01 | FE7: 2021-02-02 | FF7: 2021-02-03 | FG7: 2021-02-04 | FH7: =+FG7+1 -> 2021-02-05 | FI7: Obra | FJ7: 2021-02-08 | FK7: 2021-02-09 | FL7: 2021-02-10 | FM7: 2021-02-11 | FN7: =+FM7+1 -> 2021-02-12 | FO7: Obra | FP7: 2021-02-15 | FQ7: 2021-02-16 | FR7: 2021-02-17 | FS7: 2021-02-18 | FT7: =+FS7+1 -> 2021-02-19 | FU7: Obra | FV7: 2021-02-22 | FW7: 2021-02-23 | FX7: 2021-02-24 | FY7: 2021-02-25 | FZ7: =+FY7+1 -> 2021-02-26 | GA7: Obra | GB7: 2021-03-01 | GC7: 2021-03-02 | GD7: 2021-03-03 | GE7: 2021-03-04 | GF7: =+GE7+1 -> 2021-03-05 | GG7: Obra | GH7: 2021-03-08 | GI7: 2021-03-09 | GJ7: 2021-03-10 | GK7: 2021-03-11 | GL7: =+GK7+1 -> 2021-03-12 | GM7: Obra | GN7: 2021-03-15 | GO7: 2021-03-16 | GP7: 2021-03-17 | GQ7: 2021-03-18 | GR7: =+GQ7+1 -> 2021-03-19 | GS7: Obra | GT7: 2021-03-22 | GU7: 2021-03-23 | GV7: 2021-03-24 | GW7: 2021-03-25 | GX7: =+GW7+1 -> 2021-03-26 | GY7: Obra | GZ7: 2021-03-29 | HA7: 2021-03-30 | HB7: 2021-03-31 | HC7: =+HB7+1 -> 2021-04-01 | HD7: Obra | HE7: 2021-04-04 | HF7: 2021-04-05 | HG7: 2021-04-06 | HH7: 2021-04-07 | HI7: =+HH7+1 -> 2021-04-08 | HJ7: Obra | HK7: 2021-04-11 | HL7: 2021-04-12 | HM7: 2021-04-13 | HN7: 2021-04-14 | HO7: =+HN7+1 -> 2021-04-15 | HP7: Obra | HQ7: 2021-04-18 | HR7: 2021-04-19 | HS7: 2021-04-20 | HT7: 2021-04-21 | HU7: =+HT7+1 -> 2021-04-22 | HV7: Obra | HW7: 2021-04-25 | HX7: 2021-04-26 | HY7: 2021-04-27 | HZ7: 2021-04-28 | IA7: =+HZ7+1 -> 2021-04-29 | IB7: Obra | IC7: 2021-05-02 | ID7: 2021-05-03 | IE7: 2021-05-04 | IF7: 2021-05-05 | IG7: =+IF7+1 -> 2021-05-06 | IH7: Obra | II7: 2021-05-09 | IJ7: 2021-05-10 | IK7: 2021-05-11 | IL7: 2021-05-12 | IM7: =+IL7+1 -> 2021-05-13 | IN7: Obra | IO7: 2021-05-16 | IP7: 2021-05-17 | IQ7: 2021-05-18 | IR7: 2021-05-19 | IS7: =+IR7+1 -> 2021-05-20 | IT7: Obra | IU7: 2021-05-24 | IV7: 2021-05-25 | IW7: 2021-05-26 | IX7: 2021-05-27 | IY7: 2021-05-28 | IZ7: Obra | JA7: 2021-05-31 | JB7: 2021-06-01 | JC7: 2021-06-02 | JD7: 2021-06-03 | JE7: 2021-05-28 | JF7: Obra | JG7: 2021-06-07 | JH7: 2021-06-08 | JI7: 2021-06-09 | JJ7: 2021-06-10 | JK7: 2021-06-11
A8: 1 | G8: OG1 | L8: T | M8: TREN OBRA GRUESA 1ER PISO | N8: . | O8: . | P8: 0 | Q8: . | R8: . | S8: . | U8: L | V8: M | W8: W | X8: J | Y8: V
A9: 2 | D9: =C9*$R9 -> 0 | E9: =D9*$JF$9 -> 0 | F9: =(B9-C9)*R9 -> 0 | G9: OG1 | L9: =SUMIF('Control de Avance'!$C$15:$C$9589,'Prog. Semanal TER'!M9,'Control de Avance'!$B$15:$B$9589) -> 0 | M9: Descarga y conteo fierro 1eros pisos (incluye viga 0) | N9: =VLOOKUP(M9,'Act. Proyecto'!$I$3:$Q$881,2,FALSE) -> ENFIERRADOR | O9: =VLOOKUP(M9,'Act. Proyecto'!$I$3:$Q$881,3,FALSE) -> kg | P9: =VLOOKUP(M9,'Act. Proyecto'!$I$3:$Q$881,4,FALSE) -> 2229.940393 | Q9: =VLOOKUP(M9,'Act. Proyecto'!$I$3:$Q$881,5,FALSE) -> 3 | R9: =IFERROR(P9*Q9,0) -> 6689.821179 | S9: =VLOOKUP(M9,'Act. Proyecto'!$I$3:$Q$881,7,FALSE) -> Frente | T9: =SUMIF('Resumen Frentes Semanal'!$K$6:$K$64,'Prog. Semanal TER'!N9,'Resumen Frentes Semanal'!$M$6:$M$64) -> 210632 | Z9: 0 | AF9: 0.5
A10: 4 | D10: 0 | E10: =D10*$JF$10 -> 0 | F10: 0 | G10: OG1 | L10: =SUMIF('Control de Avance'!$C$15:$C$9589,'Prog. Semanal TER'!M10,'Control de Avance'!$B$15:$B$9589) -> 0 | M10: Separar Fierro muro 1ER PISO | N10: =VLOOKUP(M10,'Act. Proyecto'!$I$3:$Q$881,2,FALSE) -> ENFIERRADOR | O10: =VLOOKUP(M10,'Act. Proyecto'!$I$3:$Q$881,3,FALSE) -> kg | P10: =VLOOKUP(M10,'Act. Proyecto'!$I$3:$Q$881,4,FALSE) -> 2229.940393 | Q10: =VLOOKUP(M10,'Act. Proyecto'!$I$3:$Q$881,5,FALSE) -> 10 | R10: =IFERROR(P10*Q10,0) -> 22299.40393 | S10: =VLOOKUP(M10,'Act. Proyecto'!$I$3:$Q$881,7,FALSE) -> Frente | T10: =SUMIF('Resumen Frentes Semanal'!$K$6:$K$64,'Prog. Semanal TER'!N10,'Resumen Frentes Semanal'!$M$6:$M$64) -> 210632 | Z10: 0
A11: 5 | D11: 0 | E11: =D11*$JF$11 -> 0 | F11: 0 | G11: OG1 | L11: =SUMIF('Control de Avance'!$C$15:$C$9589,'Prog. Semanal TER'!M11,'Control de Avance'!$B$15:$B$9589) -> 0 | M11: Fabricación fierro primer piso(nivel cero y primer piso) | N11: =VLOOKUP(M11,'Act. Proyecto'!$I$3:$Q$881,2,FALSE) -> ENFIERRADOR | O11: =VLOOKUP(M11,'Act. Proyecto'!$I$3:$Q$881,3,FALSE) -> kg | P11: =VLOOKUP(M11,'Act. Proyecto'!$I$3:$Q$881,4,FALSE) -> 1941.677217 | Q11: =VLOOKUP(M11,'Act. Proyecto'!$I$3:$Q$881,5,FALSE) -> 70 | R11: 135917.4052 | S11: =VLOOKUP(M11,'Act. Proyecto'!$I$3:$Q$881,7,FALSE) -> Frente | T11: =SUMIF('Resumen Frentes Semanal'!$K$6:$K$64,'Prog. Semanal TER'!N11,'Resumen Frentes Semanal'!$M$6:$M$64) -> 210632 | Z11: 0
A12: 6 | D12: 0 | E12: =D12*$JF$12 -> 0 | F12: 0 | G12: OG1 | L12: =SUMIF('Control de Avance'!$C$15:$C$9589,'Prog. Semanal TER'!M12,'Control de Avance'!$B$15:$B$9589) -> 0 | M12: Trazo excavación | N12: =VLOOKUP(M12,'Act. Proyecto'!$I$3:$Q$881,2,FALSE) -> TRAZO | O12: =VLOOKUP(M12,'Act. Proyecto'!$I$3:$Q$881,3,FALSE) -> un | P12: =VLOOKUP(M12,'Act. Proyecto'!$I$3:$Q$881,4,FALSE) -> 2 | Q12: =VLOOKUP(M12,'Act. Proyecto'!$I$3:$Q$881,5,FALSE) -> 0 | R12: 0 | S12: =VLOOKUP(M12,'Act. Proyecto'!$I$3:$Q$881,7,FALSE) -> Frente | T12: =SUMIF('Resumen Frentes Semanal'!$K$6:$K$64,'Prog. Semanal TER'!N12,'Resumen Frentes Semanal'!$M$6:$M$64) -> 0 | Z12: 0
A13: 7 | D13: 0 | E13: =D13*$JF$13 -> 0 | F13: 0 | G13: OG1 | L13: =SUMIF('Control de Avance'!$C$15:$C$9589,'Prog. Semanal TER'!M13,'Control de Avance'!$B$15:$B$9589) -> 0 | M13: Excavación fundaciones | N13: =VLOOKUP(M13,'Act. Proyecto'!$I$3:$Q$881,2,FALSE) -> OP. RETRO | O13: =VLOOKUP(M13,'Act. Proyecto'!$I$3:$Q$881,3,FALSE) -> m3 | P13: =VLOOKUP(M13,'Act. Proyecto'!$I$3:$Q$881,4,FALSE) -> 1 | Q13: =VLOOKUP(M13,'Act. Proyecto'!$I$3:$Q$881,5,FALSE) -> 1 | R13: 1 | S13: =VLOOKUP(M13,'Act. Proyecto'!$I$3:$Q$881,7,FALSE) -> Depto | T13: =SUMIF('Resumen Frentes Semanal'!$K$6:$K$64,'Prog. Semanal TER'!N13,'Resumen Frentes Semanal'!$M$6:$M$64) -> 0 | Z13: 0.5
A14: 8 | D14: 0 | E14: =D14*$JF$14 -> 0 | F14: 0 | G14: OG1 | L14: =SUMIF('Control de Avance'!$C$15:$C$9589,'Prog. Semanal TER'!M14,'Control de Avance'!$B$15:$B$9589) -> 0 | M14: Perfilado de excavación | N14: =VLOOKUP(M14,'Act. Proyecto'!$I$3:$Q$881,2,FALSE) -> HORMIGÓN | O14: =VLOOKUP(M14,'Act. Proyecto'!$I$3:$Q$881,3,FALSE) -> depto | P14: =VLOOKUP(M14,'Act. Proyecto'!$I$3:$Q$881,4,FALSE) -> 2 | Q14: =VLOOKUP(M14,'Act. Proyecto'!$I$3:$Q$881,5,FALSE) -> 12400 | R14: 24800 | S14: =VLOOKUP(M14,'Act. Proyecto'!$I$3:$Q$881,7,FALSE) -> Frente | T14: =SUMIF('Resumen Frentes Semanal'!$K$6:$K$64,'Prog. Semanal TER'!N14,'Resumen Frentes Semanal'!$M$6:$M$64) -> 204000 | Z14: 0
A15: 8 | D15: 0 | E15: =D15*$JF$15 -> 0 | F15: 0 | G15: OG1 | L15: =SUMIF('Control de Avance'!$C$15:$C$9589,'Prog. Semanal TER'!M15,'Control de Avance'!$B$15:$B$9589) -> 0 | M15: Instalación de malla tierra | N15: =VLOOKUP(M15,'Act. Proyecto'!$I$3:$Q$881,2,FALSE) -> ELÉCTRICO OG | O15: =VLOOKUP(M15,'Act. Proyecto'!$I$3:$Q$881,3,FALSE) -> puntos | P15: =VLOOKUP(M15,'Act. Proyecto'!$I$3:$Q$881,4,FALSE) -> 4 | Q15: =VLOOKUP(M15,'Act. Proyecto'!$I$3:$Q$881,5,FALSE) -> 4025 | R15: 16100 | S15: =VLOOKUP(M15,'Act. Proyecto'!$I$3:$Q$881,7,FALSE) -> Edif | T15: =SUMIF('Resumen Frentes Semanal'!$K$6:$K$64,'Prog. Semanal TER'!N15,'Resumen Frentes Semanal'!$M$6:$M$64) -> 123000 | Z15: 1
A16: 9 | D16: 0 | E16: =D16*$JF$16 -> 0 | F16: 0 | G16: OG1 | L16: =SUMIF('Control de Avance'!$C$15:$C$9589,'Prog. Semanal TER'!M16,'Control de Avance'!$B$15:$B$9589) -> 0 | M16: Fabricar calugas de hormigón | N16: =VLOOKUP(M16,'Act. Proyecto'!$I$3:$Q$881,2,FALSE) -> HORMIGÓN | O16: =VLOOKUP(M16,'Act. Proyecto'!$I$3:$Q$881,3,FALSE) -> depto | P16: =VLOOKUP(M16,'Act. Proyecto'!$I$3:$Q$881,4,FALSE) -> 2 | Q16: =VLOOKUP(M16,'Act. Proyecto'!$I$3:$Q$881,5,FALSE) -> 2580 | R16: 5160 | S16: =VLOOKUP(M16,'Act. Proyecto'!$I$3:$Q$881,7,FALSE) -> Frente | T16: =SUMIF('Resumen Frentes Semanal'!$K$6:$K$64,'Prog. Semanal TER'!N16,'Resumen Frentes Semanal'!$M$6:$M$64) -> 204000 | Z16: 0
A17: 10 | D17: 0 | E17: =D17*$JF$17 -> 0 | F17: 0 | G17: OG1 | L17: =SUMIF('Control de Avance'!$C$15:$C$9589,'Prog. Semanal TER'!M17,'Control de Avance'!$B$15:$B$9589) -> 0 | M17: Emplantillado | N17: =VLOOKUP(M17,'Act. Proyecto'!$I$3:$Q$881,2,FALSE) -> HORMIGÓN | O17: =VLOOKUP(M17,'Act. Proyecto'!$I$3:$Q$881,3,FALSE) -> m3 | P17: =VLOOKUP(M17,'Act. Proyecto'!$I$3:$Q$881,4,FALSE) -> 1.288359375 | Q17: =VLOOKUP(M17,'Act. Proyecto'!$I$3:$Q$881,5,FALSE) -> 2800 | R17: 3607.40625 | S17: =VLOOKUP(M17,'Act. Proyecto'!$I$3:$Q$881,7,FALSE) -> Depto | T17: =SUMIF('Resumen Frentes Semanal'!$K$6:$K$64,'Prog. Semanal TER'!N17,'Resumen Frentes Semanal'!$M$6:$M$64) -> 204000 | Z17: 1
A18: 10 | D18: 0 | E18: =D18*$JF$18 -> 0 | F18: 0 | G18: OG1 | L18: =SUMIF('Control de Avance'!$C$15:$C$9589,'Prog. Semanal TER'!M18,'Control de Avance'!$B$15:$B$9589) -> 0 | M18: Grua emplantillado 1eros Frentes | N18: =VLOOKUP(M18,'Act. Proyecto'!$I$3:$Q$881,2,FALSE) -> SOBRECIMIENTO Y CORONACIÓN | O18: =VLOOKUP(M18,'Act. Proyecto'!$I$3:$Q$881,3,FALSE) -> m3 | P18: =VLOOKUP(M18,'Act. Proyecto'!$I$3:$Q$881,4,FALSE) -> 1.288359375 | Q18: =VLOOKUP(M18,'Act. Proyecto'!$I$3:$Q$881,5,FALSE) -> 764 | R18: 984.3065625 | S18: =VLOOKUP(M18,'Act. Proyecto'!$I$3:$Q$881,7,FALSE) -> Depto | T18: =SUMIF('Resumen Frentes Semanal'!$K$6:$K$64,'Prog. Semanal TER'!N18,'Resumen Frentes Semanal'!$M$6:$M$64) -> 95000 | Z18: 0
A19: 12 | D19: 0 | E19: =D19*$JF$19 -> 0 | F19: 0 | G19: OG1 | L19: =SUMIF('Control de Avance'!$C$15:$C$9589,'Prog. Semanal TER'!M19,'Control de Avance'!$B$15:$B$9589) -> 0 | M19: Encintado | N19: =VLOOKUP(M19,'Act. Proyecto'!$I$3:$Q$881,2,FALSE) -> TRAZO | O19: =VLOOKUP(M19,'Act. Proyecto'!$I$3:$Q$881,3,FALSE) -> depto | P19: =VLOOKUP(M19,'Act. Proyecto'!$I$3:$Q$881,4,FALSE) -> 2 | Q19: =VLOOKUP(M19,'Act. Proyecto'!$I$3:$Q$881,5,FALSE) -> 0 | R19: 0 | S19: =VLOOKUP(M19,'Act. Proyecto'!$I$3:$Q$881,7,FALSE) -> Frente | T19: =SUMIF('Resumen Frentes Semanal'!$K$6:$K$64,'Prog. Semanal TER'!N19,'Resumen Frentes Semanal'!$M$6:$M$64) -> 0 | Z19: 0
A20: 13 | D20: 0 | E20: =D20*$JF$20 -> 0 | F20: 0 | G20: OG1 | L20: =SUMIF('Control de Avance'!$C$15:$C$9589,'Prog. Semanal TER'!M20,'Control de Avance'!$B$15:$B$9589) -> 0 | M20: Instalar fierro primer piso | N20: =VLOOKUP(M20,'Act. Proyecto'!$I$3:$Q$881,2,FALSE) -> ENFIERRADOR | O20: =VLOOKUP(M20,'Act. Proyecto'!$I$3:$Q$881,3,FALSE) -> kg | P20: =VLOOKUP(M20,'Act. Proyecto'!$I$3:$Q$881,4,FALSE) -> 1941.677217 | Q20: =VLOOKUP(M20,'Act. Proyecto'!$I$3:$Q$881,5,FALSE) -> 23 | R20: 44658.576 | S20: =VLOOKUP(M20,'Act. Proyecto'!$I$3:$Q$881,7,FALSE) -> Frente | T20: =SUMIF('Resumen Frentes Semanal'!$K$6:$K$64,'Prog. Semanal TER'!N20,'Resumen Frentes Semanal'!$M$6:$M$64) -> 210632 | Z20: 0
A21: 13 | D21: 0 | E21: =D21*$JF$21 -> 0 | F21: 0 | G21: OG1 | L21: =SUMIF('Control de Avance'!$C$15:$C$9589,'Prog. Semanal TER'!M21,'Control de Avance'!$B$15:$B$9589) -> 0 | M21: Grua Fierro 1er piso 1eros Frentes | N21: =VLOOKUP(M21,'Act. Proyecto'!$I$3:$Q$881,2,FALSE) -> SOBRECIMIENTO Y CORONACIÓN | O21: =VLOOKUP(M21,'Act. Proyecto'!$I$3:$Q$881,3,FALSE) -> kg | P21: =VLOOKUP(M21,'Act. Proyecto'!$I$3:$Q$881,4,FALSE) -> 1941.677217 | Q21: =VLOOKUP(M21,'Act. Proyecto'!$I$3:$Q$881,5,FALSE) -> 5 | R21: 9708.386087 | S21: =VLOOKUP(M21,'Act. Proyecto'!$I$3:$Q$881,7,FALSE) -> Frente | T21: =SUMIF('Resumen Frentes Semanal'!$K$6:$K$64,'Prog. Semanal TER'!N21,'Resumen Frentes Semanal'!$M$6:$M$64) -> 95000 | Z21: 0
A22: 13 | D22: 0 | E22: =D22*$JF$22 -> 0 | F22: 0 | G22: OG1 | L22: =SUMIF('Control de Avance'!$C$15:$C$9589,'Prog. Semanal TER'!M22,'Control de Avance'!$B$15:$B$9589) -> 0 | M22: Instalación de tuberías generales en fundación | N22: =VLOOKUP(M22,'Act. Proyecto'!$I$3:$Q$881,2,FALSE) -> ELÉCTRICO OG | O22: =VLOOKUP(M22,'Act. Proyecto'!$I$3:$Q$881,3,FALSE) -> ml | P22: =VLOOKUP(M22,'Act. Proyecto'!$I$3:$Q$881,4,FALSE) -> 124 | Q22: =VLOOKUP(M22,'Act. Proyecto'!$I$3:$Q$881,5,FALSE) -> 153 | R22: 18972 | S22: =VLOOKUP(M22,'Act. Proyecto'!$I$3:$Q$881,7,FALSE) -> Edif | T22: =SUMIF('Resumen Frentes Semanal'!$K$6:$K$64,'Prog. Semanal TER'!N22,'Resumen Frentes Semanal'!$M$6:$M$64) -> 123000 | Z22: 0
A23: 13 | D23: 0 | E23: =D23*$JF$23 -> 0 | F23: 0 | G23: OG1 | L23: =SUMIF('Control de Avance'!$C$15:$C$9589,'Prog. Semanal TER'!M23,'Control de Avance'!$B$15:$B$9589) -> 0 | M23: Prefabricación elementos eléctricos | N23: =VLOOKUP(M23,'Act. Proyecto'!$I$3:$Q$881,2,FALSE) -> ELÉCTRICO OG | O23: =VLOOKUP(M23,'Act. Proyecto'!$I$3:$Q$881,3,FALSE) -> uni | P23: =VLOOKUP(M23,'Act. Proyecto'!$I$3:$Q$881,4,FALSE) -> 128.65 | Q23: =VLOOKUP(M23,'Act. Proyecto'!$I$3:$Q$881,5,FALSE) -> 112.8 | R23: 14511.72 | S23: =VLOOKUP(M23,'Act. Proyecto'!$I$3:$Q$881,7,FALSE) -> Frente | T23: =SUMIF('Resumen Frentes Semanal'!$K$6:$K$64,'Prog. Semanal TER'!N23,'Resumen Frentes Semanal'!$M$6:$M$64) -> 123000 | Z23: 0
A24: 14 | D24: 0 | E24: =D24*$JF$24 -> 0 | F24: 0 | G24: OG1 | L24: =SUMIF('Control de Avance'!$C$15:$C$9589,'Prog. Semanal TER'!M24,'Control de Avance'!$B$15:$B$9589) -> 0 | M24: Hormigón fundación | N24: =VLOOKUP(M24,'Act. Proyecto'!$I$3:$Q$881,2,FALSE) -> HORMIGÓN | O24: =VLOOKUP(M24,'Act. Proyecto'!$I$3:$Q$881,3,FALSE) -> m3 | P24: =VLOOKUP(M24,'Act. Proyecto'!$I$3:$Q$881,4,FALSE) -> 15.4603125 | Q24: =VLOOKUP(M24,'Act. Proyecto'!$I$3:$Q$881,5,FALSE) -> 2850 | R24: 44061.89062 | S24: =VLOOKUP(M24,'Act. Proyecto'!$I$3:$Q$881,7,FALSE) -> Depto | T24: =SUMIF('Resumen Frentes Semanal'!$K$6:$K$64,'Prog. Semanal TER'!N24,'Resumen Frentes Semanal'!$M$6:$M$64) -> 204000 | Z24: 0
A25: 14 | D25: 0 | E25: =D25*$JF$25 -> 0 | F25: 0 | G25: OG1 | L25: =SUMIF('Control de Avance'!$C$15:$C$9589,'Prog. Semanal TER'!M25,'Control de Avance'!$B$15:$B$9589) -> 0 | M25: Grua Fundación 1eros Frentes | N25: =VLOOKUP(M25,'Act. Proyecto'!$I$3:$Q$881,2,FALSE) -> SOBRECIMIENTO Y CORONACIÓN | O25: =VLOOKUP(M25,'Act. Proyecto'!$I$3:$Q$881,3,FALSE) -> m3 | P25: =VLOOKUP(M25,'Act. Proyecto'!$I$3:$Q$881,4,FALSE) -> 15.4603125 | Q25: =VLOOKUP(M25,'Act. Proyecto'!$I$3:$Q$881,5,FALSE) -> 780 | R25: 12059.04375 | S25: =VLOOKUP(M25,'Act. Proyecto'!$I$3:$Q$881,7,FALSE) -> Depto | T25: =SUMIF('Resumen Frentes Semanal'!$K$6:$K$64,'Prog. Semanal TER'!N25,'Resumen Frentes Semanal'!$M$6:$M$64) -> 95000 | Z25: 0
A26: 15 | D26: 0 | E26: =D26*$JF$26 -> 0 | F26: 0 | G26: OG1 | L26: =SUMIF('Control de Avance'!$C$15:$C$9589,'Prog. Semanal TER'!M26,'Control de Avance'!$B$15:$B$9589) -> 0 | M26: Emplantillado para viga escala | N26: =VLOOKUP(M26,'Act. Proyecto'!$I$3:$Q$881,2,FALSE) -> HORMIGÓN | O26: =VLOOKUP(M26,'Act. Proyecto'!$I$3:$Q$881,3,FALSE) -> edif | P26: =VLOOKUP(M26,'Act. Proyecto'!$I$3:$Q$881,4,FALSE) -> 0 | Q26: =VLOOKUP(M26,'Act. Proyecto'!$I$3:$Q$881,5,FALSE) -> 540 | R26: 0 | S26: =VLOOKUP(M26,'Act. Proyecto'!$I$3:$Q$881,7,FALSE) -> Edif | T26: =SUMIF('Resumen Frentes Semanal'!$K$6:$K$64,'Prog. Semanal TER'!N26,'Resumen Frentes Semanal'!$M$6:$M$64) -> 204000 | Z26: 0
A27: 16 | D27: 0 | E27: =D27*$JF$27 -> 0 | F27: 0 | G27: OG1 | L27: =SUMIF('Control de Avance'!$C$15:$C$9589,'Prog. Semanal TER'!M27,'Control de Avance'!$B$15:$B$9589) -> 0 | M27: Vigas primer piso | N27: =VLOOKUP(M27,'Act. Proyecto'!$I$3:$Q$881,2,FALSE) -> ENFIERRADOR | O27: =VLOOKUP(M27,'Act. Proyecto'!$I$3:$Q$881,3,FALSE) -> kg | P27: =VLOOKUP(M27,'Act. Proyecto'!$I$3:$Q$881,4,FALSE) -> 288.2631757 | Q27: =VLOOKUP(M27,'Act. Proyecto'!$I$3:$Q$881,5,FALSE) -> 93 | R27: 26808.47534 | S27: =VLOOKUP(M27,'Act. Proyecto'!$I$3:$Q$881,7,FALSE) -> Frente | T27: =SUMIF('Resumen Frentes Semanal'!$K$6:$K$64,'Prog. Semanal TER'!N27,'Resumen Frentes Semanal'!$M$6:$M$64) -> 210632 | Z27: 0
A28: 14 | D28: 0 | E28: =D28*$JF$28 -> 0 | F28: 0 | G28: OG1 | L28: =SUMIF('Control de Avance'!$C$15:$C$9589,'Prog. Semanal TER'!M28,'Control de Avance'!$B$15:$B$9589) -> 0 | M28: Instalación canalización iluminación exterior | N28: =VLOOKUP(M28,'Act. Proyecto'!$I$3:$Q$881,2,FALSE) -> ELÉCTRICO OG | O28: =VLOOKUP(M28,'Act. Proyecto'!$I$3:$Q$881,3,FALSE) -> centro | P28: =VLOOKUP(M28,'Act. Proyecto'!$I$3:$Q$881,4,FALSE) -> 2.5 | Q28: =VLOOKUP(M28,'Act. Proyecto'!$I$3:$Q$881,5,FALSE) -> 522 | R28: 1305 | S28: =VLOOKUP(M28,'Act. Proyecto'!$I$3:$Q$881,7,FALSE) -> Frente | T28: =SUMIF('Resumen Frentes Semanal'!$K$6:$K$64,'Prog. Semanal TER'!N28,'Resumen Frentes Semanal'!$M$6:$M$64) -> 123000 | Z28: 0
A29: 17 | D29: 0 | E29: =D29*$JF$29 -> 0 | F29: 0 | G29: OG1 | L29: =SUMIF('Control de Avance'!$C$15:$C$9589,'Prog. Semanal TER'!M29,'Control de Avance'!$B$15:$B$9589) -> 0 | M29: Trazo Sobrecimiento | N29: =VLOOKUP(M29,'Act. Proyecto'!$I$3:$Q$881,2,FALSE) -> TRAZO | O29: =VLOOKUP(M29,'Act. Proyecto'!$I$3:$Q$881,3,FALSE) -> un | P29: =VLOOKUP(M29,'Act. Proyecto'!$I$3:$Q$881,4,FALSE) -> 2 | Q29: =VLOOKUP(M29,'Act. Proyecto'!$I$3:$Q$881,5,FALSE) -> 0 | R29: 0 | S29: =VLOOKUP(M29,'Act. Proyecto'!$I$3:$Q$881,7,FALSE) -> Frente | T29: =SUMIF('Resumen Frentes Semanal'!$K$6:$K$64,'Prog. Semanal TER'!N29,'Resumen Frentes Semanal'!$M$6:$M$64) -> 0 | Z29: 0
A30: 18 | D30: 0 | E30: =D30*$JF$30 -> 0 | F30: 0 | G30: OG1 | L30: =SUMIF('Control de Avance'!$C$15:$C$9589,'Prog. Semanal TER'!M30,'Control de Avance'!$B$15:$B$9589) -> 0 | M30: Moldaje sobrecimiento muro | N30: =VLOOKUP(M30,'Act. Proyecto'!$I$3:$Q$881,2,FALSE) -> SOBRECIMIENTO Y CORONACIÓN | O30: =VLOOKUP(M30,'Act. Proyecto'!$I$3:$Q$881,3,FALSE) -> m2 | P30: =VLOOKUP(M30,'Act. Proyecto'!$I$3:$Q$881,4,FALSE) -> 35.099375 | Q30: =VLOOKUP(M30,'Act. Proyecto'!$I$3:$Q$881,5,FALSE) -> 1070 | R30: 37556.33125 | S30: =VLOOKUP(M30,'Act. Proyecto'!$I$3:$Q$881,7,FALSE) -> Depto | T30: =SUMIF('Resumen Frentes Semanal'!$K$6:$K$64,'Prog. Semanal TER'!N30,'Resumen Frentes Semanal'!$M$6:$M$64) -> 95000 | Z30: 0
A31: 21 | D31: 0 | E31: =D31*$JF$31 -> 0 | F31: 0 | G31: OG1 | L31: =SUMIF('Control de Avance'!$C$15:$C$9589,'Prog. Semanal TER'!M31,'Control de Avance'!$B$15:$B$9589) -> 0 | M31: Hormigón sobrecimiento muro | N31: =VLOOKUP(M31,'Act. Proyecto'!$I$3:$Q$881,2,FALSE) -> HORMIGÓN | O31: =VLOOKUP(M31,'Act. Proyecto'!$I$3:$Q$881,3,FALSE) -> m3 | P31: =VLOOKUP(M31,'Act. Proyecto'!$I$3:$Q$881,4,FALSE) -> 2.430833333 | Q31: =VLOOKUP(M31,'Act. Proyecto'!$I$3:$Q$881,5,FALSE) -> 5380 | R31: 13077.88333 | S31: =VLOOKUP(M31,'Act. Proyecto'!$I$3:$Q$881,7,FALSE) -> Depto | T31: =SUMIF('Resumen Frentes Semanal'!$K$6:$K$64,'Prog. Semanal TER'!N31,'Resumen Frentes Semanal'!$M$6:$M$64) -> 204000 | Z31: 0
A32: 21 | D32: 0 | E32: =D32*$JF$32 -> 0 | F32: 0 | G32: OG1 | L32: =SUMIF('Control de Avance'!$C$15:$C$9589,'Prog. Semanal TER'!M32,'Control de Avance'!$B$15:$B$9589) -> 0 | M32: Grua Sobrecimiento 1eros Frentes | N32: =VLOOKUP(M32,'Act. Proyecto'!$I$3:$Q$881,2,FALSE) -> SOBRECIMIENTO Y CORONACIÓN | O32: =VLOOKUP(M32,'Act. Proyecto'!$I$3:$Q$881,3,FALSE) -> m3 | P32: =VLOOKUP(M32,'Act. Proyecto'!$I$3:$Q$881,4,FALSE) -> 2.430833333 | Q32: =VLOOKUP(M32,'Act. Proyecto'!$I$3:$Q$881,5,FALSE) -> 1155 | R32: 2807.6125 | S32: =VLOOKUP(M32,'Act. Proyecto'!$I$3:$Q$881,7,FALSE) -> Depto | T32: =SUMIF('Resumen Frentes Semanal'!$K$6:$K$64,'Prog. Semanal TER'!N32,'Resumen Frentes Semanal'!$M$6:$M$64) -> 95000 | Z32: 0
A33: 24 | D33: 0 | E33: =D33*$JF$33 -> 0 | F33: 0 | G33: OG1 | L33: =SUMIF('Control de Avance'!$C$15:$C$9589,'Prog. Semanal TER'!M33,'Control de Avance'!$B$15:$B$9589) -> 0 | M33: Descimbre sobrecimiento muro | N33: =VLOOKUP(M33,'Act. Proyecto'!$I$3:$Q$881,2,FALSE) -> SOBRECIMIENTO Y CORONACIÓN | O33: =VLOOKUP(M33,'Act. Proyecto'!$I$3:$Q$881,3,FALSE) -> m2 | P33: =VLOOKUP(M33,'Act. Proyecto'!$I$3:$Q$881,4,FALSE) -> 35.099375 | Q33: =VLOOKUP(M33,'Act. Proyecto'!$I$3:$Q$881,5,FALSE) -> 375 | R33: 13162.26563 | S33: =VLOOKUP(M33,'Act. Proyecto'!$I$3:$Q$881,7,FALSE) -> Depto | T33: =SUMIF('Resumen Frentes Semanal'!$K$6:$K$64,'Prog. Semanal TER'!N33,'Resumen Frentes Semanal'!$M$6:$M$64) -> 95000 | Z33: 0
A34: 25 | D34: 0 | E34: =D34*$JF$34 -> 0 | F34: 0 | G34: OG1 | L34: =SUMIF('Control de Avance'!$C$15:$C$9589,'Prog. Semanal TER'!M34,'Control de Avance'!$B$15:$B$9589) -> 0 | M34: Impermeabilización sobrecimiento | N34: =VLOOKUP(M34,'Act. Proyecto'!$I$3:$Q$881,2,FALSE) -> SOBRECIMIENTO Y CORONACIÓN | O34: =VLOOKUP(M34,'Act. Proyecto'!$I$3:$Q$881,3,FALSE) -> depto | P34: =VLOOKUP(M34,'Act. Proyecto'!$I$3:$Q$881,4,FALSE) -> 2 | Q34: =VLOOKUP(M34,'Act. Proyecto'!$I$3:$Q$881,5,FALSE) -> 3740 | R34: 7480 | S34: =VLOOKUP(M34,'Act. Proyecto'!$I$3:$Q$881,7,FALSE) -> Frente | T34: =SUMIF('Resumen Frentes Semanal'!$K$6:$K$64,'Prog. Semanal TER'!N34,'Resumen Frentes Semanal'!$M$6:$M$64) -> 95000 | Z34: 0
A35: 26 | D35: 0 | E35: =D35*$JF$35 -> 0 | F35: 0 | G35: OG1 | L35: =SUMIF('Control de Avance'!$C$15:$C$9589,'Prog. Semanal TER'!M35,'Control de Avance'!$B$15:$B$9589) -> 0 | M35: Alcantarillado primer piso | N35: =VLOOKUP(M35,'Act. Proyecto'!$I$3:$Q$881,2,FALSE) -> GASFITER OG | O35: =VLOOKUP(M35,'Act. Proyecto'!$I$3:$Q$881,3,FALSE) -> dh | P35: =VLOOKUP(M35,'Act. Proyecto'!$I$3:$Q$881,4,FALSE) -> 0.900234375 | Q35: =VLOOKUP(M35,'Act. Proyecto'!$I$3:$Q$881,5,FALSE) -> 1 | R35: 0.900234375 | S35: =VLOOKUP(M35,'Act. Proyecto'!$I$3:$Q$881,7,FALSE) -> Depto | T35: =SUMIF('Resumen Frentes Semanal'!$K$6:$K$64,'Prog. Semanal TER'!N35,'Resumen Frentes Semanal'!$M$6:$M$64) -> 0 | Z35: 0
A36: 27 | D36: 0 | E36: =D36*$JF$36 -> 0 | F36: 0 | G36: OG1 | L36: =SUMIF('Control de Avance'!$C$15:$C$9589,'Prog. Semanal TER'!M36,'Control de Avance'!$B$15:$B$9589) -> 0 | M36: 1era capa de relleno (incluye moldaje y relleno terraza) | N36: =VLOOKUP(M36,'Act. Proyecto'!$I$3:$Q$881,2,FALSE) -> SOBRECIMIENTO Y CORONACIÓN | O36: =VLOOKUP(M36,'Act. Proyecto'!$I$3:$Q$881,3,FALSE) -> depto | P36: =VLOOKUP(M36,'Act. Proyecto'!$I$3:$Q$881,4,FALSE) -> 1 | Q36: =VLOOKUP(M36,'Act. Proyecto'!$I$3:$Q$881,5,FALSE) -> 20500 | R36: 20500 | S36: =VLOOKUP(M36,'Act. Proyecto'!$I$3:$Q$881,7,FALSE) -> Depto | T36: =SUMIF('Resumen Frentes Semanal'!$K$6:$K$64,'Prog. Semanal TER'!N36,'Resumen Frentes Semanal'!$M$6:$M$64) -> 95000 | Z36: 0
A37: 28 | D37: 0 | E37: =D37*$JF$37 -> 0 | F37: 0 | G37: OG1 | L37: =SUMIF('Control de Avance'!$C$15:$C$9589,'Prog. Semanal TER'!M37,'Control de Avance'!$B$15:$B$9589) -> 0 | M37: 2da capa de relleno (incluye moldaje y relleno terraza) | N37: =VLOOKUP(M37,'Act. Proyecto'!$I$3:$Q$881,2,FALSE) -> SOBRECIMIENTO Y CORONACIÓN | O37: =VLOOKUP(M37,'Act. Proyecto'!$I$3:$Q$881,3,FALSE) -> depto | P37: =VLOOKUP(M37,'Act. Proyecto'!$I$3:$Q$881,4,FALSE) -> 1 | Q37: =VLOOKUP(M37,'Act. Proyecto'!$I$3:$Q$881,5,FALSE) -> 20500 | R37: 20500 | S37: =VLOOKUP(M37,'Act. Proyecto'!$I$3:$Q$881,7,FALSE) -> Depto | T37: =SUMIF('Resumen Frentes Semanal'!$K$6:$K$64,'Prog. Semanal TER'!N37,'Resumen Frentes Semanal'!$M$6:$M$64) -> 95000 | Z37: 0
A38: 29 | D38: 0 | E38: =D38*$JF$38 -> 0 | F38: 0 | G38: OG1 | L38: =SUMIF('Control de Avance'!$C$15:$C$9589,'Prog. Semanal TER'!M38,'Control de Avance'!$B$15:$B$9589) -> 0 | M38: Capa final relleno (incluye moldaje y relleno terraza) | N38: =VLOOKUP(M38,'Act. Proyecto'!$I$3:$Q$881,2,FALSE) -> SOBRECIMIENTO Y CORONACIÓN | O38: =VLOOKUP(M38,'Act. Proyecto'!$I$3:$Q$881,3,FALSE) -> depto | P38: =VLOOKUP(M38,'Act. Proyecto'!$I$3:$Q$881,4,FALSE) -> 1 | Q38: =VLOOKUP(M38,'Act. Proyecto'!$I$3:$Q$881,5,FALSE) -> 20500 | R38: 20500 | S38: =VLOOKUP(M38,'Act. Proyecto'!$I$3:$Q$881,7,FALSE) -> Depto | T38: =SUMIF('Resumen Frentes Semanal'!$K$6:$K$64,'Prog. Semanal TER'!N38,'Resumen Frentes Semanal'!$M$6:$M$64) -> 95000 | Z38: 0
A39: 30 | D39: 0 | E39: =D39*$JF$39 -> 0 | F39: 0 | G39: OG1 | L39: =SUMIF('Control de Avance'!$C$15:$C$9589,'Prog. Semanal TER'!M39,'Control de Avance'!$B$15:$B$9589) -> 0 | M39: Alcantarillado sala de basura | N39: =VLOOKUP(M39,'Act. Proyecto'!$I$3:$Q$881,2,FALSE) -> GASFITER OG | O39: =VLOOKUP(M39,'Act. Proyecto'!$I$3:$Q$881,3,FALSE) -> cu | P39: =VLOOKUP(M39,'Act. Proyecto'!$I$3:$Q$881,4,FALSE) -> 0 | Q39: =VLOOKUP(M39,'Act. Proyecto'!$I$3:$Q$881,5,FALSE) -> 1 | R39: 0 | S39: =VLOOKUP(M39,'Act. Proyecto'!$I$3:$Q$881,7,FALSE) -> Edif | T39: =SUMIF('Resumen Frentes Semanal'!$K$6:$K$64,'Prog. Semanal TER'!N39,'Resumen Frentes Semanal'!$M$6:$M$64) -> 0 | Z39: 0
A40: 31 | D40: 0 | E40: =D40*$JF$40 -> 0 | F40: 0 | G40: OG1 | L40: =SUMIF('Control de Avance'!$C$15:$C$9589,'Prog. Semanal TER'!M40,'Control de Avance'!$B$15:$B$9589) -> 0 | M40: Relleno pasillo Nivel 0 | N40: =VLOOKUP(M40,'Act. Proyecto'!$I$3:$Q$881,2,FALSE) -> SOBRECIMIENTO Y CORONACIÓN | O40: =VLOOKUP(M40,'Act. Proyecto'!$I$3:$Q$881,3,FALSE) -> zc | P40: =VLOOKUP(M40,'Act. Proyecto'!$I$3:$Q$881,4,FALSE) -> 1 | Q40: =VLOOKUP(M40,'Act. Proyecto'!$I$3:$Q$881,5,FALSE) -> 38300 | R40: 38300 | S40: =VLOOKUP(M40,'Act. Proyecto'!$I$3:$Q$881,7,FALSE) -> Edif | T40: =SUMIF('Resumen Frentes Semanal'!$K$6:$K$64,'Prog. Semanal TER'!N40,'Resumen Frentes Semanal'!$M$6:$M$64) -> 95000 | Z40: 0
A41: 32 | D41: 0 | E41: =D41*$JF$41 -> 0 | F41: 0 | G41: OG1 | L41: =SUMIF('Control de Avance'!$C$15:$C$9589,'Prog. Semanal TER'!M41,'Control de Avance'!$B$15:$B$9589) -> 0 | M41: Relleno costado edificios | N41: =VLOOKUP(M41,'Act. Proyecto'!$I$3:$Q$881,2,FALSE) -> SOBRECIMIENTO Y CORONACIÓN | O41: =VLOOKUP(M41,'Act. Proyecto'!$I$3:$Q$881,3,FALSE) -> depto | P41: =VLOOKUP(M41,'Act. Proyecto'!$I$3:$Q$881,4,FALSE) -> 2 | Q41: =VLOOKUP(M41,'Act. Proyecto'!$I$3:$Q$881,5,FALSE) -> 840 | R41: 1680 | S41: =VLOOKUP(M41,'Act. Proyecto'!$I$3:$Q$881,7,FALSE) -> Frente | T41: =SUMIF('Resumen Frentes Semanal'!$K$6:$K$64,'Prog. Semanal TER'!N41,'Resumen Frentes Semanal'!$M$6:$M$64) -> 95000 | Z41: 0
A42: 33 | D42: 0 | E42: =D42*$JF$42 -> 0 | F42: 0 | G42: OG1 | L42: =SUMIF('Control de Avance'!$C$15:$C$9589,'Prog. Semanal TER'!M42,'Control de Avance'!$B$15:$B$9589) -> 0 | M42: Instalaciones agua radier | N42: =VLOOKUP(M42,'Act. Proyecto'!$I$3:$Q$881,2,FALSE) -> GASFITER OG | O42: =VLOOKUP(M42,'Act. Proyecto'!$I$3:$Q$881,3,FALSE) -> dh | P42: =VLOOKUP(M42,'Act. Proyecto'!$I$3:$Q$881,4,FALSE) -> 0.8581944444 | Q42: =VLOOKUP(M42,'Act. Proyecto'!$I$3:$Q$881,5,FALSE) -> 1 | R42: 0.8581944444 | S42: =VLOOKUP(M42,'Act. Proyecto'!$I$3:$Q$881,7,FALSE) -> Frente | T42: =SUMIF('Resumen Frentes Semanal'!$K$6:$K$64,'Prog. Semanal TER'!N42,'Resumen Frentes Semanal'!$M$6:$M$64) -> 0 | Z42: 0
A43: 34 | D43: 0 | E43: =D43*$JF$43 -> 0 | F43: 0 | G43: OG1 | L43: =SUMIF('Control de Avance'!$C$15:$C$9589,'Prog. Semanal TER'!M43,'Control de Avance'!$B$15:$B$9589) -> 0 | M43: Canalizaciones eléctricas en radier | N43: =VLOOKUP(M43,'Act. Proyecto'!$I$3:$Q$881,2,FALSE) -> ELÉCTRICO OG | O43: =VLOOKUP(M43,'Act. Proyecto'!$I$3:$Q$881,3,FALSE) -> centro | P43: =VLOOKUP(M43,'Act. Proyecto'!$I$3:$Q$881,4,FALSE) -> 7.916666667 | Q43: =VLOOKUP(M43,'Act. Proyecto'!$I$3:$Q$881,5,FALSE) -> 668 | R43: 5288.333333 | S43: =VLOOKUP(M43,'Act. Proyecto'!$I$3:$Q$881,7,FALSE) -> Frente | T43: =SUMIF('Resumen Frentes Semanal'!$K$6:$K$64,'Prog. Semanal TER'!N43,'Resumen Frentes Semanal'!$M$6:$M$64) -> 123000 | Z43: 0
A44: 35 | D44: 0 | E44: =D44*$JF$44 -> 0 | F44: 0 | G44: OG1 | L44: =SUMIF('Control de Avance'!$C$15:$C$9589,'Prog. Semanal TER'!M44,'Control de Avance'!$B$15:$B$9589) -> 0 | M44: Instalaciones gas radier | N44: =VLOOKUP(M44,'Act. Proyecto'!$I$3:$Q$881,2,FALSE) -> GAS OG | O44: =VLOOKUP(M44,'Act. Proyecto'!$I$3:$Q$881,3,FALSE) -> dh | P44: =VLOOKUP(M44,'Act. Proyecto'!$I$3:$Q$881,4,FALSE) -> 0.44 | Q44: =VLOOKUP(M44,'Act. Proyecto'!$I$3:$Q$881,5,FALSE) -> 1 | R44: 0.44 | S44: =VLOOKUP(M44,'Act. Proyecto'!$I$3:$Q$881,7,FALSE) -> Frente | T44: =SUMIF('Resumen Frentes Semanal'!$K$6:$K$64,'Prog. Semanal TER'!N44,'Resumen Frentes Semanal'!$M$6:$M$64) -> 0.44 | Z44: 0
A45: 36 | D45: 0 | E45: =D45*$JF$45 -> 0 | F45: 0 | G45: OG1 | L45: =SUMIF('Control de Avance'!$C$15:$C$9589,'Prog. Semanal TER'!M45,'Control de Avance'!$B$15:$B$9589) -> 0 | M45: Red Seca horizontal | N45: =VLOOKUP(M45,'Act. Proyecto'!$I$3:$Q$881,2,FALSE) -> GASFITER OG | O45: =VLOOKUP(M45,'Act. Proyecto'!$I$3:$Q$881,3,FALSE) -> dh | P45: =VLOOKUP(M45,'Act. Proyecto'!$I$3:$Q$881,4,FALSE) -> 0 | Q45: =VLOOKUP(M45,'Act. Proyecto'!$I$3:$Q$881,5,FALSE) -> 1 | R45: 0 | S45: =VLOOKUP(M45,'Act. Proyecto'!$I$3:$Q$881,7,FALSE) -> Edif | T45: =SUMIF('Resumen Frentes Semanal'!$K$6:$K$64,'Prog. Semanal TER'!N45,'Resumen Frentes Semanal'!$M$6:$M$64) -> 0 | Z45: 0
A46: 37 | D46: 0 | E46: =D46*$JF$46 -> 0 | F46: 0 | G46: OG1 | L46: =SUMIF('Control de Avance'!$C$15:$C$9589,'Prog. Semanal TER'!M46,'Control de Avance'!$B$15:$B$9589) -> 0 | M46: Tuberías de agua radier zona comun | N46: =VLOOKUP(M46,'Act. Proyecto'!$I$3:$Q$881,2,FALSE) -> GASFITER OG | O46: =VLOOKUP(M46,'Act. Proyecto'!$I$3:$Q$881,3,FALSE) -> dh | P46: =VLOOKUP(M46,'Act. Proyecto'!$I$3:$Q$881,4,FALSE) -> 0.4175 | Q46: =VLOOKUP(M46,'Act. Proyecto'!$I$3:$Q$881,5,FALSE) -> 1 | R46: 0.4175 | S46: =VLOOKUP(M46,'Act. Proyecto'!$I$3:$Q$881,7,FALSE) -> Edif | T46: =SUMIF('Resumen Frentes Semanal'!$K$6:$K$64,'Prog. Semanal TER'!N46,'Resumen Frentes Semanal'!$M$6:$M$64) -> 0 | Z46: 0
A47: 38 | D47: 0 | E47: =D47*$JF$47 -> 0 | F47: 0 | G47: OGT | L47: =SUMIF('Control de Avance'!$C$15:$C$9589,'Prog. Semanal TER'!M47,'Control de Avance'!$B$15:$B$9589) -> 0 | M47: Tuberías eléctricas radier zona comun | N47: =VLOOKUP(M47,'Act. Proyecto'!$I$3:$Q$881,2,FALSE) -> ELÉCTRICO OG | O47: =VLOOKUP(M47,'Act. Proyecto'!$I$3:$Q$881,3,FALSE) -> centro | P47: =VLOOKUP(M47,'Act. Proyecto'!$I$3:$Q$881,4,FALSE) -> 9 | Q47: =VLOOKUP(M47,'Act. Proyecto'!$I$3:$Q$881,5,FALSE) -> 702.6 | R47: 6323.4 | S47: =VLOOKUP(M47,'Act. Proyecto'!$I$3:$Q$881,7,FALSE) -> Edif | T47: =SUMIF('Resumen Frentes Semanal'!$K$6:$K$64,'Prog. Semanal TER'!N47,'Resumen Frentes Semanal'!$M$6:$M$64) -> 123000 | Z47: 0
A48: 39 | D48: 0 | E48: =D48*$JF$48 -> 0 | F48: 0 | G48: OGT | L48: =SUMIF('Control de Avance'!$C$15:$C$9589,'Prog. Semanal TER'!M48,'Control de Avance'!$B$15:$B$9589) -> 0 | M48: Tuberías Gas radier zona comun | N48: =VLOOKUP(M48,'Act. Proyecto'!$I$3:$Q$881,2,FALSE) -> GAS OG | O48: =VLOOKUP(M48,'Act. Proyecto'!$I$3:$Q$881,3,FALSE) -> dh | P48: =VLOOKUP(M48,'Act. Proyecto'!$I$3:$Q$881,4,FALSE) -> 0.11 | Q48: =VLOOKUP(M48,'Act. Proyecto'!$I$3:$Q$881,5,FALSE) -> 1117 | R48: 122.87 | S48: =VLOOKUP(M48,'Act. Proyecto'!$I$3:$Q$881,7,FALSE) -> Edif | T48: =SUMIF('Resumen Frentes Semanal'!$K$6:$K$64,'Prog. Semanal TER'!N48,'Resumen Frentes Semanal'!$M$6:$M$64) -> 0.44 | Z48: 0
A49: 40 | D49: 0 | E49: =D49*$JF$49 -> 0 | F49: 0 | G49: OGT | L49: =SUMIF('Control de Avance'!$C$15:$C$9589,'Prog. Semanal TER'!M49,'Control de Avance'!$B$15:$B$9589) -> 0 | M49: Hormigón radier Depto | N49: =VLOOKUP(M49,'Act. Proyecto'!$I$3:$Q$881,2,FALSE) -> HORMIGÓN | O49: =VLOOKUP(M49,'Act. Proyecto'!$I$3:$Q$881,3,FALSE) -> m3 | P49: =VLOOKUP(M49,'Act. Proyecto'!$I$3:$Q$881,4,FALSE) -> 7.615833333 | Q49: =VLOOKUP(M49,'Act. Proyecto'!$I$3:$Q$881,5,FALSE) -> 4860 | R49: 37012.95 | S49: =VLOOKUP(M49,'Act. Proyecto'!$I$3:$Q$881,7,FALSE) -> Frente | T49: =SUMIF('Resumen Frentes Semanal'!$K$6:$K$64,'Prog. Semanal TER'!N49,'Resumen Frentes Semanal'!$M$6:$M$64) -> 204000 | Z49: 0
A50: 40 | D50: 0 | E50: =D50*$JF$50 -> 0 | F50: 0 | G50: OGT | L50: =SUMIF('Control de Avance'!$C$15:$C$9589,'Prog. Semanal TER'!M50,'Control de Avance'!$B$15:$B$9589) -> 0 | M50: Grua Radier | N50: =VLOOKUP(M50,'Act. Proyecto'!$I$3:$Q$881,2,FALSE) -> SOBRECIMIENTO Y CORONACIÓN | O50: =VLOOKUP(M50,'Act. Proyecto'!$I$3:$Q$881,3,FALSE) -> m3 | P50: =VLOOKUP(M50,'Act. Proyecto'!$I$3:$Q$881,4,FALSE) -> 7.615833333 | Q50: =VLOOKUP(M50,'Act. Proyecto'!$I$3:$Q$881,5,FALSE) -> 1043 | R50: 7943.314167 | S50: =VLOOKUP(M50,'Act. Proyecto'!$I$3:$Q$881,7,FALSE) -> Frente | T50: =SUMIF('Resumen Frentes Semanal'!$K$6:$K$64,'Prog. Semanal TER'!N50,'Resumen Frentes Semanal'!$M$6:$M$64) -> 95000 | Z50: 0
A51: 43 | D51: 0 | E51: =D51*$JF$51 -> 0 | F51: a | G51: OGT | L51: =SUMIF('Control de Avance'!$C$15:$C$9589,'Prog. Semanal TER'!M51,'Control de Avance'!$B$15:$B$9589) -> 0 | M51: Alisado radier | N51: =VLOOKUP(M51,'Act. Proyecto'!$I$3:$Q$881,2,FALSE) -> HORMIGÓN | O51: =VLOOKUP(M51,'Act. Proyecto'!$I$3:$Q$881,3,FALSE) -> un | P51: b | Q51: =VLOOKUP(M51,'Act. Proyecto'!$I$3:$Q$881,5,FALSE) -> 10050 | R51: 0 | S51: =VLOOKUP(M51,'Act. Proyecto'!$I$3:$Q$881,7,FALSE) -> Frente | T51: =SUMIF('Resumen Frentes Semanal'!$K$6:$K$64,'Prog. Semanal TER'!N51,'Resumen Frentes Semanal'!$M$6:$M$64) -> 204000 | Z51: 0
A52: 44 | D52: 0 | E52: =D52*$JF$52 -> 0 | F52: 0 | G52: OGT | L52: =SUMIF('Control de Avance'!$C$15:$C$9589,'Prog. Semanal TER'!M52,'Control de Avance'!$B$15:$B$9589) -> 0 | M52: Alisado radier pasillo 1er piso | N52: =VLOOKUP(M52,'Act. Proyecto'!$I$3:$Q$881,2,FALSE) -> HORMIGÓN | O52: =VLOOKUP(M52,'Act. Proyecto'!$I$3:$Q$881,3,FALSE) -> Edif | P52: =VLOOKUP(M52,'Act. Proyecto'!$I$3:$Q$881,4,FALSE) -> 1 | Q52: =VLOOKUP(M52,'Act. Proyecto'!$I$3:$Q$881,5,FALSE) -> 2150 | R52: 2150 | S52: =VLOOKUP(M52,'Act. Proyecto'!$I$3:$Q$881,7,FALSE) -> Edif | T52: =SUMIF('Resumen Frentes Semanal'!$K$6:$K$64,'Prog. Semanal TER'!N52,'Resumen Frentes Semanal'!$M$6:$M$64) -> 204000 | Z52: 0
A53: 45 | D53: 0 | E53: =D53*$JF$53 -> 0 | F53: 0 | G53: OGT | L53: =SUMIF('Control de Avance'!$C$15:$C$9589,'Prog. Semanal TER'!M53,'Control de Avance'!$B$15:$B$9589) -> 0 | M53: Hormigón radier Sala Basura (ZC1= -30) | N53: =VLOOKUP(M53,'Act. Proyecto'!$I$3:$Q$881,2,FALSE) -> HORMIGÓN | O53: =VLOOKUP(M53,'Act. Proyecto'!$I$3:$Q$881,3,FALSE) -> m3 | P53: =VLOOKUP(M53,'Act. Proyecto'!$I$3:$Q$881,4,FALSE) -> 0.4228 | Q53: =VLOOKUP(M53,'Act. Proyecto'!$I$3:$Q$881,5,FALSE) -> 4860 | R53: 2054.808 | S53: =VLOOKUP(M53,'Act. Proyecto'!$I$3:$Q$881,7,FALSE) -> Edif | T53: =SUMIF('Resumen Frentes Semanal'!$K$6:$K$64,'Prog. Semanal TER'!N53,'Resumen Frentes Semanal'!$M$6:$M$64) -> 204000 | Z53: 0
A54: 47 | D54: 0 | E54: =D54*$JF$54 -> 0 | F54: 0 | G54: OGT | L54: =SUMIF('Control de Avance'!$C$15:$C$9589,'Prog. Semanal TER'!M54,'Control de Avance'!$B$15:$B$9589) -> 0 | M54: Hormigón radier ZC + Pasillo + cuarto Técnico | N54: =VLOOKUP(M54,'Act. Proyecto'!$I$3:$Q$881,2,FALSE) -> HORMIGÓN | O54: =VLOOKUP(M54,'Act. Proyecto'!$I$3:$Q$881,3,FALSE) -> m3 | P54: =VLOOKUP(M54,'Act. Proyecto'!$I$3:$Q$881,4,FALSE) -> 1.1718 | Q54: =VLOOKUP(M54,'Act. Proyecto'!$I$3:$Q$881,5,FALSE) -> 4860 | R54: 5694.948 | S54: =VLOOKUP(M54,'Act. Proyecto'!$I$3:$Q$881,7,FALSE) -> Edif | T54: =SUMIF('Resumen Frentes Semanal'!$K$6:$K$64,'Prog. Semanal TER'!N54,'Resumen Frentes Semanal'!$M$6:$M$64) -> 204000 | Z54: 0
A55: 48 | D55: 0 | E55: =D55*$JF$55 -> 0 | F55: 0 | G55: OGT | L55: =SUMIF('Control de Avance'!$C$15:$C$9589,'Prog. Semanal TER'!M55,'Control de Avance'!$B$15:$B$9589) -> 0 | M55: Hormigón radier Nicho eléctrico (ZC1= -60) | N55: =VLOOKUP(M55,'Act. Proyecto'!$I$3:$Q$881,2,FALSE) -> HORMIGÓN | O55: =VLOOKUP(M55,'Act. Proyecto'!$I$3:$Q$881,3,FALSE) -> m3 | P55: =VLOOKUP(M55,'Act. Proyecto'!$I$3:$Q$881,4,FALSE) -> 0.0826 | Q55: =VLOOKUP(M55,'Act. Proyecto'!$I$3:$Q$881,5,FALSE) -> 4860 | R55: 401.436 | S55: =VLOOKUP(M55,'Act. Proyecto'!$I$3:$Q$881,7,FALSE) -> Edif | T55: =SUMIF('Resumen Frentes Semanal'!$K$6:$K$64,'Prog. Semanal TER'!N55,'Resumen Frentes Semanal'!$M$6:$M$64) -> 204000 | Z55: 0
A56: 49 | D56: 0 | E56: =D56*$JF$56 -> 0 | F56: 0 | G56: OGT | L56: =SUMIF('Control de Avance'!$C$15:$C$9589,'Prog. Semanal TER'!M56,'Control de Avance'!$B$15:$B$9589) -> 0 | M56: Grada Nicho eléctrico | N56: =VLOOKUP(M56,'Act. Proyecto'!$I$3:$Q$881,2,FALSE) -> HORMIGÓN | O56: =VLOOKUP(M56,'Act. Proyecto'!$I$3:$Q$881,3,FALSE) -> m3 | P56: =VLOOKUP(M56,'Act. Proyecto'!$I$3:$Q$881,4,FALSE) -> 0.0364 | Q56: =VLOOKUP(M56,'Act. Proyecto'!$I$3:$Q$881,5,FALSE) -> 4860 | R56: 176.904 | S56: =VLOOKUP(M56,'Act. Proyecto'!$I$3:$Q$881,7,FALSE) -> Edif | T56: =SUMIF('Resumen Frentes Semanal'!$K$6:$K$64,'Prog. Semanal TER'!N56,'Resumen Frentes Semanal'!$M$6:$M$64) -> 204000 | Z56: 0
A57: 52 | D57: 0 | E57: =D57*$JF$57 -> 0 | F57: 0 | G57: OGT | L57: =SUMIF('Control de Avance'!$C$15:$C$9589,'Prog. Semanal TER'!M57,'Control de Avance'!$B$15:$B$9589) -> 0 | M57: TREN OBRA GRUESA TIPO | N57: =VLOOKUP(M57,'Act. Proyecto'!$I$3:$Q$881,2,FALSE) -> . | O57: =VLOOKUP(M57,'Act. Proyecto'!$I$3:$Q$881,3,FALSE) -> . | P57: =VLOOKUP(M57,'Act. Proyecto'!$I$3:$Q$881,4,FALSE) -> 0 | Q57: =VLOOKUP(M57,'Act. Proyecto'!$I$3:$Q$881,5,FALSE) -> . | R57: 0 | S57: =VLOOKUP(M57,'Act. Proyecto'!$I$3:$Q$881,7,FALSE) -> . | T57: =SUMIF('Resumen Frentes Semanal'!$K$6:$K$64,'Prog. Semanal TER'!N57,'Resumen Frentes Semanal'!$M$6:$M$64) -> 0 | Z57: 0
A58: 53 | D58: 0 | E58: =D58*$JF$58 -> 0 | F58: 0 | G58: OGT | L58: =SUMIF('Control de Avance'!$C$15:$C$9589,'Prog. Semanal TER'!M58,'Control de Avance'!$B$15:$B$9589) -> 0 | M58: Descarga y conteo fierro muro tipo | N58: =VLOOKUP(M58,'Act. Proyecto'!$I$3:$Q$881,2,FALSE) -> ENFIERRADOR | O58: =VLOOKUP(M58,'Act. Proyecto'!$I$3:$Q$881,3,FALSE) -> kg | P58: =VLOOKUP(M58,'Act. Proyecto'!$I$3:$Q$881,4,FALSE) -> 1215.647619 | Q58: =VLOOKUP(M58,'Act. Proyecto'!$I$3:$Q$881,5,FALSE) -> 3 | R58: 3646.942857 | S58: =VLOOKUP(M58,'Act. Proyecto'!$I$3:$Q$881,7,FALSE) -> Frente | T58: =SUMIF('Resumen Frentes Semanal'!$K$6:$K$64,'Prog. Semanal TER'!N58,'Resumen Frentes Semanal'!$M$6:$M$64) -> 210632 | Z58: 0
A59: 53 | D59: 0 | E59: =D59*$JF$59 -> 0 | F59: 0 | G59: OGT | L59: =SUMIF('Control de Avance'!$C$15:$C$9589,'Prog. Semanal TER'!M59,'Control de Avance'!$B$15:$B$9589) -> 0 | M59: Separar fierro muro tipo | N59: =VLOOKUP(M59,'Act. Proyecto'!$I$3:$Q$881,2,FALSE) -> ENFIERRADOR | O59: =VLOOKUP(M59,'Act. Proyecto'!$I$3:$Q$881,3,FALSE) -> kg | P59: =VLOOKUP(M59,'Act. Proyecto'!$I$3:$Q$881,4,FALSE) -> 1215.647619 | Q59: =VLOOKUP(M59,'Act. Proyecto'!$I$3:$Q$881,5,FALSE) -> 10 | R59: 12156.47619 | S59: =VLOOKUP(M59,'Act. Proyecto'!$I$3:$Q$881,7,FALSE) -> Frente | T59: =SUMIF('Resumen Frentes Semanal'!$K$6:$K$64,'Prog. Semanal TER'!N59,'Resumen Frentes Semanal'!$M$6:$M$64) -> 210632 | Z59: 0
A60: 54 | D60: 0 | E60: =D60*$JF$60 -> 0 | F60: 0 | G60: OGT | L60: =SUMIF('Control de Avance'!$C$15:$C$9589,'Prog. Semanal TER'!M60,'Control de Avance'!$B$15:$B$9589) -> 0 | M60: Fierro muro tipo | N60: =VLOOKUP(M60,'Act. Proyecto'!$I$3:$Q$881,2,FALSE) -> ENFIERRADOR | O60: =VLOOKUP(M60,'Act. Proyecto'!$I$3:$Q$881,3,FALSE) -> kg | P60: =VLOOKUP(M60,'Act. Proyecto'!$I$3:$Q$881,4,FALSE) -> 1215.647619 | Q60: =VLOOKUP(M60,'Act. Proyecto'!$I$3:$Q$881,5,FALSE) -> 93 | R60: 113055.2286 | S60: =VLOOKUP(M60,'Act. Proyecto'!$I$3:$Q$881,7,FALSE) -> Frente | T60: =SUMIF('Resumen Frentes Semanal'!$K$6:$K$64,'Prog. Semanal TER'!N60,'Resumen Frentes Semanal'!$M$6:$M$64) -> 210632 | Z60: 0
A61: 55 | D61: 0 | E61: =D61*$JF$61 -> 0 | F61: 0 | G61: OGT | H61: a | I61: a | L61: =SUMIF('Control de Avance'!$C$15:$C$9589,'Prog. Semanal TER'!M61,'Control de Avance'!$B$15:$B$9589) -> 0 | M61: Instalaciones sanitarias en elevación | N61: =VLOOKUP(M61,'Act. Proyecto'!$I$3:$Q$881,2,FALSE) -> GASFITER OG | O61: =VLOOKUP(M61,'Act. Proyecto'!$I$3:$Q$881,3,FALSE) -> dh | P61: =VLOOKUP(M61,'Act. Proyecto'!$I$3:$Q$881,4,FALSE) -> 0.1416020833 | Q61: =VLOOKUP(M61,'Act. Proyecto'!$I$3:$Q$881,5,FALSE) -> 1 | R61: 0.1416020833 | S61: =VLOOKUP(M61,'Act. Proyecto'!$I$3:$Q$881,7,FALSE) -> Frente | T61: =SUMIF('Resumen Frentes Semanal'!$K$6:$K$64,'Prog. Semanal TER'!N61,'Resumen Frentes Semanal'!$M$6:$M$64) -> 0 | Z61: 0 | AB61: b | AC61: b
A62: 56 | D62: 0 | E62: =D62*$JF$62 -> 0 | F62: 0 | G62: OGT | L62: =SUMIF('Control de Avance'!$C$15:$C$9589,'Prog. Semanal TER'!M62,'Control de Avance'!$B$15:$B$9589) -> 0 | M62: Instalaciones eléctricas en elevación | N62: =VLOOKUP(M62,'Act. Proyecto'!$I$3:$Q$881,2,FALSE) -> ELÉCTRICO OG | O62: =VLOOKUP(M62,'Act. Proyecto'!$I$3:$Q$881,3,FALSE) -> centro | P62: =VLOOKUP(M62,'Act. Proyecto'!$I$3:$Q$881,4,FALSE) -> 35.25 | Q62: =VLOOKUP(M62,'Act. Proyecto'!$I$3:$Q$881,5,FALSE) -> 668 | R62: 23547 | S62: =VLOOKUP(M62,'Act. Proyecto'!$I$3:$Q$881,7,FALSE) -> Frente | T62: =SUMIF('Resumen Frentes Semanal'!$K$6:$K$64,'Prog. Semanal TER'!N62,'Resumen Frentes Semanal'!$M$6:$M$64) -> 123000 | Z62: 0
A63: 56 | D63: 0 | E63: =D63*$JF$63 -> 0 | F63: 0 | G63: OGT | L63: =SUMIF('Control de Avance'!$C$15:$C$9589,'Prog. Semanal TER'!M63,'Control de Avance'!$B$15:$B$9589) -> 0 | M63: Instalaciones eléctricas en ZC | N63: =VLOOKUP(M63,'Act. Proyecto'!$I$3:$Q$881,2,FALSE) -> ELÉCTRICO OG | O63: =VLOOKUP(M63,'Act. Proyecto'!$I$3:$Q$881,3,FALSE) -> centro | P63: =VLOOKUP(M63,'Act. Proyecto'!$I$3:$Q$881,4,FALSE) -> 10.7229 | Q63: =VLOOKUP(M63,'Act. Proyecto'!$I$3:$Q$881,5,FALSE) -> 1299.9 | R63: 13938.69771 | S63: =VLOOKUP(M63,'Act. Proyecto'!$I$3:$Q$881,7,FALSE) -> Piso | T63: =SUMIF('Resumen Frentes Semanal'!$K$6:$K$64,'Prog. Semanal TER'!N63,'Resumen Frentes Semanal'!$M$6:$M$64) -> 123000 | Z63: 0
A64: 57 | D64: 0 | E64: =D64*$JF$64 -> 0 | F64: 0 | G64: OGT | L64: =SUMIF('Control de Avance'!$C$15:$C$9589,'Prog. Semanal TER'!M64,'Control de Avance'!$B$15:$B$9589) -> 0 | M64: Trazo muro | N64: =VLOOKUP(M64,'Act. Proyecto'!$I$3:$Q$881,2,FALSE) -> TRAZO | O64: =VLOOKUP(M64,'Act. Proyecto'!$I$3:$Q$881,3,FALSE) -> depto | P64: =VLOOKUP(M64,'Act. Proyecto'!$I$3:$Q$881,4,FALSE) -> 2 | Q64: =VLOOKUP(M64,'Act. Proyecto'!$I$3:$Q$881,5,FALSE) -> 0 | R64: 0 | S64: =VLOOKUP(M64,'Act. Proyecto'!$I$3:$Q$881,7,FALSE) -> Frente | T64: =SUMIF('Resumen Frentes Semanal'!$K$6:$K$64,'Prog. Semanal TER'!N64,'Resumen Frentes Semanal'!$M$6:$M$64) -> 0 | Z64: 0
A65: 58 | D65: 0 | E65: =D65*$JF$65 -> 0 | F65: 0 | G65: OGT | L65: =SUMIF('Control de Avance'!$C$15:$C$9589,'Prog. Semanal TER'!M65,'Control de Avance'!$B$15:$B$9589) -> 0 | M65: Dilatación de muros | N65: =VLOOKUP(M65,'Act. Proyecto'!$I$3:$Q$881,2,FALSE) -> HORMIGÓN | O65: =VLOOKUP(M65,'Act. Proyecto'!$I$3:$Q$881,3,FALSE) -> m2 | P65: =VLOOKUP(M65,'Act. Proyecto'!$I$3:$Q$881,4,FALSE) -> 3.862316667 | Q65: =VLOOKUP(M65,'Act. Proyecto'!$I$3:$Q$881,5,FALSE) -> 260 | R65: 1004.202333 | S65: =VLOOKUP(M65,'Act. Proyecto'!$I$3:$Q$881,7,FALSE) -> Frente | T65: =SUMIF('Resumen Frentes Semanal'!$K$6:$K$64,'Prog. Semanal TER'!N65,'Resumen Frentes Semanal'!$M$6:$M$64) -> 204000 | Z65: 0
A66: 59 | D66: 0 | E66: =D66*$JF$66 -> 0 | F66: 0 | G66: OGT | L66: =SUMIF('Control de Avance'!$C$15:$C$9589,'Prog. Semanal TER'!M66,'Control de Avance'!$B$15:$B$9589) -> 0 | M66: Separador plástico fierro muro | N66: =VLOOKUP(M66,'Act. Proyecto'!$I$3:$Q$881,2,FALSE) -> HORMIGÓN | O66: =VLOOKUP(M66,'Act. Proyecto'!$I$3:$Q$881,3,FALSE) -> depto | P66: =VLOOKUP(M66,'Act. Proyecto'!$I$3:$Q$881,4,FALSE) -> 2 | Q66: =VLOOKUP(M66,'Act. Proyecto'!$I$3:$Q$881,5,FALSE) -> 1510 | R66: 3020 | S66: =VLOOKUP(M66,'Act. Proyecto'!$I$3:$Q$881,7,FALSE) -> Frente | T66: =SUMIF('Resumen Frentes Semanal'!$K$6:$K$64,'Prog. Semanal TER'!N66,'Resumen Frentes Semanal'!$M$6:$M$64) -> 204000 | Z66: 0
A67: 60 | D67: 0 | E67: =D67*$JF$67 -> 0 | F67: 0 | G67: OGT | L67: =SUMIF('Control de Avance'!$C$15:$C$9589,'Prog. Semanal TER'!M67,'Control de Avance'!$B$15:$B$9589) -> 0 | M67: Op. Grúa Frente Muro hormigondo (Incluye vigas) | N67: =VLOOKUP(M67,'Act. Proyecto'!$I$3:$Q$881,2,FALSE) -> GRÚA | O67: =VLOOKUP(M67,'Act. Proyecto'!$I$3:$Q$881,3,FALSE) -> depto | P67: =VLOOKUP(M67,'Act. Proyecto'!$I$3:$Q$881,4,FALSE) -> 2 | Q67: =VLOOKUP(M67,'Act. Proyecto'!$I$3:$Q$881,5,FALSE) -> 18439.845 | R67: 36879.69 | S67: =VLOOKUP(M67,'Act. Proyecto'!$I$3:$Q$881,7,FALSE) -> Frente | T67: =SUMIF('Resumen Frentes Semanal'!$K$6:$K$64,'Prog. Semanal TER'!N67,'Resumen Frentes Semanal'!$M$6:$M$64) -> 36879 | Z67: 0
A68: 60 | D68: 0 | E68: =D68*$JF$68 -> 0 | F68: 0 | G68: OGT | L68: =SUMIF('Control de Avance'!$C$15:$C$9589,'Prog. Semanal TER'!M68,'Control de Avance'!$B$15:$B$9589) -> 0 | M68: Moldaje muro tipo (incluye pasadas con troncocónicos y calafateo primer piso) | N68: =VLOOKUP(M68,'Act. Proyecto'!$I$3:$Q$881,2,FALSE) -> MOLDAJE MURO | O68: =VLOOKUP(M68,'Act. Proyecto'!$I$3:$Q$881,3,FALSE) -> m2 | P68: =VLOOKUP(M68,'Act. Proyecto'!$I$3:$Q$881,4,FALSE) -> 219.7767308 | Q68: =VLOOKUP(M68,'Act. Proyecto'!$I$3:$Q$881,5,FALSE) -> 923 | R68: 202853.9225 | S68: =VLOOKUP(M68,'Act. Proyecto'!$I$3:$Q$881,7,FALSE) -> Frente | T68: =SUMIF('Resumen Frentes Semanal'!$K$6:$K$64,'Prog. Semanal TER'!N68,'Resumen Frentes Semanal'!$M$6:$M$64) -> 321000 | Z68: 0
A69: 63 | D69: 0 | E69: =D69*$JF$69 -> 0 | F69: 0 | G69: OGT | L69: =SUMIF('Control de Avance'!$C$15:$C$9589,'Prog. Semanal TER'!M69,'Control de Avance'!$B$15:$B$9589) -> 0 | M69: Hormigón muro tipo (incluye mantener 100% moldaje limpio) | N69: =VLOOKUP(M69,'Act. Proyecto'!$I$3:$Q$881,2,FALSE) -> HORMIGÓN | O69: =VLOOKUP(M69,'Act. Proyecto'!$I$3:$Q$881,3,FALSE) -> m3 | P69: =VLOOKUP(M69,'Act. Proyecto'!$I$3:$Q$881,4,FALSE) -> 15.85375 | Q69: =VLOOKUP(M69,'Act. Proyecto'!$I$3:$Q$881,5,FALSE) -> 5380 | R69: 85293.175 | S69: =VLOOKUP(M69,'Act. Proyecto'!$I$3:$Q$881,7,FALSE) -> Frente | T69: =SUMIF('Resumen Frentes Semanal'!$K$6:$K$64,'Prog. Semanal TER'!N69,'Resumen Frentes Semanal'!$M$6:$M$64) -> 204000 | Z69: 0
A70: 66 | D70: 0 | E70: =D70*$JF$70 -> 0 | F70: 0 | G70: OGT | L70: =SUMIF('Control de Avance'!$C$15:$C$9589,'Prog. Semanal TER'!M70,'Control de Avance'!$B$15:$B$9589) -> 0 | M70: Descimbre muro tipo y desbaste exterior | N70: =VLOOKUP(M70,'Act. Proyecto'!$I$3:$Q$881,2,FALSE) -> MOLDAJE MURO | O70: =VLOOKUP(M70,'Act. Proyecto'!$I$3:$Q$881,3,FALSE) -> m2 | P70: =VLOOKUP(M70,'Act. Proyecto'!$I$3:$Q$881,4,FALSE) -> 219.7767308 | Q70: =VLOOKUP(M70,'Act. Proyecto'!$I$3:$Q$881,5,FALSE) -> 370 | R70: 81317.39038 | S70: =VLOOKUP(M70,'Act. Proyecto'!$I$3:$Q$881,7,FALSE) -> Frente | T70: =SUMIF('Resumen Frentes Semanal'!$K$6:$K$64,'Prog. Semanal TER'!N70,'Resumen Frentes Semanal'!$M$6:$M$64) -> 321000 | Z70: 0
A71: 69 | D71: 0 | E71: =D71*$JF$71 -> 0 | F71: 0 | G71: OGT | L71: =SUMIF('Control de Avance'!$C$15:$C$9589,'Prog. Semanal TER'!M71,'Control de Avance'!$B$15:$B$9589) -> 0 | M71: Despejar cajas en muro | N71: =VLOOKUP(M71,'Act. Proyecto'!$I$3:$Q$881,2,FALSE) -> ELÉCTRICO OG | O71: =VLOOKUP(M71,'Act. Proyecto'!$I$3:$Q$881,3,FALSE) -> centro | P71: b | Q71: =VLOOKUP(M71,'Act. Proyecto'!$I$3:$Q$881,5,FALSE) -> 179 | R71: 0 | S71: =VLOOKUP(M71,'Act. Proyecto'!$I$3:$Q$881,7,FALSE) -> Frente | T71: =SUMIF('Resumen Frentes Semanal'!$K$6:$K$64,'Prog. Semanal TER'!N71,'Resumen Frentes Semanal'!$M$6:$M$64) -> 123000 | Z71: 0
A72: 70 | D72: =C72*$R72 -> 0 | E72: =D72*$JF$72 -> 0 | F72: =(B72-C72)*R72 -> 0 | G72: OGT | L72: =SUMIF('Control de Avance'!$C$15:$C$9589,'Prog. Semanal TER'!M72,'Control de Avance'!$B$15:$B$9589) -> 0 | M72: Niveles de losa | N72: =VLOOKUP(M72,'Act. Proyecto'!$I$3:$Q$881,2,FALSE) -> TRAZO | O72: =VLOOKUP(M72,'Act. Proyecto'!$I$3:$Q$881,3,FALSE) -> depto | P72: =VLOOKUP(M72,'Act. Proyecto'!$I$3:$Q$881,4,FALSE) -> 2 | Q72: =VLOOKUP(M72,'Act. Proyecto'!$I$3:$Q$881,5,FALSE) -> 0 | R72: 0 | S72: =VLOOKUP(M72,'Act. Proyecto'!$I$3:$Q$881,7,FALSE) -> Frente | T72: =SUMIF('Resumen Frentes Semanal'!$K$6:$K$64,'Prog. Semanal TER'!N72,'Resumen Frentes Semanal'!$M$6:$M$64) -> 0 | Z72: 0
A73: 71 | D73: 0 | E73: =D73*$JF$73 -> 0 | F73: 0 | G73: OGT | L73: =SUMIF('Control de Avance'!$C$15:$C$9589,'Prog. Semanal TER'!M73,'Control de Avance'!$B$15:$B$9589) -> 0 | M73: Moldaje losa | N73: =VLOOKUP(M73,'Act. Proyecto'!$I$3:$Q$881,2,FALSE) -> MOLDAJE LOSA | O73: =VLOOKUP(M73,'Act. Proyecto'!$I$3:$Q$881,3,FALSE) -> m2 | P73: =VLOOKUP(M73,'Act. Proyecto'!$I$3:$Q$881,4,FALSE) -> 113.62475 | Q73: =VLOOKUP(M73,'Act. Proyecto'!$I$3:$Q$881,5,FALSE) -> 1120 | R73: 127259.72 | S73: =VLOOKUP(M73,'Act. Proyecto'!$I$3:$Q$881,7,FALSE) -> Frente | T73: =SUMIF('Resumen Frentes Semanal'!$K$6:$K$64,'Prog. Semanal TER'!N73,'Resumen Frentes Semanal'!$M$6:$M$64) -> 188000 | Z73: 0
A74: 74 | D74: 0 | E74: =D74*$JF$74 -> 0 | F74: 0 | G74: OGT | L74: =SUMIF('Control de Avance'!$C$15:$C$9589,'Prog. Semanal TER'!M74,'Control de Avance'!$B$15:$B$9589) -> 0 | M74: Trazo losa | N74: =VLOOKUP(M74,'Act. Proyecto'!$I$3:$Q$881,2,FALSE) -> TRAZO | O74: =VLOOKUP(M74,'Act. Proyecto'!$I$3:$Q$881,3,FALSE) -> Frente | P74: =VLOOKUP(M74,'Act. Proyecto'!$I$3:$Q$881,4,FALSE) -> 2 | Q74: =VLOOKUP(M74,'Act. Proyecto'!$I$3:$Q$881,5,FALSE) -> 0 | R74: =IFERROR(P74*Q74,0) -> 0 | S74: =VLOOKUP(M74,'Act. Proyecto'!$I$3:$Q$881,7,FALSE) -> Frente | T74: =SUMIF('Resumen Frentes Semanal'!$K$6:$K$64,'Prog. Semanal TER'!N74,'Resumen Frentes Semanal'!$M$6:$M$64) -> 0 | Z74: 0
A75: 88 | D75: 0 | E75: =D75*$JF$75 -> 0 | F75: 0 | G75: OGT | L75: =SUMIF('Control de Avance'!$C$15:$C$9589,'Prog. Semanal TER'!M75,'Control de Avance'!$B$15:$B$9589) -> 0 | M75: Tratamiento en muro para recibir losa | N75: =VLOOKUP(M75,'Act. Proyecto'!$I$3:$Q$881,2,FALSE) -> HORMIGÓN | O75: =VLOOKUP(M75,'Act. Proyecto'!$I$3:$Q$881,3,FALSE) -> ml | P75: =VLOOKUP(M75,'Act. Proyecto'!$I$3:$Q$881,4,FALSE) -> 10.34583333 | Q75: =VLOOKUP(M75,'Act. Proyecto'!$I$3:$Q$881,5,FALSE) -> 208.8 | R75: 2160.21 | S75: =VLOOKUP(M75,'Act. Proyecto'!$I$3:$Q$881,7,FALSE) -> Frente | T75: =SUMIF('Resumen Frentes Semanal'!$K$6:$K$64,'Prog. Semanal TER'!N75,'Resumen Frentes Semanal'!$M$6:$M$64) -> 204000 | Z75: 0
A76: 76 | D76: 0 | E76: =D76*$JF$76 -> 0 | F76: 0 | G76: OGT | L76: =SUMIF('Control de Avance'!$C$15:$C$9589,'Prog. Semanal TER'!M76,'Control de Avance'!$B$15:$B$9589) -> 0 | M76: Descarga y conteo fierro losa | N76: =VLOOKUP(M76,'Act. Proyecto'!$I$3:$Q$881,2,FALSE) -> ENFIERRADOR | O76: =VLOOKUP(M76,'Act. Proyecto'!$I$3:$Q$881,3,FALSE) -> kg | P76: =VLOOKUP(M76,'Act. Proyecto'!$I$3:$Q$881,4,FALSE) -> 975.0783433 | Q76: =VLOOKUP(M76,'Act. Proyecto'!$I$3:$Q$881,5,FALSE) -> 3 | R76: 2925.23503 | S76: =VLOOKUP(M76,'Act. Proyecto'!$I$3:$Q$881,7,FALSE) -> Frente | T76: =SUMIF('Resumen Frentes Semanal'!$K$6:$K$64,'Prog. Semanal TER'!N76,'Resumen Frentes Semanal'!$M$6:$M$64) -> 210632 | Z76: 0
A77: 76 | D77: 0 | E77: =D77*$JF$77 -> 0 | F77: 0 | G77: OGT | L77: =SUMIF('Control de Avance'!$C$15:$C$9589,'Prog. Semanal TER'!M77,'Control de Avance'!$B$15:$B$9589) -> 0 | M77: Separar fierro losa | N77: =VLOOKUP(M77,'Act. Proyecto'!$I$3:$Q$881,2,FALSE) -> ENFIERRADOR | O77: =VLOOKUP(M77,'Act. Proyecto'!$I$3:$Q$881,3,FALSE) -> kg | P77: =VLOOKUP(M77,'Act. Proyecto'!$I$3:$Q$881,4,FALSE) -> 975.0783433 | Q77: =VLOOKUP(M77,'Act. Proyecto'!$I$3:$Q$881,5,FALSE) -> 10 | R77: 9750.783433 | S77: =VLOOKUP(M77,'Act. Proyecto'!$I$3:$Q$881,7,FALSE) -> Frente | T77: =SUMIF('Resumen Frentes Semanal'!$K$6:$K$64,'Prog. Semanal TER'!N77,'Resumen Frentes Semanal'!$M$6:$M$64) -> 210632 | Z77: 0
A78: 77 | D78: 0 | E78: =D78*$JF$78 -> 0 | F78: 0 | G78: OGT | L78: =SUMIF('Control de Avance'!$C$15:$C$9589,'Prog. Semanal TER'!M78,'Control de Avance'!$B$15:$B$9589) -> 0 | M78: Refuerzo losa 1ra malla | N78: =VLOOKUP(M78,'Act. Proyecto'!$I$3:$Q$881,2,FALSE) -> ENFIERRADOR | O78: =VLOOKUP(M78,'Act. Proyecto'!$I$3:$Q$881,3,FALSE) -> kg | P78: =VLOOKUP(M78,'Act. Proyecto'!$I$3:$Q$881,4,FALSE) -> 487.5391716 | Q78: =VLOOKUP(M78,'Act. Proyecto'!$I$3:$Q$881,5,FALSE) -> 93 | R78: 45341.14296 | S78: =VLOOKUP(M78,'Act. Proyecto'!$I$3:$Q$881,7,FALSE) -> Frente | T78: =SUMIF('Resumen Frentes Semanal'!$K$6:$K$64,'Prog. Semanal TER'!N78,'Resumen Frentes Semanal'!$M$6:$M$64) -> 210632 | Z78: 0
A79: 78 | D79: 0 | E79: =D79*$JF$79 -> 0 | F79: 0 | G79: OGT | L79: =SUMIF('Control de Avance'!$C$15:$C$9589,'Prog. Semanal TER'!M79,'Control de Avance'!$B$15:$B$9589) -> 0 | M79: Separador plástico fierro losa | N79: =VLOOKUP(M79,'Act. Proyecto'!$I$3:$Q$881,2,FALSE) -> HORMIGÓN | O79: =VLOOKUP(M79,'Act. Proyecto'!$I$3:$Q$881,3,FALSE) -> depto | P79: =VLOOKUP(M79,'Act. Proyecto'!$I$3:$Q$881,4,FALSE) -> 2 | Q79: =VLOOKUP(M79,'Act. Proyecto'!$I$3:$Q$881,5,FALSE) -> 1510 | R79: 3020 | S79: =VLOOKUP(M79,'Act. Proyecto'!$I$3:$Q$881,7,FALSE) -> Frente | T79: =SUMIF('Resumen Frentes Semanal'!$K$6:$K$64,'Prog. Semanal TER'!N79,'Resumen Frentes Semanal'!$M$6:$M$64) -> 204000 | Z79: 0
A80: 79 | D80: 0 | E80: =D80*$JF$80 -> 0 | F80: 0 | G80: OGT | L80: =SUMIF('Control de Avance'!$C$15:$C$9589,'Prog. Semanal TER'!M80,'Control de Avance'!$B$15:$B$9589) -> 0 | M80: Instalaciones eléctricas en losa | N80: =VLOOKUP(M80,'Act. Proyecto'!$I$3:$Q$881,2,FALSE) -> ELÉCTRICO OG | O80: =VLOOKUP(M80,'Act. Proyecto'!$I$3:$Q$881,3,FALSE) -> centro | P80: =VLOOKUP(M80,'Act. Proyecto'!$I$3:$Q$881,4,FALSE) -> 42.626 | Q80: =VLOOKUP(M80,'Act. Proyecto'!$I$3:$Q$881,5,FALSE) -> 1008.3 | R80: 42979.7958 | S80: =VLOOKUP(M80,'Act. Proyecto'!$I$3:$Q$881,7,FALSE) -> Frente | T80: =SUMIF('Resumen Frentes Semanal'!$K$6:$K$64,'Prog. Semanal TER'!N80,'Resumen Frentes Semanal'!$M$6:$M$64) -> 123000 | Z80: 0
A81: 79 | D81: 0 | E81: =D81*$JF$81 -> 0 | F81: a | G81: a | J81: b | L81: =SUMIF('Control de Avance'!$C$15:$C$9589,'Prog. Semanal TER'!M81,'Control de Avance'!$B$15:$B$9589) -> 0 | M81: Instalaciones eléctricas en losa tapa | N81: =VLOOKUP(M81,'Act. Proyecto'!$I$3:$Q$881,2,FALSE) -> ELÉCTRICO OG | P81: =VLOOKUP(M81,'Act. Proyecto'!$I$3:$Q$881,4,FALSE) -> 21.58333333 | Q81: =VLOOKUP(M81,'Act. Proyecto'!$I$3:$Q$881,5,FALSE) -> 1687.10172 | R81: 36413.27878 | S81: =VLOOKUP(M81,'Act. Proyecto'!$I$3:$Q$881,7,FALSE) -> Frente | T81: =SUMIF('Resumen Frentes Semanal'!$K$6:$K$64,'Prog. Semanal TER'!N81,'Resumen Frentes Semanal'!$M$6:$M$64) -> 123000 | Z81: 0
A82: 80 | D82: 0 | E82: =D82*$JF$82 -> 0 | F82: 0 | G82: OGT | L82: =SUMIF('Control de Avance'!$C$15:$C$9589,'Prog. Semanal TER'!M82,'Control de Avance'!$B$15:$B$9589) -> 0 | M82: Instalaciones de gasfiter en losa | N82: =VLOOKUP(M82,'Act. Proyecto'!$I$3:$Q$881,2,FALSE) -> GASFITER OG | O82: =VLOOKUP(M82,'Act. Proyecto'!$I$3:$Q$881,3,FALSE) -> dh | P82: =VLOOKUP(M82,'Act. Proyecto'!$I$3:$Q$881,4,FALSE) -> 0.8581944444 | Q82: =VLOOKUP(M82,'Act. Proyecto'!$I$3:$Q$881,5,FALSE) -> 1 | R82: 0.8581944444 | S82: =VLOOKUP(M82,'Act. Proyecto'!$I$3:$Q$881,7,FALSE) -> Frente | T82: =SUMIF('Resumen Frentes Semanal'!$K$6:$K$64,'Prog. Semanal TER'!N82,'Resumen Frentes Semanal'!$M$6:$M$64) -> 0 | Z82: 0
A83: 81 | D83: 0 | E83: =D83*$JF$83 -> 0 | F83: 0 | G83: OGT | L83: =SUMIF('Control de Avance'!$C$15:$C$9589,'Prog. Semanal TER'!M83,'Control de Avance'!$B$15:$B$9589) -> 0 | M83: Instalaciones de gas en losa | N83: =VLOOKUP(M83,'Act. Proyecto'!$I$3:$Q$881,2,FALSE) -> GAS OG | O83: =VLOOKUP(M83,'Act. Proyecto'!$I$3:$Q$881,3,FALSE) -> dh | P83: =VLOOKUP(M83,'Act. Proyecto'!$I$3:$Q$881,4,FALSE) -> 0.44 | Q83: =VLOOKUP(M83,'Act. Proyecto'!$I$3:$Q$881,5,FALSE) -> 1 | R83: 0.44 | S83: =VLOOKUP(M83,'Act. Proyecto'!$I$3:$Q$881,7,FALSE) -> Frente | T83: =SUMIF('Resumen Frentes Semanal'!$K$6:$K$64,'Prog. Semanal TER'!N83,'Resumen Frentes Semanal'!$M$6:$M$64) -> 0.44 | Z83: 0
A84: 82 | D84: 0 | E84: =D84*$JF$84 -> 0 | F84: 0 | G84: OGT | L84: =SUMIF('Control de Avance'!$C$15:$C$9589,'Prog. Semanal TER'!M84,'Control de Avance'!$B$15:$B$9589) -> 0 | M84: Refuerzo losa 2da malla | N84: =VLOOKUP(M84,'Act. Proyecto'!$I$3:$Q$881,2,FALSE) -> ENFIERRADOR | O84: =VLOOKUP(M84,'Act. Proyecto'!$I$3:$Q$881,3,FALSE) -> kg | P84: =VLOOKUP(M84,'Act. Proyecto'!$I$3:$Q$881,4,FALSE) -> 487.5391716 | Q84: =VLOOKUP(M84,'Act. Proyecto'!$I$3:$Q$881,5,FALSE) -> 93 | R84: 45341.14296 | S84: =VLOOKUP(M84,'Act. Proyecto'!$I$3:$Q$881,7,FALSE) -> Frente | T84: =SUMIF('Resumen Frentes Semanal'!$K$6:$K$64,'Prog. Semanal TER'!N84,'Resumen Frentes Semanal'!$M$6:$M$64) -> 210632 | Z84: 0
A85: 83 | D85: 0 | E85: =D85*$JF$85 -> 0 | F85: 0 | G85: OGT | L85: =SUMIF('Control de Avance'!$C$15:$C$9589,'Prog. Semanal TER'!M85,'Control de Avance'!$B$15:$B$9589) -> 0 | M85: Limpieza de losa | N85: =VLOOKUP(M85,'Act. Proyecto'!$I$3:$Q$881,2,FALSE) -> HORMIGÓN | O85: =VLOOKUP(M85,'Act. Proyecto'!$I$3:$Q$881,3,FALSE) -> depto | P85: =VLOOKUP(M85,'Act. Proyecto'!$I$3:$Q$881,4,FALSE) -> 2 | Q85: =VLOOKUP(M85,'Act. Proyecto'!$I$3:$Q$881,5,FALSE) -> 1510 | R85: 3020 | S85: =VLOOKUP(M85,'Act. Proyecto'!$I$3:$Q$881,7,FALSE) -> Frente | T85: =SUMIF('Resumen Frentes Semanal'!$K$6:$K$64,'Prog. Semanal TER'!N85,'Resumen Frentes Semanal'!$M$6:$M$64) -> 204000 | Z85: 0
A86: 84 | D86: 0 | E86: =D86*$JF$86 -> 0 | F86: 0 | G86: OGT | L86: =SUMIF('Control de Avance'!$C$15:$C$9589,'Prog. Semanal TER'!M86,'Control de Avance'!$B$15:$B$9589) -> 0 | M86: Hormigón losa (incluye limpieza losa y lagrimas en muro) | N86: =VLOOKUP(M86,'Act. Proyecto'!$I$3:$Q$881,2,FALSE) -> HORMIGÓN | O86: =VLOOKUP(M86,'Act. Proyecto'!$I$3:$Q$881,3,FALSE) -> m3 | P86: =VLOOKUP(M86,'Act. Proyecto'!$I$3:$Q$881,4,FALSE) -> 16.83549 | Q86: =VLOOKUP(M86,'Act. Proyecto'!$I$3:$Q$881,5,FALSE) -> 4840 | R86: 81483.7716 | S86: =VLOOKUP(M86,'Act. Proyecto'!$I$3:$Q$881,7,FALSE) -> Frente | T86: =SUMIF('Resumen Frentes Semanal'!$K$6:$K$64,'Prog. Semanal TER'!N86,'Resumen Frentes Semanal'!$M$6:$M$64) -> 204000 | Z86: 0
A87: 87 | D87: 0 | E87: =D87*$JF$87 -> 0 | F87: 0 | G87: OGT | L87: =SUMIF('Control de Avance'!$C$15:$C$9589,'Prog. Semanal TER'!M87,'Control de Avance'!$B$15:$B$9589) -> 0 | M87: Alisado losa (incluye retiro de pasadas metalicas) | N87: =VLOOKUP(M87,'Act. Proyecto'!$I$3:$Q$881,2,FALSE) -> HORMIGÓN | O87: =VLOOKUP(M87,'Act. Proyecto'!$I$3:$Q$881,3,FALSE) -> depto | P87: =VLOOKUP(M87,'Act. Proyecto'!$I$3:$Q$881,4,FALSE) -> 2 | Q87: =VLOOKUP(M87,'Act. Proyecto'!$I$3:$Q$881,5,FALSE) -> 10550 | R87: 21100 | S87: =VLOOKUP(M87,'Act. Proyecto'!$I$3:$Q$881,7,FALSE) -> Frente | T87: =SUMIF('Resumen Frentes Semanal'!$K$6:$K$64,'Prog. Semanal TER'!N87,'Resumen Frentes Semanal'!$M$6:$M$64) -> 204000 | Z87: 0
A88: 88 | D88: 0 | E88: =D88*$JF$88 -> 0 | F88: 0 | G88: OGT | L88: =SUMIF('Control de Avance'!$C$15:$C$9589,'Prog. Semanal TER'!M88,'Control de Avance'!$B$15:$B$9589) -> 0 | M88: Tratamiento en losa para recibir muro | N88: =VLOOKUP(M88,'Act. Proyecto'!$I$3:$Q$881,2,FALSE) -> HORMIGÓN | O88: =VLOOKUP(M88,'Act. Proyecto'!$I$3:$Q$881,3,FALSE) -> ml | P88: =VLOOKUP(M88,'Act. Proyecto'!$I$3:$Q$881,4,FALSE) -> 17.24 | Q88: =VLOOKUP(M88,'Act. Proyecto'!$I$3:$Q$881,5,FALSE) -> 87 | R88: 1499.88 | S88: =VLOOKUP(M88,'Act. Proyecto'!$I$3:$Q$881,7,FALSE) -> Frente | T88: =SUMIF('Resumen Frentes Semanal'!$K$6:$K$64,'Prog. Semanal TER'!N88,'Resumen Frentes Semanal'!$M$6:$M$64) -> 204000 | Z88: 0
A89: 89 | D89: 0 | E89: =D89*$JF$89 -> 0 | F89: 0 | G89: OGT | L89: =SUMIF('Control de Avance'!$C$15:$C$9589,'Prog. Semanal TER'!M89,'Control de Avance'!$B$15:$B$9589) -> 0 | M89: Descimbre y reapuntalado de losa, desbaste interior y aseo | N89: =VLOOKUP(M89,'Act. Proyecto'!$I$3:$Q$881,2,FALSE) -> MOLDAJE LOSA | O89: =VLOOKUP(M89,'Act. Proyecto'!$I$3:$Q$881,3,FALSE) -> m2 | P89: =VLOOKUP(M89,'Act. Proyecto'!$I$3:$Q$881,4,FALSE) -> 113.62475 | Q89: =VLOOKUP(M89,'Act. Proyecto'!$I$3:$Q$881,5,FALSE) -> 415 | R89: 47154.27125 | S89: =VLOOKUP(M89,'Act. Proyecto'!$I$3:$Q$881,7,FALSE) -> Frente | T89: =SUMIF('Resumen Frentes Semanal'!$K$6:$K$64,'Prog. Semanal TER'!N89,'Resumen Frentes Semanal'!$M$6:$M$64) -> 188000 | Z89: 0
A90: 90 | D90: 0 | E90: =D90*$JF$90 -> 0 | F90: 0 | G90: OGT | L90: =SUMIF('Control de Avance'!$C$15:$C$9589,'Prog. Semanal TER'!M90,'Control de Avance'!$B$15:$B$9589) -> 0 | M90: Limpieza obra gruesa | N90: =VLOOKUP(M90,'Act. Proyecto'!$I$3:$Q$881,2,FALSE) -> MOLDAJE LOSA | O90: =VLOOKUP(M90,'Act. Proyecto'!$I$3:$Q$881,3,FALSE) -> depto | P90: =VLOOKUP(M90,'Act. Proyecto'!$I$3:$Q$881,4,FALSE) -> 2 | Q90: =VLOOKUP(M90,'Act. Proyecto'!$I$3:$Q$881,5,FALSE) -> 1070 | R90: 2140 | S90: =VLOOKUP(M90,'Act. Proyecto'!$I$3:$Q$881,7,FALSE) -> Frente | T90: =SUMIF('Resumen Frentes Semanal'!$K$6:$K$64,'Prog. Semanal TER'!N90,'Resumen Frentes Semanal'!$M$6:$M$64) -> 188000 | Z90: 0
A91: 91 | D91: 0 | E91: =D91*$JF$91 -> 0 | F91: 0 | G91: TECH | L91: =SUMIF('Control de Avance'!$C$15:$C$9589,'Prog. Semanal TER'!M91,'Control de Avance'!$B$15:$B$9589) -> 0 | M91: Descubrir cajas eléctricas en losa | N91: =VLOOKUP(M91,'Act. Proyecto'!$I$3:$Q$881,2,FALSE) -> ELÉCTRICO OG | O91: =VLOOKUP(M91,'Act. Proyecto'!$I$3:$Q$881,3,FALSE) -> centro | P91: =VLOOKUP(M91,'Act. Proyecto'!$I$3:$Q$881,4,FALSE) -> 42.64 | Q91: =VLOOKUP(M91,'Act. Proyecto'!$I$3:$Q$881,5,FALSE) -> 169 | R91: 7206.16 | S91: =VLOOKUP(M91,'Act. Proyecto'!$I$3:$Q$881,7,FALSE) -> Frente | T91: =SUMIF('Resumen Frentes Semanal'!$K$6:$K$64,'Prog. Semanal TER'!N91,'Resumen Frentes Semanal'!$M$6:$M$64) -> 123000 | Z91: 0
A92: 92 | D92: 0 | E92: =D92*$JF$92 -> 0 | F92: 0 | G92: TECH | L92: =SUMIF('Control de Avance'!$C$15:$C$9589,'Prog. Semanal TER'!M92,'Control de Avance'!$B$15:$B$9589) -> 0 | M92: Copa interior | N92: =VLOOKUP(M92,'Act. Proyecto'!$I$3:$Q$881,2,FALSE) -> MOLDAJE LOSA | O92: =VLOOKUP(M92,'Act. Proyecto'!$I$3:$Q$881,3,FALSE) -> m2 | P92: =VLOOKUP(M92,'Act. Proyecto'!$I$3:$Q$881,4,FALSE) -> 163.9471607 | Q92: =VLOOKUP(M92,'Act. Proyecto'!$I$3:$Q$881,5,FALSE) -> 85 | R92: 13935.50866 | S92: =VLOOKUP(M92,'Act. Proyecto'!$I$3:$Q$881,7,FALSE) -> Frente | T92: =SUMIF('Resumen Frentes Semanal'!$K$6:$K$64,'Prog. Semanal TER'!N92,'Resumen Frentes Semanal'!$M$6:$M$64) -> 188000 | Z92: 0
A93: 93 | D93: 0 | E93: =D93*$JF$93 -> 0 | F93: 0 | G93: TECH | L93: =SUMIF('Control de Avance'!$C$15:$C$9589,'Prog. Semanal TER'!M93,'Control de Avance'!$B$15:$B$9589) -> 0 | M93: Trazo de escala y zonas comunes | N93: =VLOOKUP(M93,'Act. Proyecto'!$I$3:$Q$881,2,FALSE) -> TRAZO | O93: =VLOOKUP(M93,'Act. Proyecto'!$I$3:$Q$881,3,FALSE) -> Piso | P93: =VLOOKUP(M93,'Act. Proyecto'!$I$3:$Q$881,4,FALSE) -> 0 | Q93: =VLOOKUP(M93,'Act. Proyecto'!$I$3:$Q$881,5,FALSE) -> 8000 | R93: 0 | S93: =VLOOKUP(M93,'Act. Proyecto'!$I$3:$Q$881,7,FALSE) -> Piso | T93: =SUMIF('Resumen Frentes Semanal'!$K$6:$K$64,'Prog. Semanal TER'!N93,'Resumen Frentes Semanal'!$M$6:$M$64) -> 0 | Z93: 0
A94: 94 | D94: 0 | E94: =D94*$JF$94 -> 0 | F94: 0 | G94: TECH | L94: =SUMIF('Control de Avance'!$C$15:$C$9589,'Prog. Semanal TER'!M94,'Control de Avance'!$B$15:$B$9589) -> 0 | M94: Moldaje escala | N94: =VLOOKUP(M94,'Act. Proyecto'!$I$3:$Q$881,2,FALSE) -> MOLDAJE LOSA | O94: =VLOOKUP(M94,'Act. Proyecto'!$I$3:$Q$881,3,FALSE) -> m2 | P94: =VLOOKUP(M94,'Act. Proyecto'!$I$3:$Q$881,4,FALSE) -> 0 | Q94: =VLOOKUP(M94,'Act. Proyecto'!$I$3:$Q$881,5,FALSE) -> 0 | R94: 0 | S94: =VLOOKUP(M94,'Act. Proyecto'!$I$3:$Q$881,7,FALSE) -> Piso | T94: =SUMIF('Resumen Frentes Semanal'!$K$6:$K$64,'Prog. Semanal TER'!N94,'Resumen Frentes Semanal'!$M$6:$M$64) -> 188000 | Z94: 0
A95: 95 | D95: 0 | E95: =D95*$JF$95 -> 0 | F95: 0 | G95: TECH | L95: =SUMIF('Control de Avance'!$C$15:$C$9589,'Prog. Semanal TER'!M95,'Control de Avance'!$B$15:$B$9589) -> 0 | M95: Inyección fierro escala | N95: =VLOOKUP(M95,'Act. Proyecto'!$I$3:$Q$881,2,FALSE) -> MOLDAJE LOSA | O95: =VLOOKUP(M95,'Act. Proyecto'!$I$3:$Q$881,3,FALSE) -> piso | P95: =VLOOKUP(M95,'Act. Proyecto'!$I$3:$Q$881,4,FALSE) -> 1 | Q95: =VLOOKUP(M95,'Act. Proyecto'!$I$3:$Q$881,5,FALSE) -> 3180 | R95: 3180 | S95: =VLOOKUP(M95,'Act. Proyecto'!$I$3:$Q$881,7,FALSE) -> Piso | T95: =SUMIF('Resumen Frentes Semanal'!$K$6:$K$64,'Prog. Semanal TER'!N95,'Resumen Frentes Semanal'!$M$6:$M$64) -> 188000 | Z95: 0
A96: 96 | D96: 0 | E96: =D96*$JF$96 -> 0 | F96: 0 | G96: TECH | L96: =SUMIF('Control de Avance'!$C$15:$C$9589,'Prog. Semanal TER'!M96,'Control de Avance'!$B$15:$B$9589) -> 0 | M96: Fierro escala | N96: =VLOOKUP(M96,'Act. Proyecto'!$I$3:$Q$881,2,FALSE) -> ENFIERRADOR | O96: =VLOOKUP(M96,'Act. Proyecto'!$I$3:$Q$881,3,FALSE) -> kg | P96: =VLOOKUP(M96,'Act. Proyecto'!$I$3:$Q$881,4,FALSE) -> 101.9800102 | Q96: =VLOOKUP(M96,'Act. Proyecto'!$I$3:$Q$881,5,FALSE) -> 93 | R96: 9484.14095 | S96: =VLOOKUP(M96,'Act. Proyecto'!$I$3:$Q$881,7,FALSE) -> Piso | T96: =SUMIF('Resumen Frentes Semanal'!$K$6:$K$64,'Prog. Semanal TER'!N96,'Resumen Frentes Semanal'!$M$6:$M$64) -> 210632 | Z96: 0
A97: 97 | D97: 0 | E97: =D97*$JF$97 -> 0 | F97: 0 | G97: TECH | L97: =SUMIF('Control de Avance'!$C$15:$C$9589,'Prog. Semanal TER'!M97,'Control de Avance'!$B$15:$B$9589) -> 0 | M97: Moldaje contrahuella escala | N97: =VLOOKUP(M97,'Act. Proyecto'!$I$3:$Q$881,2,FALSE) -> MOLDAJE LOSA | O97: =VLOOKUP(M97,'Act. Proyecto'!$I$3:$Q$881,3,FALSE) -> m2 | P97: =VLOOKUP(M97,'Act. Proyecto'!$I$3:$Q$881,4,FALSE) -> 0 | Q97: =VLOOKUP(M97,'Act. Proyecto'!$I$3:$Q$881,5,FALSE) -> 0 | R97: 0 | S97: =VLOOKUP(M97,'Act. Proyecto'!$I$3:$Q$881,7,FALSE) -> Piso | T97: =SUMIF('Resumen Frentes Semanal'!$K$6:$K$64,'Prog. Semanal TER'!N97,'Resumen Frentes Semanal'!$M$6:$M$64) -> 188000 | Z97: 0
A98: 98 | D98: 0 | E98: =D98*$JF$98 -> 0 | F98: 0 | G98: TECH | L98: =SUMIF('Control de Avance'!$C$15:$C$9589,'Prog. Semanal TER'!M98,'Control de Avance'!$B$15:$B$9589) -> 0 | M98: Hormigón escala | N98: =VLOOKUP(M98,'Act. Proyecto'!$I$3:$Q$881,2,FALSE) -> HORMIGÓN | O98: =VLOOKUP(M98,'Act. Proyecto'!$I$3:$Q$881,3,FALSE) -> m3 | P98: =VLOOKUP(M98,'Act. Proyecto'!$I$3:$Q$881,4,FALSE) -> 0 | Q98: =VLOOKUP(M98,'Act. Proyecto'!$I$3:$Q$881,5,FALSE) -> 4300 | R98: 0 | S98: =VLOOKUP(M98,'Act. Proyecto'!$I$3:$Q$881,7,FALSE) -> Piso | T98: =SUMIF('Resumen Frentes Semanal'!$K$6:$K$64,'Prog. Semanal TER'!N98,'Resumen Frentes Semanal'!$M$6:$M$64) -> 204000 | Z98: 0
A99: 99 | D99: 0 | E99: =D99*$JF$99 -> 0 | F99: 0 | G99: TECH | L99: =SUMIF('Control de Avance'!$C$15:$C$9589,'Prog. Semanal TER'!M99,'Control de Avance'!$B$15:$B$9589) -> 0 | M99: Alisado de escala | N99: =VLOOKUP(M99,'Act. Proyecto'!$I$3:$Q$881,2,FALSE) -> HORMIGÓN | O99: =VLOOKUP(M99,'Act. Proyecto'!$I$3:$Q$881,3,FALSE) -> Piso | P99: =VLOOKUP(M99,'Act. Proyecto'!$I$3:$Q$881,4,FALSE) -> 1 | Q99: =VLOOKUP(M99,'Act. Proyecto'!$I$3:$Q$881,5,FALSE) -> 4400 | R99: 4400 | S99: =VLOOKUP(M99,'Act. Proyecto'!$I$3:$Q$881,7,FALSE) -> Piso | T99: =SUMIF('Resumen Frentes Semanal'!$K$6:$K$64,'Prog. Semanal TER'!N99,'Resumen Frentes Semanal'!$M$6:$M$64) -> 204000 | Z99: 0
A100: 99 | D100: 0 | E100: =D100*$JF$100 -> 0 | F100: 0 | G100: TECH | L100: =SUMIF('Control de Avance'!$C$15:$C$9589,'Prog. Semanal TER'!M100,'Control de Avance'!$B$15:$B$9589) -> 0 | M100: Descimbre escala | N100: =VLOOKUP(M100,'Act. Proyecto'!$I$3:$Q$881,2,FALSE) -> MOLDAJE LOSA | O100: =VLOOKUP(M100,'Act. Proyecto'!$I$3:$Q$881,3,FALSE) -> Piso | P100: =VLOOKUP(M100,'Act. Proyecto'!$I$3:$Q$881,4,FALSE) -> 0 | Q100: =VLOOKUP(M100,'Act. Proyecto'!$I$3:$Q$881,5,FALSE) -> 0 | R100: 0 | S100: =VLOOKUP(M100,'Act. Proyecto'!$I$3:$Q$881,7,FALSE) -> Piso | T100: =SUMIF('Resumen Frentes Semanal'!$K$6:$K$64,'Prog. Semanal TER'!N100,'Resumen Frentes Semanal'!$M$6:$M$64) -> 188000 | Z100: 0
A101: 100 | D101: 0 | E101: =D101*$JF$101 -> 0 | F101: 0 | G101: TECH | L101: =SUMIF('Control de Avance'!$C$15:$C$9589,'Prog. Semanal TER'!M101,'Control de Avance'!$B$15:$B$9589) -> 0 | M101: Fierro viga descanso escala | N101: =VLOOKUP(M101,'Act. Proyecto'!$I$3:$Q$881,2,FALSE) -> ENFIERRADOR | O101: =VLOOKUP(M101,'Act. Proyecto'!$I$3:$Q$881,3,FALSE) -> kg | P101: =VLOOKUP(M101,'Act. Proyecto'!$I$3:$Q$881,4,FALSE) -> 14.1 | Q101: =VLOOKUP(M101,'Act. Proyecto'!$I$3:$Q$881,5,FALSE) -> 93 | R101: 1311.3 | S101: =VLOOKUP(M101,'Act. Proyecto'!$I$3:$Q$881,7,FALSE) -> Piso | T101: =SUMIF('Resumen Frentes Semanal'!$K$6:$K$64,'Prog. Semanal TER'!N101,'Resumen Frentes Semanal'!$M$6:$M$64) -> 210632 | Z101: 0 | AB101: b | AC101: b
A102: 101 | D102: 0 | E102: =D102*$JF$102 -> 0 | F102: 0 | G102: TECH | L102: =SUMIF('Control de Avance'!$C$15:$C$9589,'Prog. Semanal TER'!M102,'Control de Avance'!$B$15:$B$9589) -> 0 | M102: Moldaje viga descanso escala | N102: =VLOOKUP(M102,'Act. Proyecto'!$I$3:$Q$881,2,FALSE) -> MOLDAJE MURO | O102: =VLOOKUP(M102,'Act. Proyecto'!$I$3:$Q$881,3,FALSE) -> m2 | P102: =VLOOKUP(M102,'Act. Proyecto'!$I$3:$Q$881,4,FALSE) -> 4.85 | Q102: =VLOOKUP(M102,'Act. Proyecto'!$I$3:$Q$881,5,FALSE) -> 1050 | R102: 5092.5 | S102: =VLOOKUP(M102,'Act. Proyecto'!$I$3:$Q$881,7,FALSE) -> Piso | T102: =SUMIF('Resumen Frentes Semanal'!$K$6:$K$64,'Prog. Semanal TER'!N102,'Resumen Frentes Semanal'!$M$6:$M$64) -> 321000 | Z102: 0
A103: 102 | D103: 0 | E103: =D103*$JF$103 -> 0 | F103: 0 | G103: TECH | L103: =SUMIF('Control de Avance'!$C$15:$C$9589,'Prog. Semanal TER'!M103,'Control de Avance'!$B$15:$B$9589) -> 0 | M103: Hormigón viga descanso escala | N103: =VLOOKUP(M103,'Act. Proyecto'!$I$3:$Q$881,2,FALSE) -> HORMIGÓN | O103: =VLOOKUP(M103,'Act. Proyecto'!$I$3:$Q$881,3,FALSE) -> m3 | P103: =VLOOKUP(M103,'Act. Proyecto'!$I$3:$Q$881,4,FALSE) -> 0.36 | Q103: =VLOOKUP(M103,'Act. Proyecto'!$I$3:$Q$881,5,FALSE) -> 5380 | R103: 1936.8 | S103: =VLOOKUP(M103,'Act. Proyecto'!$I$3:$Q$881,7,FALSE) -> Piso | T103: =SUMIF('Resumen Frentes Semanal'!$K$6:$K$64,'Prog. Semanal TER'!N103,'Resumen Frentes Semanal'!$M$6:$M$64) -> 204000 | Z103: 0
A104: 103 | D104: 0 | E104: =D104*$JF$104 -> 0 | F104: 0 | G104: TECH | L104: =SUMIF('Control de Avance'!$C$15:$C$9589,'Prog. Semanal TER'!M104,'Control de Avance'!$B$15:$B$9589) -> 0 | M104: Descimbre viga descanso escala | N104: =VLOOKUP(M104,'Act. Proyecto'!$I$3:$Q$881,2,FALSE) -> MOLDAJE MURO | O104: =VLOOKUP(M104,'Act. Proyecto'!$I$3:$Q$881,3,FALSE) -> m2 | P104: =VLOOKUP(M104,'Act. Proyecto'!$I$3:$Q$881,4,FALSE) -> 4.85 | Q104: =VLOOKUP(M104,'Act. Proyecto'!$I$3:$Q$881,5,FALSE) -> 370 | R104: 1794.5 | S104: =VLOOKUP(M104,'Act. Proyecto'!$I$3:$Q$881,7,FALSE) -> Piso | T104: =SUMIF('Resumen Frentes Semanal'!$K$6:$K$64,'Prog. Semanal TER'!N104,'Resumen Frentes Semanal'!$M$6:$M$64) -> 321000 | Z104: 0
A105: 103 | D105: 0 | E105: =D105*$JF$105 -> 0 | F105: 0 | G105: TECH | L105: =SUMIF('Control de Avance'!$C$15:$C$9589,'Prog. Semanal TER'!M105,'Control de Avance'!$B$15:$B$9589) -> 0 | M105: Moldaje viga acceso edificio | N105: =VLOOKUP(M105,'Act. Proyecto'!$I$3:$Q$881,2,FALSE) -> MOLDAJE MURO | O105: =VLOOKUP(M105,'Act. Proyecto'!$I$3:$Q$881,3,FALSE) -> m2 | P105: =VLOOKUP(M105,'Act. Proyecto'!$I$3:$Q$881,4,FALSE) -> 4.1 | Q105: =VLOOKUP(M105,'Act. Proyecto'!$I$3:$Q$881,5,FALSE) -> 1050 | R105: 4305 | S105: =VLOOKUP(M105,'Act. Proyecto'!$I$3:$Q$881,7,FALSE) -> Edif | T105: =SUMIF('Resumen Frentes Semanal'!$K$6:$K$64,'Prog. Semanal TER'!N105,'Resumen Frentes Semanal'!$M$6:$M$64) -> 321000 | Z105: 0
A106: 103 | D106: 0 | E106: =D106*$JF$106 -> 0 | F106: 0 | G106: TECH | L106: =SUMIF('Control de Avance'!$C$15:$C$9589,'Prog. Semanal TER'!M106,'Control de Avance'!$B$15:$B$9589) -> 0 | M106: Hormigón viga acceso edificio | N106: =VLOOKUP(M106,'Act. Proyecto'!$I$3:$Q$881,2,FALSE) -> HORMIGÓN | O106: =VLOOKUP(M106,'Act. Proyecto'!$I$3:$Q$881,3,FALSE) -> m3 | P106: =VLOOKUP(M106,'Act. Proyecto'!$I$3:$Q$881,4,FALSE) -> 0.225 | Q106: =VLOOKUP(M106,'Act. Proyecto'!$I$3:$Q$881,5,FALSE) -> 5380 | R106: 1210.5 | S106: =VLOOKUP(M106,'Act. Proyecto'!$I$3:$Q$881,7,FALSE) -> Edif | T106: =SUMIF('Resumen Frentes Semanal'!$K$6:$K$64,'Prog. Semanal TER'!N106,'Resumen Frentes Semanal'!$M$6:$M$64) -> 204000 | Z106: 0
A107: 103 | D107: 0 | E107: =D107*$JF$107 -> 0 | F107: 0 | G107: TECH | L107: =SUMIF('Control de Avance'!$C$15:$C$9589,'Prog. Semanal TER'!M107,'Control de Avance'!$B$15:$B$9589) -> 0 | M107: Descimbre viga acceso edificio | N107: =VLOOKUP(M107,'Act. Proyecto'!$I$3:$Q$881,2,FALSE) -> MOLDAJE MURO | O107: =VLOOKUP(M107,'Act. Proyecto'!$I$3:$Q$881,3,FALSE) -> m2 | P107: =VLOOKUP(M107,'Act. Proyecto'!$I$3:$Q$881,4,FALSE) -> 4.1 | Q107: =VLOOKUP(M107,'Act. Proyecto'!$I$3:$Q$881,5,FALSE) -> 370 | R107: 1517 | S107: =VLOOKUP(M107,'Act. Proyecto'!$I$3:$Q$881,7,FALSE) -> Edif | T107: =SUMIF('Resumen Frentes Semanal'!$K$6:$K$64,'Prog. Semanal TER'!N107,'Resumen Frentes Semanal'!$M$6:$M$64) -> 321000 | Z107: 0
A108: 104 | D108: 0 | E108: =D108*$JF$108 -> 0 | F108: 0 | G108: TECH | L108: =SUMIF('Control de Avance'!$C$15:$C$9589,'Prog. Semanal TER'!M108,'Control de Avance'!$B$15:$B$9589) -> 0 | M108: Ayudante albañil remate exterior | N108: =VLOOKUP(M108,'Act. Proyecto'!$I$3:$Q$881,2,FALSE) -> MOLDAJE MURO | O108: =VLOOKUP(M108,'Act. Proyecto'!$I$3:$Q$881,3,FALSE) -> depto | P108: =VLOOKUP(M108,'Act. Proyecto'!$I$3:$Q$881,4,FALSE) -> 2 | Q108: =VLOOKUP(M108,'Act. Proyecto'!$I$3:$Q$881,5,FALSE) -> 2250 | R108: 4500 | S108: =VLOOKUP(M108,'Act. Proyecto'!$I$3:$Q$881,7,FALSE) -> Frente | T108: =SUMIF('Resumen Frentes Semanal'!$K$6:$K$64,'Prog. Semanal TER'!N108,'Resumen Frentes Semanal'!$M$6:$M$64) -> 321000 | Z108: 0
A109: 105 | D109: 0 | E109: =D109*$JF$109 -> 0 | F109: 0 | G109: TECH | L109: =SUMIF('Control de Avance'!$C$15:$C$9589,'Prog. Semanal TER'!M109,'Control de Avance'!$B$15:$B$9589) -> 0 | M109: Remate exterior | N109: =VLOOKUP(M109,'Act. Proyecto'!$I$3:$Q$881,2,FALSE) -> MOLDAJE MURO | O109: =VLOOKUP(M109,'Act. Proyecto'!$I$3:$Q$881,3,FALSE) -> ml | P109: =VLOOKUP(M109,'Act. Proyecto'!$I$3:$Q$881,4,FALSE) -> 33.7075 | Q109: =VLOOKUP(M109,'Act. Proyecto'!$I$3:$Q$881,5,FALSE) -> 450 | R109: 15168.375 | S109: =VLOOKUP(M109,'Act. Proyecto'!$I$3:$Q$881,7,FALSE) -> Frente | T109: =SUMIF('Resumen Frentes Semanal'!$K$6:$K$64,'Prog. Semanal TER'!N109,'Resumen Frentes Semanal'!$M$6:$M$64) -> 321000 | Z109: 0
A110: 107 | D110: 0 | E110: =D110*$JF$110 -> 0 | F110: 0 | G110: TECH | L110: =SUMIF('Control de Avance'!$C$15:$C$9589,'Prog. Semanal TER'!M110,'Control de Avance'!$B$15:$B$9589) -> 0 | M110: Remate troncocónicos | N110: =VLOOKUP(M110,'Act. Proyecto'!$I$3:$Q$881,2,FALSE) -> MOLDAJE MURO | O110: =VLOOKUP(M110,'Act. Proyecto'!$I$3:$Q$881,3,FALSE) -> depto | P110: =VLOOKUP(M110,'Act. Proyecto'!$I$3:$Q$881,4,FALSE) -> 2 | Q110: =VLOOKUP(M110,'Act. Proyecto'!$I$3:$Q$881,5,FALSE) -> 3580 | R110: 7160 | S110: =VLOOKUP(M110,'Act. Proyecto'!$I$3:$Q$881,7,FALSE) -> Frente | T110: =SUMIF('Resumen Frentes Semanal'!$K$6:$K$64,'Prog. Semanal TER'!N110,'Resumen Frentes Semanal'!$M$6:$M$64) -> 321000 | Z110: 0
A111: 108 | D111: 0 | E111: =D111*$JF$111 -> 0 | F111: 0 | G111: TECH | L111: =SUMIF('Control de Avance'!$C$15:$C$9589,'Prog. Semanal TER'!M111,'Control de Avance'!$B$15:$B$9589) -> 0 | M111: TREN TECHUMBRE | N111: =VLOOKUP(M111,'Act. Proyecto'!$I$3:$Q$881,2,FALSE) -> . | O111: =VLOOKUP(M111,'Act. Proyecto'!$I$3:$Q$881,3,FALSE) -> . | P111: =VLOOKUP(M111,'Act. Proyecto'!$I$3:$Q$881,4,FALSE) -> 0 | Q111: =VLOOKUP(M111,'Act. Proyecto'!$I$3:$Q$881,5,FALSE) -> . | R111: 0 | S111: =VLOOKUP(M111,'Act. Proyecto'!$I$3:$Q$881,7,FALSE) -> . | T111: =SUMIF('Resumen Frentes Semanal'!$K$6:$K$64,'Prog. Semanal TER'!N111,'Resumen Frentes Semanal'!$M$6:$M$64) -> 0 | Z111: a | AA111: a | AB111: b | AC111: b
A112: 110 | D112: 0 | E112: =D112*$JF$112 -> 0 | F112: 0 | G112: TECH | L112: =SUMIF('Control de Avance'!$C$15:$C$9589,'Prog. Semanal TER'!M112,'Control de Avance'!$B$15:$B$9589) -> 0 | M112: Fierro Coronación y shaft | N112: =VLOOKUP(M112,'Act. Proyecto'!$I$3:$Q$881,2,FALSE) -> ENFIERRADOR | O112: =VLOOKUP(M112,'Act. Proyecto'!$I$3:$Q$881,3,FALSE) -> kg | P112: =VLOOKUP(M112,'Act. Proyecto'!$I$3:$Q$881,4,FALSE) -> 84.42904288 | Q112: =VLOOKUP(M112,'Act. Proyecto'!$I$3:$Q$881,5,FALSE) -> 93 | R112: 7851.900988 | S112: =VLOOKUP(M112,'Act. Proyecto'!$I$3:$Q$881,7,FALSE) -> Frente | T112: =SUMIF('Resumen Frentes Semanal'!$K$6:$K$64,'Prog. Semanal TER'!N112,'Resumen Frentes Semanal'!$M$6:$M$64) -> 210632 | Z112: 0
A113: 111 | D113: 0 | E113: =D113*$JF$113 -> 0 | F113: 0 | G113: TECH | L113: =SUMIF('Control de Avance'!$C$15:$C$9589,'Prog. Semanal TER'!M113,'Control de Avance'!$B$15:$B$9589) -> 0 | M113: Trazo Muros Coronación, canales y shaft | N113: =VLOOKUP(M113,'Act. Proyecto'!$I$3:$Q$881,2,FALSE) -> TRAZO | O113: =VLOOKUP(M113,'Act. Proyecto'!$I$3:$Q$881,3,FALSE) -> gl | P113: =VLOOKUP(M113,'Act. Proyecto'!$I$3:$Q$881,4,FALSE) -> 2 | Q113: =VLOOKUP(M113,'Act. Proyecto'!$I$3:$Q$881,5,FALSE) -> 0 | R113: 0 | S113: =VLOOKUP(M113,'Act. Proyecto'!$I$3:$Q$881,7,FALSE) -> Frente | T113: =SUMIF('Resumen Frentes Semanal'!$K$6:$K$64,'Prog. Semanal TER'!N113,'Resumen Frentes Semanal'!$M$6:$M$64) -> 0 | Z113: 0
A114: 112 | D114: 0 | E114: =D114*$JF$114 -> 0 | F114: 0 | G114: TECH | L114: =SUMIF('Control de Avance'!$C$15:$C$9589,'Prog. Semanal TER'!M114,'Control de Avance'!$B$15:$B$9589) -> 1 | M114: Armar ducto de hojalatería VC incluye perforaciones | N114: =VLOOKUP(M114,'Act. Proyecto'!$I$3:$Q$881,2,FALSE) -> TECHUMBRE Y MEMBRANA | O114: =VLOOKUP(M114,'Act. Proyecto'!$I$3:$Q$881,3,FALSE) -> ml | P114: =VLOOKUP(M114,'Act. Proyecto'!$I$3:$Q$881,4,FALSE) -> 12.75 | Q114: =VLOOKUP(M114,'Act. Proyecto'!$I$3:$Q$881,5,FALSE) -> 1281.5 | R114: 16339.125 | S114: =VLOOKUP(M114,'Act. Proyecto'!$I$3:$Q$881,7,FALSE) -> Frente | T114: =SUMIF('Resumen Frentes Semanal'!$K$6:$K$64,'Prog. Semanal TER'!N114,'Resumen Frentes Semanal'!$M$6:$M$64) -> 69656 | Z114: 0
A115: 113 | D115: 0 | E115: =D115*$JF$115 -> 0 | F115: 0 | G115: TECH | L115: =SUMIF('Control de Avance'!$C$15:$C$9589,'Prog. Semanal TER'!M115,'Control de Avance'!$B$15:$B$9589) -> 1 | M115: Instalar ducto de hojalatería VC | N115: =VLOOKUP(M115,'Act. Proyecto'!$I$3:$Q$881,2,FALSE) -> TECHUMBRE Y MEMBRANA | O115: =VLOOKUP(M115,'Act. Proyecto'!$I$3:$Q$881,3,FALSE) -> ml | P115: =VLOOKUP(M115,'Act. Proyecto'!$I$3:$Q$881,4,FALSE) -> 12.75 | Q115: =VLOOKUP(M115,'Act. Proyecto'!$I$3:$Q$881,5,FALSE) -> 1281.5 | R115: 16339.125 | S115: =VLOOKUP(M115,'Act. Proyecto'!$I$3:$Q$881,7,FALSE) -> Frente | T115: =SUMIF('Resumen Frentes Semanal'!$K$6:$K$64,'Prog. Semanal TER'!N115,'Resumen Frentes Semanal'!$M$6:$M$64) -> 69656 | Z115: 0
A116: 117 | D116: 0 | E116: =D116*$JF$116 -> 0 | F116: 0 | G116: TECH | L116: =SUMIF('Control de Avance'!$C$15:$C$9589,'Prog. Semanal TER'!M116,'Control de Avance'!$B$15:$B$9589) -> 1 | M116: Subir material de techumbre | N116: =VLOOKUP(M116,'Act. Proyecto'!$I$3:$Q$881,2,FALSE) -> LIMPIEZA Y TRASLADO | O116: =VLOOKUP(M116,'Act. Proyecto'!$I$3:$Q$881,3,FALSE) -> depto | P116: =VLOOKUP(M116,'Act. Proyecto'!$I$3:$Q$881,4,FALSE) -> 2.423076923 | Q116: =VLOOKUP(M116,'Act. Proyecto'!$I$3:$Q$881,5,FALSE) -> 2330 | R116: 5645.769231 | S116: =VLOOKUP(M116,'Act. Proyecto'!$I$3:$Q$881,7,FALSE) -> Frente | T116: =SUMIF('Resumen Frentes Semanal'!$K$6:$K$64,'Prog. Semanal TER'!N116,'Resumen Frentes Semanal'!$M$6:$M$64) -> 43500 | Z116: 0 | BJ116: 5F1 | BL116: F3-4 | BM116: F5-6 | BN116: 0.0476 | BP116: 5F2 | BQ116: 5F3-4 | BR116: 5F5-6 | BT116: 1 | DG116: 5F7-8-9-10 | DH116: 5F11 | DI116: 0.8 | EP116: 5F11-12 | EQ116: 0 | ER116: 5F11-12 | EW116: 1 | FH116: 5F13-14-15 | FI116: 0 | FP116: 5F13-14-15 | FU116: 1 | FV116: 5F13-14 | GA116: 1 | GE116: 5F15-16 | GF116: 5F17-18 | GG116: 0.5 | GR116: 5F17-18 | GS116: 1 | HE116: 5F19-20 | HJ116: 0 | HM116: 5F19-20 | HP116: 0 | HQ116: 5F19-20 | HV116: 1 | IE116: 5F21-22 | IH116: 1 | IJ116: 5F23-24 | IN116: 1
A117: 118 | D117: 0 | E117: =D117*$JF$117 -> 0 | F117: 0 | G117: TECH | L117: =SUMIF('Control de Avance'!$C$15:$C$9589,'Prog. Semanal TER'!M117,'Control de Avance'!$B$15:$B$9589) -> 0 | M117: Moldaje Coronación | N117: =VLOOKUP(M117,'Act. Proyecto'!$I$3:$Q$881,2,FALSE) -> SOBRECIMIENTO Y CORONACIÓN | O117: =VLOOKUP(M117,'Act. Proyecto'!$I$3:$Q$881,3,FALSE) -> m2 | P117: =VLOOKUP(M117,'Act. Proyecto'!$I$3:$Q$881,4,FALSE) -> 46.40555556 | Q117: =VLOOKUP(M117,'Act. Proyecto'!$I$3:$Q$881,5,FALSE) -> 1730 | R117: 80281.61111 | S117: =VLOOKUP(M117,'Act. Proyecto'!$I$3:$Q$881,7,FALSE) -> Frente | T117: =SUMIF('Resumen Frentes Semanal'!$K$6:$K$64,'Prog. Semanal TER'!N117,'Resumen Frentes Semanal'!$M$6:$M$64) -> 95000 | Z117: 0
A118: 119 | D118: 0 | E118: =D118*$JF$118 -> 0 | F118: 0 | G118: TECH | L118: =SUMIF('Control de Avance'!$C$15:$C$9589,'Prog. Semanal TER'!M118,'Control de Avance'!$B$15:$B$9589) -> 0 | M118: Hormigón Coronación | N118: =VLOOKUP(M118,'Act. Proyecto'!$I$3:$Q$881,2,FALSE) -> HORMIGÓN | O118: =VLOOKUP(M118,'Act. Proyecto'!$I$3:$Q$881,3,FALSE) -> m3 | P118: =VLOOKUP(M118,'Act. Proyecto'!$I$3:$Q$881,4,FALSE) -> 3.480416667 | Q118: =VLOOKUP(M118,'Act. Proyecto'!$I$3:$Q$881,5,FALSE) -> 5380 | R118: 18724.64167 | S118: =VLOOKUP(M118,'Act. Proyecto'!$I$3:$Q$881,7,FALSE) -> Frente | T118: =SUMIF('Resumen Frentes Semanal'!$K$6:$K$64,'Prog. Semanal TER'!N118,'Resumen Frentes Semanal'!$M$6:$M$64) -> 204000 | Z118: 0
A119: 120 | D119: 0 | E119: =D119*$JF$119 -> 0 | F119: 0 | G119: TECH | L119: =SUMIF('Control de Avance'!$C$15:$C$9589,'Prog. Semanal TER'!M119,'Control de Avance'!$B$15:$B$9589) -> 0 | M119: Descimbre Coronación | N119: =VLOOKUP(M119,'Act. Proyecto'!$I$3:$Q$881,2,FALSE) -> SOBRECIMIENTO Y CORONACIÓN | O119: =VLOOKUP(M119,'Act. Proyecto'!$I$3:$Q$881,3,FALSE) -> m2 | P119: =VLOOKUP(M119,'Act. Proyecto'!$I$3:$Q$881,4,FALSE) -> 46.40555556 | Q119: =VLOOKUP(M119,'Act. Proyecto'!$I$3:$Q$881,5,FALSE) -> 440 | R119: 20418.44444 | S119: =VLOOKUP(M119,'Act. Proyecto'!$I$3:$Q$881,7,FALSE) -> Frente | T119: =SUMIF('Resumen Frentes Semanal'!$K$6:$K$64,'Prog. Semanal TER'!N119,'Resumen Frentes Semanal'!$M$6:$M$64) -> 95000 | Z119: 0
A120: 121 | D120: 0 | E120: =D120*$JF$120 -> 0 | F120: 0 | G120: RYT | L120: =SUMIF('Control de Avance'!$C$15:$C$9589,'Prog. Semanal TER'!M120,'Control de Avance'!$B$15:$B$9589) -> 1 | M120: Canal de techumbre con solerillas | N120: =VLOOKUP(M120,'Act. Proyecto'!$I$3:$Q$881,2,FALSE) -> ADMINISTRACIÓN | O120: =VLOOKUP(M120,'Act. Proyecto'!$I$3:$Q$881,3,FALSE) -> ml | P120: =VLOOKUP(M120,'Act. Proyecto'!$I$3:$Q$881,4,FALSE) -> 31.0625 | Q120: =VLOOKUP(M120,'Act. Proyecto'!$I$3:$Q$881,5,FALSE) -> 395 | R120: 12269.6875 | S120: =VLOOKUP(M120,'Act. Proyecto'!$I$3:$Q$881,7,FALSE) -> Frente | T120: =SUMIF('Resumen Frentes Semanal'!$K$6:$K$64,'Prog. Semanal TER'!N120,'Resumen Frentes Semanal'!$M$6:$M$64) -> 0 | Z120: 0 | BJ120: 5F1 | BK120: 5F2 | BL120: 5F3 | BM120: 5F4 | BN120: 0
A121: 123 | D121: 0 | E121: =D121*$JF$121 -> 0 | F121: 0 | G121: RYT | L121: =SUMIF('Control de Avance'!$C$15:$C$9589,'Prog. Semanal TER'!M121,'Control de Avance'!$B$15:$B$9589) -> 1 | M121: Pendiente canales bajadas de aguas lluvias | N121: =VLOOKUP(M121,'Act. Proyecto'!$I$3:$Q$881,2,FALSE) -> ADMINISTRACIÓN | O121: =VLOOKUP(M121,'Act. Proyecto'!$I$3:$Q$881,3,FALSE) -> depto | P121: =VLOOKUP(M121,'Act. Proyecto'!$I$3:$Q$881,4,FALSE) -> 2 | Q121: =VLOOKUP(M121,'Act. Proyecto'!$I$3:$Q$881,5,FALSE) -> 2760 | R121: 5520 | S121: =VLOOKUP(M121,'Act. Proyecto'!$I$3:$Q$881,7,FALSE) -> Frente | T121: =SUMIF('Resumen Frentes Semanal'!$K$6:$K$64,'Prog. Semanal TER'!N121,'Resumen Frentes Semanal'!$M$6:$M$64) -> 0 | Z121: 0 | BK121: 5F1 | BL121: 5F2 | BM121: 5F3 | BN121: 0
A122: 123 | D122: 0 | E122: =D122*$JF$122 -> 0 | F122: 0 | G122: RYT | L122: =SUMIF('Control de Avance'!$C$15:$C$9589,'Prog. Semanal TER'!M122,'Control de Avance'!$B$15:$B$9589) -> 1 | M122: Solerillas de borde en shaft baño, cocina y basura | N122: =VLOOKUP(M122,'Act. Proyecto'!$I$3:$Q$881,2,FALSE) -> ADMINISTRACIÓN | O122: =VLOOKUP(M122,'Act. Proyecto'!$I$3:$Q$881,3,FALSE) -> ml | P122: =VLOOKUP(M122,'Act. Proyecto'!$I$3:$Q$881,4,FALSE) -> 8.22375 | Q122: =VLOOKUP(M122,'Act. Proyecto'!$I$3:$Q$881,5,FALSE) -> 395 | R122: 3248.38125 | S122: =VLOOKUP(M122,'Act. Proyecto'!$I$3:$Q$881,7,FALSE) -> Frente | T122: =SUMIF('Resumen Frentes Semanal'!$K$6:$K$64,'Prog. Semanal TER'!N122,'Resumen Frentes Semanal'!$M$6:$M$64) -> 0 | Z122: 0 | BK122: 5F1 | BL122: 5F2 | BN122: 1 | BO122: 5F3-4 | BP122: 5F5-6 | BT122: 0.5 | BZ122: 1
A123: 125 | D123: 0 | E123: =D123*$JF$123 -> 0 | F123: 0 | G123: RYT | L123: =SUMIF('Control de Avance'!$C$15:$C$9589,'Prog. Semanal TER'!M123,'Control de Avance'!$B$15:$B$9589) -> 0 | M123: Remate muros de coronación techumbre (incluye retape de pasadas shaft y BALL) | N123: =VLOOKUP(M123,'Act. Proyecto'!$I$3:$Q$881,2,FALSE) -> ALBAÑIL TERMINACIONES | O123: =VLOOKUP(M123,'Act. Proyecto'!$I$3:$Q$881,3,FALSE) -> depto | P123: =VLOOKUP(M123,'Act. Proyecto'!$I$3:$Q$881,4,FALSE) -> 2 | Q123: =VLOOKUP(M123,'Act. Proyecto'!$I$3:$Q$881,5,FALSE) -> 5500 | R123: 11000 | S123: =VLOOKUP(M123,'Act. Proyecto'!$I$3:$Q$881,7,FALSE) -> Frente | T123: =SUMIF('Resumen Frentes Semanal'!$K$6:$K$64,'Prog. Semanal TER'!N123,'Resumen Frentes Semanal'!$M$6:$M$64) -> 52341 | Z123: 0 | DK123: 5F7-8 | DL123: 5F9-10 | DO123: 1 | EN123: 5F11-12 | EQ123: 1 | FF123: 5F13-14-15 | FI123: 0 | FP123: 5F13-14 | FU123: 1 | FV123: 5F15-16 | GA123: 0 | GF123: 5F15 | GG123: 1 | GL123: 5F16 | GM123: 0 | GO123: 5F16 | GS123: 1 | GX123: 5F17-18 | GY123: 1 | HH123: 5F19-20-21-22 | HJ123: 1 | IM123: 5F23-24 | IN123: 1
A124: 129 | D124: 0 | E124: =D124*$JF$124 -> 0 | F124: 0 | G124: RYT | L124: =SUMIF('Control de Avance'!$C$15:$C$9589,'Prog. Semanal TER'!M124,'Control de Avance'!$B$15:$B$9589) -> 0 | M124: Fabricar e instalar gatera | N124: =VLOOKUP(M124,'Act. Proyecto'!$I$3:$Q$881,2,FALSE) -> SOLDADOR | O124: =VLOOKUP(M124,'Act. Proyecto'!$I$3:$Q$881,3,FALSE) -> un | P124: =VLOOKUP(M124,'Act. Proyecto'!$I$3:$Q$881,4,FALSE) -> 1 | Q124: =VLOOKUP(M124,'Act. Proyecto'!$I$3:$Q$881,5,FALSE) -> 8600 | R124: 8600 | S124: =VLOOKUP(M124,'Act. Proyecto'!$I$3:$Q$881,7,FALSE) -> Edif | T124: =SUMIF('Resumen Frentes Semanal'!$K$6:$K$64,'Prog. Semanal TER'!N124,'Resumen Frentes Semanal'!$M$6:$M$64) -> 63049 | Z124: 0 | BN124: 0 | BT124: 0 | BU124: F3-4 | BZ124: 1 | DD124: F7-8 | DI124: 1 | EO124: F13-14 | EQ124: 1 | GZ124: F17-18 | HD124: 0 | HE124: F17-18 | HJ124: 1 | IP124: F23-24 | IT124: 1
A125: 126 | B125: 2 | C125: 1 | D125: 155962.7718 | E125: =D125*$JF$125 -> 155962.7718 | F125: =(B125-C125)*R125 -> 155962.7718 | G125: RYT | L125: =SUMIF('Control de Avance'!$C$15:$C$9589,'Prog. Semanal TER'!M125,'Control de Avance'!$B$15:$B$9589) -> 1 | M125: Techumbre | N125: =VLOOKUP(M125,'Act. Proyecto'!$I$3:$Q$881,2,FALSE) -> TECHUMBRE Y MEMBRANA | O125: =VLOOKUP(M125,'Act. Proyecto'!$I$3:$Q$881,3,FALSE) -> m2 | P125: =VLOOKUP(M125,'Act. Proyecto'!$I$3:$Q$881,4,FALSE) -> 116.3901282 | Q125: =VLOOKUP(M125,'Act. Proyecto'!$I$3:$Q$881,5,FALSE) -> 1340 | R125: 155962.7718 | S125: =VLOOKUP(M125,'Act. Proyecto'!$I$3:$Q$881,7,FALSE) -> Frente | T125: =SUMIF('Resumen Frentes Semanal'!$K$6:$K$64,'Prog. Semanal TER'!N125,'Resumen Frentes Semanal'!$M$6:$M$64) -> 69656 | Z125: 0 | BJ125: 5F1/4 | BK125: 5F1/4 | BL125: 5F1/4 | BM125: 5F1/4 | BN125: 1 | BO125: 5F2.1 | BP125: 5F2.2 | BT125: 1 | BU125: 5F3.1 | BV125: 5F3.2 | BX125: 5F4.1 | BY125: 5F4.2 | BZ125: 1 | CA125: 5F5.1 | CB125: 5F5.2 | CE125: 1 | CF125: 5F6.1 | CG125: 5F6.2 | CK125: 1 | DH125: 5F7 | DI125: 1 | DJ125: 5F8 | DO125: 1 | EH125: 5F9 | EK125: 1 | EN125: 5F10 | EQ125: 1 | ER125: 5F11 | EW125: 1 | FI125: 0 | FJ125: 5F12 | FM125: 5F13 | FO125: 0.5 | FU125: 1 | FV125: 5F13 | GA125: 1 | GB125: 5F14 | GG125: 1 | GP125: 5F15/2 | GQ125: 5F15/2 | GS125: 1 | GT125: 5F16/2 | GU125: 5F16/2 | GY125: 1 | HE125: 5F17/2 | HF125: 5F17/2 | HG125: 5F18/2 | HH125: 5F18/2 | HJ125: 1 | HS125: 5F19/2 | HT125: 5F19/2 | HV125: 0 | HW125: 5F19 | IB125: 1 | IC125: 5F20 | IH125: 1 | IO125: 5F21/2 | IP125: 5F21/2 | IT125: 1 | IU125: 5F22/3 | IV125: 5F22/3 | IW125: 5F22/3 | IZ125: 0 | JA125: 5F22/2 | JB125: 5F22/2 | JF125: 1 | JG125: 5F23/2 | JH125: 5F23/2
A126: 126 | B126: 2 | C126: 1 | D126: =C126*$R126 -> 12717 | E126: =D126*$JF$126 -> 12717 | F126: =(B126-C126)*R126 -> 12717 | L126: 1 | M126: Canal de techumbre | N126: =VLOOKUP(M126,'Act. Proyecto'!$I$3:$Q$881,2,FALSE) -> TECHUMBRE Y MEMBRANA | O126: =VLOOKUP(M126,'Act. Proyecto'!$I$3:$Q$881,3,FALSE) -> ml | P126: =VLOOKUP(M126,'Act. Proyecto'!$I$3:$Q$881,4,FALSE) -> 15.7 | Q126: =VLOOKUP(M126,'Act. Proyecto'!$I$3:$Q$881,5,FALSE) -> 810 | R126: =IFERROR(P126*Q126,0) -> 12717 | S126: =VLOOKUP(M126,'Act. Proyecto'!$I$3:$Q$881,7,FALSE) -> Frente | T126: =SUMIF('Resumen Frentes Semanal'!$K$6:$K$64,'Prog. Semanal TER'!N126,'Resumen Frentes Semanal'!$M$6:$M$64) -> 69656 | CA126: 5F1-2 | CB126: 5F3-4 | CC126: 5F5 | CE126: 1 | CF126: 5F6.1 | CG126: 5F6.2 | CK126: 1 | DJ126: 5F7 | DK126: 5F8 | DN126: 5F9 | DO126: 0.6667 | EH126: 5F9 | EK126: 0 | EL126: 5F9 | EN126: 5F10 | EQ126: 1 | ER126: 5F11 | EW126: 1 | FI126: 0 | FJ126: 5F12 | FM126: 5F13 | FO126: 0.5 | FU126: 1 | FV126: 5F13 | GA126: 1 | GB126: 5F14 | GG126: 1 | GP126: 5F15/2 | GQ126: 5F15/2 | GS126: 1 | GT126: 5F16/2 | GU126: 5F16/2 | GY126: 1 | HE126: 5F17/2 | HF126: 5F17/2 | HG126: 5F18/2 | HH126: 5F18/2 | HJ126: 1 | HT126: 5F19/2 | HU126: 5F19/2 | HV126: 0 | HX126: 5F19 | IB126: 1 | IC126: 5F20 | IH126: 1 | IO126: 5F21/2 | IP126: 5F21/2 | IT126: 1 | IW126: 5F22/3 | IX126: 5F22/3 | IY126: 5F22/3 | IZ126: 0 | JB126: 5F22/2 | JC126: 5F22/2 | JF126: 1 | JH126: 5F23/2 | JI126: 5F23/2
A127: 127 | B127: 2 | C127: 1 | D127: 18622.42051 | E127: =D127*$JF$127 -> 18622.42051 | F127: 18622.42051 | G127: TERM | L127: =SUMIF('Control de Avance'!$C$15:$C$9589,'Prog. Semanal TER'!M127,'Control de Avance'!$B$15:$B$9589) -> 1 | M127: Huinchas de membrana en uniones + imprimación | N127: =VLOOKUP(M127,'Act. Proyecto'!$I$3:$Q$881,2,FALSE) -> TECHUMBRE Y MEMBRANA | O127: =VLOOKUP(M127,'Act. Proyecto'!$I$3:$Q$881,3,FALSE) -> m2 | P127: =VLOOKUP(M127,'Act. Proyecto'!$I$3:$Q$881,4,FALSE) -> 116.3901282 | Q127: =VLOOKUP(M127,'Act. Proyecto'!$I$3:$Q$881,5,FALSE) -> 160 | R127: 18622.42051 | S127: =VLOOKUP(M127,'Act. Proyecto'!$I$3:$Q$881,7,FALSE) -> Frente | T127: =SUMIF('Resumen Frentes Semanal'!$K$6:$K$64,'Prog. Semanal TER'!N127,'Resumen Frentes Semanal'!$M$6:$M$64) -> 69656 | Z127: 0 | BM127: 5F1 | BN127: 1 | BP127: 5F2 | BT127: 1 | BV127: 5F3.1 | BW127: 5F3.2 | BZ127: 1 | CA127: 5F4.1 | CB127: 5F4.2 | CC127: 5F5.1 | CD127: 5F5.2 | CE127: 1 | CG127: 5F6.1 | CH127: 5F6.2 | CK127: 1 | DK127: 5F7 | DL127: 5F8 | DO127: 1 | EI127: 5F9 | EK127: 0 | EL127: 5F9 | EO127: 5F10 | EQ127: 1 | ES127: 5F11 | EW127: 1 | FI127: 0 | FK127: 5F12 | FN127: 5F13 | FO127: 0.5 | FU127: 1 | FW127: 5F13 | GA127: 1 | GC127: 5F14 | GG127: 1 | GR127: 5F15 | GS127: 1 | GU127: 5F16 | GY127: 1 | HJ127: 0 | HK127: 5F17 | HM127: 5F18 | HP127: 1 | HY127: 5F19 | IB127: 1 | ID127: 5F20 | IH127: 1 | IQ127: 5F21 | IT127: 0 | JA127: 5F21/2 | JB127: 5F21/2 | JF127: 1 | JI127: 5F22/2 | JJ127: 5F22/2
A128: 127 | B128: 1 | C128: 0.5 | D128: 1025 | E128: =D128*$JF$128 -> 1025 | F128: 1025 | G128: TERM | L128: =SUMIF('Control de Avance'!$C$15:$C$9589,'Prog. Semanal TER'!M128,'Control de Avance'!$B$15:$B$9589) -> 1 | M128: Instalación manta gorro eólico 8" | N128: =VLOOKUP(M128,'Act. Proyecto'!$I$3:$Q$881,2,FALSE) -> TECHUMBRE Y MEMBRANA | O128: =VLOOKUP(M128,'Act. Proyecto'!$I$3:$Q$881,3,FALSE) -> uni | P128: =VLOOKUP(M128,'Act. Proyecto'!$I$3:$Q$881,4,FALSE) -> 2 | Q128: =VLOOKUP(M128,'Act. Proyecto'!$I$3:$Q$881,5,FALSE) -> 1025 | R128: 2050 | S128: =VLOOKUP(M128,'Act. Proyecto'!$I$3:$Q$881,7,FALSE) -> Edif | Z128: 0 | BO128: F1 | BP128: F2 | BT128: 1 | BW128: F3-4 | BZ128: 1 | CD128: F5 | CE128: 1 | CG128: F6 | CK128: 1 | DK128: F7 | DM128: F8 | DO128: 0.5 | DP128: F8 | DU128: 1 | EI128: F9 | EK128: 0 | EL128: F9 | EO128: F10 | EQ128: 1 | ET128: F11 | EW128: 1 | FI128: 0 | FL128: F12 | FN128: 5F13 | FO128: 0.8333 | FU128: 1 | FX128: F13 | GA128: 1 | GD128: F14 | GG128: 1 | GR128: F15 | GS128: 1 | GU128: F16 | GY128: 1 | HJ128: 0 | HK128: F17 | HN128: F18 | HP128: 1 | HY128: F19 | IB128: 1 | ID128: F20 | IH128: 1 | IQ128: F21 | IT128: 0 | JA128: F21/2 | JB128: F21/2 | JF128: 1 | JI128: F22/2 | JJ128: F22/2
A129: 127 | B129: 2 | C129: 1 | D129: 1026 | E129: =D129*$JF$129 -> 1026 | F129: 1026 | G129: RYT | L129: =SUMIF('Control de Avance'!$C$15:$C$9589,'Prog. Semanal TER'!M129,'Control de Avance'!$B$15:$B$9589) -> 1 | M129: Instalación manta gorro chino 6" | N129: =VLOOKUP(M129,'Act. Proyecto'!$I$3:$Q$881,2,FALSE) -> TECHUMBRE Y MEMBRANA | O129: =VLOOKUP(M129,'Act. Proyecto'!$I$3:$Q$881,3,FALSE) -> uni | P129: =VLOOKUP(M129,'Act. Proyecto'!$I$3:$Q$881,4,FALSE) -> 2 | Q129: =VLOOKUP(M129,'Act. Proyecto'!$I$3:$Q$881,5,FALSE) -> 513 | R129: 1026 | S129: =VLOOKUP(M129,'Act. Proyecto'!$I$3:$Q$881,7,FALSE) -> Frente | T129: =SUMIF('Resumen Frentes Semanal'!$K$6:$K$64,'Prog. Semanal TER'!N129,'Resumen Frentes Semanal'!$M$6:$M$64) -> 69656 | Z129: 0 | BO129: 5F1 | BP129: 5F2 | BT129: 1 | BV129: 5F3.1 | BW129: 5F3.2 | BZ129: 1 | CA129: 5F4.1 | CB129: 5F4.2 | CC129: 5F5.1 | CD129: 5F5.2 | CE129: 1 | CG129: 5F6.1 | CH129: 5F6.2 | CK129: 1 | DK129: 5F7 | DM129: 5F8 | DO129: 0.5 | DP129: 5F8 | DU129: 1 | EJ129: 5F9 | EK129: 0 | EL129: 5F9 | EO129: 5F10 | EQ129: 1 | ET129: 5F11 | EW129: 1 | FI129: 0 | FL129: 5F12 | FN129: 5F13 | FO129: 0.5 | FU129: 1 | FX129: 5F13 | GA129: 1 | GD129: 5F14 | GG129: 1 | GR129: 5F15 | GS129: 1 | GU129: 5F16 | GY129: 1 | HJ129: 0 | HK129: 5F17 | HN129: 5F18 | HP129: 1 | HY129: 5F19 | IB129: 1 | ID129: 5F20 | IH129: 1 | IQ129: 5F21 | IT129: 0 | JA129: 5F21/2 | JB129: 5F21/2 | JF129: 1 | JI129: 5F22/2 | JJ129: 5F22/2
A130: 128 | B130: 2 | C130: 1 | D130: 109698.3 | E130: =D130*$JF$130 -> 109698.3 | F130: 109698.3 | G130: RYT | L130: =SUMIF('Control de Avance'!$C$15:$C$9589,'Prog. Semanal TER'!M130,'Control de Avance'!$B$15:$B$9589) -> 1 | M130: Techo Membrana asfáltica | N130: =VLOOKUP(M130,'Act. Proyecto'!$I$3:$Q$881,2,FALSE) -> TECHUMBRE Y MEMBRANA | O130: =VLOOKUP(M130,'Act. Proyecto'!$I$3:$Q$881,3,FALSE) -> m2 | P130: =VLOOKUP(M130,'Act. Proyecto'!$I$3:$Q$881,4,FALSE) -> 135.43 | Q130: =VLOOKUP(M130,'Act. Proyecto'!$I$3:$Q$881,5,FALSE) -> 810 | R130: 109698.3 | S130: =VLOOKUP(M130,'Act. Proyecto'!$I$3:$Q$881,7,FALSE) -> Frente | T130: =SUMIF('Resumen Frentes Semanal'!$K$6:$K$64,'Prog. Semanal TER'!N130,'Resumen Frentes Semanal'!$M$6:$M$64) -> 69656 | Z130: 0 | BM130: 5F1.1 | BN130: 0 | BO130: 5F1 | BP130: 5F2 | BT130: 1 | BW130: 5F3.1 | BX130: 5F3.2 | BZ130: 1 | CB130: 5F4.1 | CC130: 5F4.2 | CD130: 5F5.1 | CE130: 0.6667 | CF130: 5F5.1 | CG130: 5F5.2 | CH130: 5F6.1 | CI130: 5F6.2 | CK130: 1 | DL130: 5F7 | DN130: 5F8.1 | DO130: 0.6667 | DQ130: 5F8 | DU130: 1 | EM130: 5F9 | EQ130: 1 | EU130: 5F10 | EW130: 1 | EX130: 5F11 | FC130: 1 | FI130: 0 | FM130: 5F12 | FO130: 1 | FU130: 1 | FY130: 5F13/2 | FZ130: 5F13/2 | GA130: 1 | GE130: 5F14/2 | GF130: 5F14/2 | GG130: 1 | GR130: 5F15 | GS130: 1 | GV130: 5F16/2 | GW130: 5F16/2 | GY130: 0 | GZ130: 5F16/2 | HA130: 5F16/2 | HD130: 1 | HJ130: 0 | HK130: 5F17/2 | HL130: 5F17/2 | HN130: 5F18/2 | HO130: 5F18/2 | HP130: 0.5 | HQ130: 5F18/2 | HR130: 5F18/2 | HV130: 0 | HX130: 5F18/2 | HY130: 5F18/2 | HZ130: 5F19 | IB130: 1 | ID130: 5F20/2 | IE130: 5F20/2 | IH130: 1 | IQ130: 5F21/2 | IR130: 5F21/2 | IT130: 0 | JB130: 5F21/2 | JC130: 5F21/2 | JF130: 1 | JJ130: 5F22/2 | JK130: 5F22/2
